Workbook

Sheet 1. Information Sheet
V1: Algoma Power Inc.
V2: Atikokan Hydro Inc.
V3: Attawapiskat Power Corp.
V4: Bluewater Power Distribution Corporation
V5: Brant County Power Inc.
V6: Brantford Power Inc.
V7: Burlington Hydro Inc.
V8: Cambridge and North Dumfries Hydro Inc.
V9: Canadian Niagara Power Inc.
V10: Centre Wellington Hydro Ltd.
V11: Chapleau Public Utilities Corporation
M12: Version | N12: 2.3 | V12: Clinton Power Corporation
V13: COLLUS Power Corporation
E14: Utility Name | F14: Kingston Hydro Corporation | V14: Cooperative Hydro Embrun Inc.
V15: E.L.K. Energy Inc.
E16: Service Territory | V16: Enersource Hydro Mississauga Inc.
V17: Entegrus Powerlines Inc.
E18: Assigned EB Number | F18: EB-2015-0083 | V18: ENWIN Utilities Ltd.
V19: Erie Thames Powerlines Corporation
E20: Name of Contact and Title | F20: Sherry Gibson, Senior Advisor Rates and Regulatory Affairs | V20: Espanola Regional Hydro Distribution Corporation
V21: Essex Powerlines Corporation
E22: Phone Number | F22: 613.546.1181 ext. 2383 | V22: Festival Hydro Inc.
V23: Fort Albany Power Corporation
E24: Email Address | F24: sgibson@utilitieskingston.com | V24: Fort Frances Power Corporation
V25: Greater Sudbury Hydro Inc.
V26: Grimsby Power Inc.
B27: General Notes 1. Please ensure that your macros have been enabled. (Tools -> Macro -> Security) 2. Due to the time lag of deferral/variance account dispositions, this model assumes that all opening balances include previously disposed of amounts. Accordingly, all "Board Approved Dispositions" are deducted from the opening balance. 3. Please provide information in this model since the last time your balances were disposed. 4. For all Board-Approved dispositions, please ensure that the disposition amount has the same sign (e.g: debit balances are to have a positive figure and credit balance are to have a negative figure) as per the related Board decision. | V27: Guelph Hydro Electric Systems Inc.
V28: Haldimand County Hydro Inc.
B29: Notes | V29: Halton Hills Hydro Inc.
V30: Hearst Power Distribution Company Limited
C31: Pale green cells represent input cells. | V31: Horizon Utilities Corporation
V32: Hydro 2000 Inc.
C33: Pale blue cells represent drop-down lists. The applicant should select the appropriate item from the drop-down list. | V33: Hydro Hawkesbury Inc.
V34: Hydro One Brampton Networks Inc.
C35: White cells contain fixed values, automatically generated values or formulae. | V35: Hydro One Networks Inc.
V36: Hydro Ottawa Limited
V37: Innisfil Hydro Distribution Systems Limited
V38: Kashechewan Power Corporation
V39: Kenora Hydro Electric Corporation Ltd.
V40: Kingston Hydro Corporation
V41: Kitchener-Wilmot Hydro Inc.
V42: Lakefront Utilities Inc.
V43: Lakeland Power Distribution Ltd.
V44: London Hydro Inc.
V45: Midland Power Utility Corporation
V46: Milton Hydro Distribution inc.
V47: Newmarket - Tay Power Distribution Ltd.
V48: Niagara Peninsula Energy Inc.
V49: Niagara-on-the-Lake Hydro Inc.
V50: Norfolk Power Distribution Inc.
V51: North Bay Hydro Distribution Limited
V52: Northern Ontario Wires Inc.
V53: Oakville Hydro Electricity Distribution Inc.
V54: Orangeville Hydro Limited
V55: Orillia Power Distribution Corporation
V56: Oshawa PUC Networks Inc.
V57: Ottawa River Power Corporation
V58: Parry Sound Power Corporation
V59: Peterborough Distribution Incorporated
V60: PowerStream Inc.
V61: PUC Distribution Inc.
V62: Renfrew Hydro Inc.
V63: Rideau St. Lawrence Distribution Inc.
V64: Sioux Lookout Hydro Inc.
V65: St. Thomas Energy Inc.
V66: Thunder Bay Hydro Electricity Distribution Inc.
V67: Tillsonburg Hydro Inc.
V68: Toronto Hydro-Electric System Limited
V69: Veridian Connections Inc.
V70: Wasaga Distribution Inc.
V71: Waterloo North Hydro Inc.
V72: Welland Hydro-Electric System Corp.
V73: Wellington North Power Inc.
V74: West Coast Huron Energy Inc.
V75: West Perth Power Inc.
V76: Westario Power Inc.
V77: Whitby Hydro Electric Corporation
V78: Woodstock Hydro Services Inc.

Sheet 2. 2015 Continuity Schedule
E19: 2010 | O19: 2011 | Y19: 2012 | AL19: 2013 | AY19: 2014 | BL19: 2015 Bridge Year | BV19: Projected Interest on Dec-31-15 Balances | BX19: 2.1.7 RRR
C20: Account Descriptions | D20: Account Number | E20: Opening Principal Amounts as of Jan-1-10 | F20: Transactions Debit / (Credit) during 2010 excluding interest and adjustments 3 | G20: Board-Approved Disposition during 2010 | H20: Adjustments during 2010 - other 2 | I20: Closing Principal Balance as of Dec-31-10 | J20: Opening Interest Amounts as of Jan-1-10 | K20: Interest Jan-1 to Dec-31-10 | L20: Board-Approved Disposition during 2010 | M20: Adjustments during 2010 - other 2 | N20: Closing Interest Amounts as of Dec-31-10 | O20: Opening Principal Amounts as of Jan-1-11 | P20: Transactions Debit / (Credit) during 2011 excluding interest and adjustments 3 | Q20: Board-Approved Disposition during 2011 | R20: Adjustments during 2010 - other 2 | S20: Closing Principal Balance as of Dec-31-11 | T20: Opening Interest Amounts as of Jan-1-11 | U20: Interest Jan-1 to Dec-31-11 | V20: Board-Approved Disposition during 2011 | W20: Adjustments during 2011 - other 2 | X20: Closing Interest Amounts as of Dec-31-11 | Y20: Opening Principal Amounts as of Jan-1-12 | Z20: Transactions Debit / (Credit) during 2012 excluding interest and adjustments 3 | AA20: Board-Approved Disposition during 2012 | AB20: Other 2 Adjustments during Q1 2012 | AC20: Other 2 Adjustments during Q2 2012 | AD20: Other 2 Adjustments during Q3 2012 | AE20: Other 2 Adjustments during Q4 2012 | AF20: Closing Principal Balance as of Dec-31-12 | AG20: Opening Interest Amounts as of Jan-1-12 | AH20: Interest Jan-1 to Dec-31-12 | AI20: Board-Approved Disposition during 2012 | AJ20: Adjustments during 2012 - other 2 | AK20: Closing Interest Amounts as of Dec-31-12 | AL20: Opening Principal Amounts as of Jan-1-13 | AM20: Transactions Debit / (Credit) during 2013 excluding interest and adjustments 3 | AN20: Board-Approved Disposition during 2013 | AO20: Other 2 Adjustments during Q1 2013 | AP20: Other 2 Adjustments during Q2 2013 | AQ20: Other 2 Adjustments during Q3 2013 | AR20: Other 2 Adjustments during Q4 2013 | AS20: Closing Principal Balance as of Dec-31-13 | AT20: Opening Interest Amounts as of Jan-1-13 | AU20: Interest Jan-1 to Dec-31-13 | AV20: Board-Approved Disposition during 2013 | AW20: Adjustments during 2013 - other 2 | AX20: Closing Interest Amounts as of Dec-31-13 | AY20: Opening Principal Amounts as of Jan-1-14 | AZ20: Transactions Debit / (Credit) during 2014 excluding interest and adjustments 3 | BA20: Board-Approved Disposition during 2014 | BB20: Other 2 Adjustments during Q1 2014 | BC20: Other 2 Adjustments during Q2 2014 | BD20: Other 2 Adjustments during Q3 2014 | BE20: Other 2 Adjustments during Q4 2014 | BF20: Closing Principal Balance as of Dec-31-14 | BG20: Opening Interest Amounts as of Jan-1-14 | BH20: Interest Jan-1 to Dec-31-14 | BI20: Board-Approved Disposition during 2014 | BJ20: Adjustments during 2014 - other 2 | BK20: Closing Interest Amounts as of Dec-31-14 | BL20: Opening Principal Amounts as of Jan-1-15 | BM20: Principal Disposition during 2015 - instructed by Board | BN20: Principal Disposition during 2015-recovered over 1 year period | BO20: Adjustments during 2015 - other 2 | BP20: Closing Principal Balances as of Dec 31-14 Adjusted for Dispositions and adjustments during 2015 | BQ20: Opening Interest Amounts as of Jan-1-15 | BR20: Interest Disposition during 2015 - instructed by Board | BS20: Interest Disposition during 2015 -recovered over 1 year period | BT20: Adjustments during 2015 - other 2 | BU20: Closing Interest Balances as of Dec 31-13 Adjusted for Dispositions during 2014 | BV20: Projected Interest from Jan 1, 2015 to December 31, 2015 on Dec 31 -14 balance adjusted for disposition during 2015 6 | BW20: Total Claim | BX20: As of Dec 31-14 | BY20: Variance RRR vs. 2014 Balance (Principal + Interest)
BW22: Claim before Forecasted Transactions
C23: Group 1 Accounts
A24: 1 | C24: LV Variance Account | D24: 1550 | E24: 1076842 | F24: 127004 | G24: 954176 | I24: =E24+F24-G24+H24 -> 249670 | J24: 57995 | K24: 3092 | L24: 59019 | N24: =J24+K24-L24+M24 -> 2068 | O24: =I24 -> 249670 | P24: 223960.97 | Q24: 122666.3 | S24: =O24+P24-Q24+SUM(R24:R24) -> 350964.67 | T24: =N24 -> 2068 | U24: 4155.2 | V24: 1944 | X24: =T24+U24-V24+W24 -> 4279.2 | Y24: =S24 -> 350964.67 | Z24: 104600 | AE24: -47363 | AF24: =Y24+Z24-AA24+SUM(AB24:AE24) -> 408201.67 | AG24: =X24 -> 4279.2 | AH24: 5793 | AK24: =AG24+AH24-AI24+AJ24 -> 10072.2 | AL24: =AF24 -> 408201.67 | AM24: 367934 | AN24: 350964 | AS24: =AL24+AM24-AN24+SUM(AO24:AR24) -> 425171.67 | AT24: =AK24 -> 10072.2 | AU24: 5527 | AV24: 11134 | AX24: =AT24+AU24-AV24+AW24 -> 4465.2 | AY24: =AS24 -> 425171.67 | AZ24: 360059.36 | BA24: 57236.26 | BF24: =AY24+AZ24-BA24+SUM(BB24:BE24) -> 727994.77 | BG24: =AX24 -> 4465.2 | BH24: 6496.24 | BI24: 59 | BK24: =BG24+BH24-BI24+BJ24 -> 10902.44 | BL24: =BF24 -> 727994.77 | BM24: 367934.67 | BP24: =BL24-BM24+BO24 -> 360060.1 | BQ24: =BK24 -> 10902.44 | BR24: 11593 | BU24: =BQ24-BR24 -> -690.56 | BV24: =(BP24*0.0147/365*90)+(BP24*0.0101/365*275) -> 4045.003945 | BW24: =BL24+BQ24+BV24 -> 742942.2139 | BX24: 738897.36 | BY24: =BX24-SUM(BF24,BK24) -> 0.1500000001
A25: 2 | C25: Smart Metering Entity Charge Variance Account | D25: 1551 | E25: 0 | I25: =E25+F25-G25+SUM(H25:H25) -> 0 | J25: 0 | N25: =J25+K25-L25+M25 -> 0 | O25: =I25 -> 0 | S25: =O25+P25-Q25+SUM(R25:R25) -> 0 | T25: 0 | X25: =T25+U25-V25+W25 -> 0 | Y25: =S25 -> 0 | AF25: =Y25+Z25-AA25+SUM(AB25:AE25) -> 0 | AG25: =X25 -> 0 | AK25: =AG25+AH25-AI25+AJ25 -> 0 | AL25: =AF25 -> 0 | AM25: 44232.11 | AS25: =AL25+AM25-AN25+SUM(AO25:AR25) -> 44232.11 | AT25: =AK25 -> 0 | AU25: 384.71 | AX25: =AT25+AU25-AV25+AW25 -> 384.71 | AY25: =AS25 -> 44232.11 | AZ25: -5087.32 | BF25: 39144.79 | BG25: =AX25 -> 384.71 | BH25: 580.21 | BK25: =BG25+BH25-BI25+BJ25 -> 964.92 | BL25: =BF25 -> 39144.79 | BM25: 44232.11 | BP25: =BL25-BM25+BO25 -> -5087.32 | BQ25: 964.92 | BR25: 598 | BU25: =BQ25-BR25 -> 366.92 | BV25: =(BP25*0.0147/365*90)+(BP25*0.0101/365*275) -> -57.15220729 | BW25: =BL25+BQ25+BV25 -> 40052.55779 | BX25: 40109.72 | BY25: 0.01
A26: 3 | C26: RSVA - Wholesale Market Service Charge | D26: 1580 | E26: -2228936 | F26: -799237 | G26: -1950854 | I26: -1077319 | J26: -107308 | K26: -9410 | L26: -109616 | N26: -7102 | O26: -1077319 | P26: -684636 | Q26: -278081.99 | S26: -1483873.01 | T26: -7102 | U26: -18292.95 | V26: -4040 | X26: -21354.95 | Y26: -1483873.01 | Z26: -888314 | AF26: -2372187.01 | AG26: -21354.95 | AH26: -28000 | AK26: -49354.95 | AL26: =AF26 -> -2372187.01 | AM26: -443319.32 | AN26: -1483874 | AS26: =AL26+AM26-AN26+SUM(AO26:AR26) -> -1331632.33 | AT26: =AK26 -> -49354.95 | AU26: -24773 | AV26: -50339 | AX26: =AT26+AU26-AV26+AW26 -> -23788.95 | AY26: -1331632.33 | AZ26: 24615.17 | BA26: -888313.81 | BF26: -418703.35 | BG26: -23788.95 | BH26: 1857 | BI26: -16427 | BK26: -5504.95 | BL26: -418703.35 | BM26: -443319.33 | BP26: 24615.98 | BQ26: -5504.95 | BR26: -16021 | BU26: 10516.05 | BV26: 276.541989 | BW26: -423931.758 | BX26: -424208.13 | BY26: 0.1699999996
A27: 4 | C27: RSVA - Retail Transmission Network Charge | D27: 1584 | E27: -388453 | F27: 323649 | G27: -681877 | I27: 617073 | J27: -130742 | K27: 2192 | L27: -132881 | N27: 4331 | O27: 617073 | P27: 81942.56 | Q27: 293424 | S27: 405591.56 | T27: 4331 | U27: 6943.91 | V27: 3882 | X27: 7392.91 | Y27: 405591.56 | Z27: 356916 | AF27: 762507.56 | AG27: 7392.91 | AH27: 9638 | AK27: 17030.91 | AL27: 762507.56 | AM27: 216076.47 | AN27: 405591 | AS27: 572993.03 | AT27: 17030.91 | AU27: 8813 | AV27: 15315 | AX27: 10528.91 | AY27: 572993.03 | AZ27: 212779.85 | BA27: 356916 | BF27: 428856.88 | BG27: 10528.91 | BH27: 6172 | BI27: =--8712 -> 8712 | BK27: 7988.91 | BL27: 428856.88 | BM27: 216076.03 | BP27: 212780.85 | BQ27: 7988.91 | BR27: 6037 | BU27: 1951.91 | BV27: 2390.432535 | BW27: 439236.2225 | BX27: 436845.94 | BY27: 0.1500000001
A28: 5 | C28: RSVA - Retail Transmission Connection Charge | D28: 1586 | E28: 108422 | F28: 346391 | G28: -255064 | I28: 709877 | J28: -85921 | K28: 3558 | L28: -87754 | N28: 5391 | O28: 709877 | P28: 16107.48 | Q28: 363485 | S28: 362499.48 | T28: 5391 | U28: 7368.82 | V28: 5058 | X28: 7701.82 | Y28: 362499.48 | Z28: 299622 | AF28: 662121.48 | AG28: 7701.82 | AH28: 8173 | AK28: 15874.82 | AL28: 662121.48 | AM28: 109014.18 | AN28: 362498 | AS28: 408637.66 | AT28: 15874.82 | AU28: 6179.91 | AV28: 14782 | AX28: 7272.73 | AY28: 408637.66 | AZ28: 141358.1 | BA28: 299621.68 | BF28: 250374.08 | BG28: 7272.73 | BH28: 3494 | BI28: 6965 | BK28: 3801.73 | BL28: 250374.08 | BM28: 109014.66 | BP28: 141359.42 | BQ28: 3801.73 | BR28: 2437 | BU28: 1364.73 | BV28: 1588.06658 | BW28: 255763.8766 | BX28: 254175.8 | BY28: -0.01000000004
A29: 6 | C29: RSVA - Power (excluding Global Adjustment) | D29: 1588 | E29: -841886 | F29: -82037 | G29: -229917 | I29: -694006 | J29: -71035 | K29: -4457 | L29: -66562 | N29: -8930 | O29: -694006 | P29: -232448 | Q29: -611968 | S29: -314486 | T29: -8930 | U29: -934.73 | V29: -11095 | X29: 1230.27 | Y29: -314486 | Z29: 96329 | AE29: 92527.28 | AF29: -125629.72 | AG29: 1230.27 | AH29: 2110 | AK29: 3340.27 | AL29: -125629.72 | AM29: -196802.99 | AN29: -314526 | AS29: -7906.71 | AT29: 3340.27 | AU29: -10565 | AV29: -4912 | AX29: -2312.73 | AY29: -7906.71 | AZ29: -1451056.57 | BA29: 188897 | BF29: -1647860.28 | BG29: -2312.73 | BH29: -855 | BI29: 11955 | BK29: -15122.73 | BL29: -1647860.28 | BM29: -196802.71 | BP29: -1451057.57 | BQ29: -15122.73 | BR29: -18112 | BU29: 2989.27 | BV29: -16301.53854 | BW29: -1679284.549 | BX29: -1662983.27 | BY29: -0.2599999923
A30: 7 | C30: RSVA - Global Adjustment | D30: 1589 | E30: 1964763 | F30: -17164 | G30: 1105378 | I30: 842221 | J30: 26050 | K30: 3826 | L30: 27366 | N30: 2510 | O30: 842221 | P30: 2753143.17 | Q30: 859384.83 | S30: 2735979.34 | T30: 2510 | U30: 16265 | V30: 6898 | X30: 11877 | Y30: 2735979.34 | Z30: 2361773 | AE30: 279566.12 | AF30: 5377318.46 | AG30: 11877 | AH30: 50455 | AK30: 62332 | AL30: 5377318.46 | AM30: 3300841.36 | AN30: 2735980 | AS30: 5942179.82 | AT30: 62332 | AU30: 89339 | AV30: 65318 | AX30: 86353 | AY30: 5942179.82 | AZ30: 3398074.46 | BA30: 2641339 | BF30: 6698915.28 | BG30: 86353 | BH30: 63380.97 | BI30: 48786 | BK30: 100947.97 | BL30: 6698915.28 | BM30: 3300841.82 | BP30: 3398073.46 | BQ30: 100947.97 | BR30: 102042 | BU30: -1094.03 | BV30: 38174.79513 | BW30: =BP30+SUM(BU30:BV30) -> 3435154.225 | BX30: 6799863.73 | BY30: 0.4799999995
A31: 8 | C31: Disposition and Recovery/Refund of Regulatory Balances (2009) | D31: 1595 | E31: 0 | I31: 0 | J31: 0 | N31: 0 | O31: =I31 -> 0 | S31: 0 | T31: 0 | X31: 0 | Y31: =S31 -> 0 | AF31: 0 | AG31: =X31 -> 0 | AK31: 0 | AL31: =AF31 -> 0 | AS31: 0 | AT31: =AK31 -> 0 | AX31: 0 | AY31: 0 | BF31: 0 | BG31: 0 | BK31: 0 | BL31: 0 | BP31: 0 | BQ31: 0 | BU31: 0 | BV31: 0 | BW31: 0 | BY31: 0
A32: 9 | C32: Disposition and Recovery/Refund of Regulatory Balances (2010) | D32: 1595 | E32: 0 | F32: 410078 | G32: 1829079 | I32: -1419001 | J32: 0 | K32: -9353 | L32: -56959 | N32: =J32+K32-L32+M32 -> 47606 | O32: =I32 -> -1419001 | P32: 768362 | S32: -650639 | T32: 47606 | U32: -15047 | X32: =T32+U32-V32+W32 -> 32559 | Y32: =S32 -> -650639 | Z32: 384820 | AB32: -256 | AF32: =Y32+Z32-AA32+SUM(AB32:AE32) -> -266075 | AG32: =X32 -> 32559 | AH32: -5368 | AJ32: -6 | AK32: =AG32+AH32-AI32+AJ32 -> 27185 | AL32: =AF32 -> -266075 | AM32: -4687.06 | AN32: -256 | AS32: =AL32+AM32-AN32+SUM(AO32:AR32) -> -270506.06 | AT32: =AK32 -> 27185 | AU32: -3930.06 | AV32: -11.26 | AX32: =AT32+AU32-AV32+AW32 -> 23266.2 | AY32: -270506.06 | AZ32: 3931.11 | BA32: -266074 | BE32: =-256 -> -256 | BF32: -756.95 | BG32: 23266.2 | BH32: 1284 | BI32: 24577 | BJ32: -4.7 | BK32: -31.5 | BL32: -756.95 | BM32: -4686 | BP32: 3929.05 | BQ32: -31.5 | BR32: -1429 | BU32: 1397.5 | BV32: 44.13991651 | BW32: -744.3100835 | BX32: -788.1 | BY32: 0.35
A33: 10 | C33: Disposition and Recovery/Refund of Regulatory Balances (2011) | D33: 1595 | E33: 0 | I33: 0 | J33: 0 | N33: =J33+K33-L33+M33 -> 0 | O33: =I33 -> 0 | P33: -228948.83 | Q33: -1227080 | S33: =O33+P33-Q33+SUM(R33:R33) -> 998131.17 | T33: 0 | U33: 11480 | V33: -53612 | X33: =T33+U33-V33+W33 -> 65092 | Y33: =S33 -> 998131.17 | Z33: -738103 | AF33: =Y33+Z33-AA33+SUM(AB33:AE33) -> 260028.17 | AG33: =X33 -> 65092 | AH33: 9644 | AK33: =AG33+AH33-AI33+AJ33 -> 74736 | AL33: =AF33 -> 260028.17 | AM33: -331324 | AS33: =AL33+AM33-AN33+SUM(AO33:AR33) -> -71295.83 | AT33: =AK33 -> 74736 | AU33: 161.55 | AX33: =AT33+AU33-AV33+AW33 -> 74897.55 | AY33: -71295.83 | AZ33: 2827.39 | BF33: -68468.44 | BG33: 74897.55 | BH33: -982 | BK33: 73915.55 | BL33: -68468.44 | BM33: -71293.58 | BP33: 2825.14 | BQ33: 73915.55 | BR33: 73505 | BU33: 410.55 | BV33: 31.73831937 | BW33: 5478.848319 | BX33: 5446.89 | BY33: -0.22
A34: 11 | C34: Disposition and Recovery/Refund of Regulatory Balances (2012) | D34: 1595 | E34: 0 | I34: 0 | J34: 0 | N34: =J34+K34-L34+M34 -> 0 | O34: =I34 -> 0 | S34: 0 | T34: 0 | X34: 0 | Y34: 0 | Z34: 249231 | AA34: 490638.38 | AF34: =Y34+Z34-AA34+SUM(AB34:AE34) -> -241407.38 | AG34: =X34 -> 0 | AH34: -3926 | AI34: 42067 | AK34: =AG34+AH34-AI34+AJ34 -> -45993 | AL34: =AF34 -> -241407.38 | AM34: 256096 | AS34: =AL34+AM34-AN34+SUM(AO34:AR34) -> 14688.62 | AT34: =AK34 -> -45993 | AU34: -676.36 | AX34: =AT34+AU34-AV34+AW34 -> -46669.36 | AY34: 14688.62 | AZ34: -1341 | BF34: 13347.62 | BG34: -46669.36 | BH34: 201.9 | BK34: -46467.46 | BL34: 13347.62 | BM34: 14688.62 | BP34: -1341 | BQ34: -46467.46 | BR34: -46382 | BU34: -85.46 | BV34: -15.06512466 | BW34: -33134.90512 | BX34: -33119.88 | BY34: -0.03999999999
A35: 12 | C35: Disposition and Recovery/Refund of Regulatory Balances (2013) | D35: 1595 | E35: 0 | I35: =E35+F35-G35+SUM(H35:H35) -> 0 | J35: 0 | N35: =J35+K35-L35+M35 -> 0 | O35: =I35 -> 0 | S35: 0 | T35: 0 | X35: 0 | Y35: 0 | AF35: =Y35+Z35-AA35+SUM(AB35:AE35) -> 0 | AG35: =X35 -> 0 | AK35: =AG35+AH35-AI35+AJ35 -> 0 | AL35: =AF35 -> 0 | AM35: -1333337.1 | AN35: -2056378 | AS35: =AL35+AM35-AN35+SUM(AO35:AR35) -> 723040.9 | AT35: =AK35 -> 0 | AU35: 12830.91 | AV35: -51286 | AX35: =AT35+AU35-AV35+AW35 -> 64116.91 | AY35: 723040.9 | AZ35: -839573.71 | BF35: -116532.81 | BG35: 64116.91 | BH35: 1313.09 | BK35: 65430 | BL35: -116532.81 | BP35: -116532.81 | BQ35: 65430 | BU35: 65430 | BV35: -1309.158322 | BW35: -52411.96832 | BX35: -51102.48 | BY35: 0.3300000001
A36: 13 | C36: Disposition and Recovery/Refund of Regulatory Balances (2015) | D36: 1595 | BM36: -3336686 | BN36: -3300842 | BP36: =BL36-BM36+BO36+BN36 -> 35844 | BQ36: 0 | BR36: -114268 | BS36: -102042 | BU36: =BQ36-BR36+BS36 -> 12226
BY37: 0
C38: Group 1 Sub-Total (including Account 1589 - Global Adjustment) | E38: -309248 | F38: =SUM(F24:F35) -> 308684 | G38: 770921 | H38: 0 | I38: -771485 | J38: -310961 | K38: -10552 | L38: -367387 | M38: 0 | N38: 45874 | O38: =SUM(O24:O35) -> -771485 | P38: 2697483.35 | Q38: -478169.86 | R38: 0 | S38: 2404168.21 | T38: 45874 | U38: 11938.25 | V38: -50965 | W38: 0 | X38: 108777.25 | Y38: 2404168.21 | Z38: 2226874 | AA38: 490638.38 | AB38: -256 | AC38: 0 | AD38: 0 | AE38: 324730.4 | AF38: 4464878.23 | AG38: 108777.25 | AH38: 48519 | AI38: 42067 | AJ38: -6 | AK38: 115223.25 | AL38: 4464878.23 | AM38: 1984723.65 | AN38: -1 | AO38: 0 | AP38: 0 | AQ38: 0 | AR38: 0 | AS38: 6449602.88 | AT38: 115223.25 | AU38: 83291.66 | AV38: 0.74 | AW38: 0 | AX38: 198514.17 | AY38: 6449602.88 | AZ38: =SUM(AZ24:AZ37) -> 1846586.84 | BA38: 2389622.13 | BB38: 0 | BC38: 0 | BD38: 0 | BE38: -256 | BF38: 5906311.59 | BG38: 198514.17 | BH38: 82942.41 | BI38: 84627 | BJ38: -4.7 | BK38: 196824.88 | BL38: =SUM(BL24:BL35) -> 5906311.59 | BM38: =SUM(BM24:BM36) -> 0.2900000005 | BN38: -3300842 | BO38: 0 | BP38: 2605469.3 | BQ38: 196824.88 | BR38: 0 | BS38: -102042 | BT38: 0 | BU38: 94782.88 | BV38: 28867.80423 | BW38: 2729120.454 | BX38: 6103137.58 | BY38: 1.110000007
C39: Group 1 Sub-Total (excluding Account 1589 - Global Adjustment) | E39: -2274011 | F39: =F38-F40 -> 325848 | G39: -334457 | H39: 0 | I39: -1613706 | J39: -337011 | K39: -14378 | L39: -394753 | M39: 0 | N39: 43364 | O39: =O38-O40 -> -1613706 | P39: -55659.82 | Q39: -1337554.69 | R39: 0 | S39: -331811.13 | T39: 43364 | U39: -4326.75 | V39: -57863 | W39: 0 | X39: 96900.25 | Y39: -331811.13 | Z39: -134899 | AA39: 490638.38 | AB39: -256 | AC39: 0 | AD39: 0 | AE39: 45164.28 | AF39: -912440.23 | AG39: 96900.25 | AH39: -1936 | AI39: 42067 | AJ39: -6 | AK39: 52891.25 | AL39: -912440.23 | AM39: -1316117.71 | AN39: -2735981 | AO39: 0 | AP39: 0 | AQ39: 0 | AR39: 0 | AS39: 507423.06 | AT39: 52891.25 | AU39: -6047.34 | AV39: -65317.26 | AW39: 0 | AX39: 112161.17 | AY39: 507423.06 | AZ39: -1551487.62 | BA39: -251716.87 | BB39: 0 | BC39: 0 | BD39: 0 | BE39: -256 | BF39: -792603.69 | BG39: 112161.17 | BH39: 19561.44 | BI39: 35841 | BJ39: -4.7 | BK39: 95876.91 | BL39: -792603.69 | BM39: -3300841.53 | BN39: =BN38-BN40 -> -3300842 | BO39: =BO38-BO40 -> 0 | BP39: -792604.16 | BQ39: 95876.91 | BR39: -102042 | BS39: =BS38-BS40 -> -102042 | BT39: 0 | BU39: 95876.91 | BV39: =BV38-BV40 -> -9306.990904 | BW39: -706033.7709 | BX39: -696726.15 | BY39: 0.6300000076
C40: =C30 -> RSVA - Global Adjustment | D40: 1589 | E40: 1964763 | F40: =F30 -> -17164 | G40: 1105378 | H40: 0 | I40: 842221 | J40: 26050 | K40: 3826 | L40: 27366 | M40: 0 | N40: 2510 | O40: =O30 -> 842221 | P40: 2753143.17 | Q40: 859384.83 | R40: 0 | S40: 2735979.34 | T40: 2510 | U40: 16265 | V40: 6898 | W40: 0 | X40: 11877 | Y40: 2735979.34 | Z40: 2361773 | AA40: 0 | AB40: 0 | AC40: 0 | AD40: 0 | AE40: 279566.12 | AF40: 5377318.46 | AG40: 11877 | AH40: 50455 | AI40: 0 | AJ40: 0 | AK40: 62332 | AL40: 5377318.46 | AM40: 3300841.36 | AN40: 2735980 | AO40: 0 | AP40: 0 | AQ40: 0 | AR40: 0 | AS40: 5942179.82 | AT40: 62332 | AU40: 89339 | AV40: 65318 | AW40: 0 | AX40: 86353 | AY40: 5942179.82 | AZ40: 3398074.46 | BA40: 2641339 | BB40: 0 | BC40: 0 | BD40: 0 | BE40: 0 | BF40: 6698915.28 | BG40: 86353 | BH40: 63380.97 | BI40: 48786 | BJ40: 0 | BK40: 100947.97 | BL40: 6698915.28 | BM40: 3300841.82 | BN40: =BN30 -> 0 | BO40: =BO30 -> 0 | BP40: 3398073.46 | BQ40: 100947.97 | BR40: 102042 | BS40: 0 | BT40: 0 | BU40: -1094.03 | BV40: =BV30 -> 38174.79513 | BW40: 3435154.225 | BX40: 6799863.73 | BY40: 0.4799999995
BY41: =BX41-SUM(BF41,BK41) -> 0
C42: Group 2 Accounts | BY42: 0
A43: 14 | C43: Other Regulatory Assets - Sub-Account - Deferred IFRS Transition Costs | D43: 1508 | E43: 42702 | F43: 790 | I43: =E43+F43-G43+SUM(H43:H43) -> 43492 | J43: 20 | K43: 342.91 | N43: =J43+K43-L43+M43 -> 362.91 | O43: =I43 -> 43492 | P43: 2198 | S43: =O43+P43-Q43+SUM(R43:R43) -> 45690 | T43: =N43 -> 362.91 | U43: 653 | X43: =T43+U43-V43+W43 -> 1015.91 | Y43: =S43 -> 45690 | Z43: 27326.12 | AF43: =Y43+Z43-AA43+SUM(AB43:AE43) -> 73016.12 | AG43: =X43 -> 1015.91 | AH43: 957.89 | AK43: =AG43+AH43-AI43+AJ43 -> 1973.8 | AL43: =AF43 -> 73016.12 | AM43: 1163.1 | AS43: =AL43+AM43-AN43+SUM(AO43:AR43) -> 74179.22 | AT43: =AK43 -> 1973.8 | AU43: 1079 | AX43: =AT43+AU43-AV43+AW43 -> 3052.8 | AY43: 74179.22 | AZ43: 2700 | BF43: =AY43+AZ43-BA43+SUM(BB43:BE43) -> 76879.22 | BG43: 3052.8 | BH43: 1103.7 | BK43: 4156.5 | BL43: =BF43 -> 76879.22 | BO43: 15000 | BP43: =BL43-BM43+BO43 -> 91879.22 | BQ43: =BK43 -> 4156.5 | BU43: =BQ43-BR43 -> 4156.5 | BV43: =(BP43*0.0147/365*90)+(BP43*0.0101/365*275) -> 1032.193813 | BW43: =BP43+SUM(BU43:BV43) -> 97067.91381 | BX43: 81036.16 | BY43: 0.44
A44: 15 | C44: Other Regulatory Assets - Sub-Account - Incremental Capital Charges | D44: 1508 | E44: 8486 | F44: 5521 | I44: 14007 | J44: 4 | K44: 104 | N44: 108 | O44: 14007 | Q44: 8486 | S44: 5521 | T44: 108 | U44: 133 | V44: 90 | X44: 151 | Y44: 5521 | AF44: 5521 | AG44: 151 | AJ44: 81.37 | AK44: 232.37 | AL44: 5521 | AS44: 5521 | AT44: 232.37 | AU44: 81.15 | AX44: 313.52 | AY44: 5521 | BF44: =AY44+AZ44-BA44+SUM(BB44:BE44) -> 5521 | BG44: =AX44 -> 313.52 | BH44: 79 | BK44: 392.52 | BL44: 5521 | BP44: 5521 | BQ44: 392.52 | BU44: 392.52 | BV44: 62.02427534 | BW44: 5975.544275 | BX44: 5914 | BY44: 0.48
A45: 16 | C45: Other Regulatory Assets - Sub-Account - Incremental Capital-2012 | D45: 1508 | I45: 0 | N45: =J45+K45-L45+M45 -> 0 | O45: 0 | S45: 0 | T45: 0 | X45: 0 | Y45: 0 | Z45: 2086902.81 | AF45: 2086902.81 | AG45: 0 | AH45: -390.88 | AK45: -390.88 | AL45: 2086902.81 | AM45: 218892.48 | AS45: 2305795.29 | AT45: -390.88 | AU45: 28904 | AX45: 28513.12 | AY45: 2305795.29 | AZ45: -261087.08 | BF45: 2044708.21 | BG45: 28513.12 | BH45: 32066 | BK45: 60579.12 | BL45: 2044708.21 | BO45: -195509 | BP45: 1849199.21 | BQ45: 60579.12 | BU45: 60579.12 | BV45: =(BL45*0.0147/365*90)+(BL45*0.0101/365*275) -> 22970.75621 | BW45: 132079 | BX45: 2105287 | BY45: -0.3300000001
A46: 17 | C46: Other Regulatory Assets - Sub-Account - Financial Assistance Payment and Recovery Variance - Ontario Clean Energy Benefit Act8 | D46: 1508 | O46: 0 | S46: 0 | T46: 0 | X46: 0 | Y46: 0 | AF46: =Y46+Z46-AA46+SUM(AB46:AE46) -> 0 | AG46: =X46 -> 0 | AK46: 0 | AL46: 0 | AS46: 0 | AT46: =AK46 -> 0 | AX46: 0 | AY46: 0 | BF46: 0 | BG46: 0 | BK46: 0 | BL46: 0 | BP46: 0 | BQ46: 0 | BU46: 0 | BV46: 0 | BW46: 0 | BY46: 0
A47: 18 | C47: Other Regulatory Assets - Sub-Account - Financial Assistance Payment and Recovery Carrying Charges | D47: 1508 | O47: 0 | S47: 0 | T47: 0 | X47: 0 | Y47: 0 | AF47: =Y47+Z47-AA47+SUM(AB47:AE47) -> 0 | AG47: =X47 -> 0 | AK47: 0 | AL47: 0 | AS47: =AL47+AM47-AN47+SUM(AO47:AR47) -> 0 | AT47: =AK47 -> 0 | AX47: 0 | AY47: 0 | BF47: 0 | BG47: 0 | BK47: 0 | BL47: 0 | BP47: 0 | BQ47: 0 | BU47: 0 | BV47: 0 | BW47: 0 | BY47: 0
A48: 19 | C48: Other Regulatory Assets - Sub-Account - Other 4 | D48: 1508 | E48: 139126 | I48: 139126 | J48: 19577 | K48: 1112 | N48: 20689 | O48: 139126 | Q48: 139126 | S48: 0 | T48: 20689 | U48: 847 | V48: 20958 | X48: 578 | Y48: 0 | AF48: =Y48+Z48-AA48+SUM(AB48:AE48) -> 0 | AG48: =X48 -> 578 | AJ48: -578 | AK48: 0 | AL48: 0 | AS48: =AL48+AM48-AN48+SUM(AO48:AR48) -> 0 | AT48: =AK48 -> 0 | AX48: 0 | AY48: 0 | BF48: 0 | BG48: 0 | BK48: 0 | BL48: 0 | BP48: 0 | BQ48: 0 | BU48: 0 | BV48: 0 | BW48: 0 | BY48: 0
A49: 20 | C49: Retail Cost Variance Account - Retail | D49: 1518 | E49: 139423 | F49: 48217.48 | I49: 187640.48 | J49: 10669 | K49: 1369.4 | N49: 12038.4 | O49: 187640.48 | P49: 43273.43 | Q49: 139423 | S49: 91490.91 | T49: 12038.4 | U49: 1785.97 | V49: 12083 | X49: 1741.37 | Y49: 91490.91 | Z49: 45817.48 | AF49: 137308.39 | AG49: 1741.37 | AH49: 1746.16 | AK49: 3487.53 | AL49: 137308.39 | AM49: 44288 | AS49: 181596.39 | AT49: 3487.53 | AU49: 1894 | AX49: 5381.53 | AY49: 181596.39 | AZ49: 24081.32 | BF49: 205677.71 | BG49: 5381.53 | BH49: 2849.72 | BK49: 8231.25 | BL49: 205677.71 | BP49: 205677.71 | BQ49: 8231.25 | BU49: 8231.25 | BV49: 2310.634109 | BW49: 216219.5941 | BX49: 213909.42 | BY49: 0.46
A50: 21 | C50: Misc. Deferred Debits | D50: 1525 | E50: 0 | I50: 0 | J50: 0 | N50: 0 | O50: 0 | S50: 0 | T50: 0 | X50: 0 | Y50: 0 | AF50: 0 | AG50: 0 | AK50: 0 | AL50: 0 | AS50: 0 | AT50: 0 | AX50: 0 | AY50: 0 | BF50: 0 | BG50: 0 | BK50: 0 | BL50: 0 | BP50: 0 | BQ50: 0 | BU50: 0 | BV50: 0 | BW50: 0 | BY50: 0
A51: 22 | C51: Renewable Generation Connection Capital Deferral Account | D51: 1531 | E51: 0 | I51: 0 | J51: 0 | N51: 0 | O51: 0 | S51: 0 | T51: 0 | X51: 0 | Y51: 0 | AF51: 0 | AG51: 0 | AK51: 0 | AL51: 0 | AS51: 0 | AT51: 0 | AX51: 0 | AY51: 0 | AZ51: 8913.13 | BF51: 8913.13 | BG51: 0 | BH51: 45.07718472 | BK51: 45.07718472 | BL51: 8913.13 | BP51: 8913.13 | BQ51: 45.07718472 | BU51: 45.07718472 | BV51: 100.1323002 | BW51: 9058.339485 | BX51: 8958.35 | BY51: 0.1428152849
A52: 23 | C52: Renewable Generation Connection OM&A Deferral Account | D52: 1532 | E52: 0 | I52: 0 | J52: 0 | N52: 0 | O52: 0 | S52: 0 | T52: 0 | X52: 0 | Y52: 0 | AF52: 0 | AG52: 0 | AK52: 0 | AL52: 0 | AS52: 0 | AT52: 0 | AX52: 0 | AY52: 0 | AZ52: 2307.5 | BF52: 2307.5 | BG52: 0 | BH52: 17.26011575 | BK52: 17.26011575 | BL52: 2307.5 | BP52: 2307.5 | BQ52: 17.26011575 | BU52: 17.26011575 | BV52: 25.92302397 | BW52: 2350.68314 | BX52: 2324.76 | BY52: -0.0001157534243
A53: 24 | C53: Renewable Generation Connection Funding Adder Deferral Account | D53: 1533 | E53: 0 | I53: 0 | J53: 0 | N53: 0 | O53: 0 | S53: 0 | T53: 0 | X53: 0 | Y53: 0 | AF53: 0 | AG53: 0 | AK53: 0 | AL53: 0 | AS53: 0 | AT53: 0 | AX53: 0 | AY53: 0 | BF53: 0 | BG53: 0 | BK53: 0 | BL53: 0 | BP53: 0 | BQ53: 0 | BU53: 0 | BV53: 0 | BW53: 0 | BY53: 0
A54: 25 | C54: Smart Grid Capital Deferral Account | D54: 1534 | E54: 0 | I54: 0 | J54: 0 | N54: 0 | O54: 0 | S54: 0 | T54: 0 | X54: 0 | Y54: 0 | AF54: 0 | AG54: 0 | AK54: 0 | AL54: 0 | AS54: 0 | AT54: 0 | AX54: 0 | AY54: 0 | AZ54: 6438.75 | BF54: 6438.75 | BG54: 0 | BH54: 43.66492027 | BK54: 43.66492027 | BL54: 6438.75 | BP54: 6438.75 | BQ54: 43.66492027 | BU54: 43.66492027 | BV54: 72.33450514 | BW54: 6554.749425 | BX54: 6482.39 | BY54: -0.02492027397
A55: 26 | C55: Smart Grid OM&A Deferral Account | D55: 1535 | E55: 0 | I55: 0 | J55: 0 | N55: 0 | O55: 0 | S55: 0 | T55: 0 | X55: 0 | Y55: 0 | AF55: 0 | AG55: 0 | AK55: 0 | AL55: 0 | AS55: 0 | AT55: 0 | AX55: 0 | AY55: 0 | AZ55: 2307.5 | BF55: 2307.5 | BG55: 0 | BH55: 17.26011575 | BK55: 17.26011575 | BL55: 2307.5 | BP55: 2307.5 | BQ55: 17.26011575 | BU55: 17.26011575 | BV55: 25.92302397 | BW55: 2350.68314 | BX55: 2324.76 | BY55: -0.0001157534243
A56: 27 | C56: Smart Grid Funding Adder Deferral Account | D56: 1536 | E56: 0 | I56: 0 | J56: 0 | N56: 0 | O56: 0 | S56: 0 | T56: 0 | X56: 0 | Y56: 0 | AF56: 0 | AG56: 0 | AK56: 0 | AL56: 0 | AS56: 0 | AT56: 0 | AX56: 0 | AY56: 0 | BF56: 0 | BG56: 0 | BK56: 0 | BL56: 0 | BP56: 0 | BQ56: 0 | BU56: 0 | BV56: 0 | BW56: 0 | BY56: 0
A57: 28 | C57: Retail Cost Variance Account - STR | D57: 1548 | E57: 191469 | F57: 45617.48 | I57: 237086.48 | J57: 15896 | K57: 1728.21 | N57: 17624.21 | O57: 237086.48 | P57: 47129 | Q57: 191469 | S57: 92746.48 | T57: 17624.21 | U57: 1913 | V57: 17837 | X57: 1700.21 | Y57: 92746.48 | Z57: 46625.02 | AF57: 139371.5 | AG57: 1700.21 | AH57: 1681 | AK57: 3381.21 | AL57: 139371.5 | AM57: 27363.86 | AS57: 166735.36 | AT57: 3381.21 | AU57: 2121.67 | AX57: 5502.88 | AY57: 166735.36 | AZ57: 59197.8 | BF57: 225933.16 | BG57: 5502.88 | BH57: 2829 | BK57: 8331.88 | BL57: 225933.16 | BP57: 225933.16 | BQ57: 8331.88 | BU57: 8331.88 | BV57: 2538.188829 | BW57: 236803.2288 | BX57: 234264.89 | BY57: -0.15
A58: 29 | C58: Contra Asset - Deferred Payments In Lieu of Taxes | D58: 1563 | E58: 491090.07 | I58: 491090.07 | J58: 29991.02607 | K58: 3993.881485 | N58: 33984.90756 | O58: 491090.07 | S58: 491090.07 | T58: 33984.90756 | U58: 7343.032281 | X58: 41327.93984 | Y58: 491090.07 | Z58: -255741.35 | AF58: 235348.72 | AG58: 41327.93984 | AH58: =2414+3988.53 -> 6402.53 | AK58: 47730.46984 | AL58: 235348.72 | AM58: -262226.87 | AO58: 8436 | AS58: -18442.15 | AT58: 47730.46984 | AU58: 646.14 | AX58: 48376.60984 | AY58: -18442.15 | AZ58: -79.68 | BF58: -18521.83 | BG58: 48376.60984 | BH58: -272.19 | BK58: 48104.41984 | BL58: -18521.83 | BP58: -18521.83 | BQ58: 48104.41984 | BU58: 48104.41984 | BV58: -208.0788052 | BW58: 29374.51103 | BX58: 29582.65 | BY58: 0.06016293422
A59: 30 | C59: Board-Approved CDM Variance Account | D59: 1567 | I59: 0 | J59: 0 | N59: =J59+K59-L59+M59 -> 0 | O59: 0 | S59: 0 | T59: 0 | X59: 0 | Y59: 0 | AF59: 0 | AG59: 0 | AK59: =AG59+AH59-AI59+AJ59 -> 0 | AL59: 0 | AS59: =AL59+AM59-AN59+SUM(AO59:AR59) -> 0 | AT59: =AK59 -> 0 | AX59: =AT59+AU59-AV59+AW59 -> 0 | AY59: 0 | BF59: 0 | BG59: 0 | BK59: 0 | BL59: 0 | BP59: 0 | BQ59: 0 | BU59: 0 | BV59: 0 | BW59: 0 | BY59: 0
A60: 31 | C60: Extra-Ordinary Event Costs | D60: 1572 | E60: 0 | I60: 0 | J60: 0 | N60: 0 | O60: =I60 -> 0 | S60: 0 | T60: 0 | X60: 0 | Y60: =S60 -> 0 | AF60: 0 | AG60: 0 | AK60: =AG60+AH60-AI60+AJ60 -> 0 | AL60: =AF60 -> 0 | AS60: =AL60+AM60-AN60+SUM(AO60:AR60) -> 0 | AT60: =AK60 -> 0 | AX60: =AT60+AU60-AV60+AW60 -> 0 | AY60: 0 | BF60: 0 | BG60: 0 | BK60: 0 | BL60: 0 | BP60: 0 | BQ60: 0 | BU60: 0 | BV60: 0 | BW60: 0 | BY60: 0
A61: 32 | C61: Deferred Rate Impact Amounts | D61: 1574 | E61: 0 | I61: 0 | J61: 0 | N61: 0 | O61: =I61 -> 0 | S61: 0 | T61: 0 | X61: 0 | Y61: =S61 -> 0 | AF61: 0 | AG61: 0 | AK61: =AG61+AH61-AI61+AJ61 -> 0 | AL61: =AF61 -> 0 | AS61: 0 | AT61: 0 | AX61: =AT61+AU61-AV61+AW61 -> 0 | AY61: 0 | BF61: 0 | BG61: 0 | BK61: 0 | BL61: 0 | BP61: 0 | BQ61: 0 | BU61: 0 | BV61: 0 | BW61: 0 | BY61: 0
A62: 33 | C62: RSVA - One-time | D62: 1582 | E62: 0 | I62: 0 | J62: 0 | N62: 0 | O62: =I62 -> 0 | S62: 0 | T62: 0 | X62: 0 | Y62: =S62 -> 0 | AF62: 0 | AG62: 0 | AK62: =AG62+AH62-AI62+AJ62 -> 0 | AL62: =AF62 -> 0 | AS62: 0 | AT62: 0 | AX62: =AT62+AU62-AV62+AW62 -> 0 | AY62: 0 | BF62: 0 | BG62: 0 | BK62: 0 | BL62: 0 | BP62: 0 | BQ62: 0 | BU62: 0 | BV62: 0 | BW62: 0 | BY62: 0
A63: 34 | C63: Other Deferred Credits | D63: 2425 | E63: 0 | I63: 0 | J63: 0 | N63: 0 | O63: =I63 -> 0 | S63: 0 | T63: 0 | X63: 0 | Y63: =S63 -> 0 | AF63: 0 | AG63: 0 | AK63: =AG63+AH63-AI63+AJ63 -> 0 | AL63: =AF63 -> 0 | AS63: 0 | AT63: 0 | AX63: =AT63+AU63-AV63+AW63 -> 0 | AY63: 0 | BF63: 0 | BG63: 0 | BK63: 0 | BL63: 0 | BP63: 0 | BQ63: 0 | BU63: 0 | BV63: 0 | BW63: 0 | BY63: 0
BY64: 0
C65: Group 2 Sub-Total | E65: =SUM(E43:E63) -> 1012296.07 | F65: 100145.96 | G65: 0 | H65: 0 | I65: 1112442.03 | J65: 76157.02607 | K65: 8650.401485 | L65: 0 | M65: 0 | N65: 84807.42756 | O65: 1112442.03 | P65: 92600.43 | Q65: 478504 | R65: 0 | S65: 726538.46 | T65: 84807.42756 | U65: 12675.00228 | V65: 50968 | W65: 0 | X65: 46514.42984 | Y65: 726538.46 | Z65: 1950930.08 | AA65: 0 | AB65: 0 | AC65: 0 | AD65: 0 | AE65: 0 | AF65: 2677468.54 | AG65: 46514.42984 | AH65: 10396.7 | AI65: 0 | AJ65: -496.63 | AK65: 56414.49984 | AL65: 2677468.54 | AM65: 29480.57 | AN65: 0 | AO65: 8436 | AP65: 0 | AQ65: 0 | AR65: 0 | AS65: 2715385.11 | AT65: 56414.49984 | AU65: 34725.96 | AV65: 0 | AW65: 0 | AX65: 91140.45984 | AY65: 2715385.11 | AZ65: -155220.76 | BA65: 0 | BB65: 0 | BC65: 0 | BD65: 0 | BE65: 0 | BF65: 2560164.35 | BG65: 91140.45984 | BH65: 38778.49234 | BI65: 0 | BJ65: 0 | BK65: 129918.9522 | BL65: 2560164.35 | BM65: 0 | BO65: -180509 | BP65: 2379655.35 | BQ65: 129918.9522 | BR65: =SUM(BR43:BR63) -> 0 | BU65: 129918.9522 | BV65: 28930.03128 | BW65: 737834.2472 | BX65: 2690084.38 | BY65: 1.077826438
BY66: =BX66-SUM(BF66,BK66) -> 0
A67: 35 | C67: Deferred Payments in Lieu of Taxes | D67: 1562 | E67: -499527 | I67: =E67+F67-G67+SUM(H67:H67) -> -499527 | J67: -29991 | K67: -3994 | N67: =J67+K67-L67+M67 -> -33985 | O67: =I67 -> -499527 | S67: =O67+P67-Q67+SUM(R67:R67) -> -499527 | T67: =N67 -> -33985 | U67: -7343 | W67: -2414 | X67: =T67+U67-V67+W67 -> -43742 | Y67: =S67 -> -499527 | AA67: -499527 | AF67: =Y67+Z67-AA67+SUM(AB67:AE67) -> 0 | AG67: =X67 -> -43742 | AI67: -43742 | AK67: =AG67+AH67-AI67+AJ67 -> 0 | AL67: =AF67 -> 0 | AS67: =AL67+AM67-AN67+SUM(AO67:AR67) -> 0 | AT67: =AK67 -> 0 | AX67: =AT67+AU67-AV67+AW67 -> 0 | AY67: 0 | BF67: 0 | BG67: 0 | BK67: 0 | BL67: =BF67 -> 0 | BP67: =BL67-BM67+BO67 -> 0 | BQ67: =BK67 -> 0 | BU67: =BQ67-BR67 -> 0 | BV67: =(BP67*0.0147/365*90)+(BP67*0.0101/365*275) -> 0 | BW67: =BP67+SUM(BU67:BV67) -> 0 | BY67: =BX67-SUM(BF67,BK67) -> 0
A68: 36 | C68: PILs and Tax Variance for 2006 and Subsequent Years (excludes sub-account and contra account below) | D68: 1592 | E68: 0 | F68: -131730 | I68: =E68+F68-G68+SUM(H68:H68) -> -131730 | J68: 0 | N68: =J68+K68-L68+M68 -> 0 | O68: =I68 -> -131730 | P68: -81902 | S68: =O68+P68-Q68+SUM(R68:R68) -> -213632 | T68: =N68 -> 0 | U68: -4571.68 | X68: =T68+U68-V68+W68 -> -4571.68 | Y68: =S68 -> -213632 | AF68: =Y68+Z68-AA68+SUM(AB68:AE68) -> -213632 | AG68: =X68 -> -4571.68 | AH68: -1066.51 | AK68: =AG68+AH68-AI68+AJ68 -> -5638.19 | AL68: =AF68 -> -213632 | AR68: 99589 | AS68: =AL68+AM68-AN68+SUM(AO68:AR68) -> -114043 | AT68: =AK68 -> -5638.19 | AU68: -1063.58 | AW68: -1842 | AX68: =AT68+AU68-AV68+AW68 -> -8543.77 | AY68: -114043 | BF68: -114043 | BG68: -8543.77 | BH68: -1677 | BK68: -10220.77 | BL68: -114043 | BP68: =BL68-BM68+BO68 -> -114043 | BQ68: =BK68 -> -10220.77 | BU68: -10220.77 | BV68: -1281.187182 | BW68: -125544.9572 | BX68: -124264 | BY68: =BX68-SUM(BF68,BK68) -> -0.23
A69: 37 | C69: PILs and Tax Variance for 2006 and Subsequent Years - Sub-Account HST/OVAT Input Tax Credits (ITCs) | D69: 1592 | E69: 0 | F69: 70384.14 | I69: =E69+F69-G69+SUM(H69:H69) -> 70384.14 | J69: 0 | N69: =J69+K69-L69+M69 -> 0 | O69: =I69 -> 70384.14 | P69: 70893.51 | S69: =O69+P69-Q69+SUM(R69:R69) -> 141277.65 | T69: =N69 -> 0 | X69: =T69+U69-V69+W69 -> 0 | Y69: =S69 -> 141277.65 | AF69: =Y69+Z69-AA69+SUM(AB69:AE69) -> 141277.65 | AG69: =X69 -> 0 | AK69: =AG69+AH69-AI69+AJ69 -> 0 | AL69: =AF69 -> 141277.65 | AR69: -99589.29 | AS69: =AL69+AM69-AN69+SUM(AO69:AR69) -> 41688.36 | AT69: =AK69 -> 0 | AW69: 1842.05 | AX69: =AT69+AU69-AV69+AW69 -> 1842.05 | AY69: 41688.36 | BF69: 41688.36 | BG69: 1842.05 | BH69: 613 | BK69: 2455.05 | BL69: 41688.36 | BP69: =BL69-BM69+BO69 -> 41688.36 | BQ69: =BK69 -> 2455.05 | BU69: 2455.05 | BV69: 468.3373156 | BW69: 44611.74732 | BX69: 44143 | BY69: =BX69-SUM(BF69,BK69) -> -0.41
BY70: =BX70-SUM(BF70,BK70) -> 0
C71: Total of Group 1 and Group 2 Accounts (including 1562 and 1592) | E71: =+E65+E38+E67+E68+E69 -> 203521.07 | F71: 347484.1 | G71: 770921 | H71: 0 | I71: -219915.83 | J71: -264794.9739 | K71: -5895.598515 | L71: -367387 | M71: 0 | N71: 96696.42756 | O71: -219915.83 | P71: 2779075.29 | Q71: 334.14 | R71: 0 | S71: 2558825.32 | T71: 96696.42756 | U71: 12698.57228 | V71: 3 | W71: -2414 | X71: 106977.9998 | Y71: 2558825.32 | Z71: 4177804.08 | AA71: -8888.62 | AB71: -256 | AC71: 0 | AD71: 0 | AE71: 324730.4 | AF71: 7069992.42 | AG71: 106977.9998 | AH71: 57849.19 | AI71: -1675 | AJ71: -502.63 | AK71: 165999.5598 | AL71: 7069992.42 | AM71: 2014204.22 | AN71: -1 | AO71: 8436 | AP71: 0 | AQ71: 0 | AR71: -0.29 | AS71: 9092633.35 | AT71: 165999.5598 | AU71: 116954.04 | AV71: 0.74 | AW71: 0.05 | AX71: 282952.9098 | AY71: 9092633.35 | AZ71: 1691366.08 | BA71: 2389622.13 | BB71: 0 | BC71: 0 | BD71: 0 | BE71: -256 | BF71: 8394121.3 | BG71: 282952.9098 | BH71: 120656.9023 | BI71: 84627 | BJ71: -4.7 | BK71: 318978.1122 | BL71: 8394121.3 | BM71: 0.2900000005 | BO71: -180509 | BP71: 4912770.01 | BQ71: 318978.1122 | BR71: 0 | BU71: 216936.1122 | BV71: 56984.98564 | BW71: 3386021.492 | BX71: 8713100.96 | BY71: =+BY65+BY38+BY67+BY68+BY69 -> 1.547826445
BY72: =BX72-SUM(BF72,BK72) -> 0
BY73: =BX73-SUM(BF73,BK73) -> 0
A74: 38 | C74: LRAM Variance Account | D74: 1568 | E74: 34910.98573 | I74: =E74+F74-G74+SUM(H74:H74) -> 34910.98573 | K74: 241.98 | N74: =J74+K74-L74+M74 -> 241.98 | O74: =I74 -> 34910.98573 | P74: 25876.73137 | S74: =O74+P74-Q74+SUM(R74:R74) -> 60787.71709 | T74: =N74 -> 241.98 | U74: 861.27 | X74: =T74+U74-V74+W74 -> 1103.25 | Y74: =S74 -> 60787.71709 | Z74: 40224.93997 | AF74: =Y74+Z74-AA74+SUM(AB74:AE74) -> 101012.6571 | AG74: =X74 -> 1103.25 | AH74: 1434.67 | AK74: =AG74+AH74-AI74+AJ74 -> 2537.92 | AL74: =AF74 -> 101012.6571 | AM74: 59177.71727 | AS74: =AL74+AM74-AN74+SUM(AO74:AR74) -> 160190.3743 | AT74: =AK74 -> 2537.92 | AU74: 2280.92 | AX74: =AT74+AU74-AV74+AW74 -> 4818.84 | AY74: 160190.3743 | AZ74: 129974.2713 | BF74: 290164.6456 | BG74: 4818.84 | BH74: 4104 | BJ74: 79.2 | BK74: 9002.04 | BL74: =BF74 -> 290164.6456 | BP74: =BL74-BM74+BO74 -> 290164.6456 | BQ74: =BK74 -> 9002.04 | BT74: -79 | BU74: =BQ74-BR74+BT74 -> 8923.04 | BV74: =(BP74*0.0147/365*90)+(BP74*0.0101/365*275) -> 3259.781176 | BW74: =BP74+SUM(BU74:BV74) -> 302347.4668 | BX74: 299166.45 | BY74: =BX74-SUM(BF74,BK74) -> -0.2356148303
BY75: =BX75-SUM(BF75,BK75) -> 0
BY76: =BX76-SUM(BF76,BK76) -> 0
C77: Total including Account 1568 | E77: =E71+E74 -> 238432.0557 | F77: 347484.1 | G77: 770921 | H77: 0 | I77: -185004.8443 | J77: -264794.9739 | K77: -5653.618515 | L77: -367387 | M77: 0 | N77: 96938.40756 | O77: -185004.8443 | P77: 2804952.021 | Q77: 334.14 | R77: 0 | S77: 2619613.037 | T77: 96938.40756 | U77: 13559.84228 | V77: 3 | W77: -2414 | X77: 108081.2498 | Y77: 2619613.037 | Z77: 4218029.02 | AA77: -8888.62 | AB77: -256 | AC77: 0 | AD77: 0 | AE77: 324730.4 | AF77: 7171005.077 | AG77: 108081.2498 | AH77: 59283.86 | AI77: -1675 | AJ77: -502.63 | AK77: 168537.4798 | AL77: 7171005.077 | AM77: 2073381.937 | AN77: -1 | AO77: 8436 | AP77: 0 | AQ77: 0 | AR77: -0.29 | AS77: 9252823.724 | AT77: 168537.4798 | AU77: 119234.96 | AV77: 0.74 | AW77: 0.05 | AX77: 287771.7498 | AY77: 9252823.724 | AZ77: 1821340.351 | BA77: 2389622.13 | BB77: 0 | BC77: 0 | BD77: 0 | BE77: -256 | BF77: 8684285.946 | BG77: 287771.7498 | BH77: 124760.9023 | BI77: 84627 | BJ77: 74.5 | BK77: 327980.1522 | BL77: 8684285.946 | BM77: 0.2900000005 | BO77: -180509 | BP77: 5202934.656 | BQ77: 327980.1522 | BR77: 0 | BU77: 225859.1522 | BV77: 60244.76682 | BW77: 3688368.958 | BX77: 9012267.41 | BY77: =BY71+BY74 -> 1.312211615
BY78: =BX78-SUM(BF78,BK78) -> 0
A79: 39 | C79: Smart Meter Capital and Recovery Offset Variance - Sub-Account - Capital10 | D79: 1555 | E79: 1501433 | F79: 2726989.9 | I79: =E79+F79-G79+SUM(H79:H79) -> 4228422.9 | J79: 700 | K79: 29097 | N79: =J79+K79-L79+M79 -> 29797 | O79: =I79 -> 4228422.9 | P79: 48294.89 | S79: =O79+P79-Q79+SUM(R79:R79) -> 4276717.79 | T79: =N79 -> 29797 | U79: 64005 | X79: =T79+U79-V79+W79 -> 93802 | Y79: =S79 -> 4276717.79 | Z79: -345455.53 | AF79: =Y79+Z79-AA79+SUM(AB79:AE79) -> 3931262.26 | AG79: =X79 -> 93802 | AH79: 61197 | AK79: =AG79+AH79-AI79+AJ79 -> 154999 | AL79: =AF79 -> 3931262.26 | AN79: 3850797 | AS79: =AL79+AM79-AN79+SUM(AO79:AR79) -> 80465.26 | AT79: =AK79 -> 154999 | AU79: 4762 | AV79: 154997 | AW79: -2 | AX79: =AT79+AU79-AV79+AW79 -> 4762 | AY79: 80465.26 | BF79: 80465.26 | BG79: 4762 | BH79: 1182 | BK79: 5944 | BL79: =BF79 -> 80465.26 | BP79: =BL79-BM79+BO79 -> 80465.26 | BQ79: =BK79 -> 5944 | BU79: =BQ79-BR79 -> 5944 | BV79: =(BP79*0.0147/365*90)+(BP79*0.0101/365*275) -> 903.9665716 | BW79: =BP79+SUM(BU79:BV79) -> 87313.22657 | BX79: 86408.86 | BY79: -0.3999999998
A80: 40 | C80: Smart Meter Capital and Recovery Offset Variance - Sub-Account - Recoveries10 | D80: 1555 | E80: -304836 | F80: -218760.96 | I80: =E80+F80-G80+SUM(H80:H80) -> -523596.96 | J80: -14793.71 | K80: -3169 | N80: =J80+K80-L80+M80 -> -17962.71 | O80: =I80 -> -523596.96 | P80: -319905.28 | S80: =O80+P80-Q80+SUM(R80:R80) -> -843502.24 | T80: =N80 -> -17962.71 | U80: -9892.55 | X80: =T80+U80-V80+W80 -> -27855.26 | Y80: =S80 -> -843502.24 | Z80: -141287 | AF80: =Y80+Z80-AA80+SUM(AB80:AE80) -> -984789.24 | AG80: =X80 -> -27855.26 | AH80: -13934.53 | AK80: =AG80+AH80-AI80+AJ80 -> -41789.79 | AL80: =AF80 -> -984789.24 | AN80: -983180.88 | AR80: 1608 | AS80: =AL80+AM80-AN80+SUM(AO80:AR80) -> -0.36 | AT80: =AK80 -> -41789.79 | AV80: -41790 | AX80: =AT80+AU80-AV80+AW80 -> 0.21 | AY80: -0.36 | BF80: -0.36 | BG80: 0.21 | BK80: 0.21 | BL80: -0.36 | BP80: =BL80-BM80+BO80 -> -0.36 | BQ80: =BK80 -> 0.21 | BU80: 0.21 | BV80: -0.004044328767 | BW80: -0.1540443288 | BY80: 0.15
A81: 41 | C81: Smart Meter Capital and Recovery Offset Variance - Sub-Account - Stranded Meter Costs10 | D81: 1555 | E81: 0 | I81: =E81+F81-G81+SUM(H81:H81) -> 0 | J81: 0 | N81: =J81+K81-L81+M81 -> 0 | O81: =I81 -> 0 | P81: 1898506 | S81: =O81+P81-Q81+SUM(R81:R81) -> 1898506 | T81: =N81 -> 0 | X81: =T81+U81-V81+W81 -> 0 | Y81: =S81 -> 1898506 | AF81: =Y81+Z81-AA81+SUM(AB81:AE81) -> 1898506 | AG81: =X81 -> 0 | AK81: =AG81+AH81-AI81+AJ81 -> 0 | AL81: =AF81 -> 1898506 | AS81: =AL81+AM81-AN81+SUM(AO81:AR81) -> 1898506 | AT81: =AK81 -> 0 | AX81: =AT81+AU81-AV81+AW81 -> 0 | AY81: 1898506 | BF81: 1898506 | BG81: 0 | BK81: 0 | BL81: 1898506 | BP81: =BL81-BM81+BO81 -> 1898506 | BQ81: =BK81 -> 0 | BU81: 0 | BW81: 1898506 | BX81: 1898506 | BY81: 0
A82: 42 | C82: Smart Meter OM&A Variance10 | D82: 1556 | E82: 0 | F82: 213584 | I82: =E82+F82-G82+SUM(H82:H82) -> 213584 | J82: 0 | K82: 104 | N82: =J82+K82-L82+M82 -> 104 | O82: =I82 -> 213584 | P82: 321184 | S82: =O82+P82-Q82+SUM(R82:R82) -> 534768 | T82: =N82 -> 104 | U82: 3431 | X82: =T82+U82-V82+W82 -> 3535 | Y82: =S82 -> 534768 | Z82: 471124.73 | AF82: =Y82+Z82-AA82+SUM(AB82:AE82) -> 1005892.73 | AG82: =X82 -> 3535 | AH82: 11163.71 | AK82: =AG82+AH82-AI82+AJ82 -> 14698.71 | AL82: =AF82 -> 1005892.73 | AN82: 1005893 | AS82: =AL82+AM82-AN82+SUM(AO82:AR82) -> -0.27 | AT82: =AK82 -> 14698.71 | AV82: 13136.09 | AW82: -1562 | AX82: =AT82+AU82-AV82+AW82 -> 0.62 | AY82: -0.27 | BF82: -0.27 | BG82: 0.62 | BK82: 0.62 | BL82: -0.27 | BP82: =BL82-BM82+BO82 -> -0.27 | BQ82: =BK82 -> 0.62 | BU82: 0.62 | BV82: -0.003033246576 | BW82: 0.3469667534 | BY82: -0.35
BY83: 0
A84: 43 | C84: IFRS-CGAAP Transition PP&E Amounts Balance + Return Component9 | D84: 1575 | AF84: =Y84+Z84-AA84+SUM(AB84:AE84) -> 0 | AS84: =AL84+AM84-AN84+SUM(AO84:AR84) -> 0 | AY84: 0 | BF84: 0 | BW84: =BP84+SUM(BU84:BV84) -> 0 | BY84: 0
A85: 44 | C85: Accounting Changes Under CGAAP Balance + Return Component9 | D85: 1576 | AF85: =Y85+Z85-AA85+SUM(AB85:AE85) -> 0 | AR85: -1153881 | AS85: =AL85+AM85-AN85+SUM(AO85:AR85) -> -1153881 | AY85: -1153881 | BE85: -1173011.42 | BF85: -2326892.42 | BL85: =BF85 -> -2326892.42 | BO85: -1643751.634 | BP85: =BL85-BM85+BO85 -> -3970644.054 | BW85: =BP85 -> -3970644.054 | BX85: -2326892.47 | BY85: -0.05000000028
BY86: 0
C89: For all Board-Approved dispositions, please ensure that the disposition amount has the same sign (e.g: debit balances are to have a positive figure and credit balance are to have a negative figure) as per the related Board decision. | AS89: =AS24+AS25+AS26+AS27+AS28+AS29+AS30+AS32+AS33+AS34+AS35+AS43+AS45+AS49+AS51+AS52+AS54+AS55+AS57+AS68+AS74+AS79+AS81+AS85 -> 10049146.77 | AX89: =AX24+AX25+AX26+AX27+AX28+AX29+AX30+AX32+AX33+AX34+AX35+AX43+AX45+AX49+AX51+AX52+AX54+AX55+AX57+AX68+AX74+AX79+AX81+AX85 -> 242001.57 | BW89: =BW24+BW25+BW26+BW27+BW28+BW29+BW30+BW32+BW33+BW34+BW35+BW43+BW45+BW49+BW51+BW52+BW54+BW55+BW57+BW68+BW74+BW79+BW81+BW85+BW58+BW69+BW44+BW36 -> 1703544.131 | BX89: =BX24+BX25+BX26+BX27+BX28+BX29+BX30+BX32+BX33+BX34+BX35+BX43+BX45+BX49+BX51+BX52+BX54+BX55+BX57+BX68+BX74+BX79+BX81+BX85+BX58+BX69+BX44 -> 8670289.8
B90: 1 | C90: Provide supporting statement indicating whether due to denial of costs in 2006 EDR by the Board, 10% transition costs write-off, etc. | BX90: 1034912 | BY90: Def/Var 2014
B91: 1A | C91: Adjustments Instructed by the Board include deferral/variance account balances moved to Account 1590 as a result of the 2006 EDR and account 1595 during the 2008 EDR and subsequent years as ordered by the Board.
B92: 2 | C92: Please provide explanations for the nature of the adjustments. If the adjustment relates to previously Board Approved disposed balances, please provide amounts for adjustments and include supporting documentations. | AX92: =AS89+AX89 -> 10291148.34 | BV92: Group 1 | BW92: =BW38 -> 2729120.454
B93: 3 | C93: For RSVA accounts only, report the net variance to the account during the year. For all other accounts, record the transactions during the year. | AX93: 10226701.18 | BV93: Group 2 | BW93: =SUM(BW43:BW64)+SUM(BW66:BW69)+SUM(BW74)+SUM(BW79:BW85) -> -1025576.131
B94: 4 | C94: Please describe "other" components of 1508 and add more component lines if necessary. | AX94: =AX92-AX93 -> 64447.16433
B95: 5 | C95: 1563 is a contra-account and is not included in the total but is shown on a memo basis. Account 1562 establishes the obligation to the ratepayer. | BX95: =BX89+BX90 -> 9705201.8 | BY95: Total
B96: 6 | C96: If the LDC’s 2014 rate year begins January 1, 2014, the projected interest is recorded from January 1, 2013 to December 31, 2013 on the December 31, 2012 balance adjusted for the disposed balances approved by the Board in the 2013 rate decision. If the LDC’s 2013 rate year begins May 1, 2014 the projected interest is recorded from January 1, 2013 to April 30, 2014 on the December 31, 2012 balance adjusted for the disposed balances approved by the Board in the 2013 rate decision. | BX96: 9705203.84 | BY96: Total per AFS
BX97: =BX96-BX95 -> 2.040000001 | BY97: Difference
B99: 8 | C99: As per the January 6, 2011 Letter from the Board, regarding the implementation of the Ontario Clean Energy Benefit:
C100: "By way of exception... The Board does acticipate that licensed distributors that cannot adapt their invoices as of January 1, 2011 will require a variance account for OCEB purposes... The Board expects that any principal
C101: balances in "Sub account Financial Assistance Payment and Recovery Variance - Ontario Clean Energy Benefit Act" will be addressed through the monthly settlement process with the IESO or the host distributor, as applicable.
B102: 9 | C102: The Board requires that disposition of Account 1575 and Account 1576 shall require the use of separate rate riders. In the "Other Adjustments during Q4 2012" column of the continuity schedule, please enter the amounts to be included in the Account 1575 and 1576 rate rider calculation from the applicable Chapter 2 appendices. For Account 1575, please provide the value in cell F39 from the relevant Chapter 2 Appendix (i.e. 2-EA, 2-EB or 2-EC). For Account 1576, please provide the value in cell F39 from the relevant Chapter 2 Appendix (i.e. 2-ED or 2-EE).
B103: 10 | C103: Deferral accounts related to Smart Meter deployment are not to be recovered/refunded through the Deferral and Variance Account rate rider. For details on how to dispose of balances in Smart Meter accounts see the Board's
C104: Guideline: Smart Meter Disposition and Cost Recovery (G-2011-0001)

Sheet 3. Appendix A
B16: Accounts that produced a variance on the 2016 continuity schedule are listed below. Please provide a detailed explanation for each variance below.
C20: Account Descriptions | D20: Account Number | E20: Variance RRR vs. 2014 Balance (Principal + Interest) | F20: Explanation
C23: Group 1 Accounts
A24: 1 | C24: LV Variance Account | D24: 1550 | E24: =SUMIF('2. 2015 Continuity Schedule'!D:D,'3. Appendix A'!D24,'2. 2015 Continuity Schedule'!BY:BY) -> 0.1500000001
A25: 2 | C25: RSVA - Wholesale Market Service Charge | D25: 1580 | E25: =SUMIF('2. 2015 Continuity Schedule'!D:D,'3. Appendix A'!D25,'2. 2015 Continuity Schedule'!BY:BY) -> 0.1699999996
A26: 3 | C26: RSVA - Retail Transmission Network Charge | D26: 1584 | E26: =SUMIF('2. 2015 Continuity Schedule'!D:D,'3. Appendix A'!D26,'2. 2015 Continuity Schedule'!BY:BY) -> 0.1500000001
A27: 4 | C27: RSVA - Retail Transmission Connection Charge | D27: 1586 | E27: =SUMIF('2. 2015 Continuity Schedule'!D:D,'3. Appendix A'!D27,'2. 2015 Continuity Schedule'!BY:BY) -> -0.01000000004
A28: 5 | C28: RSVA - Power (excluding Global Adjustment) | D28: 1588 | E28: =SUMIF('2. 2015 Continuity Schedule'!D:D,'3. Appendix A'!D28,'2. 2015 Continuity Schedule'!BY:BY) -> -0.2599999923
A29: 6 | C29: RSVA - Global Adjustment | D29: 1589 | E29: =SUMIF('2. 2015 Continuity Schedule'!D:D,'3. Appendix A'!D29,'2. 2015 Continuity Schedule'!BY:BY) -> 0.959999999 | F29: Rounding
A30: 7 | C30: Recovery of Regulatory Asset Balances | D30: 1590 | E30: =SUMIF('2. 2015 Continuity Schedule'!D:D,'3. Appendix A'!D30,'2. 2015 Continuity Schedule'!BY:BY) -> 0
A31: 8 | C31: Disposition and Recovery/Refund of Regulatory Balances (2008)7 | D31: 1595 | E31: =SUMIF('2. 2015 Continuity Schedule'!D:D,'3. Appendix A'!D31,'2. 2015 Continuity Schedule'!BY:BY) -> 0.42
A32: 9 | C32: Disposition and Recovery/Refund of Regulatory Balances (2009)7 | D32: 1595 | E32: =SUMIF('2. 2015 Continuity Schedule'!D:D,'3. Appendix A'!D32,'2. 2015 Continuity Schedule'!BY:BY) -> 0.42
A33: 9 | C33: Disposition and Recovery/Refund of Regulatory Balances (2010)7 | D33: 1595 | E33: =SUMIF('2. 2015 Continuity Schedule'!D:D,'3. Appendix A'!D33,'2. 2015 Continuity Schedule'!BY:BY) -> 0.42
A34: 10 | C34: Disposition and Recovery/Refund of Regulatory Balances (2011)7 | D34: 1595 | E34: =SUMIF('2. 2015 Continuity Schedule'!D:D,'3. Appendix A'!D34,'2. 2015 Continuity Schedule'!BY:BY) -> 0.42
C35: Group 2 Accounts | E35: =SUMIF('2. 2015 Continuity Schedule'!D:D,'3. Appendix A'!D35,'2. 2015 Continuity Schedule'!BY:BY) -> 0
A36: 11 | C36: Other Regulatory Assets - Sub-Account - OEB Cost Assessments | D36: 1508 | E36: 0
A37: 12 | C37: Other Regulatory Assets - Sub-Account - Pension Contributions | D37: 1508 | E37: 0
A38: 13 | C38: Other Regulatory Assets - Sub-Account - Deferred IFRS Transition Costs | D38: 1508 | E38: ='2. 2015 Continuity Schedule'!BY43 -> 0.44
A39: 14 | C39: Other Regulatory Assets - Sub-Account - Incremental Capital Charges | D39: 1508 | E39: ='2. 2015 Continuity Schedule'!BY44 -> 0.48
C40: Other Regulatory Assets - Sub-Account - Incremental Capital-2012 | D40: 1508
A41: 15 | C41: Other Regulatory Assets - Sub-Account - Financial Assistance Payment and Recovery Variance - Ontario Clean Energy Benefit Act8 | D41: 1508
A42: 16 | C42: Other Regulatory Assets - Sub-Account - Financial Assistance Payment and Recovery Carrying Charges | D42: 1508
A43: 17 | C43: Other Regulatory Assets - Sub-Account - Other 4 | D43: 1508
A44: 18 | C44: Retail Cost Variance Account - Retail | D44: 1518 | E44: =SUMIF('2. 2015 Continuity Schedule'!D:D,'3. Appendix A'!D44,'2. 2015 Continuity Schedule'!BY:BY) -> 0.46
A45: 19 | C45: Misc. Deferred Debits | D45: 1525 | E45: =SUMIF('2. 2015 Continuity Schedule'!D:D,'3. Appendix A'!D45,'2. 2015 Continuity Schedule'!BY:BY) -> 0
A46: 20 | C46: Renewable Generation Connection Capital Deferral Account | D46: 1531 | E46: =SUMIF('2. 2015 Continuity Schedule'!D:D,'3. Appendix A'!D46,'2. 2015 Continuity Schedule'!BY:BY) -> 0.1428152849
A47: 21 | C47: Renewable Generation Connection OM&A Deferral Account | D47: 1532 | E47: =SUMIF('2. 2015 Continuity Schedule'!D:D,'3. Appendix A'!D47,'2. 2015 Continuity Schedule'!BY:BY) -> -0.0001157534243
A48: 22 | C48: Renewable Generation Connection Funding Adder Deferral Account | D48: 1533 | E48: =SUMIF('2. 2015 Continuity Schedule'!D:D,'3. Appendix A'!D48,'2. 2015 Continuity Schedule'!BY:BY) -> 0
A49: 23 | C49: Smart Grid Capital Deferral Account | D49: 1534 | E49: =SUMIF('2. 2015 Continuity Schedule'!D:D,'3. Appendix A'!D49,'2. 2015 Continuity Schedule'!BY:BY) -> -0.02492027397
A50: 24 | C50: Smart Grid OM&A Deferral Account | D50: 1535 | E50: =SUMIF('2. 2015 Continuity Schedule'!D:D,'3. Appendix A'!D50,'2. 2015 Continuity Schedule'!BY:BY) -> -0.0001157534243
A51: 25 | C51: Smart Grid Funding Adder Deferral Account | D51: 1536 | E51: =SUMIF('2. 2015 Continuity Schedule'!D:D,'3. Appendix A'!D51,'2. 2015 Continuity Schedule'!BY:BY) -> 0
A52: 26 | C52: Retail Cost Variance Account - STR | D52: 1548 | E52: =SUMIF('2. 2015 Continuity Schedule'!D:D,'3. Appendix A'!D52,'2. 2015 Continuity Schedule'!BY:BY) -> -0.15
A53: 27 | C53: Board-Approved CDM Variance Account | D53: 1567 | E53: =SUMIF('2. 2015 Continuity Schedule'!D:D,'3. Appendix A'!D53,'2. 2015 Continuity Schedule'!BY:BY) -> 0
A54: 28 | C54: Extra-Ordinary Event Costs | D54: 1572 | E54: =SUMIF('2. 2015 Continuity Schedule'!D:D,'3. Appendix A'!D54,'2. 2015 Continuity Schedule'!BY:BY) -> 0
A55: 29 | C55: Deferred Rate Impact Amounts | D55: 1574 | E55: =SUMIF('2. 2015 Continuity Schedule'!D:D,'3. Appendix A'!D55,'2. 2015 Continuity Schedule'!BY:BY) -> 0
A56: 30 | C56: RSVA - One-time | D56: 1582 | E56: =SUMIF('2. 2015 Continuity Schedule'!D:D,'3. Appendix A'!D56,'2. 2015 Continuity Schedule'!BY:BY) -> 0
A57: 31 | C57: Other Deferred Credits | D57: 2425 | E57: =SUMIF('2. 2015 Continuity Schedule'!D:D,'3. Appendix A'!D57,'2. 2015 Continuity Schedule'!BY:BY) -> 0
A58: 32 | C58: Deferred Payments in Lieu of Taxes | D58: 1562 | E58: =SUMIF('2. 2015 Continuity Schedule'!D:D,'3. Appendix A'!D58,'2. 2015 Continuity Schedule'!BY:BY) -> 0
A59: 33 | C59: PILs and Tax Variance for 2006 and Subsequent Years (excludes sub-account and contra account below) | D59: 1592 | E59: ='2. 2015 Continuity Schedule'!BY68 -> -0.23
A60: 34 | C60: PILs and Tax Variance for 2006 and Subsequent Years - Sub-Account HST/OVAT Input Tax Credits (ITCs) | D60: 1592 | E60: ='2. 2015 Continuity Schedule'!BY69 -> -0.41
A61: 35 | C61: LRAM Variance Account | D61: 1568 | E61: =SUMIF('2. 2015 Continuity Schedule'!D:D,'3. Appendix A'!D61,'2. 2015 Continuity Schedule'!BY:BY) -> -0.2356148303
A62: 36 | C62: Smart Meter Capital and Recovery Offset Variance - Sub-Account - Capital10 | D62: 1555 | E62: =SUMIF('2. 2015 Continuity Schedule'!D:D,'3. Appendix A'!D62,'2. 2015 Continuity Schedule'!BY:BY) -> -0.2499999998
A63: 37 | C63: Smart Meter Capital and Recovery Offset Variance - Sub-Account - Recoveries10 | D63: 1555 | E63: =SUMIF('2. 2015 Continuity Schedule'!D:D,'3. Appendix A'!D63,'2. 2015 Continuity Schedule'!BY:BY) -> -0.2499999998
A64: 38 | C64: Smart Meter Capital and Recovery Offset Variance - Sub-Account - Stranded Meter Costs10 | D64: 1555 | E64: =SUMIF('2. 2015 Continuity Schedule'!D:D,'3. Appendix A'!D64,'2. 2015 Continuity Schedule'!BY:BY) -> -0.2499999998
A65: 39 | C65: Smart Meter OM&A Variance10 | D65: 1556 | E65: =SUMIF('2. 2015 Continuity Schedule'!D:D,'3. Appendix A'!D65,'2. 2015 Continuity Schedule'!BY:BY) -> -0.35
A66: 40 | C66: IFRS-CGAAP Transition PP&E Amounts Balance + Return Component9 | D66: 1575 | E66: =SUMIF('2. 2015 Continuity Schedule'!D:D,'3. Appendix A'!D66,'2. 2015 Continuity Schedule'!BY:BY) -> 0
A67: 41 | C67: Accounting Changes Under CGAAP Balance + Return Component9 | D67: 1576 | E67: =SUMIF('2. 2015 Continuity Schedule'!D:D,'3. Appendix A'!D67,'2. 2015 Continuity Schedule'!BY:BY) -> -0.05000000028
A68: 42 | C68: Deferred PILs Contra Account 5 | D68: 1563 | E68: =SUMIF('2. 2015 Continuity Schedule'!D:D,'3. Appendix A'!D68,'2. 2015 Continuity Schedule'!BY:BY) -> 0.06016293422
A69: 43 | C69: PILs and Tax Variance for 2006 and Subsequent Years - Sub-Account HST/OVAT Contra Account | D69: 1592
A70: 44 | C70: Disposition and Recovery of Regulatory Balances7 | D70: 1595 | E70: =SUMIF('2. 2015 Continuity Schedule'!D:D,'3. Appendix A'!D70,'2. 2015 Continuity Schedule'!BY:BY) -> 0.42

Sheet 4. Billing Determinants
B16: In the green shaded cells, enter the most recent Board Approved volumetric forecast. If there is a material difference between the latest Board-approved volumetric forecast and the most recent 12-month actual volumetric data, use the most recent 12-month actual data. Do not enter data for the MicroFit class.
D18: 2016 Forecast | G18: For Account 1589 Global Adjustment | I18: 2016 | J18: For Accounts 1580 and 1588
B19: Rate Class (Enter Rate Classes in cells below) | C19: Units | D19: # of Customers | E19: Metered kWh | F19: Metered kW | G19: Billed kWh for Non-RPP Customers Excluding WMP and Class A | H19: Estimated kW for Non-RPP Customers Excluding WMP and Class A | I19: Distribution Revenue 1 | J19: Metered kWh Excluding WMP | K19: Metered kW Excluding WMP | L19: 1580 and 1588 Share Proportion | M19: 1595 Recovery Share Proportion (2010) 2 | N19: 1595 Recovery Share Proportion (2011) 2 | O19: 1595 Recovery Share Proportion (2012) 2 | P19: 1595 Recovery Share Proportion (2013) 2 | Q19: 1595 Approved Recovery Share Proportion (2014) 2 | R19: 1568 LRAM Variance Account Class Allocation ($ amounts) | S19: 1555 Smart Meter Recovery Share Proportion
B21: Residential | C21: kWh | D21: 24157 | E21: 183959618 | F21: 0 | G21: 8354963.952 | H21: =IF(ISERROR(F21/E21*G21), 0, F21/E21*G21) -> 0 | I21: 7041605.613 | J21: 183959618 | L21: =J21/$J$41 -> 0.2626536238 | M21: 0.422 | N21: 0.8992 | O21: 0.57 | P21: 0.2758 | R21: 95031.03 | S21: 0.8253
B22: General Service < 50 kW | C22: kWh | D22: 2950 | E22: 93395362 | F22: 0 | G22: 15504816 | H22: =IF(ISERROR(F22/E22*G22), 0, F22/E22*G22) -> 0 | I22: 2004109.617 | J22: 93395362 | L22: =J22/$J$41 -> 0.1333479083 | M22: 0.1303 | N22: 0.1446 | O22: 0.1744 | P22: 0.1319 | R22: 64333.65 | S22: 0.1747
B23: General Service 50 to 4,999 kW | C23: kW | D23: 337 | E23: 271033959 | F23: 739908 | I23: 2638851.646 | M23: 0.2894 | N23: -0.0063 | O23: 0.2069 | P23: 0.3679 | R23: 63114.68
B24: Large Use | C24: kW | D24: 3 | E24: 153400986 | F24: 290012 | G24: 0 | H24: 0 | I24: 470057.3571 | J24: 153400986 | K24: 290012 | L24: 0.21902266 | M24: 0.1502 | N24: -0.0464 | O24: 0.0337 | P24: 0.2155 | R24: 10047.75
B25: Unmetered Scattered Load | C25: kWh | D25: 141 | E25: 1196145 | G25: 1196145 | H25: 0 | I25: 24978.05468 | J25: 1196145 | L25: 0.001707830351 | M25: 0.004 | N25: 0.0063 | O25: 0.0048 | P25: 0.0032 | R25: 0
B26: Street Lighting | C26: kW | D26: 5349 | E26: 1818158 | F26: 5046 | G26: 1818158 | H26: =IF(ISERROR(F26/E26*G26), 0, F26/E26*G26) -> 5046 | I26: 105116.8954 | J26: 1818158 | K26: 5046 | L26: 0.002595927262 | M26: 0.0041 | N26: 0.0026 | O26: 0.0102 | P26: 0.0057 | R26: 69820.36
B27: Standby Power Approved on an Interim Basis | C27: kW | D27: 0 | E27: 0 | F27: 0 | G27: 0 | H27: 0 | I27: 0 | J27: 0 | K27: 0 | L27: 0 | M27: 0 | N27: 0 | O27: 0 | P27: 0 | R27: 0
H28: 0
B29: General Service 50 to 4,999 excluding WMP | C29: kW | G29: 222448176 | H29: =IF(ISERROR(F43/E43*G23), 0, F43/E43*G29) -> 610772.369 | I29: 0 | J29: 266618384.7 | K29: 732049.7988 | L29: =J29/$J$41 -> 0.3806720502 | M29: 0 | N29: 0 | O29: 0 | P29: 0 | R29: 0
B41: Total | D41: =SUM(D21:D40) -> 32937 | E41: =SUM(E21:E40) -> 704804228 | F41: =SUM(F21:F40) -> 1034966 | G41: =SUM(G21:G40) -> 249322258.9 | H41: 615818.369 | I41: =SUM(I21:I40) -> 12284719.18 | J41: =SUM(J21:J40) -> 700388653.7 | K41: =SUM(K21:K40) -> 1027107.799 | L41: 1 | M41: 1 | N41: 1 | O41: 1 | P41: 1 | Q41: =SUM(Q21:Q40) -> 0 | R41: 302347.47 | S41: 1
Q42: Balance as per Sheet 5 | R42: ='5. Allocation of Balances'!D51 -> 302347.47
B43: General Service 50 to 4,999 kW excluding WMP | C43: kW | E43: 266618384.7 | F43: 732049.7988 | Q43: Variance | R43: =R41-'2. 2015 Continuity Schedule'!BW74 -> 0.003208885726
A45: 1 For Account 1562, the allocation to customer classes should be performed on the basis of the test year distribution revenue allocation to customer classes found in the Applicant’s Cost of Service application that was most recently approved at the time of disposition of the 1562 account balances
A47: 2 Residual Account balance to be allocated to rate classes in proportion to the recovery share as established when rate riders were implemented.
I56: =G30/$G$41 -> 0

Sheet 4.1 Wrk Sheet 1580,1588,1589
B2: Billing Determinants Worksheet
B3: Deferral and Variance Account Allocators for Accounts 1580, 1588, and 1589
B6: Wholesale Market Participant (WMP) and/or Class A customers to be excluded from Allocation
A8: 1 | B8: Accounts 1580 and 1588 Share Proportion Allocator
B9: Customer Class | C9: 2016 Normalized kWh | D9: WMP kWh | E9: 2016 without WMP kWh | F9: Accounts 1580 and 1588 Allocator
B10: Residential | C10: 183959618 | E10: =C10 -> 183959618 | F10: =E10/$E$17 -> 0.2626536238
B11: General Service < 50 kW | C11: 93395362 | E11: =C11 -> 93395362 | F11: 0.1333479083
B12: General Service 50 to 4999 kW | C12: 271033959 | D12: 4415574.272 | E12: =C12-D12 -> 266618384.7 | F12: 0.3806720502
B13: Large Use | C13: 153400986 | E13: =C13 -> 153400986 | F13: 0.21902266
B14: Unmetered Scattered Load | C14: 1196145 | E14: =C14 -> 1196145 | F14: 0.001707830351
B15: Street Lighting | C15: 1818158 | E15: =C15 -> 1818158 | F15: 0.002595927262
B16: Standby Approved on Interim Basis | C16: 0 | E16: =C16 -> 0 | F16: 0
C17: 704804228 | D17: 4415574.272 | E17: =SUM(E10:E16) -> 700388653.7 | F17: =SUM(F10:F16) -> 1
C19: kWh without WMP | D19: kW without WMP
B20: General Service 50 to 4999 kW | C20: 266618384.7 | D20: 732049.7988
A23: 2 | B23: Account 1589 Global Adjustment Share Proportion Allocator
B24: Customer Class | C24: =C9 -> 2016 Normalized kWh | D24: WMP and Class A kWh | E24: 2016 without WMP and Class A kWh | F24: % Non-RPP within Class 1 | G24: Non-RPP kWh without WMP and Class A | H24: 1589 Global Adjustment Allocation
B25: Residential | C25: 183959618 | D25: 0 | E25: =C25-D25 -> 183959618 | F25: 0.04541738041 | G25: =E25*F25 -> 8354963.952 | H25: =G25/$G$32 -> 0.03351070215
B26: General Service < 50 kW | C26: 93395362 | D26: 0 | E26: 93395362 | F26: 0.1660126977 | G26: 15504816 | H26: 0.06218785311
B27: General Service 50 to 4999 kW | C27: 271033959 | D27: 4415574.272 | E27: 266618384.7 | F27: 0.8343317217 | G27: 222448176 | H27: 0.892211458
B28: Large Use | C28: 153400986 | D28: 153400986 | E28: 0 | F28: 1 | G28: 0 | H28: 0
B29: Unmetered Scattered Load | C29: 1196145 | D29: 0 | E29: 1196145 | F29: 1 | G29: 1196145 | H29: 0.004797586088
B30: Street Lighting | C30: 1818158 | D30: 0 | E30: 1818158 | F30: 0.9999998865 | G30: 1818157.794 | H30: 0.007292400618
B31: Standby Approved on Interim Basis | C31: 0 | D31: 0 | E31: =H16 -> 0 | F31: 0 | G31: =J16 -> 0 | H31: 0
C32: 704804228 | D32: 157816560.3 | E32: =SUM(E25:E31) -> 546987667.7 | G32: =SUM(G25:G31) -> 249322258.7 | H32: =SUM(H25:H31) -> 1
B34: 1. % Non-RPP within Class based on 2014 actuals excluding WMP from total kWh and from non-RPP kWh.
C36: kWh without WMP | D36: kW without WMP | E36: Estimate for GS 50 to 4,999 Non-RPP kW excluding WMP
B37: General Service 50 to 4999 kW | C37: =E27 -> 266618384.7 | D37: 732049.7988 | E37: =D37/C37*G27 -> 610772.369 | F37: kW

Sheet 5. Allocation of Balances
D4: Amounts from Sheet 2 | E4: Allocator | F4: =IF(LEN(TRIM('4. Billing Determinants'!$B21))=0, "", '4. Billing Determinants'!$B21) -> Residential | G4: =IF(LEN(TRIM('4. Billing Determinants'!$B22))=0, "", '4. Billing Determinants'!$B22) -> General Service < 50 kW | H4: =IF(LEN(TRIM('4. Billing Determinants'!$B23))=0, "", '4. Billing Determinants'!$B23) -> General Service 50 to 4,999 kW | I4: =IF(LEN(TRIM('4. Billing Determinants'!$B24))=0, "", '4. Billing Determinants'!$B24) -> Large Use | J4: =IF(LEN(TRIM('4. Billing Determinants'!$B25))=0, "", '4. Billing Determinants'!$B25) -> Unmetered Scattered Load | K4: =IF(LEN(TRIM('4. Billing Determinants'!$B26))=0, "", '4. Billing Determinants'!$B26) -> Street Lighting | L4: =IF(LEN(TRIM('4. Billing Determinants'!$B27))=0, "", '4. Billing Determinants'!$B27) -> Standby Power Approved on an Interim Basis | M4: =IF(LEN(TRIM('4. Billing Determinants'!$B29))=0, "", '4. Billing Determinants'!$B29) -> General Service 50 to 4,999 excluding WMP | N4: =IF(LEN(TRIM('4. Billing Determinants'!$B29))=0, "", '4. Billing Determinants'!$B29) -> General Service 50 to 4,999 excluding WMP | O4: =IF(LEN(TRIM('4. Billing Determinants'!$B30))=0, "", '4. Billing Determinants'!$B30) ->  | P4: =IF(LEN(TRIM('4. Billing Determinants'!$B31))=0, "", '4. Billing Determinants'!$B31) ->  | Q4: =IF(LEN(TRIM('4. Billing Determinants'!$B32))=0, "", '4. Billing Determinants'!$B32) ->  | R4: =IF(LEN(TRIM('4. Billing Determinants'!$B33))=0, "", '4. Billing Determinants'!$B33) ->  | S4: =IF(LEN(TRIM('4. Billing Determinants'!$B34))=0, "", '4. Billing Determinants'!$B34) ->  | T4: =IF(LEN(TRIM('4. Billing Determinants'!$B35))=0, "", '4. Billing Determinants'!$B35) ->  | U4: =IF(LEN(TRIM('4. Billing Determinants'!$B36))=0, "", '4. Billing Determinants'!$B36) ->  | V4: =IF(LEN(TRIM('4. Billing Determinants'!$B37))=0, "", '4. Billing Determinants'!$B37) ->  | W4: =IF(LEN(TRIM('4. Billing Determinants'!$B38))=0, "", '4. Billing Determinants'!$B38) ->  | X4: =IF(LEN(TRIM('4. Billing Determinants'!$B39))=0, "", '4. Billing Determinants'!$B39) ->  | Y4: =IF(LEN(TRIM('4. Billing Determinants'!$B40))=0, "", '4. Billing Determinants'!$B40) -> 
B5: LV Variance Account | C5: 1550 | D5: ='2. 2015 Continuity Schedule'!BW24 -> 742942.2139 | E5: kWh | F5: =IFERROR(IF(F$4="",0,IF($E5="kWh",VLOOKUP(F$4,'4. Billing Determinants'!$B$19:$R$41,4,0)/'4. Billing Determinants'!$E$41*$D5,IF($E5="kW",VLOOKUP(F$4,'4. Billing Determinants'!$B$19:$R$41,5,0)/'4. Billing Determinants'!$F$41*$D5,IF($E5="Non-RPP kWh",VLOOKUP(F$4,'4. Billing Determinants'!$B$19:$R$41,6,0)/'4. Billing Determinants'!$G$41*$D5,IF($E5="Distribution Rev.",VLOOKUP(F$4,'4. Billing Determinants'!$B$19:$R$41,8,0)/'4. Billing Determinants'!$I$41*$D5, VLOOKUP(F$4,'4. Billing Determinants'!$B$19:$R$41,3,0)/'4. Billing Determinants'!$D$41*$D5))))),0) -> 193913.9416 | G5: =IFERROR(IF(G$4="",0,IF($E5="kWh",VLOOKUP(G$4,'4. Billing Determinants'!$B$19:$R$41,4,0)/'4. Billing Determinants'!$E$41*$D5,IF($E5="kW",VLOOKUP(G$4,'4. Billing Determinants'!$B$19:$R$41,5,0)/'4. Billing Determinants'!$F$41*$D5,IF($E5="Non-RPP kWh",VLOOKUP(G$4,'4. Billing Determinants'!$B$19:$R$41,6,0)/'4. Billing Determinants'!$G$41*$D5,IF($E5="Distribution Rev.",VLOOKUP(G$4,'4. Billing Determinants'!$B$19:$R$41,8,0)/'4. Billing Determinants'!$I$41*$D5, VLOOKUP(G$4,'4. Billing Determinants'!$B$19:$R$41,3,0)/'4. Billing Determinants'!$D$41*$D5))))),0) -> 98449.12142 | H5: =IFERROR(IF(H$4="",0,IF($E5="kWh",VLOOKUP(H$4,'4. Billing Determinants'!$B$19:$R$41,4,0)/'4. Billing Determinants'!$E$41*$D5,IF($E5="kW",VLOOKUP(H$4,'4. Billing Determinants'!$B$19:$R$41,5,0)/'4. Billing Determinants'!$F$41*$D5,IF($E5="Non-RPP kWh",VLOOKUP(H$4,'4. Billing Determinants'!$B$19:$R$41,6,0)/'4. Billing Determinants'!$G$41*$D5,IF($E5="Distribution Rev.",VLOOKUP(H$4,'4. Billing Determinants'!$B$19:$R$41,8,0)/'4. Billing Determinants'!$I$41*$D5, VLOOKUP(H$4,'4. Billing Determinants'!$B$19:$R$41,3,0)/'4. Billing Determinants'!$D$41*$D5))))),0) -> 285700.0023 | I5: =IFERROR(IF(I$4="",0,IF($E5="kWh",VLOOKUP(I$4,'4. Billing Determinants'!$B$19:$R$41,4,0)/'4. Billing Determinants'!$E$41*$D5,IF($E5="kW",VLOOKUP(I$4,'4. Billing Determinants'!$B$19:$R$41,5,0)/'4. Billing Determinants'!$F$41*$D5,IF($E5="Non-RPP kWh",VLOOKUP(I$4,'4. Billing Determinants'!$B$19:$R$41,6,0)/'4. Billing Determinants'!$G$41*$D5,IF($E5="Distribution Rev.",VLOOKUP(I$4,'4. Billing Determinants'!$B$19:$R$41,8,0)/'4. Billing Determinants'!$I$41*$D5, VLOOKUP(I$4,'4. Billing Determinants'!$B$19:$R$41,3,0)/'4. Billing Determinants'!$D$41*$D5))))),0) -> 161701.7374 | J5: =IFERROR(IF(J$4="",0,IF($E5="kWh",VLOOKUP(J$4,'4. Billing Determinants'!$B$19:$R$41,4,0)/'4. Billing Determinants'!$E$41*$D5,IF($E5="kW",VLOOKUP(J$4,'4. Billing Determinants'!$B$19:$R$41,5,0)/'4. Billing Determinants'!$F$41*$D5,IF($E5="Non-RPP kWh",VLOOKUP(J$4,'4. Billing Determinants'!$B$19:$R$41,6,0)/'4. Billing Determinants'!$G$41*$D5,IF($E5="Distribution Rev.",VLOOKUP(J$4,'4. Billing Determinants'!$B$19:$R$41,8,0)/'4. Billing Determinants'!$I$41*$D5, VLOOKUP(J$4,'4. Billing Determinants'!$B$19:$R$41,3,0)/'4. Billing Determinants'!$D$41*$D5))))),0) -> 1260.870153 | K5: =IFERROR(IF(K$4="",0,IF($E5="kWh",VLOOKUP(K$4,'4. Billing Determinants'!$B$19:$R$41,4,0)/'4. Billing Determinants'!$E$41*$D5,IF($E5="kW",VLOOKUP(K$4,'4. Billing Determinants'!$B$19:$R$41,5,0)/'4. Billing Determinants'!$F$41*$D5,IF($E5="Non-RPP kWh",VLOOKUP(K$4,'4. Billing Determinants'!$B$19:$R$41,6,0)/'4. Billing Determinants'!$G$41*$D5,IF($E5="Distribution Rev.",VLOOKUP(K$4,'4. Billing Determinants'!$B$19:$R$41,8,0)/'4. Billing Determinants'!$I$41*$D5, VLOOKUP(K$4,'4. Billing Determinants'!$B$19:$R$41,3,0)/'4. Billing Determinants'!$D$41*$D5))))),0) -> 1916.541184 | L5: =IFERROR(IF(L$4="",0,IF($E5="kWh",VLOOKUP(L$4,'4. Billing Determinants'!$B$19:$R$41,4,0)/'4. Billing Determinants'!$E$41*$D5,IF($E5="kW",VLOOKUP(L$4,'4. Billing Determinants'!$B$19:$R$41,5,0)/'4. Billing Determinants'!$F$41*$D5,IF($E5="Non-RPP kWh",VLOOKUP(L$4,'4. Billing Determinants'!$B$19:$R$41,6,0)/'4. Billing Determinants'!$G$41*$D5,IF($E5="Distribution Rev.",VLOOKUP(L$4,'4. Billing Determinants'!$B$19:$R$41,8,0)/'4. Billing Determinants'!$I$41*$D5, VLOOKUP(L$4,'4. Billing Determinants'!$B$19:$R$41,3,0)/'4. Billing Determinants'!$D$41*$D5))))),0) -> 0 | M5: =IFERROR(IF(M$4="",0,IF($E5="kWh",VLOOKUP(M$4,'4. Billing Determinants'!$B$19:$R$41,4,0)/'4. Billing Determinants'!$E$41*$D5,IF($E5="kW",VLOOKUP(M$4,'4. Billing Determinants'!$B$19:$R$41,5,0)/'4. Billing Determinants'!$F$41*$D5,IF($E5="Non-RPP kWh",VLOOKUP(M$4,'4. Billing Determinants'!$B$19:$R$41,6,0)/'4. Billing Determinants'!$G$41*$D5,IF($E5="Distribution Rev.",VLOOKUP(M$4,'4. Billing Determinants'!$B$19:$R$41,8,0)/'4. Billing Determinants'!$I$41*$D5, VLOOKUP(M$4,'4. Billing Determinants'!$B$19:$R$41,3,0)/'4. Billing Determinants'!$D$41*$D5))))),0) -> 0 | N5: =IFERROR(IF(N$4="",0,IF($E5="kWh",VLOOKUP(N$4,'4. Billing Determinants'!$B$19:$R$41,4,0)/'4. Billing Determinants'!$E$41*$D5,IF($E5="kW",VLOOKUP(N$4,'4. Billing Determinants'!$B$19:$R$41,5,0)/'4. Billing Determinants'!$F$41*$D5,IF($E5="Non-RPP kWh",VLOOKUP(N$4,'4. Billing Determinants'!$B$19:$R$41,6,0)/'4. Billing Determinants'!$G$41*$D5,IF($E5="Distribution Rev.",VLOOKUP(N$4,'4. Billing Determinants'!$B$19:$R$41,8,0)/'4. Billing Determinants'!$I$41*$D5, VLOOKUP(N$4,'4. Billing Determinants'!$B$19:$R$41,3,0)/'4. Billing Determinants'!$D$41*$D5))))),0) -> 0 | O5: =IFERROR(IF(O$4="",0,IF($E5="kWh",VLOOKUP(O$4,'4. Billing Determinants'!$B$19:$R$41,4,0)/'4. Billing Determinants'!$E$41*$D5,IF($E5="kW",VLOOKUP(O$4,'4. Billing Determinants'!$B$19:$R$41,5,0)/'4. Billing Determinants'!$F$41*$D5,IF($E5="Non-RPP kWh",VLOOKUP(O$4,'4. Billing Determinants'!$B$19:$R$41,6,0)/'4. Billing Determinants'!$G$41*$D5,IF($E5="Distribution Rev.",VLOOKUP(O$4,'4. Billing Determinants'!$B$19:$R$41,8,0)/'4. Billing Determinants'!$I$41*$D5, VLOOKUP(O$4,'4. Billing Determinants'!$B$19:$R$41,3,0)/'4. Billing Determinants'!$D$41*$D5))))),0) -> 0 | P5: =IFERROR(IF(P$4="",0,IF($E5="kWh",VLOOKUP(P$4,'4. Billing Determinants'!$B$19:$R$41,4,0)/'4. Billing Determinants'!$E$41*$D5,IF($E5="kW",VLOOKUP(P$4,'4. Billing Determinants'!$B$19:$R$41,5,0)/'4. Billing Determinants'!$F$41*$D5,IF($E5="Non-RPP kWh",VLOOKUP(P$4,'4. Billing Determinants'!$B$19:$R$41,6,0)/'4. Billing Determinants'!$G$41*$D5,IF($E5="Distribution Rev.",VLOOKUP(P$4,'4. Billing Determinants'!$B$19:$R$41,8,0)/'4. Billing Determinants'!$I$41*$D5, VLOOKUP(P$4,'4. Billing Determinants'!$B$19:$R$41,3,0)/'4. Billing Determinants'!$D$41*$D5))))),0) -> 0 | Q5: =IFERROR(IF(Q$4="",0,IF($E5="kWh",VLOOKUP(Q$4,'4. Billing Determinants'!$B$19:$R$41,4,0)/'4. Billing Determinants'!$E$41*$D5,IF($E5="kW",VLOOKUP(Q$4,'4. Billing Determinants'!$B$19:$R$41,5,0)/'4. Billing Determinants'!$F$41*$D5,IF($E5="Non-RPP kWh",VLOOKUP(Q$4,'4. Billing Determinants'!$B$19:$R$41,6,0)/'4. Billing Determinants'!$G$41*$D5,IF($E5="Distribution Rev.",VLOOKUP(Q$4,'4. Billing Determinants'!$B$19:$R$41,8,0)/'4. Billing Determinants'!$I$41*$D5, VLOOKUP(Q$4,'4. Billing Determinants'!$B$19:$R$41,3,0)/'4. Billing Determinants'!$D$41*$D5))))),0) -> 0 | R5: =IFERROR(IF(R$4="",0,IF($E5="kWh",VLOOKUP(R$4,'4. Billing Determinants'!$B$19:$R$41,4,0)/'4. Billing Determinants'!$E$41*$D5,IF($E5="kW",VLOOKUP(R$4,'4. Billing Determinants'!$B$19:$R$41,5,0)/'4. Billing Determinants'!$F$41*$D5,IF($E5="Non-RPP kWh",VLOOKUP(R$4,'4. Billing Determinants'!$B$19:$R$41,6,0)/'4. Billing Determinants'!$G$41*$D5,IF($E5="Distribution Rev.",VLOOKUP(R$4,'4. Billing Determinants'!$B$19:$R$41,8,0)/'4. Billing Determinants'!$I$41*$D5, VLOOKUP(R$4,'4. Billing Determinants'!$B$19:$R$41,3,0)/'4. Billing Determinants'!$D$41*$D5))))),0) -> 0 | S5: =IFERROR(IF(S$4="",0,IF($E5="kWh",VLOOKUP(S$4,'4. Billing Determinants'!$B$19:$R$41,4,0)/'4. Billing Determinants'!$E$41*$D5,IF($E5="kW",VLOOKUP(S$4,'4. Billing Determinants'!$B$19:$R$41,5,0)/'4. Billing Determinants'!$F$41*$D5,IF($E5="Non-RPP kWh",VLOOKUP(S$4,'4. Billing Determinants'!$B$19:$R$41,6,0)/'4. Billing Determinants'!$G$41*$D5,IF($E5="Distribution Rev.",VLOOKUP(S$4,'4. Billing Determinants'!$B$19:$R$41,8,0)/'4. Billing Determinants'!$I$41*$D5, VLOOKUP(S$4,'4. Billing Determinants'!$B$19:$R$41,3,0)/'4. Billing Determinants'!$D$41*$D5))))),0) -> 0 | T5: =IFERROR(IF(T$4="",0,IF($E5="kWh",VLOOKUP(T$4,'4. Billing Determinants'!$B$19:$R$41,4,0)/'4. Billing Determinants'!$E$41*$D5,IF($E5="kW",VLOOKUP(T$4,'4. Billing Determinants'!$B$19:$R$41,5,0)/'4. Billing Determinants'!$F$41*$D5,IF($E5="Non-RPP kWh",VLOOKUP(T$4,'4. Billing Determinants'!$B$19:$R$41,6,0)/'4. Billing Determinants'!$G$41*$D5,IF($E5="Distribution Rev.",VLOOKUP(T$4,'4. Billing Determinants'!$B$19:$R$41,8,0)/'4. Billing Determinants'!$I$41*$D5, VLOOKUP(T$4,'4. Billing Determinants'!$B$19:$R$41,3,0)/'4. Billing Determinants'!$D$41*$D5))))),0) -> 0 | U5: =IFERROR(IF(U$4="",0,IF($E5="kWh",VLOOKUP(U$4,'4. Billing Determinants'!$B$19:$R$41,4,0)/'4. Billing Determinants'!$E$41*$D5,IF($E5="kW",VLOOKUP(U$4,'4. Billing Determinants'!$B$19:$R$41,5,0)/'4. Billing Determinants'!$F$41*$D5,IF($E5="Non-RPP kWh",VLOOKUP(U$4,'4. Billing Determinants'!$B$19:$R$41,6,0)/'4. Billing Determinants'!$G$41*$D5,IF($E5="Distribution Rev.",VLOOKUP(U$4,'4. Billing Determinants'!$B$19:$R$41,8,0)/'4. Billing Determinants'!$I$41*$D5, VLOOKUP(U$4,'4. Billing Determinants'!$B$19:$R$41,3,0)/'4. Billing Determinants'!$D$41*$D5))))),0) -> 0 | V5: =IFERROR(IF(V$4="",0,IF($E5="kWh",VLOOKUP(V$4,'4. Billing Determinants'!$B$19:$R$41,4,0)/'4. Billing Determinants'!$E$41*$D5,IF($E5="kW",VLOOKUP(V$4,'4. Billing Determinants'!$B$19:$R$41,5,0)/'4. Billing Determinants'!$F$41*$D5,IF($E5="Non-RPP kWh",VLOOKUP(V$4,'4. Billing Determinants'!$B$19:$R$41,6,0)/'4. Billing Determinants'!$G$41*$D5,IF($E5="Distribution Rev.",VLOOKUP(V$4,'4. Billing Determinants'!$B$19:$R$41,8,0)/'4. Billing Determinants'!$I$41*$D5, VLOOKUP(V$4,'4. Billing Determinants'!$B$19:$R$41,3,0)/'4. Billing Determinants'!$D$41*$D5))))),0) -> 0 | W5: =IFERROR(IF(W$4="",0,IF($E5="kWh",VLOOKUP(W$4,'4. Billing Determinants'!$B$19:$R$41,4,0)/'4. Billing Determinants'!$E$41*$D5,IF($E5="kW",VLOOKUP(W$4,'4. Billing Determinants'!$B$19:$R$41,5,0)/'4. Billing Determinants'!$F$41*$D5,IF($E5="Non-RPP kWh",VLOOKUP(W$4,'4. Billing Determinants'!$B$19:$R$41,6,0)/'4. Billing Determinants'!$G$41*$D5,IF($E5="Distribution Rev.",VLOOKUP(W$4,'4. Billing Determinants'!$B$19:$R$41,8,0)/'4. Billing Determinants'!$I$41*$D5, VLOOKUP(W$4,'4. Billing Determinants'!$B$19:$R$41,3,0)/'4. Billing Determinants'!$D$41*$D5))))),0) -> 0 | X5: =IFERROR(IF(X$4="",0,IF($E5="kWh",VLOOKUP(X$4,'4. Billing Determinants'!$B$19:$R$41,4,0)/'4. Billing Determinants'!$E$41*$D5,IF($E5="kW",VLOOKUP(X$4,'4. Billing Determinants'!$B$19:$R$41,5,0)/'4. Billing Determinants'!$F$41*$D5,IF($E5="Non-RPP kWh",VLOOKUP(X$4,'4. Billing Determinants'!$B$19:$R$41,6,0)/'4. Billing Determinants'!$G$41*$D5,IF($E5="Distribution Rev.",VLOOKUP(X$4,'4. Billing Determinants'!$B$19:$R$41,8,0)/'4. Billing Determinants'!$I$41*$D5, VLOOKUP(X$4,'4. Billing Determinants'!$B$19:$R$41,3,0)/'4. Billing Determinants'!$D$41*$D5))))),0) -> 0 | Y5: =IFERROR(IF(Y$4="",0,IF($E5="kWh",VLOOKUP(Y$4,'4. Billing Determinants'!$B$19:$R$41,4,0)/'4. Billing Determinants'!$E$41*$D5,IF($E5="kW",VLOOKUP(Y$4,'4. Billing Determinants'!$B$19:$R$41,5,0)/'4. Billing Determinants'!$F$41*$D5,IF($E5="Non-RPP kWh",VLOOKUP(Y$4,'4. Billing Determinants'!$B$19:$R$41,6,0)/'4. Billing Determinants'!$G$41*$D5,IF($E5="Distribution Rev.",VLOOKUP(Y$4,'4. Billing Determinants'!$B$19:$R$41,8,0)/'4. Billing Determinants'!$I$41*$D5, VLOOKUP(Y$4,'4. Billing Determinants'!$B$19:$R$41,3,0)/'4. Billing Determinants'!$D$41*$D5))))),0) -> 0
B6: SME - Smart meter entity | C6: 1551 | D6: ='2. 2015 Continuity Schedule'!BW25 -> 40052.55779 | E6: # of Customers | F6: =IFERROR(IF(F$4="",0,IF($E6="kWh",VLOOKUP(F$4,'4. Billing Determinants'!$B$19:$R$41,4,0)/'4. Billing Determinants'!$E$41*$D6,IF($E6="kW",VLOOKUP(F$4,'4. Billing Determinants'!$B$19:$R$41,5,0)/'4. Billing Determinants'!$F$41*$D6,IF($E6="Non-RPP kWh",VLOOKUP(F$4,'4. Billing Determinants'!$B$19:$R$41,6,0)/'4. Billing Determinants'!$G$41*$D6,IF($E6="Distribution Rev.",VLOOKUP(F$4,'4. Billing Determinants'!$B$19:$R$41,8,0)/'4. Billing Determinants'!$I$41*$D6, VLOOKUP(F$4,'4. Billing Determinants'!$B$19:$R$41,3,0)/'4. Billing Determinants'!$D$41*$D6))))),0) -> 29375.76703 | G6: =IFERROR(IF(G$4="",0,IF($E6="kWh",VLOOKUP(G$4,'4. Billing Determinants'!$B$19:$R$41,4,0)/'4. Billing Determinants'!$E$41*$D6,IF($E6="kW",VLOOKUP(G$4,'4. Billing Determinants'!$B$19:$R$41,5,0)/'4. Billing Determinants'!$F$41*$D6,IF($E6="Non-RPP kWh",VLOOKUP(G$4,'4. Billing Determinants'!$B$19:$R$41,6,0)/'4. Billing Determinants'!$G$41*$D6,IF($E6="Distribution Rev.",VLOOKUP(G$4,'4. Billing Determinants'!$B$19:$R$41,8,0)/'4. Billing Determinants'!$I$41*$D6, VLOOKUP(G$4,'4. Billing Determinants'!$B$19:$R$41,3,0)/'4. Billing Determinants'!$D$41*$D6))))),0) -> 3587.304414 | H6: =IFERROR(IF(H$4="",0,IF($E6="kWh",VLOOKUP(H$4,'4. Billing Determinants'!$B$19:$R$41,4,0)/'4. Billing Determinants'!$E$41*$D6,IF($E6="kW",VLOOKUP(H$4,'4. Billing Determinants'!$B$19:$R$41,5,0)/'4. Billing Determinants'!$F$41*$D6,IF($E6="Non-RPP kWh",VLOOKUP(H$4,'4. Billing Determinants'!$B$19:$R$41,6,0)/'4. Billing Determinants'!$G$41*$D6,IF($E6="Distribution Rev.",VLOOKUP(H$4,'4. Billing Determinants'!$B$19:$R$41,8,0)/'4. Billing Determinants'!$I$41*$D6, VLOOKUP(H$4,'4. Billing Determinants'!$B$19:$R$41,3,0)/'4. Billing Determinants'!$D$41*$D6))))),0) -> 409.803928 | I6: =IFERROR(IF(I$4="",0,IF($E6="kWh",VLOOKUP(I$4,'4. Billing Determinants'!$B$19:$R$41,4,0)/'4. Billing Determinants'!$E$41*$D6,IF($E6="kW",VLOOKUP(I$4,'4. Billing Determinants'!$B$19:$R$41,5,0)/'4. Billing Determinants'!$F$41*$D6,IF($E6="Non-RPP kWh",VLOOKUP(I$4,'4. Billing Determinants'!$B$19:$R$41,6,0)/'4. Billing Determinants'!$G$41*$D6,IF($E6="Distribution Rev.",VLOOKUP(I$4,'4. Billing Determinants'!$B$19:$R$41,8,0)/'4. Billing Determinants'!$I$41*$D6, VLOOKUP(I$4,'4. Billing Determinants'!$B$19:$R$41,3,0)/'4. Billing Determinants'!$D$41*$D6))))),0) -> 3.648106184 | J6: =IFERROR(IF(J$4="",0,IF($E6="kWh",VLOOKUP(J$4,'4. Billing Determinants'!$B$19:$R$41,4,0)/'4. Billing Determinants'!$E$41*$D6,IF($E6="kW",VLOOKUP(J$4,'4. Billing Determinants'!$B$19:$R$41,5,0)/'4. Billing Determinants'!$F$41*$D6,IF($E6="Non-RPP kWh",VLOOKUP(J$4,'4. Billing Determinants'!$B$19:$R$41,6,0)/'4. Billing Determinants'!$G$41*$D6,IF($E6="Distribution Rev.",VLOOKUP(J$4,'4. Billing Determinants'!$B$19:$R$41,8,0)/'4. Billing Determinants'!$I$41*$D6, VLOOKUP(J$4,'4. Billing Determinants'!$B$19:$R$41,3,0)/'4. Billing Determinants'!$D$41*$D6))))),0) -> 171.4609906 | K6: =IFERROR(IF(K$4="",0,IF($E6="kWh",VLOOKUP(K$4,'4. Billing Determinants'!$B$19:$R$41,4,0)/'4. Billing Determinants'!$E$41*$D6,IF($E6="kW",VLOOKUP(K$4,'4. Billing Determinants'!$B$19:$R$41,5,0)/'4. Billing Determinants'!$F$41*$D6,IF($E6="Non-RPP kWh",VLOOKUP(K$4,'4. Billing Determinants'!$B$19:$R$41,6,0)/'4. Billing Determinants'!$G$41*$D6,IF($E6="Distribution Rev.",VLOOKUP(K$4,'4. Billing Determinants'!$B$19:$R$41,8,0)/'4. Billing Determinants'!$I$41*$D6, VLOOKUP(K$4,'4. Billing Determinants'!$B$19:$R$41,3,0)/'4. Billing Determinants'!$D$41*$D6))))),0) -> 6504.573326 | L6: =IFERROR(IF(L$4="",0,IF($E6="kWh",VLOOKUP(L$4,'4. Billing Determinants'!$B$19:$R$41,4,0)/'4. Billing Determinants'!$E$41*$D6,IF($E6="kW",VLOOKUP(L$4,'4. Billing Determinants'!$B$19:$R$41,5,0)/'4. Billing Determinants'!$F$41*$D6,IF($E6="Non-RPP kWh",VLOOKUP(L$4,'4. Billing Determinants'!$B$19:$R$41,6,0)/'4. Billing Determinants'!$G$41*$D6,IF($E6="Distribution Rev.",VLOOKUP(L$4,'4. Billing Determinants'!$B$19:$R$41,8,0)/'4. Billing Determinants'!$I$41*$D6, VLOOKUP(L$4,'4. Billing Determinants'!$B$19:$R$41,3,0)/'4. Billing Determinants'!$D$41*$D6))))),0) -> 0 | M6: =IFERROR(IF(M$4="",0,IF($E6="kWh",VLOOKUP(M$4,'4. Billing Determinants'!$B$19:$R$41,4,0)/'4. Billing Determinants'!$E$41*$D6,IF($E6="kW",VLOOKUP(M$4,'4. Billing Determinants'!$B$19:$R$41,5,0)/'4. Billing Determinants'!$F$41*$D6,IF($E6="Non-RPP kWh",VLOOKUP(M$4,'4. Billing Determinants'!$B$19:$R$41,6,0)/'4. Billing Determinants'!$G$41*$D6,IF($E6="Distribution Rev.",VLOOKUP(M$4,'4. Billing Determinants'!$B$19:$R$41,8,0)/'4. Billing Determinants'!$I$41*$D6, VLOOKUP(M$4,'4. Billing Determinants'!$B$19:$R$41,3,0)/'4. Billing Determinants'!$D$41*$D6))))),0) -> 0 | AA6: =D6-F6-G6-H6-I6-J6-K6-M6 -> -1.818989404e-12
B7: RSVA - Wholesale Market Service Charge | C7: 1580 | D7: ='2. 2015 Continuity Schedule'!BW26 -> -423931.758 | E7: kWh | F7: =IF(ISERROR(VLOOKUP(F$4, '4. Billing Determinants'!$B$19:$R$41, 11, FALSE)*'2. 2015 Continuity Schedule'!$BW$26), 0, VLOOKUP(F$4, '4. Billing Determinants'!$B$19:$R$41, 11, FALSE)*'2. 2015 Continuity Schedule'!$BW$26) -> -111347.2125 | G7: =IF(ISERROR(VLOOKUP(G$4, '4. Billing Determinants'!$B$19:$R$41, 11, FALSE)*'2. 2015 Continuity Schedule'!$BW$26), 0, VLOOKUP(G$4, '4. Billing Determinants'!$B$19:$R$41, 11, FALSE)*'2. 2015 Continuity Schedule'!$BW$26) -> -56530.41321 | H7: 0 | I7: =IF(ISERROR(VLOOKUP(I$4, '4. Billing Determinants'!$B$19:$R$41, 11, FALSE)*'2. 2015 Continuity Schedule'!$BW$26), 0, VLOOKUP(I$4, '4. Billing Determinants'!$B$19:$R$41, 11, FALSE)*'2. 2015 Continuity Schedule'!$BW$26) -> -92850.66131 | J7: =IF(ISERROR(VLOOKUP(J$4, '4. Billing Determinants'!$B$19:$R$41, 11, FALSE)*'2. 2015 Continuity Schedule'!$BW$26), 0, VLOOKUP(J$4, '4. Billing Determinants'!$B$19:$R$41, 11, FALSE)*'2. 2015 Continuity Schedule'!$BW$26) -> -724.0035229 | K7: =IF(ISERROR(VLOOKUP(K$4, '4. Billing Determinants'!$B$19:$R$41, 11, FALSE)*'2. 2015 Continuity Schedule'!$BW$26), 0, VLOOKUP(K$4, '4. Billing Determinants'!$B$19:$R$41, 11, FALSE)*'2. 2015 Continuity Schedule'!$BW$26) -> -1100.496008 | L7: =IF(ISERROR(VLOOKUP(L$4, '4. Billing Determinants'!$B$19:$R$41, 11, FALSE)*'2. 2015 Continuity Schedule'!$BW$26), 0, VLOOKUP(L$4, '4. Billing Determinants'!$B$19:$R$41, 11, FALSE)*'2. 2015 Continuity Schedule'!$BW$26) -> 0 | M7: =IF(ISERROR(VLOOKUP(M$4, '4. Billing Determinants'!$B$19:$R$41, 11, FALSE)*'2. 2015 Continuity Schedule'!$BW$26), 0, VLOOKUP(M$4, '4. Billing Determinants'!$B$19:$R$41, 11, FALSE)*'2. 2015 Continuity Schedule'!$BW$26) -> -161378.9715 | N7: =IFERROR(IF(N$4="",0,IF($E7="kWh",VLOOKUP(N$4,'4. Billing Determinants'!$B$19:$R$41,4,0)/'4. Billing Determinants'!$E$41*$D7,IF($E7="kW",VLOOKUP(N$4,'4. Billing Determinants'!$B$19:$R$41,5,0)/'4. Billing Determinants'!$F$41*$D7,IF($E7="Non-RPP kWh",VLOOKUP(N$4,'4. Billing Determinants'!$B$19:$R$41,6,0)/'4. Billing Determinants'!$G$41*$D7,IF($E7="Distribution Rev.",VLOOKUP(N$4,'4. Billing Determinants'!$B$19:$R$41,8,0)/'4. Billing Determinants'!$I$41*$D7, VLOOKUP(N$4,'4. Billing Determinants'!$B$19:$R$41,3,0)/'4. Billing Determinants'!$D$41*$D7))))),0) -> 0 | O7: =IFERROR(IF(O$4="",0,IF($E7="kWh",VLOOKUP(O$4,'4. Billing Determinants'!$B$19:$R$41,4,0)/'4. Billing Determinants'!$E$41*$D7,IF($E7="kW",VLOOKUP(O$4,'4. Billing Determinants'!$B$19:$R$41,5,0)/'4. Billing Determinants'!$F$41*$D7,IF($E7="Non-RPP kWh",VLOOKUP(O$4,'4. Billing Determinants'!$B$19:$R$41,6,0)/'4. Billing Determinants'!$G$41*$D7,IF($E7="Distribution Rev.",VLOOKUP(O$4,'4. Billing Determinants'!$B$19:$R$41,8,0)/'4. Billing Determinants'!$I$41*$D7, VLOOKUP(O$4,'4. Billing Determinants'!$B$19:$R$41,3,0)/'4. Billing Determinants'!$D$41*$D7))))),0) -> 0 | P7: =IFERROR(IF(P$4="",0,IF($E7="kWh",VLOOKUP(P$4,'4. Billing Determinants'!$B$19:$R$41,4,0)/'4. Billing Determinants'!$E$41*$D7,IF($E7="kW",VLOOKUP(P$4,'4. Billing Determinants'!$B$19:$R$41,5,0)/'4. Billing Determinants'!$F$41*$D7,IF($E7="Non-RPP kWh",VLOOKUP(P$4,'4. Billing Determinants'!$B$19:$R$41,6,0)/'4. Billing Determinants'!$G$41*$D7,IF($E7="Distribution Rev.",VLOOKUP(P$4,'4. Billing Determinants'!$B$19:$R$41,8,0)/'4. Billing Determinants'!$I$41*$D7, VLOOKUP(P$4,'4. Billing Determinants'!$B$19:$R$41,3,0)/'4. Billing Determinants'!$D$41*$D7))))),0) -> 0 | Q7: =IFERROR(IF(Q$4="",0,IF($E7="kWh",VLOOKUP(Q$4,'4. Billing Determinants'!$B$19:$R$41,4,0)/'4. Billing Determinants'!$E$41*$D7,IF($E7="kW",VLOOKUP(Q$4,'4. Billing Determinants'!$B$19:$R$41,5,0)/'4. Billing Determinants'!$F$41*$D7,IF($E7="Non-RPP kWh",VLOOKUP(Q$4,'4. Billing Determinants'!$B$19:$R$41,6,0)/'4. Billing Determinants'!$G$41*$D7,IF($E7="Distribution Rev.",VLOOKUP(Q$4,'4. Billing Determinants'!$B$19:$R$41,8,0)/'4. Billing Determinants'!$I$41*$D7, VLOOKUP(Q$4,'4. Billing Determinants'!$B$19:$R$41,3,0)/'4. Billing Determinants'!$D$41*$D7))))),0) -> 0 | R7: =IFERROR(IF(R$4="",0,IF($E7="kWh",VLOOKUP(R$4,'4. Billing Determinants'!$B$19:$R$41,4,0)/'4. Billing Determinants'!$E$41*$D7,IF($E7="kW",VLOOKUP(R$4,'4. Billing Determinants'!$B$19:$R$41,5,0)/'4. Billing Determinants'!$F$41*$D7,IF($E7="Non-RPP kWh",VLOOKUP(R$4,'4. Billing Determinants'!$B$19:$R$41,6,0)/'4. Billing Determinants'!$G$41*$D7,IF($E7="Distribution Rev.",VLOOKUP(R$4,'4. Billing Determinants'!$B$19:$R$41,8,0)/'4. Billing Determinants'!$I$41*$D7, VLOOKUP(R$4,'4. Billing Determinants'!$B$19:$R$41,3,0)/'4. Billing Determinants'!$D$41*$D7))))),0) -> 0 | S7: =IFERROR(IF(S$4="",0,IF($E7="kWh",VLOOKUP(S$4,'4. Billing Determinants'!$B$19:$R$41,4,0)/'4. Billing Determinants'!$E$41*$D7,IF($E7="kW",VLOOKUP(S$4,'4. Billing Determinants'!$B$19:$R$41,5,0)/'4. Billing Determinants'!$F$41*$D7,IF($E7="Non-RPP kWh",VLOOKUP(S$4,'4. Billing Determinants'!$B$19:$R$41,6,0)/'4. Billing Determinants'!$G$41*$D7,IF($E7="Distribution Rev.",VLOOKUP(S$4,'4. Billing Determinants'!$B$19:$R$41,8,0)/'4. Billing Determinants'!$I$41*$D7, VLOOKUP(S$4,'4. Billing Determinants'!$B$19:$R$41,3,0)/'4. Billing Determinants'!$D$41*$D7))))),0) -> 0 | T7: =IFERROR(IF(T$4="",0,IF($E7="kWh",VLOOKUP(T$4,'4. Billing Determinants'!$B$19:$R$41,4,0)/'4. Billing Determinants'!$E$41*$D7,IF($E7="kW",VLOOKUP(T$4,'4. Billing Determinants'!$B$19:$R$41,5,0)/'4. Billing Determinants'!$F$41*$D7,IF($E7="Non-RPP kWh",VLOOKUP(T$4,'4. Billing Determinants'!$B$19:$R$41,6,0)/'4. Billing Determinants'!$G$41*$D7,IF($E7="Distribution Rev.",VLOOKUP(T$4,'4. Billing Determinants'!$B$19:$R$41,8,0)/'4. Billing Determinants'!$I$41*$D7, VLOOKUP(T$4,'4. Billing Determinants'!$B$19:$R$41,3,0)/'4. Billing Determinants'!$D$41*$D7))))),0) -> 0 | U7: =IFERROR(IF(U$4="",0,IF($E7="kWh",VLOOKUP(U$4,'4. Billing Determinants'!$B$19:$R$41,4,0)/'4. Billing Determinants'!$E$41*$D7,IF($E7="kW",VLOOKUP(U$4,'4. Billing Determinants'!$B$19:$R$41,5,0)/'4. Billing Determinants'!$F$41*$D7,IF($E7="Non-RPP kWh",VLOOKUP(U$4,'4. Billing Determinants'!$B$19:$R$41,6,0)/'4. Billing Determinants'!$G$41*$D7,IF($E7="Distribution Rev.",VLOOKUP(U$4,'4. Billing Determinants'!$B$19:$R$41,8,0)/'4. Billing Determinants'!$I$41*$D7, VLOOKUP(U$4,'4. Billing Determinants'!$B$19:$R$41,3,0)/'4. Billing Determinants'!$D$41*$D7))))),0) -> 0 | V7: =IFERROR(IF(V$4="",0,IF($E7="kWh",VLOOKUP(V$4,'4. Billing Determinants'!$B$19:$R$41,4,0)/'4. Billing Determinants'!$E$41*$D7,IF($E7="kW",VLOOKUP(V$4,'4. Billing Determinants'!$B$19:$R$41,5,0)/'4. Billing Determinants'!$F$41*$D7,IF($E7="Non-RPP kWh",VLOOKUP(V$4,'4. Billing Determinants'!$B$19:$R$41,6,0)/'4. Billing Determinants'!$G$41*$D7,IF($E7="Distribution Rev.",VLOOKUP(V$4,'4. Billing Determinants'!$B$19:$R$41,8,0)/'4. Billing Determinants'!$I$41*$D7, VLOOKUP(V$4,'4. Billing Determinants'!$B$19:$R$41,3,0)/'4. Billing Determinants'!$D$41*$D7))))),0) -> 0 | W7: =IFERROR(IF(W$4="",0,IF($E7="kWh",VLOOKUP(W$4,'4. Billing Determinants'!$B$19:$R$41,4,0)/'4. Billing Determinants'!$E$41*$D7,IF($E7="kW",VLOOKUP(W$4,'4. Billing Determinants'!$B$19:$R$41,5,0)/'4. Billing Determinants'!$F$41*$D7,IF($E7="Non-RPP kWh",VLOOKUP(W$4,'4. Billing Determinants'!$B$19:$R$41,6,0)/'4. Billing Determinants'!$G$41*$D7,IF($E7="Distribution Rev.",VLOOKUP(W$4,'4. Billing Determinants'!$B$19:$R$41,8,0)/'4. Billing Determinants'!$I$41*$D7, VLOOKUP(W$4,'4. Billing Determinants'!$B$19:$R$41,3,0)/'4. Billing Determinants'!$D$41*$D7))))),0) -> 0 | X7: =IFERROR(IF(X$4="",0,IF($E7="kWh",VLOOKUP(X$4,'4. Billing Determinants'!$B$19:$R$41,4,0)/'4. Billing Determinants'!$E$41*$D7,IF($E7="kW",VLOOKUP(X$4,'4. Billing Determinants'!$B$19:$R$41,5,0)/'4. Billing Determinants'!$F$41*$D7,IF($E7="Non-RPP kWh",VLOOKUP(X$4,'4. Billing Determinants'!$B$19:$R$41,6,0)/'4. Billing Determinants'!$G$41*$D7,IF($E7="Distribution Rev.",VLOOKUP(X$4,'4. Billing Determinants'!$B$19:$R$41,8,0)/'4. Billing Determinants'!$I$41*$D7, VLOOKUP(X$4,'4. Billing Determinants'!$B$19:$R$41,3,0)/'4. Billing Determinants'!$D$41*$D7))))),0) -> 0 | Y7: =IFERROR(IF(Y$4="",0,IF($E7="kWh",VLOOKUP(Y$4,'4. Billing Determinants'!$B$19:$R$41,4,0)/'4. Billing Determinants'!$E$41*$D7,IF($E7="kW",VLOOKUP(Y$4,'4. Billing Determinants'!$B$19:$R$41,5,0)/'4. Billing Determinants'!$F$41*$D7,IF($E7="Non-RPP kWh",VLOOKUP(Y$4,'4. Billing Determinants'!$B$19:$R$41,6,0)/'4. Billing Determinants'!$G$41*$D7,IF($E7="Distribution Rev.",VLOOKUP(Y$4,'4. Billing Determinants'!$B$19:$R$41,8,0)/'4. Billing Determinants'!$I$41*$D7, VLOOKUP(Y$4,'4. Billing Determinants'!$B$19:$R$41,3,0)/'4. Billing Determinants'!$D$41*$D7))))),0) -> 0 | AA7: 0
B8: RSVA - Retail Transmission Network Charge | C8: 1584 | D8: ='2. 2015 Continuity Schedule'!BW27 -> 439236.2225 | E8: kWh | F8: =IFERROR(IF(F$4="",0,IF($E8="kWh",VLOOKUP(F$4,'4. Billing Determinants'!$B$19:$R$41,4,0)/'4. Billing Determinants'!$E$41*$D8,IF($E8="kW",VLOOKUP(F$4,'4. Billing Determinants'!$B$19:$R$41,5,0)/'4. Billing Determinants'!$F$41*$D8,IF($E8="Non-RPP kWh",VLOOKUP(F$4,'4. Billing Determinants'!$B$19:$R$41,6,0)/'4. Billing Determinants'!$G$41*$D8,IF($E8="Distribution Rev.",VLOOKUP(F$4,'4. Billing Determinants'!$B$19:$R$41,8,0)/'4. Billing Determinants'!$I$41*$D8, VLOOKUP(F$4,'4. Billing Determinants'!$B$19:$R$41,3,0)/'4. Billing Determinants'!$D$41*$D8))))),0) -> 114644.2154 | G8: =IFERROR(IF(G$4="",0,IF($E8="kWh",VLOOKUP(G$4,'4. Billing Determinants'!$B$19:$R$41,4,0)/'4. Billing Determinants'!$E$41*$D8,IF($E8="kW",VLOOKUP(G$4,'4. Billing Determinants'!$B$19:$R$41,5,0)/'4. Billing Determinants'!$F$41*$D8,IF($E8="Non-RPP kWh",VLOOKUP(G$4,'4. Billing Determinants'!$B$19:$R$41,6,0)/'4. Billing Determinants'!$G$41*$D8,IF($E8="Distribution Rev.",VLOOKUP(G$4,'4. Billing Determinants'!$B$19:$R$41,8,0)/'4. Billing Determinants'!$I$41*$D8, VLOOKUP(G$4,'4. Billing Determinants'!$B$19:$R$41,3,0)/'4. Billing Determinants'!$D$41*$D8))))),0) -> 58204.28479 | H8: =IFERROR(IF(H$4="",0,IF($E8="kWh",VLOOKUP(H$4,'4. Billing Determinants'!$B$19:$R$41,4,0)/'4. Billing Determinants'!$E$41*$D8,IF($E8="kW",VLOOKUP(H$4,'4. Billing Determinants'!$B$19:$R$41,5,0)/'4. Billing Determinants'!$F$41*$D8,IF($E8="Non-RPP kWh",VLOOKUP(H$4,'4. Billing Determinants'!$B$19:$R$41,6,0)/'4. Billing Determinants'!$G$41*$D8,IF($E8="Distribution Rev.",VLOOKUP(H$4,'4. Billing Determinants'!$B$19:$R$41,8,0)/'4. Billing Determinants'!$I$41*$D8, VLOOKUP(H$4,'4. Billing Determinants'!$B$19:$R$41,3,0)/'4. Billing Determinants'!$D$41*$D8))))),0) -> 168909.2199 | I8: =IFERROR(IF(I$4="",0,IF($E8="kWh",VLOOKUP(I$4,'4. Billing Determinants'!$B$19:$R$41,4,0)/'4. Billing Determinants'!$E$41*$D8,IF($E8="kW",VLOOKUP(I$4,'4. Billing Determinants'!$B$19:$R$41,5,0)/'4. Billing Determinants'!$F$41*$D8,IF($E8="Non-RPP kWh",VLOOKUP(I$4,'4. Billing Determinants'!$B$19:$R$41,6,0)/'4. Billing Determinants'!$G$41*$D8,IF($E8="Distribution Rev.",VLOOKUP(I$4,'4. Billing Determinants'!$B$19:$R$41,8,0)/'4. Billing Determinants'!$I$41*$D8, VLOOKUP(I$4,'4. Billing Determinants'!$B$19:$R$41,3,0)/'4. Billing Determinants'!$D$41*$D8))))),0) -> 95599.97932 | J8: =IFERROR(IF(J$4="",0,IF($E8="kWh",VLOOKUP(J$4,'4. Billing Determinants'!$B$19:$R$41,4,0)/'4. Billing Determinants'!$E$41*$D8,IF($E8="kW",VLOOKUP(J$4,'4. Billing Determinants'!$B$19:$R$41,5,0)/'4. Billing Determinants'!$F$41*$D8,IF($E8="Non-RPP kWh",VLOOKUP(J$4,'4. Billing Determinants'!$B$19:$R$41,6,0)/'4. Billing Determinants'!$G$41*$D8,IF($E8="Distribution Rev.",VLOOKUP(J$4,'4. Billing Determinants'!$B$19:$R$41,8,0)/'4. Billing Determinants'!$I$41*$D8, VLOOKUP(J$4,'4. Billing Determinants'!$B$19:$R$41,3,0)/'4. Billing Determinants'!$D$41*$D8))))),0) -> 745.4413446 | K8: =IFERROR(IF(K$4="",0,IF($E8="kWh",VLOOKUP(K$4,'4. Billing Determinants'!$B$19:$R$41,4,0)/'4. Billing Determinants'!$E$41*$D8,IF($E8="kW",VLOOKUP(K$4,'4. Billing Determinants'!$B$19:$R$41,5,0)/'4. Billing Determinants'!$F$41*$D8,IF($E8="Non-RPP kWh",VLOOKUP(K$4,'4. Billing Determinants'!$B$19:$R$41,6,0)/'4. Billing Determinants'!$G$41*$D8,IF($E8="Distribution Rev.",VLOOKUP(K$4,'4. Billing Determinants'!$B$19:$R$41,8,0)/'4. Billing Determinants'!$I$41*$D8, VLOOKUP(K$4,'4. Billing Determinants'!$B$19:$R$41,3,0)/'4. Billing Determinants'!$D$41*$D8))))),0) -> 1133.081812 | L8: =IFERROR(IF(L$4="",0,IF($E8="kWh",VLOOKUP(L$4,'4. Billing Determinants'!$B$19:$R$41,4,0)/'4. Billing Determinants'!$E$41*$D8,IF($E8="kW",VLOOKUP(L$4,'4. Billing Determinants'!$B$19:$R$41,5,0)/'4. Billing Determinants'!$F$41*$D8,IF($E8="Non-RPP kWh",VLOOKUP(L$4,'4. Billing Determinants'!$B$19:$R$41,6,0)/'4. Billing Determinants'!$G$41*$D8,IF($E8="Distribution Rev.",VLOOKUP(L$4,'4. Billing Determinants'!$B$19:$R$41,8,0)/'4. Billing Determinants'!$I$41*$D8, VLOOKUP(L$4,'4. Billing Determinants'!$B$19:$R$41,3,0)/'4. Billing Determinants'!$D$41*$D8))))),0) -> 0 | M8: =IFERROR(IF(M$4="",0,IF($E8="kWh",VLOOKUP(M$4,'4. Billing Determinants'!$B$19:$R$41,4,0)/'4. Billing Determinants'!$E$41*$D8,IF($E8="kW",VLOOKUP(M$4,'4. Billing Determinants'!$B$19:$R$41,5,0)/'4. Billing Determinants'!$F$41*$D8,IF($E8="Non-RPP kWh",VLOOKUP(M$4,'4. Billing Determinants'!$B$19:$R$41,6,0)/'4. Billing Determinants'!$G$41*$D8,IF($E8="Distribution Rev.",VLOOKUP(M$4,'4. Billing Determinants'!$B$19:$R$41,8,0)/'4. Billing Determinants'!$I$41*$D8, VLOOKUP(M$4,'4. Billing Determinants'!$B$19:$R$41,3,0)/'4. Billing Determinants'!$D$41*$D8))))),0) -> 0 | N8: =IFERROR(IF(N$4="",0,IF($E8="kWh",VLOOKUP(N$4,'4. Billing Determinants'!$B$19:$R$41,4,0)/'4. Billing Determinants'!$E$41*$D8,IF($E8="kW",VLOOKUP(N$4,'4. Billing Determinants'!$B$19:$R$41,5,0)/'4. Billing Determinants'!$F$41*$D8,IF($E8="Non-RPP kWh",VLOOKUP(N$4,'4. Billing Determinants'!$B$19:$R$41,6,0)/'4. Billing Determinants'!$G$41*$D8,IF($E8="Distribution Rev.",VLOOKUP(N$4,'4. Billing Determinants'!$B$19:$R$41,8,0)/'4. Billing Determinants'!$I$41*$D8, VLOOKUP(N$4,'4. Billing Determinants'!$B$19:$R$41,3,0)/'4. Billing Determinants'!$D$41*$D8))))),0) -> 0 | O8: =IFERROR(IF(O$4="",0,IF($E8="kWh",VLOOKUP(O$4,'4. Billing Determinants'!$B$19:$R$41,4,0)/'4. Billing Determinants'!$E$41*$D8,IF($E8="kW",VLOOKUP(O$4,'4. Billing Determinants'!$B$19:$R$41,5,0)/'4. Billing Determinants'!$F$41*$D8,IF($E8="Non-RPP kWh",VLOOKUP(O$4,'4. Billing Determinants'!$B$19:$R$41,6,0)/'4. Billing Determinants'!$G$41*$D8,IF($E8="Distribution Rev.",VLOOKUP(O$4,'4. Billing Determinants'!$B$19:$R$41,8,0)/'4. Billing Determinants'!$I$41*$D8, VLOOKUP(O$4,'4. Billing Determinants'!$B$19:$R$41,3,0)/'4. Billing Determinants'!$D$41*$D8))))),0) -> 0 | P8: =IFERROR(IF(P$4="",0,IF($E8="kWh",VLOOKUP(P$4,'4. Billing Determinants'!$B$19:$R$41,4,0)/'4. Billing Determinants'!$E$41*$D8,IF($E8="kW",VLOOKUP(P$4,'4. Billing Determinants'!$B$19:$R$41,5,0)/'4. Billing Determinants'!$F$41*$D8,IF($E8="Non-RPP kWh",VLOOKUP(P$4,'4. Billing Determinants'!$B$19:$R$41,6,0)/'4. Billing Determinants'!$G$41*$D8,IF($E8="Distribution Rev.",VLOOKUP(P$4,'4. Billing Determinants'!$B$19:$R$41,8,0)/'4. Billing Determinants'!$I$41*$D8, VLOOKUP(P$4,'4. Billing Determinants'!$B$19:$R$41,3,0)/'4. Billing Determinants'!$D$41*$D8))))),0) -> 0 | Q8: =IFERROR(IF(Q$4="",0,IF($E8="kWh",VLOOKUP(Q$4,'4. Billing Determinants'!$B$19:$R$41,4,0)/'4. Billing Determinants'!$E$41*$D8,IF($E8="kW",VLOOKUP(Q$4,'4. Billing Determinants'!$B$19:$R$41,5,0)/'4. Billing Determinants'!$F$41*$D8,IF($E8="Non-RPP kWh",VLOOKUP(Q$4,'4. Billing Determinants'!$B$19:$R$41,6,0)/'4. Billing Determinants'!$G$41*$D8,IF($E8="Distribution Rev.",VLOOKUP(Q$4,'4. Billing Determinants'!$B$19:$R$41,8,0)/'4. Billing Determinants'!$I$41*$D8, VLOOKUP(Q$4,'4. Billing Determinants'!$B$19:$R$41,3,0)/'4. Billing Determinants'!$D$41*$D8))))),0) -> 0 | R8: =IFERROR(IF(R$4="",0,IF($E8="kWh",VLOOKUP(R$4,'4. Billing Determinants'!$B$19:$R$41,4,0)/'4. Billing Determinants'!$E$41*$D8,IF($E8="kW",VLOOKUP(R$4,'4. Billing Determinants'!$B$19:$R$41,5,0)/'4. Billing Determinants'!$F$41*$D8,IF($E8="Non-RPP kWh",VLOOKUP(R$4,'4. Billing Determinants'!$B$19:$R$41,6,0)/'4. Billing Determinants'!$G$41*$D8,IF($E8="Distribution Rev.",VLOOKUP(R$4,'4. Billing Determinants'!$B$19:$R$41,8,0)/'4. Billing Determinants'!$I$41*$D8, VLOOKUP(R$4,'4. Billing Determinants'!$B$19:$R$41,3,0)/'4. Billing Determinants'!$D$41*$D8))))),0) -> 0 | S8: =IFERROR(IF(S$4="",0,IF($E8="kWh",VLOOKUP(S$4,'4. Billing Determinants'!$B$19:$R$41,4,0)/'4. Billing Determinants'!$E$41*$D8,IF($E8="kW",VLOOKUP(S$4,'4. Billing Determinants'!$B$19:$R$41,5,0)/'4. Billing Determinants'!$F$41*$D8,IF($E8="Non-RPP kWh",VLOOKUP(S$4,'4. Billing Determinants'!$B$19:$R$41,6,0)/'4. Billing Determinants'!$G$41*$D8,IF($E8="Distribution Rev.",VLOOKUP(S$4,'4. Billing Determinants'!$B$19:$R$41,8,0)/'4. Billing Determinants'!$I$41*$D8, VLOOKUP(S$4,'4. Billing Determinants'!$B$19:$R$41,3,0)/'4. Billing Determinants'!$D$41*$D8))))),0) -> 0 | T8: =IFERROR(IF(T$4="",0,IF($E8="kWh",VLOOKUP(T$4,'4. Billing Determinants'!$B$19:$R$41,4,0)/'4. Billing Determinants'!$E$41*$D8,IF($E8="kW",VLOOKUP(T$4,'4. Billing Determinants'!$B$19:$R$41,5,0)/'4. Billing Determinants'!$F$41*$D8,IF($E8="Non-RPP kWh",VLOOKUP(T$4,'4. Billing Determinants'!$B$19:$R$41,6,0)/'4. Billing Determinants'!$G$41*$D8,IF($E8="Distribution Rev.",VLOOKUP(T$4,'4. Billing Determinants'!$B$19:$R$41,8,0)/'4. Billing Determinants'!$I$41*$D8, VLOOKUP(T$4,'4. Billing Determinants'!$B$19:$R$41,3,0)/'4. Billing Determinants'!$D$41*$D8))))),0) -> 0 | U8: =IFERROR(IF(U$4="",0,IF($E8="kWh",VLOOKUP(U$4,'4. Billing Determinants'!$B$19:$R$41,4,0)/'4. Billing Determinants'!$E$41*$D8,IF($E8="kW",VLOOKUP(U$4,'4. Billing Determinants'!$B$19:$R$41,5,0)/'4. Billing Determinants'!$F$41*$D8,IF($E8="Non-RPP kWh",VLOOKUP(U$4,'4. Billing Determinants'!$B$19:$R$41,6,0)/'4. Billing Determinants'!$G$41*$D8,IF($E8="Distribution Rev.",VLOOKUP(U$4,'4. Billing Determinants'!$B$19:$R$41,8,0)/'4. Billing Determinants'!$I$41*$D8, VLOOKUP(U$4,'4. Billing Determinants'!$B$19:$R$41,3,0)/'4. Billing Determinants'!$D$41*$D8))))),0) -> 0 | V8: =IFERROR(IF(V$4="",0,IF($E8="kWh",VLOOKUP(V$4,'4. Billing Determinants'!$B$19:$R$41,4,0)/'4. Billing Determinants'!$E$41*$D8,IF($E8="kW",VLOOKUP(V$4,'4. Billing Determinants'!$B$19:$R$41,5,0)/'4. Billing Determinants'!$F$41*$D8,IF($E8="Non-RPP kWh",VLOOKUP(V$4,'4. Billing Determinants'!$B$19:$R$41,6,0)/'4. Billing Determinants'!$G$41*$D8,IF($E8="Distribution Rev.",VLOOKUP(V$4,'4. Billing Determinants'!$B$19:$R$41,8,0)/'4. Billing Determinants'!$I$41*$D8, VLOOKUP(V$4,'4. Billing Determinants'!$B$19:$R$41,3,0)/'4. Billing Determinants'!$D$41*$D8))))),0) -> 0 | W8: =IFERROR(IF(W$4="",0,IF($E8="kWh",VLOOKUP(W$4,'4. Billing Determinants'!$B$19:$R$41,4,0)/'4. Billing Determinants'!$E$41*$D8,IF($E8="kW",VLOOKUP(W$4,'4. Billing Determinants'!$B$19:$R$41,5,0)/'4. Billing Determinants'!$F$41*$D8,IF($E8="Non-RPP kWh",VLOOKUP(W$4,'4. Billing Determinants'!$B$19:$R$41,6,0)/'4. Billing Determinants'!$G$41*$D8,IF($E8="Distribution Rev.",VLOOKUP(W$4,'4. Billing Determinants'!$B$19:$R$41,8,0)/'4. Billing Determinants'!$I$41*$D8, VLOOKUP(W$4,'4. Billing Determinants'!$B$19:$R$41,3,0)/'4. Billing Determinants'!$D$41*$D8))))),0) -> 0 | X8: =IFERROR(IF(X$4="",0,IF($E8="kWh",VLOOKUP(X$4,'4. Billing Determinants'!$B$19:$R$41,4,0)/'4. Billing Determinants'!$E$41*$D8,IF($E8="kW",VLOOKUP(X$4,'4. Billing Determinants'!$B$19:$R$41,5,0)/'4. Billing Determinants'!$F$41*$D8,IF($E8="Non-RPP kWh",VLOOKUP(X$4,'4. Billing Determinants'!$B$19:$R$41,6,0)/'4. Billing Determinants'!$G$41*$D8,IF($E8="Distribution Rev.",VLOOKUP(X$4,'4. Billing Determinants'!$B$19:$R$41,8,0)/'4. Billing Determinants'!$I$41*$D8, VLOOKUP(X$4,'4. Billing Determinants'!$B$19:$R$41,3,0)/'4. Billing Determinants'!$D$41*$D8))))),0) -> 0 | Y8: =IFERROR(IF(Y$4="",0,IF($E8="kWh",VLOOKUP(Y$4,'4. Billing Determinants'!$B$19:$R$41,4,0)/'4. Billing Determinants'!$E$41*$D8,IF($E8="kW",VLOOKUP(Y$4,'4. Billing Determinants'!$B$19:$R$41,5,0)/'4. Billing Determinants'!$F$41*$D8,IF($E8="Non-RPP kWh",VLOOKUP(Y$4,'4. Billing Determinants'!$B$19:$R$41,6,0)/'4. Billing Determinants'!$G$41*$D8,IF($E8="Distribution Rev.",VLOOKUP(Y$4,'4. Billing Determinants'!$B$19:$R$41,8,0)/'4. Billing Determinants'!$I$41*$D8, VLOOKUP(Y$4,'4. Billing Determinants'!$B$19:$R$41,3,0)/'4. Billing Determinants'!$D$41*$D8))))),0) -> 0 | AA8: -4.797584552e-11
B9: RSVA - Retail Transmission Connection Charge | C9: 1586 | D9: ='2. 2015 Continuity Schedule'!BW28 -> 255763.8766 | E9: kWh | F9: =IFERROR(IF(F$4="",0,IF($E9="kWh",VLOOKUP(F$4,'4. Billing Determinants'!$B$19:$R$41,4,0)/'4. Billing Determinants'!$E$41*$D9,IF($E9="kW",VLOOKUP(F$4,'4. Billing Determinants'!$B$19:$R$41,5,0)/'4. Billing Determinants'!$F$41*$D9,IF($E9="Non-RPP kWh",VLOOKUP(F$4,'4. Billing Determinants'!$B$19:$R$41,6,0)/'4. Billing Determinants'!$G$41*$D9,IF($E9="Distribution Rev.",VLOOKUP(F$4,'4. Billing Determinants'!$B$19:$R$41,8,0)/'4. Billing Determinants'!$I$41*$D9, VLOOKUP(F$4,'4. Billing Determinants'!$B$19:$R$41,3,0)/'4. Billing Determinants'!$D$41*$D9))))),0) -> 66756.4455 | G9: =IFERROR(IF(G$4="",0,IF($E9="kWh",VLOOKUP(G$4,'4. Billing Determinants'!$B$19:$R$41,4,0)/'4. Billing Determinants'!$E$41*$D9,IF($E9="kW",VLOOKUP(G$4,'4. Billing Determinants'!$B$19:$R$41,5,0)/'4. Billing Determinants'!$F$41*$D9,IF($E9="Non-RPP kWh",VLOOKUP(G$4,'4. Billing Determinants'!$B$19:$R$41,6,0)/'4. Billing Determinants'!$G$41*$D9,IF($E9="Distribution Rev.",VLOOKUP(G$4,'4. Billing Determinants'!$B$19:$R$41,8,0)/'4. Billing Determinants'!$I$41*$D9, VLOOKUP(G$4,'4. Billing Determinants'!$B$19:$R$41,3,0)/'4. Billing Determinants'!$D$41*$D9))))),0) -> 33891.9077 | H9: =IFERROR(IF(H$4="",0,IF($E9="kWh",VLOOKUP(H$4,'4. Billing Determinants'!$B$19:$R$41,4,0)/'4. Billing Determinants'!$E$41*$D9,IF($E9="kW",VLOOKUP(H$4,'4. Billing Determinants'!$B$19:$R$41,5,0)/'4. Billing Determinants'!$F$41*$D9,IF($E9="Non-RPP kWh",VLOOKUP(H$4,'4. Billing Determinants'!$B$19:$R$41,6,0)/'4. Billing Determinants'!$G$41*$D9,IF($E9="Distribution Rev.",VLOOKUP(H$4,'4. Billing Determinants'!$B$19:$R$41,8,0)/'4. Billing Determinants'!$I$41*$D9, VLOOKUP(H$4,'4. Billing Determinants'!$B$19:$R$41,3,0)/'4. Billing Determinants'!$D$41*$D9))))),0) -> 98354.54057 | I9: =IFERROR(IF(I$4="",0,IF($E9="kWh",VLOOKUP(I$4,'4. Billing Determinants'!$B$19:$R$41,4,0)/'4. Billing Determinants'!$E$41*$D9,IF($E9="kW",VLOOKUP(I$4,'4. Billing Determinants'!$B$19:$R$41,5,0)/'4. Billing Determinants'!$F$41*$D9,IF($E9="Non-RPP kWh",VLOOKUP(I$4,'4. Billing Determinants'!$B$19:$R$41,6,0)/'4. Billing Determinants'!$G$41*$D9,IF($E9="Distribution Rev.",VLOOKUP(I$4,'4. Billing Determinants'!$B$19:$R$41,8,0)/'4. Billing Determinants'!$I$41*$D9, VLOOKUP(I$4,'4. Billing Determinants'!$B$19:$R$41,3,0)/'4. Billing Determinants'!$D$41*$D9))))),0) -> 55667.13321 | J9: =IFERROR(IF(J$4="",0,IF($E9="kWh",VLOOKUP(J$4,'4. Billing Determinants'!$B$19:$R$41,4,0)/'4. Billing Determinants'!$E$41*$D9,IF($E9="kW",VLOOKUP(J$4,'4. Billing Determinants'!$B$19:$R$41,5,0)/'4. Billing Determinants'!$F$41*$D9,IF($E9="Non-RPP kWh",VLOOKUP(J$4,'4. Billing Determinants'!$B$19:$R$41,6,0)/'4. Billing Determinants'!$G$41*$D9,IF($E9="Distribution Rev.",VLOOKUP(J$4,'4. Billing Determinants'!$B$19:$R$41,8,0)/'4. Billing Determinants'!$I$41*$D9, VLOOKUP(J$4,'4. Billing Determinants'!$B$19:$R$41,3,0)/'4. Billing Determinants'!$D$41*$D9))))),0) -> 434.0647658 | K9: =IFERROR(IF(K$4="",0,IF($E9="kWh",VLOOKUP(K$4,'4. Billing Determinants'!$B$19:$R$41,4,0)/'4. Billing Determinants'!$E$41*$D9,IF($E9="kW",VLOOKUP(K$4,'4. Billing Determinants'!$B$19:$R$41,5,0)/'4. Billing Determinants'!$F$41*$D9,IF($E9="Non-RPP kWh",VLOOKUP(K$4,'4. Billing Determinants'!$B$19:$R$41,6,0)/'4. Billing Determinants'!$G$41*$D9,IF($E9="Distribution Rev.",VLOOKUP(K$4,'4. Billing Determinants'!$B$19:$R$41,8,0)/'4. Billing Determinants'!$I$41*$D9, VLOOKUP(K$4,'4. Billing Determinants'!$B$19:$R$41,3,0)/'4. Billing Determinants'!$D$41*$D9))))),0) -> 659.7848308 | L9: =IFERROR(IF(L$4="",0,IF($E9="kWh",VLOOKUP(L$4,'4. Billing Determinants'!$B$19:$R$41,4,0)/'4. Billing Determinants'!$E$41*$D9,IF($E9="kW",VLOOKUP(L$4,'4. Billing Determinants'!$B$19:$R$41,5,0)/'4. Billing Determinants'!$F$41*$D9,IF($E9="Non-RPP kWh",VLOOKUP(L$4,'4. Billing Determinants'!$B$19:$R$41,6,0)/'4. Billing Determinants'!$G$41*$D9,IF($E9="Distribution Rev.",VLOOKUP(L$4,'4. Billing Determinants'!$B$19:$R$41,8,0)/'4. Billing Determinants'!$I$41*$D9, VLOOKUP(L$4,'4. Billing Determinants'!$B$19:$R$41,3,0)/'4. Billing Determinants'!$D$41*$D9))))),0) -> 0 | M9: =IFERROR(IF(M$4="",0,IF($E9="kWh",VLOOKUP(M$4,'4. Billing Determinants'!$B$19:$R$41,4,0)/'4. Billing Determinants'!$E$41*$D9,IF($E9="kW",VLOOKUP(M$4,'4. Billing Determinants'!$B$19:$R$41,5,0)/'4. Billing Determinants'!$F$41*$D9,IF($E9="Non-RPP kWh",VLOOKUP(M$4,'4. Billing Determinants'!$B$19:$R$41,6,0)/'4. Billing Determinants'!$G$41*$D9,IF($E9="Distribution Rev.",VLOOKUP(M$4,'4. Billing Determinants'!$B$19:$R$41,8,0)/'4. Billing Determinants'!$I$41*$D9, VLOOKUP(M$4,'4. Billing Determinants'!$B$19:$R$41,3,0)/'4. Billing Determinants'!$D$41*$D9))))),0) -> 0 | N9: =IFERROR(IF(N$4="",0,IF($E9="kWh",VLOOKUP(N$4,'4. Billing Determinants'!$B$19:$R$41,4,0)/'4. Billing Determinants'!$E$41*$D9,IF($E9="kW",VLOOKUP(N$4,'4. Billing Determinants'!$B$19:$R$41,5,0)/'4. Billing Determinants'!$F$41*$D9,IF($E9="Non-RPP kWh",VLOOKUP(N$4,'4. Billing Determinants'!$B$19:$R$41,6,0)/'4. Billing Determinants'!$G$41*$D9,IF($E9="Distribution Rev.",VLOOKUP(N$4,'4. Billing Determinants'!$B$19:$R$41,8,0)/'4. Billing Determinants'!$I$41*$D9, VLOOKUP(N$4,'4. Billing Determinants'!$B$19:$R$41,3,0)/'4. Billing Determinants'!$D$41*$D9))))),0) -> 0 | O9: =IFERROR(IF(O$4="",0,IF($E9="kWh",VLOOKUP(O$4,'4. Billing Determinants'!$B$19:$R$41,4,0)/'4. Billing Determinants'!$E$41*$D9,IF($E9="kW",VLOOKUP(O$4,'4. Billing Determinants'!$B$19:$R$41,5,0)/'4. Billing Determinants'!$F$41*$D9,IF($E9="Non-RPP kWh",VLOOKUP(O$4,'4. Billing Determinants'!$B$19:$R$41,6,0)/'4. Billing Determinants'!$G$41*$D9,IF($E9="Distribution Rev.",VLOOKUP(O$4,'4. Billing Determinants'!$B$19:$R$41,8,0)/'4. Billing Determinants'!$I$41*$D9, VLOOKUP(O$4,'4. Billing Determinants'!$B$19:$R$41,3,0)/'4. Billing Determinants'!$D$41*$D9))))),0) -> 0 | P9: =IFERROR(IF(P$4="",0,IF($E9="kWh",VLOOKUP(P$4,'4. Billing Determinants'!$B$19:$R$41,4,0)/'4. Billing Determinants'!$E$41*$D9,IF($E9="kW",VLOOKUP(P$4,'4. Billing Determinants'!$B$19:$R$41,5,0)/'4. Billing Determinants'!$F$41*$D9,IF($E9="Non-RPP kWh",VLOOKUP(P$4,'4. Billing Determinants'!$B$19:$R$41,6,0)/'4. Billing Determinants'!$G$41*$D9,IF($E9="Distribution Rev.",VLOOKUP(P$4,'4. Billing Determinants'!$B$19:$R$41,8,0)/'4. Billing Determinants'!$I$41*$D9, VLOOKUP(P$4,'4. Billing Determinants'!$B$19:$R$41,3,0)/'4. Billing Determinants'!$D$41*$D9))))),0) -> 0 | Q9: =IFERROR(IF(Q$4="",0,IF($E9="kWh",VLOOKUP(Q$4,'4. Billing Determinants'!$B$19:$R$41,4,0)/'4. Billing Determinants'!$E$41*$D9,IF($E9="kW",VLOOKUP(Q$4,'4. Billing Determinants'!$B$19:$R$41,5,0)/'4. Billing Determinants'!$F$41*$D9,IF($E9="Non-RPP kWh",VLOOKUP(Q$4,'4. Billing Determinants'!$B$19:$R$41,6,0)/'4. Billing Determinants'!$G$41*$D9,IF($E9="Distribution Rev.",VLOOKUP(Q$4,'4. Billing Determinants'!$B$19:$R$41,8,0)/'4. Billing Determinants'!$I$41*$D9, VLOOKUP(Q$4,'4. Billing Determinants'!$B$19:$R$41,3,0)/'4. Billing Determinants'!$D$41*$D9))))),0) -> 0 | R9: =IFERROR(IF(R$4="",0,IF($E9="kWh",VLOOKUP(R$4,'4. Billing Determinants'!$B$19:$R$41,4,0)/'4. Billing Determinants'!$E$41*$D9,IF($E9="kW",VLOOKUP(R$4,'4. Billing Determinants'!$B$19:$R$41,5,0)/'4. Billing Determinants'!$F$41*$D9,IF($E9="Non-RPP kWh",VLOOKUP(R$4,'4. Billing Determinants'!$B$19:$R$41,6,0)/'4. Billing Determinants'!$G$41*$D9,IF($E9="Distribution Rev.",VLOOKUP(R$4,'4. Billing Determinants'!$B$19:$R$41,8,0)/'4. Billing Determinants'!$I$41*$D9, VLOOKUP(R$4,'4. Billing Determinants'!$B$19:$R$41,3,0)/'4. Billing Determinants'!$D$41*$D9))))),0) -> 0 | S9: =IFERROR(IF(S$4="",0,IF($E9="kWh",VLOOKUP(S$4,'4. Billing Determinants'!$B$19:$R$41,4,0)/'4. Billing Determinants'!$E$41*$D9,IF($E9="kW",VLOOKUP(S$4,'4. Billing Determinants'!$B$19:$R$41,5,0)/'4. Billing Determinants'!$F$41*$D9,IF($E9="Non-RPP kWh",VLOOKUP(S$4,'4. Billing Determinants'!$B$19:$R$41,6,0)/'4. Billing Determinants'!$G$41*$D9,IF($E9="Distribution Rev.",VLOOKUP(S$4,'4. Billing Determinants'!$B$19:$R$41,8,0)/'4. Billing Determinants'!$I$41*$D9, VLOOKUP(S$4,'4. Billing Determinants'!$B$19:$R$41,3,0)/'4. Billing Determinants'!$D$41*$D9))))),0) -> 0 | T9: =IFERROR(IF(T$4="",0,IF($E9="kWh",VLOOKUP(T$4,'4. Billing Determinants'!$B$19:$R$41,4,0)/'4. Billing Determinants'!$E$41*$D9,IF($E9="kW",VLOOKUP(T$4,'4. Billing Determinants'!$B$19:$R$41,5,0)/'4. Billing Determinants'!$F$41*$D9,IF($E9="Non-RPP kWh",VLOOKUP(T$4,'4. Billing Determinants'!$B$19:$R$41,6,0)/'4. Billing Determinants'!$G$41*$D9,IF($E9="Distribution Rev.",VLOOKUP(T$4,'4. Billing Determinants'!$B$19:$R$41,8,0)/'4. Billing Determinants'!$I$41*$D9, VLOOKUP(T$4,'4. Billing Determinants'!$B$19:$R$41,3,0)/'4. Billing Determinants'!$D$41*$D9))))),0) -> 0 | U9: =IFERROR(IF(U$4="",0,IF($E9="kWh",VLOOKUP(U$4,'4. Billing Determinants'!$B$19:$R$41,4,0)/'4. Billing Determinants'!$E$41*$D9,IF($E9="kW",VLOOKUP(U$4,'4. Billing Determinants'!$B$19:$R$41,5,0)/'4. Billing Determinants'!$F$41*$D9,IF($E9="Non-RPP kWh",VLOOKUP(U$4,'4. Billing Determinants'!$B$19:$R$41,6,0)/'4. Billing Determinants'!$G$41*$D9,IF($E9="Distribution Rev.",VLOOKUP(U$4,'4. Billing Determinants'!$B$19:$R$41,8,0)/'4. Billing Determinants'!$I$41*$D9, VLOOKUP(U$4,'4. Billing Determinants'!$B$19:$R$41,3,0)/'4. Billing Determinants'!$D$41*$D9))))),0) -> 0 | V9: =IFERROR(IF(V$4="",0,IF($E9="kWh",VLOOKUP(V$4,'4. Billing Determinants'!$B$19:$R$41,4,0)/'4. Billing Determinants'!$E$41*$D9,IF($E9="kW",VLOOKUP(V$4,'4. Billing Determinants'!$B$19:$R$41,5,0)/'4. Billing Determinants'!$F$41*$D9,IF($E9="Non-RPP kWh",VLOOKUP(V$4,'4. Billing Determinants'!$B$19:$R$41,6,0)/'4. Billing Determinants'!$G$41*$D9,IF($E9="Distribution Rev.",VLOOKUP(V$4,'4. Billing Determinants'!$B$19:$R$41,8,0)/'4. Billing Determinants'!$I$41*$D9, VLOOKUP(V$4,'4. Billing Determinants'!$B$19:$R$41,3,0)/'4. Billing Determinants'!$D$41*$D9))))),0) -> 0 | W9: =IFERROR(IF(W$4="",0,IF($E9="kWh",VLOOKUP(W$4,'4. Billing Determinants'!$B$19:$R$41,4,0)/'4. Billing Determinants'!$E$41*$D9,IF($E9="kW",VLOOKUP(W$4,'4. Billing Determinants'!$B$19:$R$41,5,0)/'4. Billing Determinants'!$F$41*$D9,IF($E9="Non-RPP kWh",VLOOKUP(W$4,'4. Billing Determinants'!$B$19:$R$41,6,0)/'4. Billing Determinants'!$G$41*$D9,IF($E9="Distribution Rev.",VLOOKUP(W$4,'4. Billing Determinants'!$B$19:$R$41,8,0)/'4. Billing Determinants'!$I$41*$D9, VLOOKUP(W$4,'4. Billing Determinants'!$B$19:$R$41,3,0)/'4. Billing Determinants'!$D$41*$D9))))),0) -> 0 | X9: =IFERROR(IF(X$4="",0,IF($E9="kWh",VLOOKUP(X$4,'4. Billing Determinants'!$B$19:$R$41,4,0)/'4. Billing Determinants'!$E$41*$D9,IF($E9="kW",VLOOKUP(X$4,'4. Billing Determinants'!$B$19:$R$41,5,0)/'4. Billing Determinants'!$F$41*$D9,IF($E9="Non-RPP kWh",VLOOKUP(X$4,'4. Billing Determinants'!$B$19:$R$41,6,0)/'4. Billing Determinants'!$G$41*$D9,IF($E9="Distribution Rev.",VLOOKUP(X$4,'4. Billing Determinants'!$B$19:$R$41,8,0)/'4. Billing Determinants'!$I$41*$D9, VLOOKUP(X$4,'4. Billing Determinants'!$B$19:$R$41,3,0)/'4. Billing Determinants'!$D$41*$D9))))),0) -> 0 | Y9: =IFERROR(IF(Y$4="",0,IF($E9="kWh",VLOOKUP(Y$4,'4. Billing Determinants'!$B$19:$R$41,4,0)/'4. Billing Determinants'!$E$41*$D9,IF($E9="kW",VLOOKUP(Y$4,'4. Billing Determinants'!$B$19:$R$41,5,0)/'4. Billing Determinants'!$F$41*$D9,IF($E9="Non-RPP kWh",VLOOKUP(Y$4,'4. Billing Determinants'!$B$19:$R$41,6,0)/'4. Billing Determinants'!$G$41*$D9,IF($E9="Distribution Rev.",VLOOKUP(Y$4,'4. Billing Determinants'!$B$19:$R$41,8,0)/'4. Billing Determinants'!$I$41*$D9, VLOOKUP(Y$4,'4. Billing Determinants'!$B$19:$R$41,3,0)/'4. Billing Determinants'!$D$41*$D9))))),0) -> 0 | AA9: 3.183231456e-12
B10: RSVA - Power (excluding Global Adjustment) | C10: 1588 | D10: ='2. 2015 Continuity Schedule'!BW29 -> -1679284.549 | E10: kWh | F10: =IF(ISERROR(VLOOKUP(F$4, '4. Billing Determinants'!$B$19:$R$41, 11, FALSE)*'2. 2015 Continuity Schedule'!$BW$29), 0, VLOOKUP(F$4, '4. Billing Determinants'!$B$19:$R$41, 11, FALSE)*'2. 2015 Continuity Schedule'!$BW$29) -> -441070.1721 | G10: =IF(ISERROR(VLOOKUP(G$4, '4. Billing Determinants'!$B$19:$R$41, 11, FALSE)*'2. 2015 Continuity Schedule'!$BW$29), 0, VLOOKUP(G$4, '4. Billing Determinants'!$B$19:$R$41, 11, FALSE)*'2. 2015 Continuity Schedule'!$BW$29) -> -223929.0821 | H10: 0 | I10: =IF(ISERROR(VLOOKUP(I$4, '4. Billing Determinants'!$B$19:$R$41, 11, FALSE)*'2. 2015 Continuity Schedule'!$BW$29), 0, VLOOKUP(I$4, '4. Billing Determinants'!$B$19:$R$41, 11, FALSE)*'2. 2015 Continuity Schedule'!$BW$29) -> -367801.3688 | J10: =IF(ISERROR(VLOOKUP(J$4, '4. Billing Determinants'!$B$19:$R$41, 11, FALSE)*'2. 2015 Continuity Schedule'!$BW$29), 0, VLOOKUP(J$4, '4. Billing Determinants'!$B$19:$R$41, 11, FALSE)*'2. 2015 Continuity Schedule'!$BW$29) -> -2867.933119 | K10: =IF(ISERROR(VLOOKUP(K$4, '4. Billing Determinants'!$B$19:$R$41, 11, FALSE)*'2. 2015 Continuity Schedule'!$BW$29), 0, VLOOKUP(K$4, '4. Billing Determinants'!$B$19:$R$41, 11, FALSE)*'2. 2015 Continuity Schedule'!$BW$29) -> -4359.30054 | L10: =IF(ISERROR(VLOOKUP(L$4, '4. Billing Determinants'!$B$19:$R$41, 11, FALSE)*'2. 2015 Continuity Schedule'!$BW$29), 0, VLOOKUP(L$4, '4. Billing Determinants'!$B$19:$R$41, 11, FALSE)*'2. 2015 Continuity Schedule'!$BW$29) -> 0 | M10: =IF(ISERROR(VLOOKUP(M$4, '4. Billing Determinants'!$B$19:$R$41, 11, FALSE)*'2. 2015 Continuity Schedule'!$BW$29), 0, VLOOKUP(M$4, '4. Billing Determinants'!$B$19:$R$41, 11, FALSE)*'2. 2015 Continuity Schedule'!$BW$29) -> -639256.6919 | N10: =IFERROR(IF(N$4="",0,IF($E10="kWh",VLOOKUP(N$4,'4. Billing Determinants'!$B$19:$R$41,4,0)/'4. Billing Determinants'!$E$41*$D10,IF($E10="kW",VLOOKUP(N$4,'4. Billing Determinants'!$B$19:$R$41,5,0)/'4. Billing Determinants'!$F$41*$D10,IF($E10="Non-RPP kWh",VLOOKUP(N$4,'4. Billing Determinants'!$B$19:$R$41,6,0)/'4. Billing Determinants'!$G$41*$D10,IF($E10="Distribution Rev.",VLOOKUP(N$4,'4. Billing Determinants'!$B$19:$R$41,8,0)/'4. Billing Determinants'!$I$41*$D10, VLOOKUP(N$4,'4. Billing Determinants'!$B$19:$R$41,3,0)/'4. Billing Determinants'!$D$41*$D10))))),0) -> 0 | O10: =IFERROR(IF(O$4="",0,IF($E10="kWh",VLOOKUP(O$4,'4. Billing Determinants'!$B$19:$R$41,4,0)/'4. Billing Determinants'!$E$41*$D10,IF($E10="kW",VLOOKUP(O$4,'4. Billing Determinants'!$B$19:$R$41,5,0)/'4. Billing Determinants'!$F$41*$D10,IF($E10="Non-RPP kWh",VLOOKUP(O$4,'4. Billing Determinants'!$B$19:$R$41,6,0)/'4. Billing Determinants'!$G$41*$D10,IF($E10="Distribution Rev.",VLOOKUP(O$4,'4. Billing Determinants'!$B$19:$R$41,8,0)/'4. Billing Determinants'!$I$41*$D10, VLOOKUP(O$4,'4. Billing Determinants'!$B$19:$R$41,3,0)/'4. Billing Determinants'!$D$41*$D10))))),0) -> 0 | P10: =IFERROR(IF(P$4="",0,IF($E10="kWh",VLOOKUP(P$4,'4. Billing Determinants'!$B$19:$R$41,4,0)/'4. Billing Determinants'!$E$41*$D10,IF($E10="kW",VLOOKUP(P$4,'4. Billing Determinants'!$B$19:$R$41,5,0)/'4. Billing Determinants'!$F$41*$D10,IF($E10="Non-RPP kWh",VLOOKUP(P$4,'4. Billing Determinants'!$B$19:$R$41,6,0)/'4. Billing Determinants'!$G$41*$D10,IF($E10="Distribution Rev.",VLOOKUP(P$4,'4. Billing Determinants'!$B$19:$R$41,8,0)/'4. Billing Determinants'!$I$41*$D10, VLOOKUP(P$4,'4. Billing Determinants'!$B$19:$R$41,3,0)/'4. Billing Determinants'!$D$41*$D10))))),0) -> 0 | Q10: =IFERROR(IF(Q$4="",0,IF($E10="kWh",VLOOKUP(Q$4,'4. Billing Determinants'!$B$19:$R$41,4,0)/'4. Billing Determinants'!$E$41*$D10,IF($E10="kW",VLOOKUP(Q$4,'4. Billing Determinants'!$B$19:$R$41,5,0)/'4. Billing Determinants'!$F$41*$D10,IF($E10="Non-RPP kWh",VLOOKUP(Q$4,'4. Billing Determinants'!$B$19:$R$41,6,0)/'4. Billing Determinants'!$G$41*$D10,IF($E10="Distribution Rev.",VLOOKUP(Q$4,'4. Billing Determinants'!$B$19:$R$41,8,0)/'4. Billing Determinants'!$I$41*$D10, VLOOKUP(Q$4,'4. Billing Determinants'!$B$19:$R$41,3,0)/'4. Billing Determinants'!$D$41*$D10))))),0) -> 0 | R10: =IFERROR(IF(R$4="",0,IF($E10="kWh",VLOOKUP(R$4,'4. Billing Determinants'!$B$19:$R$41,4,0)/'4. Billing Determinants'!$E$41*$D10,IF($E10="kW",VLOOKUP(R$4,'4. Billing Determinants'!$B$19:$R$41,5,0)/'4. Billing Determinants'!$F$41*$D10,IF($E10="Non-RPP kWh",VLOOKUP(R$4,'4. Billing Determinants'!$B$19:$R$41,6,0)/'4. Billing Determinants'!$G$41*$D10,IF($E10="Distribution Rev.",VLOOKUP(R$4,'4. Billing Determinants'!$B$19:$R$41,8,0)/'4. Billing Determinants'!$I$41*$D10, VLOOKUP(R$4,'4. Billing Determinants'!$B$19:$R$41,3,0)/'4. Billing Determinants'!$D$41*$D10))))),0) -> 0 | S10: =IFERROR(IF(S$4="",0,IF($E10="kWh",VLOOKUP(S$4,'4. Billing Determinants'!$B$19:$R$41,4,0)/'4. Billing Determinants'!$E$41*$D10,IF($E10="kW",VLOOKUP(S$4,'4. Billing Determinants'!$B$19:$R$41,5,0)/'4. Billing Determinants'!$F$41*$D10,IF($E10="Non-RPP kWh",VLOOKUP(S$4,'4. Billing Determinants'!$B$19:$R$41,6,0)/'4. Billing Determinants'!$G$41*$D10,IF($E10="Distribution Rev.",VLOOKUP(S$4,'4. Billing Determinants'!$B$19:$R$41,8,0)/'4. Billing Determinants'!$I$41*$D10, VLOOKUP(S$4,'4. Billing Determinants'!$B$19:$R$41,3,0)/'4. Billing Determinants'!$D$41*$D10))))),0) -> 0 | T10: =IFERROR(IF(T$4="",0,IF($E10="kWh",VLOOKUP(T$4,'4. Billing Determinants'!$B$19:$R$41,4,0)/'4. Billing Determinants'!$E$41*$D10,IF($E10="kW",VLOOKUP(T$4,'4. Billing Determinants'!$B$19:$R$41,5,0)/'4. Billing Determinants'!$F$41*$D10,IF($E10="Non-RPP kWh",VLOOKUP(T$4,'4. Billing Determinants'!$B$19:$R$41,6,0)/'4. Billing Determinants'!$G$41*$D10,IF($E10="Distribution Rev.",VLOOKUP(T$4,'4. Billing Determinants'!$B$19:$R$41,8,0)/'4. Billing Determinants'!$I$41*$D10, VLOOKUP(T$4,'4. Billing Determinants'!$B$19:$R$41,3,0)/'4. Billing Determinants'!$D$41*$D10))))),0) -> 0 | U10: =IFERROR(IF(U$4="",0,IF($E10="kWh",VLOOKUP(U$4,'4. Billing Determinants'!$B$19:$R$41,4,0)/'4. Billing Determinants'!$E$41*$D10,IF($E10="kW",VLOOKUP(U$4,'4. Billing Determinants'!$B$19:$R$41,5,0)/'4. Billing Determinants'!$F$41*$D10,IF($E10="Non-RPP kWh",VLOOKUP(U$4,'4. Billing Determinants'!$B$19:$R$41,6,0)/'4. Billing Determinants'!$G$41*$D10,IF($E10="Distribution Rev.",VLOOKUP(U$4,'4. Billing Determinants'!$B$19:$R$41,8,0)/'4. Billing Determinants'!$I$41*$D10, VLOOKUP(U$4,'4. Billing Determinants'!$B$19:$R$41,3,0)/'4. Billing Determinants'!$D$41*$D10))))),0) -> 0 | V10: =IFERROR(IF(V$4="",0,IF($E10="kWh",VLOOKUP(V$4,'4. Billing Determinants'!$B$19:$R$41,4,0)/'4. Billing Determinants'!$E$41*$D10,IF($E10="kW",VLOOKUP(V$4,'4. Billing Determinants'!$B$19:$R$41,5,0)/'4. Billing Determinants'!$F$41*$D10,IF($E10="Non-RPP kWh",VLOOKUP(V$4,'4. Billing Determinants'!$B$19:$R$41,6,0)/'4. Billing Determinants'!$G$41*$D10,IF($E10="Distribution Rev.",VLOOKUP(V$4,'4. Billing Determinants'!$B$19:$R$41,8,0)/'4. Billing Determinants'!$I$41*$D10, VLOOKUP(V$4,'4. Billing Determinants'!$B$19:$R$41,3,0)/'4. Billing Determinants'!$D$41*$D10))))),0) -> 0 | W10: =IFERROR(IF(W$4="",0,IF($E10="kWh",VLOOKUP(W$4,'4. Billing Determinants'!$B$19:$R$41,4,0)/'4. Billing Determinants'!$E$41*$D10,IF($E10="kW",VLOOKUP(W$4,'4. Billing Determinants'!$B$19:$R$41,5,0)/'4. Billing Determinants'!$F$41*$D10,IF($E10="Non-RPP kWh",VLOOKUP(W$4,'4. Billing Determinants'!$B$19:$R$41,6,0)/'4. Billing Determinants'!$G$41*$D10,IF($E10="Distribution Rev.",VLOOKUP(W$4,'4. Billing Determinants'!$B$19:$R$41,8,0)/'4. Billing Determinants'!$I$41*$D10, VLOOKUP(W$4,'4. Billing Determinants'!$B$19:$R$41,3,0)/'4. Billing Determinants'!$D$41*$D10))))),0) -> 0 | X10: =IFERROR(IF(X$4="",0,IF($E10="kWh",VLOOKUP(X$4,'4. Billing Determinants'!$B$19:$R$41,4,0)/'4. Billing Determinants'!$E$41*$D10,IF($E10="kW",VLOOKUP(X$4,'4. Billing Determinants'!$B$19:$R$41,5,0)/'4. Billing Determinants'!$F$41*$D10,IF($E10="Non-RPP kWh",VLOOKUP(X$4,'4. Billing Determinants'!$B$19:$R$41,6,0)/'4. Billing Determinants'!$G$41*$D10,IF($E10="Distribution Rev.",VLOOKUP(X$4,'4. Billing Determinants'!$B$19:$R$41,8,0)/'4. Billing Determinants'!$I$41*$D10, VLOOKUP(X$4,'4. Billing Determinants'!$B$19:$R$41,3,0)/'4. Billing Determinants'!$D$41*$D10))))),0) -> 0 | Y10: =IFERROR(IF(Y$4="",0,IF($E10="kWh",VLOOKUP(Y$4,'4. Billing Determinants'!$B$19:$R$41,4,0)/'4. Billing Determinants'!$E$41*$D10,IF($E10="kW",VLOOKUP(Y$4,'4. Billing Determinants'!$B$19:$R$41,5,0)/'4. Billing Determinants'!$F$41*$D10,IF($E10="Non-RPP kWh",VLOOKUP(Y$4,'4. Billing Determinants'!$B$19:$R$41,6,0)/'4. Billing Determinants'!$G$41*$D10,IF($E10="Distribution Rev.",VLOOKUP(Y$4,'4. Billing Determinants'!$B$19:$R$41,8,0)/'4. Billing Determinants'!$I$41*$D10, VLOOKUP(Y$4,'4. Billing Determinants'!$B$19:$R$41,3,0)/'4. Billing Determinants'!$D$41*$D10))))),0) -> 0 | AA10: 0
B11: RSVA - Global Adjustment | C11: 1589 | D11: ='2. 2015 Continuity Schedule'!BW30 -> 3435154.225 | E11: Non-RPP kWh | F11: =IFERROR(IF(F$4="",0,IF($E11="kWh",VLOOKUP(F$4,'4. Billing Determinants'!$B$19:$R$41,4,0)/'4. Billing Determinants'!$E$41*$D11,IF($E11="kW",VLOOKUP(F$4,'4. Billing Determinants'!$B$19:$R$41,5,0)/'4. Billing Determinants'!$F$41*$D11,IF($E11="Non-RPP kWh",VLOOKUP(F$4,'4. Billing Determinants'!$B$19:$R$41,6,0)/'4. Billing Determinants'!$G$41*$D11,IF($E11="Distribution Rev.",VLOOKUP(F$4,'4. Billing Determinants'!$B$19:$R$41,8,0)/'4. Billing Determinants'!$I$41*$D11, VLOOKUP(F$4,'4. Billing Determinants'!$B$19:$R$41,3,0)/'4. Billing Determinants'!$D$41*$D11))))),0) -> 115114.43 | G11: =IFERROR(IF(G$4="",0,IF($E11="kWh",VLOOKUP(G$4,'4. Billing Determinants'!$B$19:$R$41,4,0)/'4. Billing Determinants'!$E$41*$D11,IF($E11="kW",VLOOKUP(G$4,'4. Billing Determinants'!$B$19:$R$41,5,0)/'4. Billing Determinants'!$F$41*$D11,IF($E11="Non-RPP kWh",VLOOKUP(G$4,'4. Billing Determinants'!$B$19:$R$41,6,0)/'4. Billing Determinants'!$G$41*$D11,IF($E11="Distribution Rev.",VLOOKUP(G$4,'4. Billing Determinants'!$B$19:$R$41,8,0)/'4. Billing Determinants'!$I$41*$D11, VLOOKUP(G$4,'4. Billing Determinants'!$B$19:$R$41,3,0)/'4. Billing Determinants'!$D$41*$D11))))),0) -> 213624.8662 | H11: =IFERROR(IF(H$4="",0,IF($E11="kWh",VLOOKUP(H$4,'4. Billing Determinants'!$B$19:$R$41,4,0)/'4. Billing Determinants'!$E$41*$D11,IF($E11="kW",VLOOKUP(H$4,'4. Billing Determinants'!$B$19:$R$41,5,0)/'4. Billing Determinants'!$F$41*$D11,IF($E11="Non-RPP kWh",VLOOKUP(H$4,'4. Billing Determinants'!$B$19:$R$41,6,0)/'4. Billing Determinants'!$G$41*$D11,IF($E11="Distribution Rev.",VLOOKUP(H$4,'4. Billing Determinants'!$B$19:$R$41,8,0)/'4. Billing Determinants'!$I$41*$D11, VLOOKUP(H$4,'4. Billing Determinants'!$B$19:$R$41,3,0)/'4. Billing Determinants'!$D$41*$D11))))),0) -> 0 | I11: =IFERROR(IF(I$4="",0,IF($E11="kWh",VLOOKUP(I$4,'4. Billing Determinants'!$B$19:$R$41,4,0)/'4. Billing Determinants'!$E$41*$D11,IF($E11="kW",VLOOKUP(I$4,'4. Billing Determinants'!$B$19:$R$41,5,0)/'4. Billing Determinants'!$F$41*$D11,IF($E11="Non-RPP kWh",VLOOKUP(I$4,'4. Billing Determinants'!$B$19:$R$41,6,0)/'4. Billing Determinants'!$G$41*$D11,IF($E11="Distribution Rev.",VLOOKUP(I$4,'4. Billing Determinants'!$B$19:$R$41,8,0)/'4. Billing Determinants'!$I$41*$D11, VLOOKUP(I$4,'4. Billing Determinants'!$B$19:$R$41,3,0)/'4. Billing Determinants'!$D$41*$D11))))),0) -> 0 | J11: =IFERROR(IF(J$4="",0,IF($E11="kWh",VLOOKUP(J$4,'4. Billing Determinants'!$B$19:$R$41,4,0)/'4. Billing Determinants'!$E$41*$D11,IF($E11="kW",VLOOKUP(J$4,'4. Billing Determinants'!$B$19:$R$41,5,0)/'4. Billing Determinants'!$F$41*$D11,IF($E11="Non-RPP kWh",VLOOKUP(J$4,'4. Billing Determinants'!$B$19:$R$41,6,0)/'4. Billing Determinants'!$G$41*$D11,IF($E11="Distribution Rev.",VLOOKUP(J$4,'4. Billing Determinants'!$B$19:$R$41,8,0)/'4. Billing Determinants'!$I$41*$D11, VLOOKUP(J$4,'4. Billing Determinants'!$B$19:$R$41,3,0)/'4. Billing Determinants'!$D$41*$D11))))),0) -> 16480.44811 | K11: =IFERROR(IF(K$4="",0,IF($E11="kWh",VLOOKUP(K$4,'4. Billing Determinants'!$B$19:$R$41,4,0)/'4. Billing Determinants'!$E$41*$D11,IF($E11="kW",VLOOKUP(K$4,'4. Billing Determinants'!$B$19:$R$41,5,0)/'4. Billing Determinants'!$F$41*$D11,IF($E11="Non-RPP kWh",VLOOKUP(K$4,'4. Billing Determinants'!$B$19:$R$41,6,0)/'4. Billing Determinants'!$G$41*$D11,IF($E11="Distribution Rev.",VLOOKUP(K$4,'4. Billing Determinants'!$B$19:$R$41,8,0)/'4. Billing Determinants'!$I$41*$D11, VLOOKUP(K$4,'4. Billing Determinants'!$B$19:$R$41,3,0)/'4. Billing Determinants'!$D$41*$D11))))),0) -> 25050.52362 | L11: =IFERROR(IF(L$4="",0,IF($E11="kWh",VLOOKUP(L$4,'4. Billing Determinants'!$B$19:$R$41,4,0)/'4. Billing Determinants'!$E$41*$D11,IF($E11="kW",VLOOKUP(L$4,'4. Billing Determinants'!$B$19:$R$41,5,0)/'4. Billing Determinants'!$F$41*$D11,IF($E11="Non-RPP kWh",VLOOKUP(L$4,'4. Billing Determinants'!$B$19:$R$41,6,0)/'4. Billing Determinants'!$G$41*$D11,IF($E11="Distribution Rev.",VLOOKUP(L$4,'4. Billing Determinants'!$B$19:$R$41,8,0)/'4. Billing Determinants'!$I$41*$D11, VLOOKUP(L$4,'4. Billing Determinants'!$B$19:$R$41,3,0)/'4. Billing Determinants'!$D$41*$D11))))),0) -> 0 | M11: =IFERROR(IF(M$4="",0,IF($E11="kWh",VLOOKUP(M$4,'4. Billing Determinants'!$B$19:$R$41,4,0)/'4. Billing Determinants'!$E$41*$D11,IF($E11="kW",VLOOKUP(M$4,'4. Billing Determinants'!$B$19:$R$41,5,0)/'4. Billing Determinants'!$F$41*$D11,IF($E11="Non-RPP kWh",VLOOKUP(M$4,'4. Billing Determinants'!$B$19:$R$41,6,0)/'4. Billing Determinants'!$G$41*$D11,IF($E11="Distribution Rev.",VLOOKUP(M$4,'4. Billing Determinants'!$B$19:$R$41,8,0)/'4. Billing Determinants'!$I$41*$D11, VLOOKUP(M$4,'4. Billing Determinants'!$B$19:$R$41,3,0)/'4. Billing Determinants'!$D$41*$D11))))),0) -> 3064883.957 | N11: =IF('4. Billing Determinants'!P21>0,'4. Billing Determinants'!$G$21/'4. Billing Determinants'!$G$41*'5. Allocation of Balances'!L11,0) -> 0 | O11: =IF('4. Billing Determinants'!Q21>0,'4. Billing Determinants'!$G$21/'4. Billing Determinants'!$G$41*'5. Allocation of Balances'!M11,0) -> 0 | P11: =IF('4. Billing Determinants'!Q21>0,'4. Billing Determinants'!$G$21/'4. Billing Determinants'!$G$41*'5. Allocation of Balances'!N11,0) -> 0 | Q11: =IF('4. Billing Determinants'!R21>0,'4. Billing Determinants'!$G$21/'4. Billing Determinants'!$G$41*'5. Allocation of Balances'!O11,0) -> 0 | R11: =IF('4. Billing Determinants'!#REF!>0,'4. Billing Determinants'!$G$21/'4. Billing Determinants'!$G$41*'5. Allocation of Balances'!P11,0) ->  | S11: =IF('4. Billing Determinants'!#REF!>0,'4. Billing Determinants'!$G$21/'4. Billing Determinants'!$G$41*'5. Allocation of Balances'!Q11,0) ->  | T11: =IF('4. Billing Determinants'!T21>0,'4. Billing Determinants'!$G$21/'4. Billing Determinants'!$G$41*'5. Allocation of Balances'!R11,0) -> 0 | U11: =IF('4. Billing Determinants'!U21>0,'4. Billing Determinants'!$G$21/'4. Billing Determinants'!$G$41*'5. Allocation of Balances'!S11,0) -> 0 | V11: =IF('4. Billing Determinants'!V21>0,'4. Billing Determinants'!$G$21/'4. Billing Determinants'!$G$41*'5. Allocation of Balances'!T11,0) -> 0 | W11: =IF('4. Billing Determinants'!W21>0,'4. Billing Determinants'!$G$21/'4. Billing Determinants'!$G$41*'5. Allocation of Balances'!U11,0) -> 0 | X11: =IF('4. Billing Determinants'!X21>0,'4. Billing Determinants'!$G$21/'4. Billing Determinants'!$G$41*'5. Allocation of Balances'!V11,0) -> 0 | Y11: =IF('4. Billing Determinants'!Y21>0,'4. Billing Determinants'!$G$21/'4. Billing Determinants'!$G$41*'5. Allocation of Balances'!W11,0) -> 0 | AA11: 0
B12: Recovery of Regulatory Asset Balances | C12: 1590 | D12: 0 | E12: % | F12: 0 | G12: 0 | H12: 0 | I12: 0 | J12: 0 | K12: 0 | L12: 0 | M12: 0 | N12: =IFERROR(IF(N$4="",0,IF($E12="kWh",VLOOKUP(N$4,'4. Billing Determinants'!$B$19:$R$41,4,0)/'4. Billing Determinants'!$E$41*$D12,IF($E12="kW",VLOOKUP(N$4,'4. Billing Determinants'!$B$19:$R$41,5,0)/'4. Billing Determinants'!$F$41*$D12,IF($E12="Non-RPP kWh",VLOOKUP(N$4,'4. Billing Determinants'!$B$19:$R$41,6,0)/'4. Billing Determinants'!$G$41*$D12,IF($E12="Distribution Rev.",VLOOKUP(N$4,'4. Billing Determinants'!$B$19:$R$41,8,0)/'4. Billing Determinants'!$I$41*$D12, VLOOKUP(N$4,'4. Billing Determinants'!$B$19:$R$41,3,0)/'4. Billing Determinants'!$D$41*$D12))))),0) -> 0 | O12: =IFERROR(IF(O$4="",0,IF($E12="kWh",VLOOKUP(O$4,'4. Billing Determinants'!$B$19:$R$41,4,0)/'4. Billing Determinants'!$E$41*$D12,IF($E12="kW",VLOOKUP(O$4,'4. Billing Determinants'!$B$19:$R$41,5,0)/'4. Billing Determinants'!$F$41*$D12,IF($E12="Non-RPP kWh",VLOOKUP(O$4,'4. Billing Determinants'!$B$19:$R$41,6,0)/'4. Billing Determinants'!$G$41*$D12,IF($E12="Distribution Rev.",VLOOKUP(O$4,'4. Billing Determinants'!$B$19:$R$41,8,0)/'4. Billing Determinants'!$I$41*$D12, VLOOKUP(O$4,'4. Billing Determinants'!$B$19:$R$41,3,0)/'4. Billing Determinants'!$D$41*$D12))))),0) -> 0 | P12: =IFERROR(IF(P$4="",0,IF($E12="kWh",VLOOKUP(P$4,'4. Billing Determinants'!$B$19:$R$41,4,0)/'4. Billing Determinants'!$E$41*$D12,IF($E12="kW",VLOOKUP(P$4,'4. Billing Determinants'!$B$19:$R$41,5,0)/'4. Billing Determinants'!$F$41*$D12,IF($E12="Non-RPP kWh",VLOOKUP(P$4,'4. Billing Determinants'!$B$19:$R$41,6,0)/'4. Billing Determinants'!$G$41*$D12,IF($E12="Distribution Rev.",VLOOKUP(P$4,'4. Billing Determinants'!$B$19:$R$41,8,0)/'4. Billing Determinants'!$I$41*$D12, VLOOKUP(P$4,'4. Billing Determinants'!$B$19:$R$41,3,0)/'4. Billing Determinants'!$D$41*$D12))))),0) -> 0 | Q12: =IFERROR(IF(Q$4="",0,IF($E12="kWh",VLOOKUP(Q$4,'4. Billing Determinants'!$B$19:$R$41,4,0)/'4. Billing Determinants'!$E$41*$D12,IF($E12="kW",VLOOKUP(Q$4,'4. Billing Determinants'!$B$19:$R$41,5,0)/'4. Billing Determinants'!$F$41*$D12,IF($E12="Non-RPP kWh",VLOOKUP(Q$4,'4. Billing Determinants'!$B$19:$R$41,6,0)/'4. Billing Determinants'!$G$41*$D12,IF($E12="Distribution Rev.",VLOOKUP(Q$4,'4. Billing Determinants'!$B$19:$R$41,8,0)/'4. Billing Determinants'!$I$41*$D12, VLOOKUP(Q$4,'4. Billing Determinants'!$B$19:$R$41,3,0)/'4. Billing Determinants'!$D$41*$D12))))),0) -> 0 | R12: =IFERROR(IF(R$4="",0,IF($E12="kWh",VLOOKUP(R$4,'4. Billing Determinants'!$B$19:$R$41,4,0)/'4. Billing Determinants'!$E$41*$D12,IF($E12="kW",VLOOKUP(R$4,'4. Billing Determinants'!$B$19:$R$41,5,0)/'4. Billing Determinants'!$F$41*$D12,IF($E12="Non-RPP kWh",VLOOKUP(R$4,'4. Billing Determinants'!$B$19:$R$41,6,0)/'4. Billing Determinants'!$G$41*$D12,IF($E12="Distribution Rev.",VLOOKUP(R$4,'4. Billing Determinants'!$B$19:$R$41,8,0)/'4. Billing Determinants'!$I$41*$D12, VLOOKUP(R$4,'4. Billing Determinants'!$B$19:$R$41,3,0)/'4. Billing Determinants'!$D$41*$D12))))),0) -> 0 | S12: =IFERROR(IF(S$4="",0,IF($E12="kWh",VLOOKUP(S$4,'4. Billing Determinants'!$B$19:$R$41,4,0)/'4. Billing Determinants'!$E$41*$D12,IF($E12="kW",VLOOKUP(S$4,'4. Billing Determinants'!$B$19:$R$41,5,0)/'4. Billing Determinants'!$F$41*$D12,IF($E12="Non-RPP kWh",VLOOKUP(S$4,'4. Billing Determinants'!$B$19:$R$41,6,0)/'4. Billing Determinants'!$G$41*$D12,IF($E12="Distribution Rev.",VLOOKUP(S$4,'4. Billing Determinants'!$B$19:$R$41,8,0)/'4. Billing Determinants'!$I$41*$D12, VLOOKUP(S$4,'4. Billing Determinants'!$B$19:$R$41,3,0)/'4. Billing Determinants'!$D$41*$D12))))),0) -> 0 | T12: =IFERROR(IF(T$4="",0,IF($E12="kWh",VLOOKUP(T$4,'4. Billing Determinants'!$B$19:$R$41,4,0)/'4. Billing Determinants'!$E$41*$D12,IF($E12="kW",VLOOKUP(T$4,'4. Billing Determinants'!$B$19:$R$41,5,0)/'4. Billing Determinants'!$F$41*$D12,IF($E12="Non-RPP kWh",VLOOKUP(T$4,'4. Billing Determinants'!$B$19:$R$41,6,0)/'4. Billing Determinants'!$G$41*$D12,IF($E12="Distribution Rev.",VLOOKUP(T$4,'4. Billing Determinants'!$B$19:$R$41,8,0)/'4. Billing Determinants'!$I$41*$D12, VLOOKUP(T$4,'4. Billing Determinants'!$B$19:$R$41,3,0)/'4. Billing Determinants'!$D$41*$D12))))),0) -> 0 | U12: =IFERROR(IF(U$4="",0,IF($E12="kWh",VLOOKUP(U$4,'4. Billing Determinants'!$B$19:$R$41,4,0)/'4. Billing Determinants'!$E$41*$D12,IF($E12="kW",VLOOKUP(U$4,'4. Billing Determinants'!$B$19:$R$41,5,0)/'4. Billing Determinants'!$F$41*$D12,IF($E12="Non-RPP kWh",VLOOKUP(U$4,'4. Billing Determinants'!$B$19:$R$41,6,0)/'4. Billing Determinants'!$G$41*$D12,IF($E12="Distribution Rev.",VLOOKUP(U$4,'4. Billing Determinants'!$B$19:$R$41,8,0)/'4. Billing Determinants'!$I$41*$D12, VLOOKUP(U$4,'4. Billing Determinants'!$B$19:$R$41,3,0)/'4. Billing Determinants'!$D$41*$D12))))),0) -> 0 | V12: =IFERROR(IF(V$4="",0,IF($E12="kWh",VLOOKUP(V$4,'4. Billing Determinants'!$B$19:$R$41,4,0)/'4. Billing Determinants'!$E$41*$D12,IF($E12="kW",VLOOKUP(V$4,'4. Billing Determinants'!$B$19:$R$41,5,0)/'4. Billing Determinants'!$F$41*$D12,IF($E12="Non-RPP kWh",VLOOKUP(V$4,'4. Billing Determinants'!$B$19:$R$41,6,0)/'4. Billing Determinants'!$G$41*$D12,IF($E12="Distribution Rev.",VLOOKUP(V$4,'4. Billing Determinants'!$B$19:$R$41,8,0)/'4. Billing Determinants'!$I$41*$D12, VLOOKUP(V$4,'4. Billing Determinants'!$B$19:$R$41,3,0)/'4. Billing Determinants'!$D$41*$D12))))),0) -> 0 | W12: =IFERROR(IF(W$4="",0,IF($E12="kWh",VLOOKUP(W$4,'4. Billing Determinants'!$B$19:$R$41,4,0)/'4. Billing Determinants'!$E$41*$D12,IF($E12="kW",VLOOKUP(W$4,'4. Billing Determinants'!$B$19:$R$41,5,0)/'4. Billing Determinants'!$F$41*$D12,IF($E12="Non-RPP kWh",VLOOKUP(W$4,'4. Billing Determinants'!$B$19:$R$41,6,0)/'4. Billing Determinants'!$G$41*$D12,IF($E12="Distribution Rev.",VLOOKUP(W$4,'4. Billing Determinants'!$B$19:$R$41,8,0)/'4. Billing Determinants'!$I$41*$D12, VLOOKUP(W$4,'4. Billing Determinants'!$B$19:$R$41,3,0)/'4. Billing Determinants'!$D$41*$D12))))),0) -> 0 | X12: =IFERROR(IF(X$4="",0,IF($E12="kWh",VLOOKUP(X$4,'4. Billing Determinants'!$B$19:$R$41,4,0)/'4. Billing Determinants'!$E$41*$D12,IF($E12="kW",VLOOKUP(X$4,'4. Billing Determinants'!$B$19:$R$41,5,0)/'4. Billing Determinants'!$F$41*$D12,IF($E12="Non-RPP kWh",VLOOKUP(X$4,'4. Billing Determinants'!$B$19:$R$41,6,0)/'4. Billing Determinants'!$G$41*$D12,IF($E12="Distribution Rev.",VLOOKUP(X$4,'4. Billing Determinants'!$B$19:$R$41,8,0)/'4. Billing Determinants'!$I$41*$D12, VLOOKUP(X$4,'4. Billing Determinants'!$B$19:$R$41,3,0)/'4. Billing Determinants'!$D$41*$D12))))),0) -> 0 | Y12: =IFERROR(IF(Y$4="",0,IF($E12="kWh",VLOOKUP(Y$4,'4. Billing Determinants'!$B$19:$R$41,4,0)/'4. Billing Determinants'!$E$41*$D12,IF($E12="kW",VLOOKUP(Y$4,'4. Billing Determinants'!$B$19:$R$41,5,0)/'4. Billing Determinants'!$F$41*$D12,IF($E12="Non-RPP kWh",VLOOKUP(Y$4,'4. Billing Determinants'!$B$19:$R$41,6,0)/'4. Billing Determinants'!$G$41*$D12,IF($E12="Distribution Rev.",VLOOKUP(Y$4,'4. Billing Determinants'!$B$19:$R$41,8,0)/'4. Billing Determinants'!$I$41*$D12, VLOOKUP(Y$4,'4. Billing Determinants'!$B$19:$R$41,3,0)/'4. Billing Determinants'!$D$41*$D12))))),0) -> 0 | AA12: 0
B13: Disposition and Recovery/Refund of Regulatory Balances (2009) | C13: 1595 | D13: ='2. 2015 Continuity Schedule'!BW31 -> 0 | E13: % | F13: 0 | G13: 0 | H13: 0 | I13: 0 | J13: 0 | K13: 0 | L13: 0 | M13: 0 | N13: =IF(ISERROR(VLOOKUP(N$4, '4. Billing Determinants'!$B$19:$R$41, 10, FALSE)*#REF!), 0, VLOOKUP(N$4, '4. Billing Determinants'!$B$19:$R$41, 10, FALSE)*#REF!) -> 0 | O13: =IF(ISERROR(VLOOKUP(O$4, '4. Billing Determinants'!$B$19:$R$41, 10, FALSE)*#REF!), 0, VLOOKUP(O$4, '4. Billing Determinants'!$B$19:$R$41, 10, FALSE)*#REF!) -> 0 | P13: =IF(ISERROR(VLOOKUP(P$4, '4. Billing Determinants'!$B$19:$R$41, 10, FALSE)*#REF!), 0, VLOOKUP(P$4, '4. Billing Determinants'!$B$19:$R$41, 10, FALSE)*#REF!) -> 0 | Q13: =IF(ISERROR(VLOOKUP(Q$4, '4. Billing Determinants'!$B$19:$R$41, 10, FALSE)*#REF!), 0, VLOOKUP(Q$4, '4. Billing Determinants'!$B$19:$R$41, 10, FALSE)*#REF!) -> 0 | R13: =IF(ISERROR(VLOOKUP(R$4, '4. Billing Determinants'!$B$19:$R$41, 10, FALSE)*#REF!), 0, VLOOKUP(R$4, '4. Billing Determinants'!$B$19:$R$41, 10, FALSE)*#REF!) -> 0 | S13: =IF(ISERROR(VLOOKUP(S$4, '4. Billing Determinants'!$B$19:$R$41, 10, FALSE)*#REF!), 0, VLOOKUP(S$4, '4. Billing Determinants'!$B$19:$R$41, 10, FALSE)*#REF!) -> 0 | T13: =IF(ISERROR(VLOOKUP(T$4, '4. Billing Determinants'!$B$19:$R$41, 10, FALSE)*#REF!), 0, VLOOKUP(T$4, '4. Billing Determinants'!$B$19:$R$41, 10, FALSE)*#REF!) -> 0 | U13: =IF(ISERROR(VLOOKUP(U$4, '4. Billing Determinants'!$B$19:$R$41, 10, FALSE)*#REF!), 0, VLOOKUP(U$4, '4. Billing Determinants'!$B$19:$R$41, 10, FALSE)*#REF!) -> 0 | V13: =IF(ISERROR(VLOOKUP(V$4, '4. Billing Determinants'!$B$19:$R$41, 10, FALSE)*#REF!), 0, VLOOKUP(V$4, '4. Billing Determinants'!$B$19:$R$41, 10, FALSE)*#REF!) -> 0 | W13: =IF(ISERROR(VLOOKUP(W$4, '4. Billing Determinants'!$B$19:$R$41, 10, FALSE)*#REF!), 0, VLOOKUP(W$4, '4. Billing Determinants'!$B$19:$R$41, 10, FALSE)*#REF!) -> 0 | X13: =IF(ISERROR(VLOOKUP(X$4, '4. Billing Determinants'!$B$19:$R$41, 10, FALSE)*#REF!), 0, VLOOKUP(X$4, '4. Billing Determinants'!$B$19:$R$41, 10, FALSE)*#REF!) -> 0 | Y13: =IF(ISERROR(VLOOKUP(Y$4, '4. Billing Determinants'!$B$19:$R$41, 10, FALSE)*#REF!), 0, VLOOKUP(Y$4, '4. Billing Determinants'!$B$19:$R$41, 10, FALSE)*#REF!) -> 0 | AA13: 0
B14: Disposition and Recovery/Refund of Regulatory Balances (2010) | C14: 1595 | D14: ='2. 2015 Continuity Schedule'!BW32 -> -744.3100835 | E14: % | F14: =IF(ISERROR(VLOOKUP(F$4, '4. Billing Determinants'!$B$19:$R$41, 12, FALSE)*'2. 2015 Continuity Schedule'!$BW$32), 0, VLOOKUP(F$4, '4. Billing Determinants'!$B$19:$R$41, 12, FALSE)*'2. 2015 Continuity Schedule'!$BW$32) -> -314.0988552 | G14: =IF(ISERROR(VLOOKUP(G$4, '4. Billing Determinants'!$B$19:$R$41, 12, FALSE)*'2. 2015 Continuity Schedule'!$BW$32), 0, VLOOKUP(G$4, '4. Billing Determinants'!$B$19:$R$41, 12, FALSE)*'2. 2015 Continuity Schedule'!$BW$32) -> -96.98360388 | H14: =IF(ISERROR(VLOOKUP(H$4, '4. Billing Determinants'!$B$19:$R$41, 12, FALSE)*'2. 2015 Continuity Schedule'!$BW$32), 0, VLOOKUP(H$4, '4. Billing Determinants'!$B$19:$R$41, 12, FALSE)*'2. 2015 Continuity Schedule'!$BW$32) -> -215.4033382 | I14: =IF(ISERROR(VLOOKUP(I$4, '4. Billing Determinants'!$B$19:$R$41, 12, FALSE)*'2. 2015 Continuity Schedule'!$BW$32), 0, VLOOKUP(I$4, '4. Billing Determinants'!$B$19:$R$41, 12, FALSE)*'2. 2015 Continuity Schedule'!$BW$32) -> -111.7953745 | J14: =IF(ISERROR(VLOOKUP(J$4, '4. Billing Determinants'!$B$19:$R$41, 12, FALSE)*'2. 2015 Continuity Schedule'!$BW$32), 0, VLOOKUP(J$4, '4. Billing Determinants'!$B$19:$R$41, 12, FALSE)*'2. 2015 Continuity Schedule'!$BW$32) -> -2.977240334 | K14: =IF(ISERROR(VLOOKUP(K$4, '4. Billing Determinants'!$B$19:$R$41, 12, FALSE)*'2. 2015 Continuity Schedule'!$BW$32), 0, VLOOKUP(K$4, '4. Billing Determinants'!$B$19:$R$41, 12, FALSE)*'2. 2015 Continuity Schedule'!$BW$32) -> -3.051671342 | L14: =IF(ISERROR(VLOOKUP(L$4, '4. Billing Determinants'!$B$19:$R$41, 12, FALSE)*'2. 2015 Continuity Schedule'!$BW$32), 0, VLOOKUP(L$4, '4. Billing Determinants'!$B$19:$R$41, 12, FALSE)*'2. 2015 Continuity Schedule'!$BW$32) -> 0 | M14: =IF(ISERROR(VLOOKUP(M$4, '4. Billing Determinants'!$B$19:$R$41, 12, FALSE)*'2. 2015 Continuity Schedule'!$BW$32), 0, VLOOKUP(M$4, '4. Billing Determinants'!$B$19:$R$41, 12, FALSE)*'2. 2015 Continuity Schedule'!$BW$32) -> 0 | N14: =IF(ISERROR(VLOOKUP(N$4, '4. Billing Determinants'!$B$19:$R$41, 11, FALSE)*#REF!), 0, VLOOKUP(N$4, '4. Billing Determinants'!$B$19:$R$41, 11, FALSE)*#REF!) -> 0 | O14: =IF(ISERROR(VLOOKUP(O$4, '4. Billing Determinants'!$B$19:$R$41, 11, FALSE)*#REF!), 0, VLOOKUP(O$4, '4. Billing Determinants'!$B$19:$R$41, 11, FALSE)*#REF!) -> 0 | P14: =IF(ISERROR(VLOOKUP(P$4, '4. Billing Determinants'!$B$19:$R$41, 11, FALSE)*#REF!), 0, VLOOKUP(P$4, '4. Billing Determinants'!$B$19:$R$41, 11, FALSE)*#REF!) -> 0 | Q14: =IF(ISERROR(VLOOKUP(Q$4, '4. Billing Determinants'!$B$19:$R$41, 11, FALSE)*#REF!), 0, VLOOKUP(Q$4, '4. Billing Determinants'!$B$19:$R$41, 11, FALSE)*#REF!) -> 0 | R14: =IF(ISERROR(VLOOKUP(R$4, '4. Billing Determinants'!$B$19:$R$41, 11, FALSE)*#REF!), 0, VLOOKUP(R$4, '4. Billing Determinants'!$B$19:$R$41, 11, FALSE)*#REF!) -> 0 | S14: =IF(ISERROR(VLOOKUP(S$4, '4. Billing Determinants'!$B$19:$R$41, 11, FALSE)*#REF!), 0, VLOOKUP(S$4, '4. Billing Determinants'!$B$19:$R$41, 11, FALSE)*#REF!) -> 0 | T14: =IF(ISERROR(VLOOKUP(T$4, '4. Billing Determinants'!$B$19:$R$41, 11, FALSE)*#REF!), 0, VLOOKUP(T$4, '4. Billing Determinants'!$B$19:$R$41, 11, FALSE)*#REF!) -> 0 | U14: =IF(ISERROR(VLOOKUP(U$4, '4. Billing Determinants'!$B$19:$R$41, 11, FALSE)*#REF!), 0, VLOOKUP(U$4, '4. Billing Determinants'!$B$19:$R$41, 11, FALSE)*#REF!) -> 0 | V14: =IF(ISERROR(VLOOKUP(V$4, '4. Billing Determinants'!$B$19:$R$41, 11, FALSE)*#REF!), 0, VLOOKUP(V$4, '4. Billing Determinants'!$B$19:$R$41, 11, FALSE)*#REF!) -> 0 | W14: =IF(ISERROR(VLOOKUP(W$4, '4. Billing Determinants'!$B$19:$R$41, 11, FALSE)*#REF!), 0, VLOOKUP(W$4, '4. Billing Determinants'!$B$19:$R$41, 11, FALSE)*#REF!) -> 0 | X14: =IF(ISERROR(VLOOKUP(X$4, '4. Billing Determinants'!$B$19:$R$41, 11, FALSE)*#REF!), 0, VLOOKUP(X$4, '4. Billing Determinants'!$B$19:$R$41, 11, FALSE)*#REF!) -> 0 | Y14: =IF(ISERROR(VLOOKUP(Y$4, '4. Billing Determinants'!$B$19:$R$41, 11, FALSE)*#REF!), 0, VLOOKUP(Y$4, '4. Billing Determinants'!$B$19:$R$41, 11, FALSE)*#REF!) -> 0 | AA14: -4.307665336e-14
B15: Disposition and Recovery/Refund of Regulatory Balances (2011) | C15: 1595 | D15: ='2. 2015 Continuity Schedule'!BW33 -> 5478.848319 | E15: % | F15: =IF(ISERROR(VLOOKUP(F$4, '4. Billing Determinants'!$B$19:$R$41, 13, FALSE)*'2. 2015 Continuity Schedule'!$BW$33), 0, VLOOKUP(F$4, '4. Billing Determinants'!$B$19:$R$41, 13, FALSE)*'2. 2015 Continuity Schedule'!$BW$33) -> 4926.580409 | G15: =IF(ISERROR(VLOOKUP(G$4, '4. Billing Determinants'!$B$19:$R$41, 13, FALSE)*'2. 2015 Continuity Schedule'!$BW$33), 0, VLOOKUP(G$4, '4. Billing Determinants'!$B$19:$R$41, 13, FALSE)*'2. 2015 Continuity Schedule'!$BW$33) -> 792.241467 | H15: =IF(ISERROR(VLOOKUP(H$4, '4. Billing Determinants'!$B$19:$R$41, 13, FALSE)*'2. 2015 Continuity Schedule'!$BW$33), 0, VLOOKUP(H$4, '4. Billing Determinants'!$B$19:$R$41, 13, FALSE)*'2. 2015 Continuity Schedule'!$BW$33) -> -34.51674441 | I15: =IF(ISERROR(VLOOKUP(I$4, '4. Billing Determinants'!$B$19:$R$41, 13, FALSE)*'2. 2015 Continuity Schedule'!$BW$33), 0, VLOOKUP(I$4, '4. Billing Determinants'!$B$19:$R$41, 13, FALSE)*'2. 2015 Continuity Schedule'!$BW$33) -> -254.218562 | J15: =IF(ISERROR(VLOOKUP(J$4, '4. Billing Determinants'!$B$19:$R$41, 13, FALSE)*'2. 2015 Continuity Schedule'!$BW$33), 0, VLOOKUP(J$4, '4. Billing Determinants'!$B$19:$R$41, 13, FALSE)*'2. 2015 Continuity Schedule'!$BW$33) -> 34.51674441 | K15: =IF(ISERROR(VLOOKUP(K$4, '4. Billing Determinants'!$B$19:$R$41, 13, FALSE)*'2. 2015 Continuity Schedule'!$BW$33), 0, VLOOKUP(K$4, '4. Billing Determinants'!$B$19:$R$41, 13, FALSE)*'2. 2015 Continuity Schedule'!$BW$33) -> 14.24500563 | L15: =IF(ISERROR(VLOOKUP(L$4, '4. Billing Determinants'!$B$19:$R$41, 13, FALSE)*'2. 2015 Continuity Schedule'!$BW$33), 0, VLOOKUP(L$4, '4. Billing Determinants'!$B$19:$R$41, 13, FALSE)*'2. 2015 Continuity Schedule'!$BW$33) -> 0 | M15: =IF(ISERROR(VLOOKUP(M$4, '4. Billing Determinants'!$B$19:$R$41, 13, FALSE)*'2. 2015 Continuity Schedule'!$BW$33), 0, VLOOKUP(M$4, '4. Billing Determinants'!$B$19:$R$41, 13, FALSE)*'2. 2015 Continuity Schedule'!$BW$33) -> 0 | N15: =IF(ISERROR(VLOOKUP(N$4, '4. Billing Determinants'!$B$19:$R$41, 12, FALSE)*#REF!), 0, VLOOKUP(N$4, '4. Billing Determinants'!$B$19:$R$41, 12, FALSE)*#REF!) -> 0 | O15: =IF(ISERROR(VLOOKUP(O$4, '4. Billing Determinants'!$B$19:$R$41, 12, FALSE)*#REF!), 0, VLOOKUP(O$4, '4. Billing Determinants'!$B$19:$R$41, 12, FALSE)*#REF!) -> 0 | P15: =IF(ISERROR(VLOOKUP(P$4, '4. Billing Determinants'!$B$19:$R$41, 12, FALSE)*#REF!), 0, VLOOKUP(P$4, '4. Billing Determinants'!$B$19:$R$41, 12, FALSE)*#REF!) -> 0 | Q15: =IF(ISERROR(VLOOKUP(Q$4, '4. Billing Determinants'!$B$19:$R$41, 12, FALSE)*#REF!), 0, VLOOKUP(Q$4, '4. Billing Determinants'!$B$19:$R$41, 12, FALSE)*#REF!) -> 0 | R15: =IF(ISERROR(VLOOKUP(R$4, '4. Billing Determinants'!$B$19:$R$41, 12, FALSE)*#REF!), 0, VLOOKUP(R$4, '4. Billing Determinants'!$B$19:$R$41, 12, FALSE)*#REF!) -> 0 | S15: =IF(ISERROR(VLOOKUP(S$4, '4. Billing Determinants'!$B$19:$R$41, 12, FALSE)*#REF!), 0, VLOOKUP(S$4, '4. Billing Determinants'!$B$19:$R$41, 12, FALSE)*#REF!) -> 0 | T15: =IF(ISERROR(VLOOKUP(T$4, '4. Billing Determinants'!$B$19:$R$41, 12, FALSE)*#REF!), 0, VLOOKUP(T$4, '4. Billing Determinants'!$B$19:$R$41, 12, FALSE)*#REF!) -> 0 | U15: =IF(ISERROR(VLOOKUP(U$4, '4. Billing Determinants'!$B$19:$R$41, 12, FALSE)*#REF!), 0, VLOOKUP(U$4, '4. Billing Determinants'!$B$19:$R$41, 12, FALSE)*#REF!) -> 0 | V15: =IF(ISERROR(VLOOKUP(V$4, '4. Billing Determinants'!$B$19:$R$41, 12, FALSE)*#REF!), 0, VLOOKUP(V$4, '4. Billing Determinants'!$B$19:$R$41, 12, FALSE)*#REF!) -> 0 | W15: =IF(ISERROR(VLOOKUP(W$4, '4. Billing Determinants'!$B$19:$R$41, 12, FALSE)*#REF!), 0, VLOOKUP(W$4, '4. Billing Determinants'!$B$19:$R$41, 12, FALSE)*#REF!) -> 0 | X15: =IF(ISERROR(VLOOKUP(X$4, '4. Billing Determinants'!$B$19:$R$41, 12, FALSE)*#REF!), 0, VLOOKUP(X$4, '4. Billing Determinants'!$B$19:$R$41, 12, FALSE)*#REF!) -> 0 | Y15: =IF(ISERROR(VLOOKUP(Y$4, '4. Billing Determinants'!$B$19:$R$41, 12, FALSE)*#REF!), 0, VLOOKUP(Y$4, '4. Billing Determinants'!$B$19:$R$41, 12, FALSE)*#REF!) -> 0 | AA15: 3.037570195e-13
B16: Disposition and Recovery/Refund of Regulatory Balances (2012) | C16: 1595 | D16: ='2. 2015 Continuity Schedule'!BW34 -> -33134.90512 | E16: % | F16: =IF(ISERROR(VLOOKUP(F$4, '4. Billing Determinants'!$B$19:$R$41, 14, FALSE)*'2. 2015 Continuity Schedule'!$BW$34), 0, VLOOKUP(F$4, '4. Billing Determinants'!$B$19:$R$41, 14, FALSE)*'2. 2015 Continuity Schedule'!$BW$34) -> -18886.89592 | G16: =IF(ISERROR(VLOOKUP(G$4, '4. Billing Determinants'!$B$19:$R$41, 14, FALSE)*'2. 2015 Continuity Schedule'!$BW$34), 0, VLOOKUP(G$4, '4. Billing Determinants'!$B$19:$R$41, 14, FALSE)*'2. 2015 Continuity Schedule'!$BW$34) -> -5778.727454 | H16: =IF(ISERROR(VLOOKUP(H$4, '4. Billing Determinants'!$B$19:$R$41, 14, FALSE)*'2. 2015 Continuity Schedule'!$BW$34), 0, VLOOKUP(H$4, '4. Billing Determinants'!$B$19:$R$41, 14, FALSE)*'2. 2015 Continuity Schedule'!$BW$34) -> -6855.61187 | I16: =IF(ISERROR(VLOOKUP(I$4, '4. Billing Determinants'!$B$19:$R$41, 14, FALSE)*'2. 2015 Continuity Schedule'!$BW$34), 0, VLOOKUP(I$4, '4. Billing Determinants'!$B$19:$R$41, 14, FALSE)*'2. 2015 Continuity Schedule'!$BW$34) -> -1116.646303 | J16: =IF(ISERROR(VLOOKUP(J$4, '4. Billing Determinants'!$B$19:$R$41, 14, FALSE)*'2. 2015 Continuity Schedule'!$BW$34), 0, VLOOKUP(J$4, '4. Billing Determinants'!$B$19:$R$41, 14, FALSE)*'2. 2015 Continuity Schedule'!$BW$34) -> -159.0475446 | K16: =IF(ISERROR(VLOOKUP(K$4, '4. Billing Determinants'!$B$19:$R$41, 14, FALSE)*'2. 2015 Continuity Schedule'!$BW$34), 0, VLOOKUP(K$4, '4. Billing Determinants'!$B$19:$R$41, 14, FALSE)*'2. 2015 Continuity Schedule'!$BW$34) -> -337.9760323 | L16: =IF(ISERROR(VLOOKUP(L$4, '4. Billing Determinants'!$B$19:$R$41, 14, FALSE)*'2. 2015 Continuity Schedule'!$BW$34), 0, VLOOKUP(L$4, '4. Billing Determinants'!$B$19:$R$41, 14, FALSE)*'2. 2015 Continuity Schedule'!$BW$34) -> 0 | M16: =IF(ISERROR(VLOOKUP(M$4, '4. Billing Determinants'!$B$19:$R$41, 14, FALSE)*'2. 2015 Continuity Schedule'!$BW$34), 0, VLOOKUP(M$4, '4. Billing Determinants'!$B$19:$R$41, 14, FALSE)*'2. 2015 Continuity Schedule'!$BW$34) -> 0 | N16: =IF(ISERROR(VLOOKUP(N$4, '4. Billing Determinants'!$B$19:$R$41, 13, FALSE)*#REF!), 0, VLOOKUP(N$4, '4. Billing Determinants'!$B$19:$R$41, 13, FALSE)*#REF!) -> 0 | O16: =IF(ISERROR(VLOOKUP(O$4, '4. Billing Determinants'!$B$19:$R$41, 13, FALSE)*#REF!), 0, VLOOKUP(O$4, '4. Billing Determinants'!$B$19:$R$41, 13, FALSE)*#REF!) -> 0 | P16: =IF(ISERROR(VLOOKUP(P$4, '4. Billing Determinants'!$B$19:$R$41, 13, FALSE)*#REF!), 0, VLOOKUP(P$4, '4. Billing Determinants'!$B$19:$R$41, 13, FALSE)*#REF!) -> 0 | Q16: =IF(ISERROR(VLOOKUP(Q$4, '4. Billing Determinants'!$B$19:$R$41, 13, FALSE)*#REF!), 0, VLOOKUP(Q$4, '4. Billing Determinants'!$B$19:$R$41, 13, FALSE)*#REF!) -> 0 | R16: =IF(ISERROR(VLOOKUP(R$4, '4. Billing Determinants'!$B$19:$R$41, 13, FALSE)*#REF!), 0, VLOOKUP(R$4, '4. Billing Determinants'!$B$19:$R$41, 13, FALSE)*#REF!) -> 0 | S16: =IF(ISERROR(VLOOKUP(S$4, '4. Billing Determinants'!$B$19:$R$41, 13, FALSE)*#REF!), 0, VLOOKUP(S$4, '4. Billing Determinants'!$B$19:$R$41, 13, FALSE)*#REF!) -> 0 | T16: =IF(ISERROR(VLOOKUP(T$4, '4. Billing Determinants'!$B$19:$R$41, 13, FALSE)*#REF!), 0, VLOOKUP(T$4, '4. Billing Determinants'!$B$19:$R$41, 13, FALSE)*#REF!) -> 0 | U16: =IF(ISERROR(VLOOKUP(U$4, '4. Billing Determinants'!$B$19:$R$41, 13, FALSE)*#REF!), 0, VLOOKUP(U$4, '4. Billing Determinants'!$B$19:$R$41, 13, FALSE)*#REF!) -> 0 | V16: =IF(ISERROR(VLOOKUP(V$4, '4. Billing Determinants'!$B$19:$R$41, 13, FALSE)*#REF!), 0, VLOOKUP(V$4, '4. Billing Determinants'!$B$19:$R$41, 13, FALSE)*#REF!) -> 0 | W16: =IF(ISERROR(VLOOKUP(W$4, '4. Billing Determinants'!$B$19:$R$41, 13, FALSE)*#REF!), 0, VLOOKUP(W$4, '4. Billing Determinants'!$B$19:$R$41, 13, FALSE)*#REF!) -> 0 | X16: =IF(ISERROR(VLOOKUP(X$4, '4. Billing Determinants'!$B$19:$R$41, 13, FALSE)*#REF!), 0, VLOOKUP(X$4, '4. Billing Determinants'!$B$19:$R$41, 13, FALSE)*#REF!) -> 0 | Y16: =IF(ISERROR(VLOOKUP(Y$4, '4. Billing Determinants'!$B$19:$R$41, 13, FALSE)*#REF!), 0, VLOOKUP(Y$4, '4. Billing Determinants'!$B$19:$R$41, 13, FALSE)*#REF!) -> 0 | AA16: -4.945377441e-12
B17: Disposition and Recovery/Refund of Regulatory Balances (2013) | C17: 1595 | D17: ='2. 2015 Continuity Schedule'!BW35 -> -52411.96832 | E17: % | F17: =IF(ISERROR(VLOOKUP(F$4, '4. Billing Determinants'!$B$19:$R$41, 15, FALSE)*'2. 2015 Continuity Schedule'!$BW$35), 0, VLOOKUP(F$4, '4. Billing Determinants'!$B$19:$R$41, 15, FALSE)*'2. 2015 Continuity Schedule'!$BW$35) -> -14455.22086 | G17: =IF(ISERROR(VLOOKUP(G$4, '4. Billing Determinants'!$B$19:$R$41, 15, FALSE)*'2. 2015 Continuity Schedule'!$BW$35), 0, VLOOKUP(G$4, '4. Billing Determinants'!$B$19:$R$41, 15, FALSE)*'2. 2015 Continuity Schedule'!$BW$35) -> -6913.138622 | H17: =IF(ISERROR(VLOOKUP(H$4, '4. Billing Determinants'!$B$19:$R$41, 15, FALSE)*'2. 2015 Continuity Schedule'!$BW$35), 0, VLOOKUP(H$4, '4. Billing Determinants'!$B$19:$R$41, 15, FALSE)*'2. 2015 Continuity Schedule'!$BW$35) -> -19282.36315 | I17: =IF(ISERROR(VLOOKUP(I$4, '4. Billing Determinants'!$B$19:$R$41, 15, FALSE)*'2. 2015 Continuity Schedule'!$BW$35), 0, VLOOKUP(I$4, '4. Billing Determinants'!$B$19:$R$41, 15, FALSE)*'2. 2015 Continuity Schedule'!$BW$35) -> -11294.77917 | J17: =IF(ISERROR(VLOOKUP(J$4, '4. Billing Determinants'!$B$19:$R$41, 15, FALSE)*'2. 2015 Continuity Schedule'!$BW$35), 0, VLOOKUP(J$4, '4. Billing Determinants'!$B$19:$R$41, 15, FALSE)*'2. 2015 Continuity Schedule'!$BW$35) -> -167.7182986 | K17: =IF(ISERROR(VLOOKUP(K$4, '4. Billing Determinants'!$B$19:$R$41, 15, FALSE)*'2. 2015 Continuity Schedule'!$BW$35), 0, VLOOKUP(K$4, '4. Billing Determinants'!$B$19:$R$41, 15, FALSE)*'2. 2015 Continuity Schedule'!$BW$35) -> -298.7482194 | L17: =IF(ISERROR(VLOOKUP(L$4, '4. Billing Determinants'!$B$19:$R$41, 15, FALSE)*'2. 2015 Continuity Schedule'!$BW$35), 0, VLOOKUP(L$4, '4. Billing Determinants'!$B$19:$R$41, 15, FALSE)*'2. 2015 Continuity Schedule'!$BW$35) -> 0 | M17: =IF(ISERROR(VLOOKUP(M$4, '4. Billing Determinants'!$B$19:$R$41, 15, FALSE)*'2. 2015 Continuity Schedule'!$BW$35), 0, VLOOKUP(M$4, '4. Billing Determinants'!$B$19:$R$41, 15, FALSE)*'2. 2015 Continuity Schedule'!$BW$35) -> 0 | N17: =IF(ISERROR(VLOOKUP(N$4, '4. Billing Determinants'!$B$19:$R$41, 13, FALSE)*#REF!), 0, VLOOKUP(N$4, '4. Billing Determinants'!$B$19:$R$41, 13, FALSE)*#REF!) -> 0 | O17: =IF(ISERROR(VLOOKUP(O$4, '4. Billing Determinants'!$B$19:$R$41, 13, FALSE)*#REF!), 0, VLOOKUP(O$4, '4. Billing Determinants'!$B$19:$R$41, 13, FALSE)*#REF!) -> 0 | P17: =IF(ISERROR(VLOOKUP(P$4, '4. Billing Determinants'!$B$19:$R$41, 13, FALSE)*#REF!), 0, VLOOKUP(P$4, '4. Billing Determinants'!$B$19:$R$41, 13, FALSE)*#REF!) -> 0 | Q17: =IF(ISERROR(VLOOKUP(Q$4, '4. Billing Determinants'!$B$19:$R$41, 13, FALSE)*#REF!), 0, VLOOKUP(Q$4, '4. Billing Determinants'!$B$19:$R$41, 13, FALSE)*#REF!) -> 0 | R17: =IF(ISERROR(VLOOKUP(R$4, '4. Billing Determinants'!$B$19:$R$41, 13, FALSE)*#REF!), 0, VLOOKUP(R$4, '4. Billing Determinants'!$B$19:$R$41, 13, FALSE)*#REF!) -> 0 | S17: =IF(ISERROR(VLOOKUP(S$4, '4. Billing Determinants'!$B$19:$R$41, 13, FALSE)*#REF!), 0, VLOOKUP(S$4, '4. Billing Determinants'!$B$19:$R$41, 13, FALSE)*#REF!) -> 0 | T17: =IF(ISERROR(VLOOKUP(T$4, '4. Billing Determinants'!$B$19:$R$41, 13, FALSE)*#REF!), 0, VLOOKUP(T$4, '4. Billing Determinants'!$B$19:$R$41, 13, FALSE)*#REF!) -> 0 | U17: =IF(ISERROR(VLOOKUP(U$4, '4. Billing Determinants'!$B$19:$R$41, 13, FALSE)*#REF!), 0, VLOOKUP(U$4, '4. Billing Determinants'!$B$19:$R$41, 13, FALSE)*#REF!) -> 0 | V17: =IF(ISERROR(VLOOKUP(V$4, '4. Billing Determinants'!$B$19:$R$41, 13, FALSE)*#REF!), 0, VLOOKUP(V$4, '4. Billing Determinants'!$B$19:$R$41, 13, FALSE)*#REF!) -> 0 | W17: =IF(ISERROR(VLOOKUP(W$4, '4. Billing Determinants'!$B$19:$R$41, 13, FALSE)*#REF!), 0, VLOOKUP(W$4, '4. Billing Determinants'!$B$19:$R$41, 13, FALSE)*#REF!) -> 0 | X17: =IF(ISERROR(VLOOKUP(X$4, '4. Billing Determinants'!$B$19:$R$41, 13, FALSE)*#REF!), 0, VLOOKUP(X$4, '4. Billing Determinants'!$B$19:$R$41, 13, FALSE)*#REF!) -> 0 | Y17: =IF(ISERROR(VLOOKUP(Y$4, '4. Billing Determinants'!$B$19:$R$41, 13, FALSE)*#REF!), 0, VLOOKUP(Y$4, '4. Billing Determinants'!$B$19:$R$41, 13, FALSE)*#REF!) -> 0 | AA17: 1.818989404e-12
B18: Disposition and Recovery/Refund of Regulatory Balances (2014) | C18: 1595 | D18: ='2. 2015 Continuity Schedule'!BW36 -> 0 | E18: % | F18: =IF(ISERROR(VLOOKUP(F$4, '4. Billing Determinants'!$B$19:$R$41,16, FALSE)*'2. 2015 Continuity Schedule'!$BW$36), 0, VLOOKUP(F$4, '4. Billing Determinants'!$B$19:$R$41, 16, FALSE)*'2. 2015 Continuity Schedule'!$BW$36) -> 0 | G18: =IF(ISERROR(VLOOKUP(G$4, '4. Billing Determinants'!$B$19:$R$41,16, FALSE)*'2. 2015 Continuity Schedule'!$BW$36), 0, VLOOKUP(G$4, '4. Billing Determinants'!$B$19:$R$41, 16, FALSE)*'2. 2015 Continuity Schedule'!$BW$36) -> 0 | H18: =IF(ISERROR(VLOOKUP(H$4, '4. Billing Determinants'!$B$19:$R$41,16, FALSE)*'2. 2015 Continuity Schedule'!$BW$36), 0, VLOOKUP(H$4, '4. Billing Determinants'!$B$19:$R$41, 16, FALSE)*'2. 2015 Continuity Schedule'!$BW$36) -> 0 | I18: =IF(ISERROR(VLOOKUP(I$4, '4. Billing Determinants'!$B$19:$R$41,16, FALSE)*'2. 2015 Continuity Schedule'!$BW$36), 0, VLOOKUP(I$4, '4. Billing Determinants'!$B$19:$R$41, 16, FALSE)*'2. 2015 Continuity Schedule'!$BW$36) -> 0 | J18: =IF(ISERROR(VLOOKUP(J$4, '4. Billing Determinants'!$B$19:$R$41,16, FALSE)*'2. 2015 Continuity Schedule'!$BW$36), 0, VLOOKUP(J$4, '4. Billing Determinants'!$B$19:$R$41, 16, FALSE)*'2. 2015 Continuity Schedule'!$BW$36) -> 0 | K18: =IF(ISERROR(VLOOKUP(K$4, '4. Billing Determinants'!$B$19:$R$41,16, FALSE)*'2. 2015 Continuity Schedule'!$BW$36), 0, VLOOKUP(K$4, '4. Billing Determinants'!$B$19:$R$41, 16, FALSE)*'2. 2015 Continuity Schedule'!$BW$36) -> 0 | L18: =IF(ISERROR(VLOOKUP(L$4, '4. Billing Determinants'!$B$19:$R$41,16, FALSE)*'2. 2015 Continuity Schedule'!$BW$36), 0, VLOOKUP(L$4, '4. Billing Determinants'!$B$19:$R$41, 16, FALSE)*'2. 2015 Continuity Schedule'!$BW$36) -> 0 | M18: =IF(ISERROR(VLOOKUP(M$4, '4. Billing Determinants'!$B$19:$R$41,16, FALSE)*'2. 2015 Continuity Schedule'!$BW$36), 0, VLOOKUP(M$4, '4. Billing Determinants'!$B$19:$R$41, 16, FALSE)*'2. 2015 Continuity Schedule'!$BW$36) -> 0 | N18: =IF(ISERROR(VLOOKUP(N$4, '4. Billing Determinants'!$B$19:$R$41, 13, FALSE)*#REF!), 0, VLOOKUP(N$4, '4. Billing Determinants'!$B$19:$R$41, 13, FALSE)*#REF!) -> 0 | O18: =IF(ISERROR(VLOOKUP(O$4, '4. Billing Determinants'!$B$19:$R$41, 13, FALSE)*#REF!), 0, VLOOKUP(O$4, '4. Billing Determinants'!$B$19:$R$41, 13, FALSE)*#REF!) -> 0 | P18: =IF(ISERROR(VLOOKUP(P$4, '4. Billing Determinants'!$B$19:$R$41, 13, FALSE)*#REF!), 0, VLOOKUP(P$4, '4. Billing Determinants'!$B$19:$R$41, 13, FALSE)*#REF!) -> 0 | Q18: =IF(ISERROR(VLOOKUP(Q$4, '4. Billing Determinants'!$B$19:$R$41, 13, FALSE)*#REF!), 0, VLOOKUP(Q$4, '4. Billing Determinants'!$B$19:$R$41, 13, FALSE)*#REF!) -> 0 | R18: =IF(ISERROR(VLOOKUP(R$4, '4. Billing Determinants'!$B$19:$R$41, 13, FALSE)*#REF!), 0, VLOOKUP(R$4, '4. Billing Determinants'!$B$19:$R$41, 13, FALSE)*#REF!) -> 0 | S18: =IF(ISERROR(VLOOKUP(S$4, '4. Billing Determinants'!$B$19:$R$41, 13, FALSE)*#REF!), 0, VLOOKUP(S$4, '4. Billing Determinants'!$B$19:$R$41, 13, FALSE)*#REF!) -> 0 | T18: =IF(ISERROR(VLOOKUP(T$4, '4. Billing Determinants'!$B$19:$R$41, 13, FALSE)*#REF!), 0, VLOOKUP(T$4, '4. Billing Determinants'!$B$19:$R$41, 13, FALSE)*#REF!) -> 0 | U18: =IF(ISERROR(VLOOKUP(U$4, '4. Billing Determinants'!$B$19:$R$41, 13, FALSE)*#REF!), 0, VLOOKUP(U$4, '4. Billing Determinants'!$B$19:$R$41, 13, FALSE)*#REF!) -> 0 | V18: =IF(ISERROR(VLOOKUP(V$4, '4. Billing Determinants'!$B$19:$R$41, 13, FALSE)*#REF!), 0, VLOOKUP(V$4, '4. Billing Determinants'!$B$19:$R$41, 13, FALSE)*#REF!) -> 0 | W18: =IF(ISERROR(VLOOKUP(W$4, '4. Billing Determinants'!$B$19:$R$41, 13, FALSE)*#REF!), 0, VLOOKUP(W$4, '4. Billing Determinants'!$B$19:$R$41, 13, FALSE)*#REF!) -> 0 | X18: =IF(ISERROR(VLOOKUP(X$4, '4. Billing Determinants'!$B$19:$R$41, 13, FALSE)*#REF!), 0, VLOOKUP(X$4, '4. Billing Determinants'!$B$19:$R$41, 13, FALSE)*#REF!) -> 0 | Y18: =IF(ISERROR(VLOOKUP(Y$4, '4. Billing Determinants'!$B$19:$R$41, 13, FALSE)*#REF!), 0, VLOOKUP(Y$4, '4. Billing Determinants'!$B$19:$R$41, 13, FALSE)*#REF!) -> 0 | AA18: 0
B19: Total of Group 1 Accounts (excluding 1589) | D19: =SUM(D5:D18)-D11 -> -706033.7709 | F19: =SUM(F5:F18)-F11 -> -176456.6504 | G19: -98323.48516 | H19: 526985.6716 | I19: -160456.9715 | J19: -1275.325728 | K19: 4128.653688 | L19: =SUM(L5:L16)-L11 -> 0 | M19: =SUM(M5:M17)-M11 -> -800635.6634 | N19: 0 | O19: 0 | P19: 0 | Q19: 0 | T19: 0 | U19: 0 | V19: 0 | W19: 0 | X19: 0 | Y19: 0 | AA19: =D19-F19-G19-H19-I19-J19-K19-M19 -> 0
AA20: 0
C21: 1508 | D21: 0 | F21: =IFERROR(IF(F$4="",0,IF($E21="kWh",VLOOKUP(F$4,'4. Billing Determinants'!$B$19:$R$41,4,0)/'4. Billing Determinants'!$E$41*$D21,IF($E21="kW",VLOOKUP(F$4,'4. Billing Determinants'!$B$19:$R$41,5,0)/'4. Billing Determinants'!$F$41*$D21,IF($E21="Non-RPP kWh",VLOOKUP(F$4,'4. Billing Determinants'!$B$19:$R$41,6,0)/'4. Billing Determinants'!$G$41*$D21,IF($E21="Distribution Rev.",VLOOKUP(F$4,'4. Billing Determinants'!$B$19:$R$41,8,0)/'4. Billing Determinants'!$I$41*$D21, VLOOKUP(F$4,'4. Billing Determinants'!$B$19:$R$41,3,0)/'4. Billing Determinants'!$D$41*$D21))))),0) -> 0 | G21: =IFERROR(IF(G$4="",0,IF($E21="kWh",VLOOKUP(G$4,'4. Billing Determinants'!$B$19:$R$41,4,0)/'4. Billing Determinants'!$E$41*$D21,IF($E21="kW",VLOOKUP(G$4,'4. Billing Determinants'!$B$19:$R$41,5,0)/'4. Billing Determinants'!$F$41*$D21,IF($E21="Non-RPP kWh",VLOOKUP(G$4,'4. Billing Determinants'!$B$19:$R$41,6,0)/'4. Billing Determinants'!$G$41*$D21,IF($E21="Distribution Rev.",VLOOKUP(G$4,'4. Billing Determinants'!$B$19:$R$41,8,0)/'4. Billing Determinants'!$I$41*$D21, VLOOKUP(G$4,'4. Billing Determinants'!$B$19:$R$41,3,0)/'4. Billing Determinants'!$D$41*$D21))))),0) -> 0 | H21: =IFERROR(IF(H$4="",0,IF($E21="kWh",VLOOKUP(H$4,'4. Billing Determinants'!$B$19:$R$41,4,0)/'4. Billing Determinants'!$E$41*$D21,IF($E21="kW",VLOOKUP(H$4,'4. Billing Determinants'!$B$19:$R$41,5,0)/'4. Billing Determinants'!$F$41*$D21,IF($E21="Non-RPP kWh",VLOOKUP(H$4,'4. Billing Determinants'!$B$19:$R$41,6,0)/'4. Billing Determinants'!$G$41*$D21,IF($E21="Distribution Rev.",VLOOKUP(H$4,'4. Billing Determinants'!$B$19:$R$41,8,0)/'4. Billing Determinants'!$I$41*$D21, VLOOKUP(H$4,'4. Billing Determinants'!$B$19:$R$41,3,0)/'4. Billing Determinants'!$D$41*$D21))))),0) -> 0 | I21: =IFERROR(IF(I$4="",0,IF($E21="kWh",VLOOKUP(I$4,'4. Billing Determinants'!$B$19:$R$41,4,0)/'4. Billing Determinants'!$E$41*$D21,IF($E21="kW",VLOOKUP(I$4,'4. Billing Determinants'!$B$19:$R$41,5,0)/'4. Billing Determinants'!$F$41*$D21,IF($E21="Non-RPP kWh",VLOOKUP(I$4,'4. Billing Determinants'!$B$19:$R$41,6,0)/'4. Billing Determinants'!$G$41*$D21,IF($E21="Distribution Rev.",VLOOKUP(I$4,'4. Billing Determinants'!$B$19:$R$41,8,0)/'4. Billing Determinants'!$I$41*$D21, VLOOKUP(I$4,'4. Billing Determinants'!$B$19:$R$41,3,0)/'4. Billing Determinants'!$D$41*$D21))))),0) -> 0 | J21: =IFERROR(IF(J$4="",0,IF($E21="kWh",VLOOKUP(J$4,'4. Billing Determinants'!$B$19:$R$41,4,0)/'4. Billing Determinants'!$E$41*$D21,IF($E21="kW",VLOOKUP(J$4,'4. Billing Determinants'!$B$19:$R$41,5,0)/'4. Billing Determinants'!$F$41*$D21,IF($E21="Non-RPP kWh",VLOOKUP(J$4,'4. Billing Determinants'!$B$19:$R$41,6,0)/'4. Billing Determinants'!$G$41*$D21,IF($E21="Distribution Rev.",VLOOKUP(J$4,'4. Billing Determinants'!$B$19:$R$41,8,0)/'4. Billing Determinants'!$I$41*$D21, VLOOKUP(J$4,'4. Billing Determinants'!$B$19:$R$41,3,0)/'4. Billing Determinants'!$D$41*$D21))))),0) -> 0 | K21: =IFERROR(IF(K$4="",0,IF($E21="kWh",VLOOKUP(K$4,'4. Billing Determinants'!$B$19:$R$41,4,0)/'4. Billing Determinants'!$E$41*$D21,IF($E21="kW",VLOOKUP(K$4,'4. Billing Determinants'!$B$19:$R$41,5,0)/'4. Billing Determinants'!$F$41*$D21,IF($E21="Non-RPP kWh",VLOOKUP(K$4,'4. Billing Determinants'!$B$19:$R$41,6,0)/'4. Billing Determinants'!$G$41*$D21,IF($E21="Distribution Rev.",VLOOKUP(K$4,'4. Billing Determinants'!$B$19:$R$41,8,0)/'4. Billing Determinants'!$I$41*$D21, VLOOKUP(K$4,'4. Billing Determinants'!$B$19:$R$41,3,0)/'4. Billing Determinants'!$D$41*$D21))))),0) -> 0 | L21: =IFERROR(IF(L$4="",0,IF($E21="kWh",VLOOKUP(L$4,'4. Billing Determinants'!$B$19:$R$41,4,0)/'4. Billing Determinants'!$E$41*$D21,IF($E21="kW",VLOOKUP(L$4,'4. Billing Determinants'!$B$19:$R$41,5,0)/'4. Billing Determinants'!$F$41*$D21,IF($E21="Non-RPP kWh",VLOOKUP(L$4,'4. Billing Determinants'!$B$19:$R$41,6,0)/'4. Billing Determinants'!$G$41*$D21,IF($E21="Distribution Rev.",VLOOKUP(L$4,'4. Billing Determinants'!$B$19:$R$41,8,0)/'4. Billing Determinants'!$I$41*$D21, VLOOKUP(L$4,'4. Billing Determinants'!$B$19:$R$41,3,0)/'4. Billing Determinants'!$D$41*$D21))))),0) -> 0 | M21: =IFERROR(IF(M$4="",0,IF($E21="kWh",VLOOKUP(M$4,'4. Billing Determinants'!$B$19:$R$41,4,0)/'4. Billing Determinants'!$E$41*$D21,IF($E21="kW",VLOOKUP(M$4,'4. Billing Determinants'!$B$19:$R$41,5,0)/'4. Billing Determinants'!$F$41*$D21,IF($E21="Non-RPP kWh",VLOOKUP(M$4,'4. Billing Determinants'!$B$19:$R$41,6,0)/'4. Billing Determinants'!$G$41*$D21,IF($E21="Distribution Rev.",VLOOKUP(M$4,'4. Billing Determinants'!$B$19:$R$41,8,0)/'4. Billing Determinants'!$I$41*$D21, VLOOKUP(M$4,'4. Billing Determinants'!$B$19:$R$41,3,0)/'4. Billing Determinants'!$D$41*$D21))))),0) -> 0 | N21: =IFERROR(IF(N$4="",0,IF($E21="kWh",VLOOKUP(N$4,'4. Billing Determinants'!$B$19:$R$41,4,0)/'4. Billing Determinants'!$E$41*$D21,IF($E21="kW",VLOOKUP(N$4,'4. Billing Determinants'!$B$19:$R$41,5,0)/'4. Billing Determinants'!$F$41*$D21,IF($E21="Non-RPP kWh",VLOOKUP(N$4,'4. Billing Determinants'!$B$19:$R$41,6,0)/'4. Billing Determinants'!$G$41*$D21,IF($E21="Distribution Rev.",VLOOKUP(N$4,'4. Billing Determinants'!$B$19:$R$41,8,0)/'4. Billing Determinants'!$I$41*$D21, VLOOKUP(N$4,'4. Billing Determinants'!$B$19:$R$41,3,0)/'4. Billing Determinants'!$D$41*$D21))))),0) -> 0 | O21: =IFERROR(IF(O$4="",0,IF($E21="kWh",VLOOKUP(O$4,'4. Billing Determinants'!$B$19:$R$41,4,0)/'4. Billing Determinants'!$E$41*$D21,IF($E21="kW",VLOOKUP(O$4,'4. Billing Determinants'!$B$19:$R$41,5,0)/'4. Billing Determinants'!$F$41*$D21,IF($E21="Non-RPP kWh",VLOOKUP(O$4,'4. Billing Determinants'!$B$19:$R$41,6,0)/'4. Billing Determinants'!$G$41*$D21,IF($E21="Distribution Rev.",VLOOKUP(O$4,'4. Billing Determinants'!$B$19:$R$41,8,0)/'4. Billing Determinants'!$I$41*$D21, VLOOKUP(O$4,'4. Billing Determinants'!$B$19:$R$41,3,0)/'4. Billing Determinants'!$D$41*$D21))))),0) -> 0 | P21: =IFERROR(IF(P$4="",0,IF($E21="kWh",VLOOKUP(P$4,'4. Billing Determinants'!$B$19:$R$41,4,0)/'4. Billing Determinants'!$E$41*$D21,IF($E21="kW",VLOOKUP(P$4,'4. Billing Determinants'!$B$19:$R$41,5,0)/'4. Billing Determinants'!$F$41*$D21,IF($E21="Non-RPP kWh",VLOOKUP(P$4,'4. Billing Determinants'!$B$19:$R$41,6,0)/'4. Billing Determinants'!$G$41*$D21,IF($E21="Distribution Rev.",VLOOKUP(P$4,'4. Billing Determinants'!$B$19:$R$41,8,0)/'4. Billing Determinants'!$I$41*$D21, VLOOKUP(P$4,'4. Billing Determinants'!$B$19:$R$41,3,0)/'4. Billing Determinants'!$D$41*$D21))))),0) -> 0 | Q21: =IFERROR(IF(Q$4="",0,IF($E21="kWh",VLOOKUP(Q$4,'4. Billing Determinants'!$B$19:$R$41,4,0)/'4. Billing Determinants'!$E$41*$D21,IF($E21="kW",VLOOKUP(Q$4,'4. Billing Determinants'!$B$19:$R$41,5,0)/'4. Billing Determinants'!$F$41*$D21,IF($E21="Non-RPP kWh",VLOOKUP(Q$4,'4. Billing Determinants'!$B$19:$R$41,6,0)/'4. Billing Determinants'!$G$41*$D21,IF($E21="Distribution Rev.",VLOOKUP(Q$4,'4. Billing Determinants'!$B$19:$R$41,8,0)/'4. Billing Determinants'!$I$41*$D21, VLOOKUP(Q$4,'4. Billing Determinants'!$B$19:$R$41,3,0)/'4. Billing Determinants'!$D$41*$D21))))),0) -> 0 | R21: =IFERROR(IF(R$4="",0,IF($E21="kWh",VLOOKUP(R$4,'4. Billing Determinants'!$B$19:$R$41,4,0)/'4. Billing Determinants'!$E$41*$D21,IF($E21="kW",VLOOKUP(R$4,'4. Billing Determinants'!$B$19:$R$41,5,0)/'4. Billing Determinants'!$F$41*$D21,IF($E21="Non-RPP kWh",VLOOKUP(R$4,'4. Billing Determinants'!$B$19:$R$41,6,0)/'4. Billing Determinants'!$G$41*$D21,IF($E21="Distribution Rev.",VLOOKUP(R$4,'4. Billing Determinants'!$B$19:$R$41,8,0)/'4. Billing Determinants'!$I$41*$D21, VLOOKUP(R$4,'4. Billing Determinants'!$B$19:$R$41,3,0)/'4. Billing Determinants'!$D$41*$D21))))),0) -> 0 | S21: =IFERROR(IF(S$4="",0,IF($E21="kWh",VLOOKUP(S$4,'4. Billing Determinants'!$B$19:$R$41,4,0)/'4. Billing Determinants'!$E$41*$D21,IF($E21="kW",VLOOKUP(S$4,'4. Billing Determinants'!$B$19:$R$41,5,0)/'4. Billing Determinants'!$F$41*$D21,IF($E21="Non-RPP kWh",VLOOKUP(S$4,'4. Billing Determinants'!$B$19:$R$41,6,0)/'4. Billing Determinants'!$G$41*$D21,IF($E21="Distribution Rev.",VLOOKUP(S$4,'4. Billing Determinants'!$B$19:$R$41,8,0)/'4. Billing Determinants'!$I$41*$D21, VLOOKUP(S$4,'4. Billing Determinants'!$B$19:$R$41,3,0)/'4. Billing Determinants'!$D$41*$D21))))),0) -> 0 | T21: =IFERROR(IF(T$4="",0,IF($E21="kWh",VLOOKUP(T$4,'4. Billing Determinants'!$B$19:$R$41,4,0)/'4. Billing Determinants'!$E$41*$D21,IF($E21="kW",VLOOKUP(T$4,'4. Billing Determinants'!$B$19:$R$41,5,0)/'4. Billing Determinants'!$F$41*$D21,IF($E21="Non-RPP kWh",VLOOKUP(T$4,'4. Billing Determinants'!$B$19:$R$41,6,0)/'4. Billing Determinants'!$G$41*$D21,IF($E21="Distribution Rev.",VLOOKUP(T$4,'4. Billing Determinants'!$B$19:$R$41,8,0)/'4. Billing Determinants'!$I$41*$D21, VLOOKUP(T$4,'4. Billing Determinants'!$B$19:$R$41,3,0)/'4. Billing Determinants'!$D$41*$D21))))),0) -> 0 | U21: =IFERROR(IF(U$4="",0,IF($E21="kWh",VLOOKUP(U$4,'4. Billing Determinants'!$B$19:$R$41,4,0)/'4. Billing Determinants'!$E$41*$D21,IF($E21="kW",VLOOKUP(U$4,'4. Billing Determinants'!$B$19:$R$41,5,0)/'4. Billing Determinants'!$F$41*$D21,IF($E21="Non-RPP kWh",VLOOKUP(U$4,'4. Billing Determinants'!$B$19:$R$41,6,0)/'4. Billing Determinants'!$G$41*$D21,IF($E21="Distribution Rev.",VLOOKUP(U$4,'4. Billing Determinants'!$B$19:$R$41,8,0)/'4. Billing Determinants'!$I$41*$D21, VLOOKUP(U$4,'4. Billing Determinants'!$B$19:$R$41,3,0)/'4. Billing Determinants'!$D$41*$D21))))),0) -> 0 | V21: =IFERROR(IF(V$4="",0,IF($E21="kWh",VLOOKUP(V$4,'4. Billing Determinants'!$B$19:$R$41,4,0)/'4. Billing Determinants'!$E$41*$D21,IF($E21="kW",VLOOKUP(V$4,'4. Billing Determinants'!$B$19:$R$41,5,0)/'4. Billing Determinants'!$F$41*$D21,IF($E21="Non-RPP kWh",VLOOKUP(V$4,'4. Billing Determinants'!$B$19:$R$41,6,0)/'4. Billing Determinants'!$G$41*$D21,IF($E21="Distribution Rev.",VLOOKUP(V$4,'4. Billing Determinants'!$B$19:$R$41,8,0)/'4. Billing Determinants'!$I$41*$D21, VLOOKUP(V$4,'4. Billing Determinants'!$B$19:$R$41,3,0)/'4. Billing Determinants'!$D$41*$D21))))),0) -> 0 | W21: =IFERROR(IF(W$4="",0,IF($E21="kWh",VLOOKUP(W$4,'4. Billing Determinants'!$B$19:$R$41,4,0)/'4. Billing Determinants'!$E$41*$D21,IF($E21="kW",VLOOKUP(W$4,'4. Billing Determinants'!$B$19:$R$41,5,0)/'4. Billing Determinants'!$F$41*$D21,IF($E21="Non-RPP kWh",VLOOKUP(W$4,'4. Billing Determinants'!$B$19:$R$41,6,0)/'4. Billing Determinants'!$G$41*$D21,IF($E21="Distribution Rev.",VLOOKUP(W$4,'4. Billing Determinants'!$B$19:$R$41,8,0)/'4. Billing Determinants'!$I$41*$D21, VLOOKUP(W$4,'4. Billing Determinants'!$B$19:$R$41,3,0)/'4. Billing Determinants'!$D$41*$D21))))),0) -> 0 | X21: =IFERROR(IF(X$4="",0,IF($E21="kWh",VLOOKUP(X$4,'4. Billing Determinants'!$B$19:$R$41,4,0)/'4. Billing Determinants'!$E$41*$D21,IF($E21="kW",VLOOKUP(X$4,'4. Billing Determinants'!$B$19:$R$41,5,0)/'4. Billing Determinants'!$F$41*$D21,IF($E21="Non-RPP kWh",VLOOKUP(X$4,'4. Billing Determinants'!$B$19:$R$41,6,0)/'4. Billing Determinants'!$G$41*$D21,IF($E21="Distribution Rev.",VLOOKUP(X$4,'4. Billing Determinants'!$B$19:$R$41,8,0)/'4. Billing Determinants'!$I$41*$D21, VLOOKUP(X$4,'4. Billing Determinants'!$B$19:$R$41,3,0)/'4. Billing Determinants'!$D$41*$D21))))),0) -> 0 | Y21: =IFERROR(IF(Y$4="",0,IF($E21="kWh",VLOOKUP(Y$4,'4. Billing Determinants'!$B$19:$R$41,4,0)/'4. Billing Determinants'!$E$41*$D21,IF($E21="kW",VLOOKUP(Y$4,'4. Billing Determinants'!$B$19:$R$41,5,0)/'4. Billing Determinants'!$F$41*$D21,IF($E21="Non-RPP kWh",VLOOKUP(Y$4,'4. Billing Determinants'!$B$19:$R$41,6,0)/'4. Billing Determinants'!$G$41*$D21,IF($E21="Distribution Rev.",VLOOKUP(Y$4,'4. Billing Determinants'!$B$19:$R$41,8,0)/'4. Billing Determinants'!$I$41*$D21, VLOOKUP(Y$4,'4. Billing Determinants'!$B$19:$R$41,3,0)/'4. Billing Determinants'!$D$41*$D21))))),0) -> 0 | AA21: 0
B22: Other Regulatory Assets - Sub-Account - Deferred IFRS Transition Costs | C22: 1508 | D22: ='2. 2015 Continuity Schedule'!BW43 -> 97067.91381 | E22: Distribution Rev. | F22: =IFERROR(IF(F$4="",0,IF($E22="kWh",VLOOKUP(F$4,'4. Billing Determinants'!$B$19:$R$41,4,0)/'4. Billing Determinants'!$E$41*$D22,IF($E22="kW",VLOOKUP(F$4,'4. Billing Determinants'!$B$19:$R$41,5,0)/'4. Billing Determinants'!$F$41*$D22,IF($E22="Non-RPP kWh",VLOOKUP(F$4,'4. Billing Determinants'!$B$19:$R$41,6,0)/'4. Billing Determinants'!$G$41*$D22,IF($E22="Distribution Rev.",VLOOKUP(F$4,'4. Billing Determinants'!$B$19:$R$41,8,0)/'4. Billing Determinants'!$I$41*$D22, VLOOKUP(F$4,'4. Billing Determinants'!$B$19:$R$41,3,0)/'4. Billing Determinants'!$D$41*$D22))))),0) -> 55639.36437 | G22: =IFERROR(IF(G$4="",0,IF($E22="kWh",VLOOKUP(G$4,'4. Billing Determinants'!$B$19:$R$41,4,0)/'4. Billing Determinants'!$E$41*$D22,IF($E22="kW",VLOOKUP(G$4,'4. Billing Determinants'!$B$19:$R$41,5,0)/'4. Billing Determinants'!$F$41*$D22,IF($E22="Non-RPP kWh",VLOOKUP(G$4,'4. Billing Determinants'!$B$19:$R$41,6,0)/'4. Billing Determinants'!$G$41*$D22,IF($E22="Distribution Rev.",VLOOKUP(G$4,'4. Billing Determinants'!$B$19:$R$41,8,0)/'4. Billing Determinants'!$I$41*$D22, VLOOKUP(G$4,'4. Billing Determinants'!$B$19:$R$41,3,0)/'4. Billing Determinants'!$D$41*$D22))))),0) -> 15835.50561 | H22: =IFERROR(IF(H$4="",0,IF($E22="kWh",VLOOKUP(H$4,'4. Billing Determinants'!$B$19:$R$41,4,0)/'4. Billing Determinants'!$E$41*$D22,IF($E22="kW",VLOOKUP(H$4,'4. Billing Determinants'!$B$19:$R$41,5,0)/'4. Billing Determinants'!$F$41*$D22,IF($E22="Non-RPP kWh",VLOOKUP(H$4,'4. Billing Determinants'!$B$19:$R$41,6,0)/'4. Billing Determinants'!$G$41*$D22,IF($E22="Distribution Rev.",VLOOKUP(H$4,'4. Billing Determinants'!$B$19:$R$41,8,0)/'4. Billing Determinants'!$I$41*$D22, VLOOKUP(H$4,'4. Billing Determinants'!$B$19:$R$41,3,0)/'4. Billing Determinants'!$D$41*$D22))))),0) -> 20850.93036 | I22: =IFERROR(IF(I$4="",0,IF($E22="kWh",VLOOKUP(I$4,'4. Billing Determinants'!$B$19:$R$41,4,0)/'4. Billing Determinants'!$E$41*$D22,IF($E22="kW",VLOOKUP(I$4,'4. Billing Determinants'!$B$19:$R$41,5,0)/'4. Billing Determinants'!$F$41*$D22,IF($E22="Non-RPP kWh",VLOOKUP(I$4,'4. Billing Determinants'!$B$19:$R$41,6,0)/'4. Billing Determinants'!$G$41*$D22,IF($E22="Distribution Rev.",VLOOKUP(I$4,'4. Billing Determinants'!$B$19:$R$41,8,0)/'4. Billing Determinants'!$I$41*$D22, VLOOKUP(I$4,'4. Billing Determinants'!$B$19:$R$41,3,0)/'4. Billing Determinants'!$D$41*$D22))))),0) -> 3714.166059 | J22: =IFERROR(IF(J$4="",0,IF($E22="kWh",VLOOKUP(J$4,'4. Billing Determinants'!$B$19:$R$41,4,0)/'4. Billing Determinants'!$E$41*$D22,IF($E22="kW",VLOOKUP(J$4,'4. Billing Determinants'!$B$19:$R$41,5,0)/'4. Billing Determinants'!$F$41*$D22,IF($E22="Non-RPP kWh",VLOOKUP(J$4,'4. Billing Determinants'!$B$19:$R$41,6,0)/'4. Billing Determinants'!$G$41*$D22,IF($E22="Distribution Rev.",VLOOKUP(J$4,'4. Billing Determinants'!$B$19:$R$41,8,0)/'4. Billing Determinants'!$I$41*$D22, VLOOKUP(J$4,'4. Billing Determinants'!$B$19:$R$41,3,0)/'4. Billing Determinants'!$D$41*$D22))))),0) -> 197.3645163 | K22: =IFERROR(IF(K$4="",0,IF($E22="kWh",VLOOKUP(K$4,'4. Billing Determinants'!$B$19:$R$41,4,0)/'4. Billing Determinants'!$E$41*$D22,IF($E22="kW",VLOOKUP(K$4,'4. Billing Determinants'!$B$19:$R$41,5,0)/'4. Billing Determinants'!$F$41*$D22,IF($E22="Non-RPP kWh",VLOOKUP(K$4,'4. Billing Determinants'!$B$19:$R$41,6,0)/'4. Billing Determinants'!$G$41*$D22,IF($E22="Distribution Rev.",VLOOKUP(K$4,'4. Billing Determinants'!$B$19:$R$41,8,0)/'4. Billing Determinants'!$I$41*$D22, VLOOKUP(K$4,'4. Billing Determinants'!$B$19:$R$41,3,0)/'4. Billing Determinants'!$D$41*$D22))))),0) -> 830.5829048 | L22: =IFERROR(IF(L$4="",0,IF($E22="kWh",VLOOKUP(L$4,'4. Billing Determinants'!$B$19:$R$41,4,0)/'4. Billing Determinants'!$E$41*$D22,IF($E22="kW",VLOOKUP(L$4,'4. Billing Determinants'!$B$19:$R$41,5,0)/'4. Billing Determinants'!$F$41*$D22,IF($E22="Non-RPP kWh",VLOOKUP(L$4,'4. Billing Determinants'!$B$19:$R$41,6,0)/'4. Billing Determinants'!$G$41*$D22,IF($E22="Distribution Rev.",VLOOKUP(L$4,'4. Billing Determinants'!$B$19:$R$41,8,0)/'4. Billing Determinants'!$I$41*$D22, VLOOKUP(L$4,'4. Billing Determinants'!$B$19:$R$41,3,0)/'4. Billing Determinants'!$D$41*$D22))))),0) -> 0 | M22: =IFERROR(IF(M$4="",0,IF($E22="kWh",VLOOKUP(M$4,'4. Billing Determinants'!$B$19:$R$41,4,0)/'4. Billing Determinants'!$E$41*$D22,IF($E22="kW",VLOOKUP(M$4,'4. Billing Determinants'!$B$19:$R$41,5,0)/'4. Billing Determinants'!$F$41*$D22,IF($E22="Non-RPP kWh",VLOOKUP(M$4,'4. Billing Determinants'!$B$19:$R$41,6,0)/'4. Billing Determinants'!$G$41*$D22,IF($E22="Distribution Rev.",VLOOKUP(M$4,'4. Billing Determinants'!$B$19:$R$41,8,0)/'4. Billing Determinants'!$I$41*$D22, VLOOKUP(M$4,'4. Billing Determinants'!$B$19:$R$41,3,0)/'4. Billing Determinants'!$D$41*$D22))))),0) -> 0 | N22: =IFERROR(IF(N$4="",0,IF($E22="kWh",VLOOKUP(N$4,'4. Billing Determinants'!$B$19:$R$41,4,0)/'4. Billing Determinants'!$E$41*$D22,IF($E22="kW",VLOOKUP(N$4,'4. Billing Determinants'!$B$19:$R$41,5,0)/'4. Billing Determinants'!$F$41*$D22,IF($E22="Non-RPP kWh",VLOOKUP(N$4,'4. Billing Determinants'!$B$19:$R$41,6,0)/'4. Billing Determinants'!$G$41*$D22,IF($E22="Distribution Rev.",VLOOKUP(N$4,'4. Billing Determinants'!$B$19:$R$41,8,0)/'4. Billing Determinants'!$I$41*$D22, VLOOKUP(N$4,'4. Billing Determinants'!$B$19:$R$41,3,0)/'4. Billing Determinants'!$D$41*$D22))))),0) -> 0 | O22: =IFERROR(IF(O$4="",0,IF($E22="kWh",VLOOKUP(O$4,'4. Billing Determinants'!$B$19:$R$41,4,0)/'4. Billing Determinants'!$E$41*$D22,IF($E22="kW",VLOOKUP(O$4,'4. Billing Determinants'!$B$19:$R$41,5,0)/'4. Billing Determinants'!$F$41*$D22,IF($E22="Non-RPP kWh",VLOOKUP(O$4,'4. Billing Determinants'!$B$19:$R$41,6,0)/'4. Billing Determinants'!$G$41*$D22,IF($E22="Distribution Rev.",VLOOKUP(O$4,'4. Billing Determinants'!$B$19:$R$41,8,0)/'4. Billing Determinants'!$I$41*$D22, VLOOKUP(O$4,'4. Billing Determinants'!$B$19:$R$41,3,0)/'4. Billing Determinants'!$D$41*$D22))))),0) -> 0 | P22: =IFERROR(IF(P$4="",0,IF($E22="kWh",VLOOKUP(P$4,'4. Billing Determinants'!$B$19:$R$41,4,0)/'4. Billing Determinants'!$E$41*$D22,IF($E22="kW",VLOOKUP(P$4,'4. Billing Determinants'!$B$19:$R$41,5,0)/'4. Billing Determinants'!$F$41*$D22,IF($E22="Non-RPP kWh",VLOOKUP(P$4,'4. Billing Determinants'!$B$19:$R$41,6,0)/'4. Billing Determinants'!$G$41*$D22,IF($E22="Distribution Rev.",VLOOKUP(P$4,'4. Billing Determinants'!$B$19:$R$41,8,0)/'4. Billing Determinants'!$I$41*$D22, VLOOKUP(P$4,'4. Billing Determinants'!$B$19:$R$41,3,0)/'4. Billing Determinants'!$D$41*$D22))))),0) -> 0 | Q22: =IFERROR(IF(Q$4="",0,IF($E22="kWh",VLOOKUP(Q$4,'4. Billing Determinants'!$B$19:$R$41,4,0)/'4. Billing Determinants'!$E$41*$D22,IF($E22="kW",VLOOKUP(Q$4,'4. Billing Determinants'!$B$19:$R$41,5,0)/'4. Billing Determinants'!$F$41*$D22,IF($E22="Non-RPP kWh",VLOOKUP(Q$4,'4. Billing Determinants'!$B$19:$R$41,6,0)/'4. Billing Determinants'!$G$41*$D22,IF($E22="Distribution Rev.",VLOOKUP(Q$4,'4. Billing Determinants'!$B$19:$R$41,8,0)/'4. Billing Determinants'!$I$41*$D22, VLOOKUP(Q$4,'4. Billing Determinants'!$B$19:$R$41,3,0)/'4. Billing Determinants'!$D$41*$D22))))),0) -> 0 | R22: =IFERROR(IF(R$4="",0,IF($E22="kWh",VLOOKUP(R$4,'4. Billing Determinants'!$B$19:$R$41,4,0)/'4. Billing Determinants'!$E$41*$D22,IF($E22="kW",VLOOKUP(R$4,'4. Billing Determinants'!$B$19:$R$41,5,0)/'4. Billing Determinants'!$F$41*$D22,IF($E22="Non-RPP kWh",VLOOKUP(R$4,'4. Billing Determinants'!$B$19:$R$41,6,0)/'4. Billing Determinants'!$G$41*$D22,IF($E22="Distribution Rev.",VLOOKUP(R$4,'4. Billing Determinants'!$B$19:$R$41,8,0)/'4. Billing Determinants'!$I$41*$D22, VLOOKUP(R$4,'4. Billing Determinants'!$B$19:$R$41,3,0)/'4. Billing Determinants'!$D$41*$D22))))),0) -> 0 | S22: =IFERROR(IF(S$4="",0,IF($E22="kWh",VLOOKUP(S$4,'4. Billing Determinants'!$B$19:$R$41,4,0)/'4. Billing Determinants'!$E$41*$D22,IF($E22="kW",VLOOKUP(S$4,'4. Billing Determinants'!$B$19:$R$41,5,0)/'4. Billing Determinants'!$F$41*$D22,IF($E22="Non-RPP kWh",VLOOKUP(S$4,'4. Billing Determinants'!$B$19:$R$41,6,0)/'4. Billing Determinants'!$G$41*$D22,IF($E22="Distribution Rev.",VLOOKUP(S$4,'4. Billing Determinants'!$B$19:$R$41,8,0)/'4. Billing Determinants'!$I$41*$D22, VLOOKUP(S$4,'4. Billing Determinants'!$B$19:$R$41,3,0)/'4. Billing Determinants'!$D$41*$D22))))),0) -> 0 | T22: =IFERROR(IF(T$4="",0,IF($E22="kWh",VLOOKUP(T$4,'4. Billing Determinants'!$B$19:$R$41,4,0)/'4. Billing Determinants'!$E$41*$D22,IF($E22="kW",VLOOKUP(T$4,'4. Billing Determinants'!$B$19:$R$41,5,0)/'4. Billing Determinants'!$F$41*$D22,IF($E22="Non-RPP kWh",VLOOKUP(T$4,'4. Billing Determinants'!$B$19:$R$41,6,0)/'4. Billing Determinants'!$G$41*$D22,IF($E22="Distribution Rev.",VLOOKUP(T$4,'4. Billing Determinants'!$B$19:$R$41,8,0)/'4. Billing Determinants'!$I$41*$D22, VLOOKUP(T$4,'4. Billing Determinants'!$B$19:$R$41,3,0)/'4. Billing Determinants'!$D$41*$D22))))),0) -> 0 | U22: =IFERROR(IF(U$4="",0,IF($E22="kWh",VLOOKUP(U$4,'4. Billing Determinants'!$B$19:$R$41,4,0)/'4. Billing Determinants'!$E$41*$D22,IF($E22="kW",VLOOKUP(U$4,'4. Billing Determinants'!$B$19:$R$41,5,0)/'4. Billing Determinants'!$F$41*$D22,IF($E22="Non-RPP kWh",VLOOKUP(U$4,'4. Billing Determinants'!$B$19:$R$41,6,0)/'4. Billing Determinants'!$G$41*$D22,IF($E22="Distribution Rev.",VLOOKUP(U$4,'4. Billing Determinants'!$B$19:$R$41,8,0)/'4. Billing Determinants'!$I$41*$D22, VLOOKUP(U$4,'4. Billing Determinants'!$B$19:$R$41,3,0)/'4. Billing Determinants'!$D$41*$D22))))),0) -> 0 | V22: =IFERROR(IF(V$4="",0,IF($E22="kWh",VLOOKUP(V$4,'4. Billing Determinants'!$B$19:$R$41,4,0)/'4. Billing Determinants'!$E$41*$D22,IF($E22="kW",VLOOKUP(V$4,'4. Billing Determinants'!$B$19:$R$41,5,0)/'4. Billing Determinants'!$F$41*$D22,IF($E22="Non-RPP kWh",VLOOKUP(V$4,'4. Billing Determinants'!$B$19:$R$41,6,0)/'4. Billing Determinants'!$G$41*$D22,IF($E22="Distribution Rev.",VLOOKUP(V$4,'4. Billing Determinants'!$B$19:$R$41,8,0)/'4. Billing Determinants'!$I$41*$D22, VLOOKUP(V$4,'4. Billing Determinants'!$B$19:$R$41,3,0)/'4. Billing Determinants'!$D$41*$D22))))),0) -> 0 | W22: =IFERROR(IF(W$4="",0,IF($E22="kWh",VLOOKUP(W$4,'4. Billing Determinants'!$B$19:$R$41,4,0)/'4. Billing Determinants'!$E$41*$D22,IF($E22="kW",VLOOKUP(W$4,'4. Billing Determinants'!$B$19:$R$41,5,0)/'4. Billing Determinants'!$F$41*$D22,IF($E22="Non-RPP kWh",VLOOKUP(W$4,'4. Billing Determinants'!$B$19:$R$41,6,0)/'4. Billing Determinants'!$G$41*$D22,IF($E22="Distribution Rev.",VLOOKUP(W$4,'4. Billing Determinants'!$B$19:$R$41,8,0)/'4. Billing Determinants'!$I$41*$D22, VLOOKUP(W$4,'4. Billing Determinants'!$B$19:$R$41,3,0)/'4. Billing Determinants'!$D$41*$D22))))),0) -> 0 | X22: =IFERROR(IF(X$4="",0,IF($E22="kWh",VLOOKUP(X$4,'4. Billing Determinants'!$B$19:$R$41,4,0)/'4. Billing Determinants'!$E$41*$D22,IF($E22="kW",VLOOKUP(X$4,'4. Billing Determinants'!$B$19:$R$41,5,0)/'4. Billing Determinants'!$F$41*$D22,IF($E22="Non-RPP kWh",VLOOKUP(X$4,'4. Billing Determinants'!$B$19:$R$41,6,0)/'4. Billing Determinants'!$G$41*$D22,IF($E22="Distribution Rev.",VLOOKUP(X$4,'4. Billing Determinants'!$B$19:$R$41,8,0)/'4. Billing Determinants'!$I$41*$D22, VLOOKUP(X$4,'4. Billing Determinants'!$B$19:$R$41,3,0)/'4. Billing Determinants'!$D$41*$D22))))),0) -> 0 | Y22: =IFERROR(IF(Y$4="",0,IF($E22="kWh",VLOOKUP(Y$4,'4. Billing Determinants'!$B$19:$R$41,4,0)/'4. Billing Determinants'!$E$41*$D22,IF($E22="kW",VLOOKUP(Y$4,'4. Billing Determinants'!$B$19:$R$41,5,0)/'4. Billing Determinants'!$F$41*$D22,IF($E22="Non-RPP kWh",VLOOKUP(Y$4,'4. Billing Determinants'!$B$19:$R$41,6,0)/'4. Billing Determinants'!$G$41*$D22,IF($E22="Distribution Rev.",VLOOKUP(Y$4,'4. Billing Determinants'!$B$19:$R$41,8,0)/'4. Billing Determinants'!$I$41*$D22, VLOOKUP(Y$4,'4. Billing Determinants'!$B$19:$R$41,3,0)/'4. Billing Determinants'!$D$41*$D22))))),0) -> 0 | AA22: 4.888534022e-12
B23: Other Regulatory Assets - Sub-Account - Incremental Capital Charges | C23: 1508 | D23: ='2. 2015 Continuity Schedule'!BW44 -> 5975.544275 | E23: Distribution Rev. | F23: =IFERROR(IF(F$4="",0,IF($E23="kWh",VLOOKUP(F$4,'4. Billing Determinants'!$B$19:$R$41,4,0)/'4. Billing Determinants'!$E$41*$D23,IF($E23="kW",VLOOKUP(F$4,'4. Billing Determinants'!$B$19:$R$41,5,0)/'4. Billing Determinants'!$F$41*$D23,IF($E23="Non-RPP kWh",VLOOKUP(F$4,'4. Billing Determinants'!$B$19:$R$41,6,0)/'4. Billing Determinants'!$G$41*$D23,IF($E23="Distribution Rev.",VLOOKUP(F$4,'4. Billing Determinants'!$B$19:$R$41,8,0)/'4. Billing Determinants'!$I$41*$D23, VLOOKUP(F$4,'4. Billing Determinants'!$B$19:$R$41,3,0)/'4. Billing Determinants'!$D$41*$D23))))),0) -> 3425.184205 | G23: =IFERROR(IF(G$4="",0,IF($E23="kWh",VLOOKUP(G$4,'4. Billing Determinants'!$B$19:$R$41,4,0)/'4. Billing Determinants'!$E$41*$D23,IF($E23="kW",VLOOKUP(G$4,'4. Billing Determinants'!$B$19:$R$41,5,0)/'4. Billing Determinants'!$F$41*$D23,IF($E23="Non-RPP kWh",VLOOKUP(G$4,'4. Billing Determinants'!$B$19:$R$41,6,0)/'4. Billing Determinants'!$G$41*$D23,IF($E23="Distribution Rev.",VLOOKUP(G$4,'4. Billing Determinants'!$B$19:$R$41,8,0)/'4. Billing Determinants'!$I$41*$D23, VLOOKUP(G$4,'4. Billing Determinants'!$B$19:$R$41,3,0)/'4. Billing Determinants'!$D$41*$D23))))),0) -> 974.8408221 | H23: =IFERROR(IF(H$4="",0,IF($E23="kWh",VLOOKUP(H$4,'4. Billing Determinants'!$B$19:$R$41,4,0)/'4. Billing Determinants'!$E$41*$D23,IF($E23="kW",VLOOKUP(H$4,'4. Billing Determinants'!$B$19:$R$41,5,0)/'4. Billing Determinants'!$F$41*$D23,IF($E23="Non-RPP kWh",VLOOKUP(H$4,'4. Billing Determinants'!$B$19:$R$41,6,0)/'4. Billing Determinants'!$G$41*$D23,IF($E23="Distribution Rev.",VLOOKUP(H$4,'4. Billing Determinants'!$B$19:$R$41,8,0)/'4. Billing Determinants'!$I$41*$D23, VLOOKUP(H$4,'4. Billing Determinants'!$B$19:$R$41,3,0)/'4. Billing Determinants'!$D$41*$D23))))),0) -> 1283.592617 | I23: =IFERROR(IF(I$4="",0,IF($E23="kWh",VLOOKUP(I$4,'4. Billing Determinants'!$B$19:$R$41,4,0)/'4. Billing Determinants'!$E$41*$D23,IF($E23="kW",VLOOKUP(I$4,'4. Billing Determinants'!$B$19:$R$41,5,0)/'4. Billing Determinants'!$F$41*$D23,IF($E23="Non-RPP kWh",VLOOKUP(I$4,'4. Billing Determinants'!$B$19:$R$41,6,0)/'4. Billing Determinants'!$G$41*$D23,IF($E23="Distribution Rev.",VLOOKUP(I$4,'4. Billing Determinants'!$B$19:$R$41,8,0)/'4. Billing Determinants'!$I$41*$D23, VLOOKUP(I$4,'4. Billing Determinants'!$B$19:$R$41,3,0)/'4. Billing Determinants'!$D$41*$D23))))),0) -> 228.6457271 | J23: =IFERROR(IF(J$4="",0,IF($E23="kWh",VLOOKUP(J$4,'4. Billing Determinants'!$B$19:$R$41,4,0)/'4. Billing Determinants'!$E$41*$D23,IF($E23="kW",VLOOKUP(J$4,'4. Billing Determinants'!$B$19:$R$41,5,0)/'4. Billing Determinants'!$F$41*$D23,IF($E23="Non-RPP kWh",VLOOKUP(J$4,'4. Billing Determinants'!$B$19:$R$41,6,0)/'4. Billing Determinants'!$G$41*$D23,IF($E23="Distribution Rev.",VLOOKUP(J$4,'4. Billing Determinants'!$B$19:$R$41,8,0)/'4. Billing Determinants'!$I$41*$D23, VLOOKUP(J$4,'4. Billing Determinants'!$B$19:$R$41,3,0)/'4. Billing Determinants'!$D$41*$D23))))),0) -> 12.14984807 | K23: =IFERROR(IF(K$4="",0,IF($E23="kWh",VLOOKUP(K$4,'4. Billing Determinants'!$B$19:$R$41,4,0)/'4. Billing Determinants'!$E$41*$D23,IF($E23="kW",VLOOKUP(K$4,'4. Billing Determinants'!$B$19:$R$41,5,0)/'4. Billing Determinants'!$F$41*$D23,IF($E23="Non-RPP kWh",VLOOKUP(K$4,'4. Billing Determinants'!$B$19:$R$41,6,0)/'4. Billing Determinants'!$G$41*$D23,IF($E23="Distribution Rev.",VLOOKUP(K$4,'4. Billing Determinants'!$B$19:$R$41,8,0)/'4. Billing Determinants'!$I$41*$D23, VLOOKUP(K$4,'4. Billing Determinants'!$B$19:$R$41,3,0)/'4. Billing Determinants'!$D$41*$D23))))),0) -> 51.13105585 | L23: =IFERROR(IF(L$4="",0,IF($E23="kWh",VLOOKUP(L$4,'4. Billing Determinants'!$B$19:$R$41,4,0)/'4. Billing Determinants'!$E$41*$D23,IF($E23="kW",VLOOKUP(L$4,'4. Billing Determinants'!$B$19:$R$41,5,0)/'4. Billing Determinants'!$F$41*$D23,IF($E23="Non-RPP kWh",VLOOKUP(L$4,'4. Billing Determinants'!$B$19:$R$41,6,0)/'4. Billing Determinants'!$G$41*$D23,IF($E23="Distribution Rev.",VLOOKUP(L$4,'4. Billing Determinants'!$B$19:$R$41,8,0)/'4. Billing Determinants'!$I$41*$D23, VLOOKUP(L$4,'4. Billing Determinants'!$B$19:$R$41,3,0)/'4. Billing Determinants'!$D$41*$D23))))),0) -> 0 | M23: =IFERROR(IF(M$4="",0,IF($E23="kWh",VLOOKUP(M$4,'4. Billing Determinants'!$B$19:$R$41,4,0)/'4. Billing Determinants'!$E$41*$D23,IF($E23="kW",VLOOKUP(M$4,'4. Billing Determinants'!$B$19:$R$41,5,0)/'4. Billing Determinants'!$F$41*$D23,IF($E23="Non-RPP kWh",VLOOKUP(M$4,'4. Billing Determinants'!$B$19:$R$41,6,0)/'4. Billing Determinants'!$G$41*$D23,IF($E23="Distribution Rev.",VLOOKUP(M$4,'4. Billing Determinants'!$B$19:$R$41,8,0)/'4. Billing Determinants'!$I$41*$D23, VLOOKUP(M$4,'4. Billing Determinants'!$B$19:$R$41,3,0)/'4. Billing Determinants'!$D$41*$D23))))),0) -> 0 | N23: =IFERROR(IF(N$4="",0,IF($E23="kWh",VLOOKUP(N$4,'4. Billing Determinants'!$B$19:$R$41,4,0)/'4. Billing Determinants'!$E$41*$D23,IF($E23="kW",VLOOKUP(N$4,'4. Billing Determinants'!$B$19:$R$41,5,0)/'4. Billing Determinants'!$F$41*$D23,IF($E23="Non-RPP kWh",VLOOKUP(N$4,'4. Billing Determinants'!$B$19:$R$41,6,0)/'4. Billing Determinants'!$G$41*$D23,IF($E23="Distribution Rev.",VLOOKUP(N$4,'4. Billing Determinants'!$B$19:$R$41,8,0)/'4. Billing Determinants'!$I$41*$D23, VLOOKUP(N$4,'4. Billing Determinants'!$B$19:$R$41,3,0)/'4. Billing Determinants'!$D$41*$D23))))),0) -> 0 | O23: =IFERROR(IF(O$4="",0,IF($E23="kWh",VLOOKUP(O$4,'4. Billing Determinants'!$B$19:$R$41,4,0)/'4. Billing Determinants'!$E$41*$D23,IF($E23="kW",VLOOKUP(O$4,'4. Billing Determinants'!$B$19:$R$41,5,0)/'4. Billing Determinants'!$F$41*$D23,IF($E23="Non-RPP kWh",VLOOKUP(O$4,'4. Billing Determinants'!$B$19:$R$41,6,0)/'4. Billing Determinants'!$G$41*$D23,IF($E23="Distribution Rev.",VLOOKUP(O$4,'4. Billing Determinants'!$B$19:$R$41,8,0)/'4. Billing Determinants'!$I$41*$D23, VLOOKUP(O$4,'4. Billing Determinants'!$B$19:$R$41,3,0)/'4. Billing Determinants'!$D$41*$D23))))),0) -> 0 | P23: =IFERROR(IF(P$4="",0,IF($E23="kWh",VLOOKUP(P$4,'4. Billing Determinants'!$B$19:$R$41,4,0)/'4. Billing Determinants'!$E$41*$D23,IF($E23="kW",VLOOKUP(P$4,'4. Billing Determinants'!$B$19:$R$41,5,0)/'4. Billing Determinants'!$F$41*$D23,IF($E23="Non-RPP kWh",VLOOKUP(P$4,'4. Billing Determinants'!$B$19:$R$41,6,0)/'4. Billing Determinants'!$G$41*$D23,IF($E23="Distribution Rev.",VLOOKUP(P$4,'4. Billing Determinants'!$B$19:$R$41,8,0)/'4. Billing Determinants'!$I$41*$D23, VLOOKUP(P$4,'4. Billing Determinants'!$B$19:$R$41,3,0)/'4. Billing Determinants'!$D$41*$D23))))),0) -> 0 | Q23: =IFERROR(IF(Q$4="",0,IF($E23="kWh",VLOOKUP(Q$4,'4. Billing Determinants'!$B$19:$R$41,4,0)/'4. Billing Determinants'!$E$41*$D23,IF($E23="kW",VLOOKUP(Q$4,'4. Billing Determinants'!$B$19:$R$41,5,0)/'4. Billing Determinants'!$F$41*$D23,IF($E23="Non-RPP kWh",VLOOKUP(Q$4,'4. Billing Determinants'!$B$19:$R$41,6,0)/'4. Billing Determinants'!$G$41*$D23,IF($E23="Distribution Rev.",VLOOKUP(Q$4,'4. Billing Determinants'!$B$19:$R$41,8,0)/'4. Billing Determinants'!$I$41*$D23, VLOOKUP(Q$4,'4. Billing Determinants'!$B$19:$R$41,3,0)/'4. Billing Determinants'!$D$41*$D23))))),0) -> 0 | R23: =IFERROR(IF(R$4="",0,IF($E23="kWh",VLOOKUP(R$4,'4. Billing Determinants'!$B$19:$R$41,4,0)/'4. Billing Determinants'!$E$41*$D23,IF($E23="kW",VLOOKUP(R$4,'4. Billing Determinants'!$B$19:$R$41,5,0)/'4. Billing Determinants'!$F$41*$D23,IF($E23="Non-RPP kWh",VLOOKUP(R$4,'4. Billing Determinants'!$B$19:$R$41,6,0)/'4. Billing Determinants'!$G$41*$D23,IF($E23="Distribution Rev.",VLOOKUP(R$4,'4. Billing Determinants'!$B$19:$R$41,8,0)/'4. Billing Determinants'!$I$41*$D23, VLOOKUP(R$4,'4. Billing Determinants'!$B$19:$R$41,3,0)/'4. Billing Determinants'!$D$41*$D23))))),0) -> 0 | S23: =IFERROR(IF(S$4="",0,IF($E23="kWh",VLOOKUP(S$4,'4. Billing Determinants'!$B$19:$R$41,4,0)/'4. Billing Determinants'!$E$41*$D23,IF($E23="kW",VLOOKUP(S$4,'4. Billing Determinants'!$B$19:$R$41,5,0)/'4. Billing Determinants'!$F$41*$D23,IF($E23="Non-RPP kWh",VLOOKUP(S$4,'4. Billing Determinants'!$B$19:$R$41,6,0)/'4. Billing Determinants'!$G$41*$D23,IF($E23="Distribution Rev.",VLOOKUP(S$4,'4. Billing Determinants'!$B$19:$R$41,8,0)/'4. Billing Determinants'!$I$41*$D23, VLOOKUP(S$4,'4. Billing Determinants'!$B$19:$R$41,3,0)/'4. Billing Determinants'!$D$41*$D23))))),0) -> 0 | T23: =IFERROR(IF(T$4="",0,IF($E23="kWh",VLOOKUP(T$4,'4. Billing Determinants'!$B$19:$R$41,4,0)/'4. Billing Determinants'!$E$41*$D23,IF($E23="kW",VLOOKUP(T$4,'4. Billing Determinants'!$B$19:$R$41,5,0)/'4. Billing Determinants'!$F$41*$D23,IF($E23="Non-RPP kWh",VLOOKUP(T$4,'4. Billing Determinants'!$B$19:$R$41,6,0)/'4. Billing Determinants'!$G$41*$D23,IF($E23="Distribution Rev.",VLOOKUP(T$4,'4. Billing Determinants'!$B$19:$R$41,8,0)/'4. Billing Determinants'!$I$41*$D23, VLOOKUP(T$4,'4. Billing Determinants'!$B$19:$R$41,3,0)/'4. Billing Determinants'!$D$41*$D23))))),0) -> 0 | U23: =IFERROR(IF(U$4="",0,IF($E23="kWh",VLOOKUP(U$4,'4. Billing Determinants'!$B$19:$R$41,4,0)/'4. Billing Determinants'!$E$41*$D23,IF($E23="kW",VLOOKUP(U$4,'4. Billing Determinants'!$B$19:$R$41,5,0)/'4. Billing Determinants'!$F$41*$D23,IF($E23="Non-RPP kWh",VLOOKUP(U$4,'4. Billing Determinants'!$B$19:$R$41,6,0)/'4. Billing Determinants'!$G$41*$D23,IF($E23="Distribution Rev.",VLOOKUP(U$4,'4. Billing Determinants'!$B$19:$R$41,8,0)/'4. Billing Determinants'!$I$41*$D23, VLOOKUP(U$4,'4. Billing Determinants'!$B$19:$R$41,3,0)/'4. Billing Determinants'!$D$41*$D23))))),0) -> 0 | V23: =IFERROR(IF(V$4="",0,IF($E23="kWh",VLOOKUP(V$4,'4. Billing Determinants'!$B$19:$R$41,4,0)/'4. Billing Determinants'!$E$41*$D23,IF($E23="kW",VLOOKUP(V$4,'4. Billing Determinants'!$B$19:$R$41,5,0)/'4. Billing Determinants'!$F$41*$D23,IF($E23="Non-RPP kWh",VLOOKUP(V$4,'4. Billing Determinants'!$B$19:$R$41,6,0)/'4. Billing Determinants'!$G$41*$D23,IF($E23="Distribution Rev.",VLOOKUP(V$4,'4. Billing Determinants'!$B$19:$R$41,8,0)/'4. Billing Determinants'!$I$41*$D23, VLOOKUP(V$4,'4. Billing Determinants'!$B$19:$R$41,3,0)/'4. Billing Determinants'!$D$41*$D23))))),0) -> 0 | W23: =IFERROR(IF(W$4="",0,IF($E23="kWh",VLOOKUP(W$4,'4. Billing Determinants'!$B$19:$R$41,4,0)/'4. Billing Determinants'!$E$41*$D23,IF($E23="kW",VLOOKUP(W$4,'4. Billing Determinants'!$B$19:$R$41,5,0)/'4. Billing Determinants'!$F$41*$D23,IF($E23="Non-RPP kWh",VLOOKUP(W$4,'4. Billing Determinants'!$B$19:$R$41,6,0)/'4. Billing Determinants'!$G$41*$D23,IF($E23="Distribution Rev.",VLOOKUP(W$4,'4. Billing Determinants'!$B$19:$R$41,8,0)/'4. Billing Determinants'!$I$41*$D23, VLOOKUP(W$4,'4. Billing Determinants'!$B$19:$R$41,3,0)/'4. Billing Determinants'!$D$41*$D23))))),0) -> 0 | X23: =IFERROR(IF(X$4="",0,IF($E23="kWh",VLOOKUP(X$4,'4. Billing Determinants'!$B$19:$R$41,4,0)/'4. Billing Determinants'!$E$41*$D23,IF($E23="kW",VLOOKUP(X$4,'4. Billing Determinants'!$B$19:$R$41,5,0)/'4. Billing Determinants'!$F$41*$D23,IF($E23="Non-RPP kWh",VLOOKUP(X$4,'4. Billing Determinants'!$B$19:$R$41,6,0)/'4. Billing Determinants'!$G$41*$D23,IF($E23="Distribution Rev.",VLOOKUP(X$4,'4. Billing Determinants'!$B$19:$R$41,8,0)/'4. Billing Determinants'!$I$41*$D23, VLOOKUP(X$4,'4. Billing Determinants'!$B$19:$R$41,3,0)/'4. Billing Determinants'!$D$41*$D23))))),0) -> 0 | Y23: =IFERROR(IF(Y$4="",0,IF($E23="kWh",VLOOKUP(Y$4,'4. Billing Determinants'!$B$19:$R$41,4,0)/'4. Billing Determinants'!$E$41*$D23,IF($E23="kW",VLOOKUP(Y$4,'4. Billing Determinants'!$B$19:$R$41,5,0)/'4. Billing Determinants'!$F$41*$D23,IF($E23="Non-RPP kWh",VLOOKUP(Y$4,'4. Billing Determinants'!$B$19:$R$41,6,0)/'4. Billing Determinants'!$G$41*$D23,IF($E23="Distribution Rev.",VLOOKUP(Y$4,'4. Billing Determinants'!$B$19:$R$41,8,0)/'4. Billing Determinants'!$I$41*$D23, VLOOKUP(Y$4,'4. Billing Determinants'!$B$19:$R$41,3,0)/'4. Billing Determinants'!$D$41*$D23))))),0) -> 0 | AA23: 6.679101716e-13
B24: Other Regulatory Assets - Sub-Account - Incremental Capital 2012 | C24: 1508 | D24: ='2. 2015 Continuity Schedule'!BW45 -> 132079 | E24: Distribution Rev. | F24: =IFERROR(IF(F$4="",0,IF($E24="kWh",VLOOKUP(F$4,'4. Billing Determinants'!$B$19:$R$41,4,0)/'4. Billing Determinants'!$E$41*$D24,IF($E24="kW",VLOOKUP(F$4,'4. Billing Determinants'!$B$19:$R$41,5,0)/'4. Billing Determinants'!$F$41*$D24,IF($E24="Non-RPP kWh",VLOOKUP(F$4,'4. Billing Determinants'!$B$19:$R$41,6,0)/'4. Billing Determinants'!$G$41*$D24,IF($E24="Distribution Rev.",VLOOKUP(F$4,'4. Billing Determinants'!$B$19:$R$41,8,0)/'4. Billing Determinants'!$I$41*$D24, VLOOKUP(F$4,'4. Billing Determinants'!$B$19:$R$41,3,0)/'4. Billing Determinants'!$D$41*$D24))))),0) -> 75707.73201 | G24: =IFERROR(IF(G$4="",0,IF($E24="kWh",VLOOKUP(G$4,'4. Billing Determinants'!$B$19:$R$41,4,0)/'4. Billing Determinants'!$E$41*$D24,IF($E24="kW",VLOOKUP(G$4,'4. Billing Determinants'!$B$19:$R$41,5,0)/'4. Billing Determinants'!$F$41*$D24,IF($E24="Non-RPP kWh",VLOOKUP(G$4,'4. Billing Determinants'!$B$19:$R$41,6,0)/'4. Billing Determinants'!$G$41*$D24,IF($E24="Distribution Rev.",VLOOKUP(G$4,'4. Billing Determinants'!$B$19:$R$41,8,0)/'4. Billing Determinants'!$I$41*$D24, VLOOKUP(G$4,'4. Billing Determinants'!$B$19:$R$41,3,0)/'4. Billing Determinants'!$D$41*$D24))))),0) -> 21547.15872 | H24: =IFERROR(IF(H$4="",0,IF($E24="kWh",VLOOKUP(H$4,'4. Billing Determinants'!$B$19:$R$41,4,0)/'4. Billing Determinants'!$E$41*$D24,IF($E24="kW",VLOOKUP(H$4,'4. Billing Determinants'!$B$19:$R$41,5,0)/'4. Billing Determinants'!$F$41*$D24,IF($E24="Non-RPP kWh",VLOOKUP(H$4,'4. Billing Determinants'!$B$19:$R$41,6,0)/'4. Billing Determinants'!$G$41*$D24,IF($E24="Distribution Rev.",VLOOKUP(H$4,'4. Billing Determinants'!$B$19:$R$41,8,0)/'4. Billing Determinants'!$I$41*$D24, VLOOKUP(H$4,'4. Billing Determinants'!$B$19:$R$41,3,0)/'4. Billing Determinants'!$D$41*$D24))))),0) -> 28371.57947 | I24: =IFERROR(IF(I$4="",0,IF($E24="kWh",VLOOKUP(I$4,'4. Billing Determinants'!$B$19:$R$41,4,0)/'4. Billing Determinants'!$E$41*$D24,IF($E24="kW",VLOOKUP(I$4,'4. Billing Determinants'!$B$19:$R$41,5,0)/'4. Billing Determinants'!$F$41*$D24,IF($E24="Non-RPP kWh",VLOOKUP(I$4,'4. Billing Determinants'!$B$19:$R$41,6,0)/'4. Billing Determinants'!$G$41*$D24,IF($E24="Distribution Rev.",VLOOKUP(I$4,'4. Billing Determinants'!$B$19:$R$41,8,0)/'4. Billing Determinants'!$I$41*$D24, VLOOKUP(I$4,'4. Billing Determinants'!$B$19:$R$41,3,0)/'4. Billing Determinants'!$D$41*$D24))))),0) -> 5053.815618 | J24: =IFERROR(IF(J$4="",0,IF($E24="kWh",VLOOKUP(J$4,'4. Billing Determinants'!$B$19:$R$41,4,0)/'4. Billing Determinants'!$E$41*$D24,IF($E24="kW",VLOOKUP(J$4,'4. Billing Determinants'!$B$19:$R$41,5,0)/'4. Billing Determinants'!$F$41*$D24,IF($E24="Non-RPP kWh",VLOOKUP(J$4,'4. Billing Determinants'!$B$19:$R$41,6,0)/'4. Billing Determinants'!$G$41*$D24,IF($E24="Distribution Rev.",VLOOKUP(J$4,'4. Billing Determinants'!$B$19:$R$41,8,0)/'4. Billing Determinants'!$I$41*$D24, VLOOKUP(J$4,'4. Billing Determinants'!$B$19:$R$41,3,0)/'4. Billing Determinants'!$D$41*$D24))))),0) -> 268.5512331 | K24: =IFERROR(IF(K$4="",0,IF($E24="kWh",VLOOKUP(K$4,'4. Billing Determinants'!$B$19:$R$41,4,0)/'4. Billing Determinants'!$E$41*$D24,IF($E24="kW",VLOOKUP(K$4,'4. Billing Determinants'!$B$19:$R$41,5,0)/'4. Billing Determinants'!$F$41*$D24,IF($E24="Non-RPP kWh",VLOOKUP(K$4,'4. Billing Determinants'!$B$19:$R$41,6,0)/'4. Billing Determinants'!$G$41*$D24,IF($E24="Distribution Rev.",VLOOKUP(K$4,'4. Billing Determinants'!$B$19:$R$41,8,0)/'4. Billing Determinants'!$I$41*$D24, VLOOKUP(K$4,'4. Billing Determinants'!$B$19:$R$41,3,0)/'4. Billing Determinants'!$D$41*$D24))))),0) -> 1130.162946 | L24: =IFERROR(IF(L$4="",0,IF($E24="kWh",VLOOKUP(L$4,'4. Billing Determinants'!$B$19:$R$41,4,0)/'4. Billing Determinants'!$E$41*$D24,IF($E24="kW",VLOOKUP(L$4,'4. Billing Determinants'!$B$19:$R$41,5,0)/'4. Billing Determinants'!$F$41*$D24,IF($E24="Non-RPP kWh",VLOOKUP(L$4,'4. Billing Determinants'!$B$19:$R$41,6,0)/'4. Billing Determinants'!$G$41*$D24,IF($E24="Distribution Rev.",VLOOKUP(L$4,'4. Billing Determinants'!$B$19:$R$41,8,0)/'4. Billing Determinants'!$I$41*$D24, VLOOKUP(L$4,'4. Billing Determinants'!$B$19:$R$41,3,0)/'4. Billing Determinants'!$D$41*$D24))))),0) -> 0 | M24: =IFERROR(IF(M$4="",0,IF($E24="kWh",VLOOKUP(M$4,'4. Billing Determinants'!$B$19:$R$41,4,0)/'4. Billing Determinants'!$E$41*$D24,IF($E24="kW",VLOOKUP(M$4,'4. Billing Determinants'!$B$19:$R$41,5,0)/'4. Billing Determinants'!$F$41*$D24,IF($E24="Non-RPP kWh",VLOOKUP(M$4,'4. Billing Determinants'!$B$19:$R$41,6,0)/'4. Billing Determinants'!$G$41*$D24,IF($E24="Distribution Rev.",VLOOKUP(M$4,'4. Billing Determinants'!$B$19:$R$41,8,0)/'4. Billing Determinants'!$I$41*$D24, VLOOKUP(M$4,'4. Billing Determinants'!$B$19:$R$41,3,0)/'4. Billing Determinants'!$D$41*$D24))))),0) -> 0 | N24: =IFERROR(IF(N$4="",0,IF($E24="kWh",VLOOKUP(N$4,'4. Billing Determinants'!$B$19:$R$41,4,0)/'4. Billing Determinants'!$E$41*$D24,IF($E24="kW",VLOOKUP(N$4,'4. Billing Determinants'!$B$19:$R$41,5,0)/'4. Billing Determinants'!$F$41*$D24,IF($E24="Non-RPP kWh",VLOOKUP(N$4,'4. Billing Determinants'!$B$19:$R$41,6,0)/'4. Billing Determinants'!$G$41*$D24,IF($E24="Distribution Rev.",VLOOKUP(N$4,'4. Billing Determinants'!$B$19:$R$41,8,0)/'4. Billing Determinants'!$I$41*$D24, VLOOKUP(N$4,'4. Billing Determinants'!$B$19:$R$41,3,0)/'4. Billing Determinants'!$D$41*$D24))))),0) -> 0 | O24: =IFERROR(IF(O$4="",0,IF($E24="kWh",VLOOKUP(O$4,'4. Billing Determinants'!$B$19:$R$41,4,0)/'4. Billing Determinants'!$E$41*$D24,IF($E24="kW",VLOOKUP(O$4,'4. Billing Determinants'!$B$19:$R$41,5,0)/'4. Billing Determinants'!$F$41*$D24,IF($E24="Non-RPP kWh",VLOOKUP(O$4,'4. Billing Determinants'!$B$19:$R$41,6,0)/'4. Billing Determinants'!$G$41*$D24,IF($E24="Distribution Rev.",VLOOKUP(O$4,'4. Billing Determinants'!$B$19:$R$41,8,0)/'4. Billing Determinants'!$I$41*$D24, VLOOKUP(O$4,'4. Billing Determinants'!$B$19:$R$41,3,0)/'4. Billing Determinants'!$D$41*$D24))))),0) -> 0 | P24: =IFERROR(IF(P$4="",0,IF($E24="kWh",VLOOKUP(P$4,'4. Billing Determinants'!$B$19:$R$41,4,0)/'4. Billing Determinants'!$E$41*$D24,IF($E24="kW",VLOOKUP(P$4,'4. Billing Determinants'!$B$19:$R$41,5,0)/'4. Billing Determinants'!$F$41*$D24,IF($E24="Non-RPP kWh",VLOOKUP(P$4,'4. Billing Determinants'!$B$19:$R$41,6,0)/'4. Billing Determinants'!$G$41*$D24,IF($E24="Distribution Rev.",VLOOKUP(P$4,'4. Billing Determinants'!$B$19:$R$41,8,0)/'4. Billing Determinants'!$I$41*$D24, VLOOKUP(P$4,'4. Billing Determinants'!$B$19:$R$41,3,0)/'4. Billing Determinants'!$D$41*$D24))))),0) -> 0 | Q24: =IFERROR(IF(Q$4="",0,IF($E24="kWh",VLOOKUP(Q$4,'4. Billing Determinants'!$B$19:$R$41,4,0)/'4. Billing Determinants'!$E$41*$D24,IF($E24="kW",VLOOKUP(Q$4,'4. Billing Determinants'!$B$19:$R$41,5,0)/'4. Billing Determinants'!$F$41*$D24,IF($E24="Non-RPP kWh",VLOOKUP(Q$4,'4. Billing Determinants'!$B$19:$R$41,6,0)/'4. Billing Determinants'!$G$41*$D24,IF($E24="Distribution Rev.",VLOOKUP(Q$4,'4. Billing Determinants'!$B$19:$R$41,8,0)/'4. Billing Determinants'!$I$41*$D24, VLOOKUP(Q$4,'4. Billing Determinants'!$B$19:$R$41,3,0)/'4. Billing Determinants'!$D$41*$D24))))),0) -> 0 | R24: =IFERROR(IF(R$4="",0,IF($E24="kWh",VLOOKUP(R$4,'4. Billing Determinants'!$B$19:$R$41,4,0)/'4. Billing Determinants'!$E$41*$D24,IF($E24="kW",VLOOKUP(R$4,'4. Billing Determinants'!$B$19:$R$41,5,0)/'4. Billing Determinants'!$F$41*$D24,IF($E24="Non-RPP kWh",VLOOKUP(R$4,'4. Billing Determinants'!$B$19:$R$41,6,0)/'4. Billing Determinants'!$G$41*$D24,IF($E24="Distribution Rev.",VLOOKUP(R$4,'4. Billing Determinants'!$B$19:$R$41,8,0)/'4. Billing Determinants'!$I$41*$D24, VLOOKUP(R$4,'4. Billing Determinants'!$B$19:$R$41,3,0)/'4. Billing Determinants'!$D$41*$D24))))),0) -> 0 | S24: =IFERROR(IF(S$4="",0,IF($E24="kWh",VLOOKUP(S$4,'4. Billing Determinants'!$B$19:$R$41,4,0)/'4. Billing Determinants'!$E$41*$D24,IF($E24="kW",VLOOKUP(S$4,'4. Billing Determinants'!$B$19:$R$41,5,0)/'4. Billing Determinants'!$F$41*$D24,IF($E24="Non-RPP kWh",VLOOKUP(S$4,'4. Billing Determinants'!$B$19:$R$41,6,0)/'4. Billing Determinants'!$G$41*$D24,IF($E24="Distribution Rev.",VLOOKUP(S$4,'4. Billing Determinants'!$B$19:$R$41,8,0)/'4. Billing Determinants'!$I$41*$D24, VLOOKUP(S$4,'4. Billing Determinants'!$B$19:$R$41,3,0)/'4. Billing Determinants'!$D$41*$D24))))),0) -> 0 | T24: =IFERROR(IF(T$4="",0,IF($E24="kWh",VLOOKUP(T$4,'4. Billing Determinants'!$B$19:$R$41,4,0)/'4. Billing Determinants'!$E$41*$D24,IF($E24="kW",VLOOKUP(T$4,'4. Billing Determinants'!$B$19:$R$41,5,0)/'4. Billing Determinants'!$F$41*$D24,IF($E24="Non-RPP kWh",VLOOKUP(T$4,'4. Billing Determinants'!$B$19:$R$41,6,0)/'4. Billing Determinants'!$G$41*$D24,IF($E24="Distribution Rev.",VLOOKUP(T$4,'4. Billing Determinants'!$B$19:$R$41,8,0)/'4. Billing Determinants'!$I$41*$D24, VLOOKUP(T$4,'4. Billing Determinants'!$B$19:$R$41,3,0)/'4. Billing Determinants'!$D$41*$D24))))),0) -> 0 | U24: =IFERROR(IF(U$4="",0,IF($E24="kWh",VLOOKUP(U$4,'4. Billing Determinants'!$B$19:$R$41,4,0)/'4. Billing Determinants'!$E$41*$D24,IF($E24="kW",VLOOKUP(U$4,'4. Billing Determinants'!$B$19:$R$41,5,0)/'4. Billing Determinants'!$F$41*$D24,IF($E24="Non-RPP kWh",VLOOKUP(U$4,'4. Billing Determinants'!$B$19:$R$41,6,0)/'4. Billing Determinants'!$G$41*$D24,IF($E24="Distribution Rev.",VLOOKUP(U$4,'4. Billing Determinants'!$B$19:$R$41,8,0)/'4. Billing Determinants'!$I$41*$D24, VLOOKUP(U$4,'4. Billing Determinants'!$B$19:$R$41,3,0)/'4. Billing Determinants'!$D$41*$D24))))),0) -> 0 | V24: =IFERROR(IF(V$4="",0,IF($E24="kWh",VLOOKUP(V$4,'4. Billing Determinants'!$B$19:$R$41,4,0)/'4. Billing Determinants'!$E$41*$D24,IF($E24="kW",VLOOKUP(V$4,'4. Billing Determinants'!$B$19:$R$41,5,0)/'4. Billing Determinants'!$F$41*$D24,IF($E24="Non-RPP kWh",VLOOKUP(V$4,'4. Billing Determinants'!$B$19:$R$41,6,0)/'4. Billing Determinants'!$G$41*$D24,IF($E24="Distribution Rev.",VLOOKUP(V$4,'4. Billing Determinants'!$B$19:$R$41,8,0)/'4. Billing Determinants'!$I$41*$D24, VLOOKUP(V$4,'4. Billing Determinants'!$B$19:$R$41,3,0)/'4. Billing Determinants'!$D$41*$D24))))),0) -> 0 | W24: =IFERROR(IF(W$4="",0,IF($E24="kWh",VLOOKUP(W$4,'4. Billing Determinants'!$B$19:$R$41,4,0)/'4. Billing Determinants'!$E$41*$D24,IF($E24="kW",VLOOKUP(W$4,'4. Billing Determinants'!$B$19:$R$41,5,0)/'4. Billing Determinants'!$F$41*$D24,IF($E24="Non-RPP kWh",VLOOKUP(W$4,'4. Billing Determinants'!$B$19:$R$41,6,0)/'4. Billing Determinants'!$G$41*$D24,IF($E24="Distribution Rev.",VLOOKUP(W$4,'4. Billing Determinants'!$B$19:$R$41,8,0)/'4. Billing Determinants'!$I$41*$D24, VLOOKUP(W$4,'4. Billing Determinants'!$B$19:$R$41,3,0)/'4. Billing Determinants'!$D$41*$D24))))),0) -> 0 | X24: =IFERROR(IF(X$4="",0,IF($E24="kWh",VLOOKUP(X$4,'4. Billing Determinants'!$B$19:$R$41,4,0)/'4. Billing Determinants'!$E$41*$D24,IF($E24="kW",VLOOKUP(X$4,'4. Billing Determinants'!$B$19:$R$41,5,0)/'4. Billing Determinants'!$F$41*$D24,IF($E24="Non-RPP kWh",VLOOKUP(X$4,'4. Billing Determinants'!$B$19:$R$41,6,0)/'4. Billing Determinants'!$G$41*$D24,IF($E24="Distribution Rev.",VLOOKUP(X$4,'4. Billing Determinants'!$B$19:$R$41,8,0)/'4. Billing Determinants'!$I$41*$D24, VLOOKUP(X$4,'4. Billing Determinants'!$B$19:$R$41,3,0)/'4. Billing Determinants'!$D$41*$D24))))),0) -> 0 | Y24: =IFERROR(IF(Y$4="",0,IF($E24="kWh",VLOOKUP(Y$4,'4. Billing Determinants'!$B$19:$R$41,4,0)/'4. Billing Determinants'!$E$41*$D24,IF($E24="kW",VLOOKUP(Y$4,'4. Billing Determinants'!$B$19:$R$41,5,0)/'4. Billing Determinants'!$F$41*$D24,IF($E24="Non-RPP kWh",VLOOKUP(Y$4,'4. Billing Determinants'!$B$19:$R$41,6,0)/'4. Billing Determinants'!$G$41*$D24,IF($E24="Distribution Rev.",VLOOKUP(Y$4,'4. Billing Determinants'!$B$19:$R$41,8,0)/'4. Billing Determinants'!$I$41*$D24, VLOOKUP(Y$4,'4. Billing Determinants'!$B$19:$R$41,3,0)/'4. Billing Determinants'!$D$41*$D24))))),0) -> 0 | AA24: 1.273292582e-11
B25: Other Regulatory Assets - Sub-Account - Financial Assistance Payment and Recovery Variance - Ontario Clean Energy Benefit Act8 | C25: 1508 | D25: ='2. 2015 Continuity Schedule'!BW46 -> 0 | F25: =IFERROR(IF(F$4="",0,IF($E25="kWh",VLOOKUP(F$4,'4. Billing Determinants'!$B$19:$R$41,4,0)/'4. Billing Determinants'!$E$41*$D25,IF($E25="kW",VLOOKUP(F$4,'4. Billing Determinants'!$B$19:$R$41,5,0)/'4. Billing Determinants'!$F$41*$D25,IF($E25="Non-RPP kWh",VLOOKUP(F$4,'4. Billing Determinants'!$B$19:$R$41,6,0)/'4. Billing Determinants'!$G$41*$D25,IF($E25="Distribution Rev.",VLOOKUP(F$4,'4. Billing Determinants'!$B$19:$R$41,8,0)/'4. Billing Determinants'!$I$41*$D25, VLOOKUP(F$4,'4. Billing Determinants'!$B$19:$R$41,3,0)/'4. Billing Determinants'!$D$41*$D25))))),0) -> 0 | G25: =IFERROR(IF(G$4="",0,IF($E25="kWh",VLOOKUP(G$4,'4. Billing Determinants'!$B$19:$R$41,4,0)/'4. Billing Determinants'!$E$41*$D25,IF($E25="kW",VLOOKUP(G$4,'4. Billing Determinants'!$B$19:$R$41,5,0)/'4. Billing Determinants'!$F$41*$D25,IF($E25="Non-RPP kWh",VLOOKUP(G$4,'4. Billing Determinants'!$B$19:$R$41,6,0)/'4. Billing Determinants'!$G$41*$D25,IF($E25="Distribution Rev.",VLOOKUP(G$4,'4. Billing Determinants'!$B$19:$R$41,8,0)/'4. Billing Determinants'!$I$41*$D25, VLOOKUP(G$4,'4. Billing Determinants'!$B$19:$R$41,3,0)/'4. Billing Determinants'!$D$41*$D25))))),0) -> 0 | H25: =IFERROR(IF(H$4="",0,IF($E25="kWh",VLOOKUP(H$4,'4. Billing Determinants'!$B$19:$R$41,4,0)/'4. Billing Determinants'!$E$41*$D25,IF($E25="kW",VLOOKUP(H$4,'4. Billing Determinants'!$B$19:$R$41,5,0)/'4. Billing Determinants'!$F$41*$D25,IF($E25="Non-RPP kWh",VLOOKUP(H$4,'4. Billing Determinants'!$B$19:$R$41,6,0)/'4. Billing Determinants'!$G$41*$D25,IF($E25="Distribution Rev.",VLOOKUP(H$4,'4. Billing Determinants'!$B$19:$R$41,8,0)/'4. Billing Determinants'!$I$41*$D25, VLOOKUP(H$4,'4. Billing Determinants'!$B$19:$R$41,3,0)/'4. Billing Determinants'!$D$41*$D25))))),0) -> 0 | I25: =IFERROR(IF(I$4="",0,IF($E25="kWh",VLOOKUP(I$4,'4. Billing Determinants'!$B$19:$R$41,4,0)/'4. Billing Determinants'!$E$41*$D25,IF($E25="kW",VLOOKUP(I$4,'4. Billing Determinants'!$B$19:$R$41,5,0)/'4. Billing Determinants'!$F$41*$D25,IF($E25="Non-RPP kWh",VLOOKUP(I$4,'4. Billing Determinants'!$B$19:$R$41,6,0)/'4. Billing Determinants'!$G$41*$D25,IF($E25="Distribution Rev.",VLOOKUP(I$4,'4. Billing Determinants'!$B$19:$R$41,8,0)/'4. Billing Determinants'!$I$41*$D25, VLOOKUP(I$4,'4. Billing Determinants'!$B$19:$R$41,3,0)/'4. Billing Determinants'!$D$41*$D25))))),0) -> 0 | J25: =IFERROR(IF(J$4="",0,IF($E25="kWh",VLOOKUP(J$4,'4. Billing Determinants'!$B$19:$R$41,4,0)/'4. Billing Determinants'!$E$41*$D25,IF($E25="kW",VLOOKUP(J$4,'4. Billing Determinants'!$B$19:$R$41,5,0)/'4. Billing Determinants'!$F$41*$D25,IF($E25="Non-RPP kWh",VLOOKUP(J$4,'4. Billing Determinants'!$B$19:$R$41,6,0)/'4. Billing Determinants'!$G$41*$D25,IF($E25="Distribution Rev.",VLOOKUP(J$4,'4. Billing Determinants'!$B$19:$R$41,8,0)/'4. Billing Determinants'!$I$41*$D25, VLOOKUP(J$4,'4. Billing Determinants'!$B$19:$R$41,3,0)/'4. Billing Determinants'!$D$41*$D25))))),0) -> 0 | K25: =IFERROR(IF(K$4="",0,IF($E25="kWh",VLOOKUP(K$4,'4. Billing Determinants'!$B$19:$R$41,4,0)/'4. Billing Determinants'!$E$41*$D25,IF($E25="kW",VLOOKUP(K$4,'4. Billing Determinants'!$B$19:$R$41,5,0)/'4. Billing Determinants'!$F$41*$D25,IF($E25="Non-RPP kWh",VLOOKUP(K$4,'4. Billing Determinants'!$B$19:$R$41,6,0)/'4. Billing Determinants'!$G$41*$D25,IF($E25="Distribution Rev.",VLOOKUP(K$4,'4. Billing Determinants'!$B$19:$R$41,8,0)/'4. Billing Determinants'!$I$41*$D25, VLOOKUP(K$4,'4. Billing Determinants'!$B$19:$R$41,3,0)/'4. Billing Determinants'!$D$41*$D25))))),0) -> 0 | L25: =IFERROR(IF(L$4="",0,IF($E25="kWh",VLOOKUP(L$4,'4. Billing Determinants'!$B$19:$R$41,4,0)/'4. Billing Determinants'!$E$41*$D25,IF($E25="kW",VLOOKUP(L$4,'4. Billing Determinants'!$B$19:$R$41,5,0)/'4. Billing Determinants'!$F$41*$D25,IF($E25="Non-RPP kWh",VLOOKUP(L$4,'4. Billing Determinants'!$B$19:$R$41,6,0)/'4. Billing Determinants'!$G$41*$D25,IF($E25="Distribution Rev.",VLOOKUP(L$4,'4. Billing Determinants'!$B$19:$R$41,8,0)/'4. Billing Determinants'!$I$41*$D25, VLOOKUP(L$4,'4. Billing Determinants'!$B$19:$R$41,3,0)/'4. Billing Determinants'!$D$41*$D25))))),0) -> 0 | M25: =IFERROR(IF(M$4="",0,IF($E25="kWh",VLOOKUP(M$4,'4. Billing Determinants'!$B$19:$R$41,4,0)/'4. Billing Determinants'!$E$41*$D25,IF($E25="kW",VLOOKUP(M$4,'4. Billing Determinants'!$B$19:$R$41,5,0)/'4. Billing Determinants'!$F$41*$D25,IF($E25="Non-RPP kWh",VLOOKUP(M$4,'4. Billing Determinants'!$B$19:$R$41,6,0)/'4. Billing Determinants'!$G$41*$D25,IF($E25="Distribution Rev.",VLOOKUP(M$4,'4. Billing Determinants'!$B$19:$R$41,8,0)/'4. Billing Determinants'!$I$41*$D25, VLOOKUP(M$4,'4. Billing Determinants'!$B$19:$R$41,3,0)/'4. Billing Determinants'!$D$41*$D25))))),0) -> 0 | N25: =IFERROR(IF(N$4="",0,IF($E25="kWh",VLOOKUP(N$4,'4. Billing Determinants'!$B$19:$R$41,4,0)/'4. Billing Determinants'!$E$41*$D25,IF($E25="kW",VLOOKUP(N$4,'4. Billing Determinants'!$B$19:$R$41,5,0)/'4. Billing Determinants'!$F$41*$D25,IF($E25="Non-RPP kWh",VLOOKUP(N$4,'4. Billing Determinants'!$B$19:$R$41,6,0)/'4. Billing Determinants'!$G$41*$D25,IF($E25="Distribution Rev.",VLOOKUP(N$4,'4. Billing Determinants'!$B$19:$R$41,8,0)/'4. Billing Determinants'!$I$41*$D25, VLOOKUP(N$4,'4. Billing Determinants'!$B$19:$R$41,3,0)/'4. Billing Determinants'!$D$41*$D25))))),0) -> 0 | O25: =IFERROR(IF(O$4="",0,IF($E25="kWh",VLOOKUP(O$4,'4. Billing Determinants'!$B$19:$R$41,4,0)/'4. Billing Determinants'!$E$41*$D25,IF($E25="kW",VLOOKUP(O$4,'4. Billing Determinants'!$B$19:$R$41,5,0)/'4. Billing Determinants'!$F$41*$D25,IF($E25="Non-RPP kWh",VLOOKUP(O$4,'4. Billing Determinants'!$B$19:$R$41,6,0)/'4. Billing Determinants'!$G$41*$D25,IF($E25="Distribution Rev.",VLOOKUP(O$4,'4. Billing Determinants'!$B$19:$R$41,8,0)/'4. Billing Determinants'!$I$41*$D25, VLOOKUP(O$4,'4. Billing Determinants'!$B$19:$R$41,3,0)/'4. Billing Determinants'!$D$41*$D25))))),0) -> 0 | P25: =IFERROR(IF(P$4="",0,IF($E25="kWh",VLOOKUP(P$4,'4. Billing Determinants'!$B$19:$R$41,4,0)/'4. Billing Determinants'!$E$41*$D25,IF($E25="kW",VLOOKUP(P$4,'4. Billing Determinants'!$B$19:$R$41,5,0)/'4. Billing Determinants'!$F$41*$D25,IF($E25="Non-RPP kWh",VLOOKUP(P$4,'4. Billing Determinants'!$B$19:$R$41,6,0)/'4. Billing Determinants'!$G$41*$D25,IF($E25="Distribution Rev.",VLOOKUP(P$4,'4. Billing Determinants'!$B$19:$R$41,8,0)/'4. Billing Determinants'!$I$41*$D25, VLOOKUP(P$4,'4. Billing Determinants'!$B$19:$R$41,3,0)/'4. Billing Determinants'!$D$41*$D25))))),0) -> 0 | Q25: =IFERROR(IF(Q$4="",0,IF($E25="kWh",VLOOKUP(Q$4,'4. Billing Determinants'!$B$19:$R$41,4,0)/'4. Billing Determinants'!$E$41*$D25,IF($E25="kW",VLOOKUP(Q$4,'4. Billing Determinants'!$B$19:$R$41,5,0)/'4. Billing Determinants'!$F$41*$D25,IF($E25="Non-RPP kWh",VLOOKUP(Q$4,'4. Billing Determinants'!$B$19:$R$41,6,0)/'4. Billing Determinants'!$G$41*$D25,IF($E25="Distribution Rev.",VLOOKUP(Q$4,'4. Billing Determinants'!$B$19:$R$41,8,0)/'4. Billing Determinants'!$I$41*$D25, VLOOKUP(Q$4,'4. Billing Determinants'!$B$19:$R$41,3,0)/'4. Billing Determinants'!$D$41*$D25))))),0) -> 0 | R25: =IFERROR(IF(R$4="",0,IF($E25="kWh",VLOOKUP(R$4,'4. Billing Determinants'!$B$19:$R$41,4,0)/'4. Billing Determinants'!$E$41*$D25,IF($E25="kW",VLOOKUP(R$4,'4. Billing Determinants'!$B$19:$R$41,5,0)/'4. Billing Determinants'!$F$41*$D25,IF($E25="Non-RPP kWh",VLOOKUP(R$4,'4. Billing Determinants'!$B$19:$R$41,6,0)/'4. Billing Determinants'!$G$41*$D25,IF($E25="Distribution Rev.",VLOOKUP(R$4,'4. Billing Determinants'!$B$19:$R$41,8,0)/'4. Billing Determinants'!$I$41*$D25, VLOOKUP(R$4,'4. Billing Determinants'!$B$19:$R$41,3,0)/'4. Billing Determinants'!$D$41*$D25))))),0) -> 0 | S25: =IFERROR(IF(S$4="",0,IF($E25="kWh",VLOOKUP(S$4,'4. Billing Determinants'!$B$19:$R$41,4,0)/'4. Billing Determinants'!$E$41*$D25,IF($E25="kW",VLOOKUP(S$4,'4. Billing Determinants'!$B$19:$R$41,5,0)/'4. Billing Determinants'!$F$41*$D25,IF($E25="Non-RPP kWh",VLOOKUP(S$4,'4. Billing Determinants'!$B$19:$R$41,6,0)/'4. Billing Determinants'!$G$41*$D25,IF($E25="Distribution Rev.",VLOOKUP(S$4,'4. Billing Determinants'!$B$19:$R$41,8,0)/'4. Billing Determinants'!$I$41*$D25, VLOOKUP(S$4,'4. Billing Determinants'!$B$19:$R$41,3,0)/'4. Billing Determinants'!$D$41*$D25))))),0) -> 0 | T25: =IFERROR(IF(T$4="",0,IF($E25="kWh",VLOOKUP(T$4,'4. Billing Determinants'!$B$19:$R$41,4,0)/'4. Billing Determinants'!$E$41*$D25,IF($E25="kW",VLOOKUP(T$4,'4. Billing Determinants'!$B$19:$R$41,5,0)/'4. Billing Determinants'!$F$41*$D25,IF($E25="Non-RPP kWh",VLOOKUP(T$4,'4. Billing Determinants'!$B$19:$R$41,6,0)/'4. Billing Determinants'!$G$41*$D25,IF($E25="Distribution Rev.",VLOOKUP(T$4,'4. Billing Determinants'!$B$19:$R$41,8,0)/'4. Billing Determinants'!$I$41*$D25, VLOOKUP(T$4,'4. Billing Determinants'!$B$19:$R$41,3,0)/'4. Billing Determinants'!$D$41*$D25))))),0) -> 0 | U25: =IFERROR(IF(U$4="",0,IF($E25="kWh",VLOOKUP(U$4,'4. Billing Determinants'!$B$19:$R$41,4,0)/'4. Billing Determinants'!$E$41*$D25,IF($E25="kW",VLOOKUP(U$4,'4. Billing Determinants'!$B$19:$R$41,5,0)/'4. Billing Determinants'!$F$41*$D25,IF($E25="Non-RPP kWh",VLOOKUP(U$4,'4. Billing Determinants'!$B$19:$R$41,6,0)/'4. Billing Determinants'!$G$41*$D25,IF($E25="Distribution Rev.",VLOOKUP(U$4,'4. Billing Determinants'!$B$19:$R$41,8,0)/'4. Billing Determinants'!$I$41*$D25, VLOOKUP(U$4,'4. Billing Determinants'!$B$19:$R$41,3,0)/'4. Billing Determinants'!$D$41*$D25))))),0) -> 0 | V25: =IFERROR(IF(V$4="",0,IF($E25="kWh",VLOOKUP(V$4,'4. Billing Determinants'!$B$19:$R$41,4,0)/'4. Billing Determinants'!$E$41*$D25,IF($E25="kW",VLOOKUP(V$4,'4. Billing Determinants'!$B$19:$R$41,5,0)/'4. Billing Determinants'!$F$41*$D25,IF($E25="Non-RPP kWh",VLOOKUP(V$4,'4. Billing Determinants'!$B$19:$R$41,6,0)/'4. Billing Determinants'!$G$41*$D25,IF($E25="Distribution Rev.",VLOOKUP(V$4,'4. Billing Determinants'!$B$19:$R$41,8,0)/'4. Billing Determinants'!$I$41*$D25, VLOOKUP(V$4,'4. Billing Determinants'!$B$19:$R$41,3,0)/'4. Billing Determinants'!$D$41*$D25))))),0) -> 0 | W25: =IFERROR(IF(W$4="",0,IF($E25="kWh",VLOOKUP(W$4,'4. Billing Determinants'!$B$19:$R$41,4,0)/'4. Billing Determinants'!$E$41*$D25,IF($E25="kW",VLOOKUP(W$4,'4. Billing Determinants'!$B$19:$R$41,5,0)/'4. Billing Determinants'!$F$41*$D25,IF($E25="Non-RPP kWh",VLOOKUP(W$4,'4. Billing Determinants'!$B$19:$R$41,6,0)/'4. Billing Determinants'!$G$41*$D25,IF($E25="Distribution Rev.",VLOOKUP(W$4,'4. Billing Determinants'!$B$19:$R$41,8,0)/'4. Billing Determinants'!$I$41*$D25, VLOOKUP(W$4,'4. Billing Determinants'!$B$19:$R$41,3,0)/'4. Billing Determinants'!$D$41*$D25))))),0) -> 0 | X25: =IFERROR(IF(X$4="",0,IF($E25="kWh",VLOOKUP(X$4,'4. Billing Determinants'!$B$19:$R$41,4,0)/'4. Billing Determinants'!$E$41*$D25,IF($E25="kW",VLOOKUP(X$4,'4. Billing Determinants'!$B$19:$R$41,5,0)/'4. Billing Determinants'!$F$41*$D25,IF($E25="Non-RPP kWh",VLOOKUP(X$4,'4. Billing Determinants'!$B$19:$R$41,6,0)/'4. Billing Determinants'!$G$41*$D25,IF($E25="Distribution Rev.",VLOOKUP(X$4,'4. Billing Determinants'!$B$19:$R$41,8,0)/'4. Billing Determinants'!$I$41*$D25, VLOOKUP(X$4,'4. Billing Determinants'!$B$19:$R$41,3,0)/'4. Billing Determinants'!$D$41*$D25))))),0) -> 0 | Y25: =IFERROR(IF(Y$4="",0,IF($E25="kWh",VLOOKUP(Y$4,'4. Billing Determinants'!$B$19:$R$41,4,0)/'4. Billing Determinants'!$E$41*$D25,IF($E25="kW",VLOOKUP(Y$4,'4. Billing Determinants'!$B$19:$R$41,5,0)/'4. Billing Determinants'!$F$41*$D25,IF($E25="Non-RPP kWh",VLOOKUP(Y$4,'4. Billing Determinants'!$B$19:$R$41,6,0)/'4. Billing Determinants'!$G$41*$D25,IF($E25="Distribution Rev.",VLOOKUP(Y$4,'4. Billing Determinants'!$B$19:$R$41,8,0)/'4. Billing Determinants'!$I$41*$D25, VLOOKUP(Y$4,'4. Billing Determinants'!$B$19:$R$41,3,0)/'4. Billing Determinants'!$D$41*$D25))))),0) -> 0 | AA25: 0
B26: Other Regulatory Assets - Sub-Account - Financial Assistance Payment and Recovery Carrying Charges | C26: 1508 | D26: ='2. 2015 Continuity Schedule'!BW47 -> 0 | F26: =IFERROR(IF(F$4="",0,IF($E26="kWh",VLOOKUP(F$4,'4. Billing Determinants'!$B$19:$R$41,4,0)/'4. Billing Determinants'!$E$41*$D26,IF($E26="kW",VLOOKUP(F$4,'4. Billing Determinants'!$B$19:$R$41,5,0)/'4. Billing Determinants'!$F$41*$D26,IF($E26="Non-RPP kWh",VLOOKUP(F$4,'4. Billing Determinants'!$B$19:$R$41,6,0)/'4. Billing Determinants'!$G$41*$D26,IF($E26="Distribution Rev.",VLOOKUP(F$4,'4. Billing Determinants'!$B$19:$R$41,8,0)/'4. Billing Determinants'!$I$41*$D26, VLOOKUP(F$4,'4. Billing Determinants'!$B$19:$R$41,3,0)/'4. Billing Determinants'!$D$41*$D26))))),0) -> 0 | G26: =IFERROR(IF(G$4="",0,IF($E26="kWh",VLOOKUP(G$4,'4. Billing Determinants'!$B$19:$R$41,4,0)/'4. Billing Determinants'!$E$41*$D26,IF($E26="kW",VLOOKUP(G$4,'4. Billing Determinants'!$B$19:$R$41,5,0)/'4. Billing Determinants'!$F$41*$D26,IF($E26="Non-RPP kWh",VLOOKUP(G$4,'4. Billing Determinants'!$B$19:$R$41,6,0)/'4. Billing Determinants'!$G$41*$D26,IF($E26="Distribution Rev.",VLOOKUP(G$4,'4. Billing Determinants'!$B$19:$R$41,8,0)/'4. Billing Determinants'!$I$41*$D26, VLOOKUP(G$4,'4. Billing Determinants'!$B$19:$R$41,3,0)/'4. Billing Determinants'!$D$41*$D26))))),0) -> 0 | H26: =IFERROR(IF(H$4="",0,IF($E26="kWh",VLOOKUP(H$4,'4. Billing Determinants'!$B$19:$R$41,4,0)/'4. Billing Determinants'!$E$41*$D26,IF($E26="kW",VLOOKUP(H$4,'4. Billing Determinants'!$B$19:$R$41,5,0)/'4. Billing Determinants'!$F$41*$D26,IF($E26="Non-RPP kWh",VLOOKUP(H$4,'4. Billing Determinants'!$B$19:$R$41,6,0)/'4. Billing Determinants'!$G$41*$D26,IF($E26="Distribution Rev.",VLOOKUP(H$4,'4. Billing Determinants'!$B$19:$R$41,8,0)/'4. Billing Determinants'!$I$41*$D26, VLOOKUP(H$4,'4. Billing Determinants'!$B$19:$R$41,3,0)/'4. Billing Determinants'!$D$41*$D26))))),0) -> 0 | I26: =IFERROR(IF(I$4="",0,IF($E26="kWh",VLOOKUP(I$4,'4. Billing Determinants'!$B$19:$R$41,4,0)/'4. Billing Determinants'!$E$41*$D26,IF($E26="kW",VLOOKUP(I$4,'4. Billing Determinants'!$B$19:$R$41,5,0)/'4. Billing Determinants'!$F$41*$D26,IF($E26="Non-RPP kWh",VLOOKUP(I$4,'4. Billing Determinants'!$B$19:$R$41,6,0)/'4. Billing Determinants'!$G$41*$D26,IF($E26="Distribution Rev.",VLOOKUP(I$4,'4. Billing Determinants'!$B$19:$R$41,8,0)/'4. Billing Determinants'!$I$41*$D26, VLOOKUP(I$4,'4. Billing Determinants'!$B$19:$R$41,3,0)/'4. Billing Determinants'!$D$41*$D26))))),0) -> 0 | J26: =IFERROR(IF(J$4="",0,IF($E26="kWh",VLOOKUP(J$4,'4. Billing Determinants'!$B$19:$R$41,4,0)/'4. Billing Determinants'!$E$41*$D26,IF($E26="kW",VLOOKUP(J$4,'4. Billing Determinants'!$B$19:$R$41,5,0)/'4. Billing Determinants'!$F$41*$D26,IF($E26="Non-RPP kWh",VLOOKUP(J$4,'4. Billing Determinants'!$B$19:$R$41,6,0)/'4. Billing Determinants'!$G$41*$D26,IF($E26="Distribution Rev.",VLOOKUP(J$4,'4. Billing Determinants'!$B$19:$R$41,8,0)/'4. Billing Determinants'!$I$41*$D26, VLOOKUP(J$4,'4. Billing Determinants'!$B$19:$R$41,3,0)/'4. Billing Determinants'!$D$41*$D26))))),0) -> 0 | K26: =IFERROR(IF(K$4="",0,IF($E26="kWh",VLOOKUP(K$4,'4. Billing Determinants'!$B$19:$R$41,4,0)/'4. Billing Determinants'!$E$41*$D26,IF($E26="kW",VLOOKUP(K$4,'4. Billing Determinants'!$B$19:$R$41,5,0)/'4. Billing Determinants'!$F$41*$D26,IF($E26="Non-RPP kWh",VLOOKUP(K$4,'4. Billing Determinants'!$B$19:$R$41,6,0)/'4. Billing Determinants'!$G$41*$D26,IF($E26="Distribution Rev.",VLOOKUP(K$4,'4. Billing Determinants'!$B$19:$R$41,8,0)/'4. Billing Determinants'!$I$41*$D26, VLOOKUP(K$4,'4. Billing Determinants'!$B$19:$R$41,3,0)/'4. Billing Determinants'!$D$41*$D26))))),0) -> 0 | L26: =IFERROR(IF(L$4="",0,IF($E26="kWh",VLOOKUP(L$4,'4. Billing Determinants'!$B$19:$R$41,4,0)/'4. Billing Determinants'!$E$41*$D26,IF($E26="kW",VLOOKUP(L$4,'4. Billing Determinants'!$B$19:$R$41,5,0)/'4. Billing Determinants'!$F$41*$D26,IF($E26="Non-RPP kWh",VLOOKUP(L$4,'4. Billing Determinants'!$B$19:$R$41,6,0)/'4. Billing Determinants'!$G$41*$D26,IF($E26="Distribution Rev.",VLOOKUP(L$4,'4. Billing Determinants'!$B$19:$R$41,8,0)/'4. Billing Determinants'!$I$41*$D26, VLOOKUP(L$4,'4. Billing Determinants'!$B$19:$R$41,3,0)/'4. Billing Determinants'!$D$41*$D26))))),0) -> 0 | M26: =IFERROR(IF(M$4="",0,IF($E26="kWh",VLOOKUP(M$4,'4. Billing Determinants'!$B$19:$R$41,4,0)/'4. Billing Determinants'!$E$41*$D26,IF($E26="kW",VLOOKUP(M$4,'4. Billing Determinants'!$B$19:$R$41,5,0)/'4. Billing Determinants'!$F$41*$D26,IF($E26="Non-RPP kWh",VLOOKUP(M$4,'4. Billing Determinants'!$B$19:$R$41,6,0)/'4. Billing Determinants'!$G$41*$D26,IF($E26="Distribution Rev.",VLOOKUP(M$4,'4. Billing Determinants'!$B$19:$R$41,8,0)/'4. Billing Determinants'!$I$41*$D26, VLOOKUP(M$4,'4. Billing Determinants'!$B$19:$R$41,3,0)/'4. Billing Determinants'!$D$41*$D26))))),0) -> 0 | N26: =IFERROR(IF(N$4="",0,IF($E26="kWh",VLOOKUP(N$4,'4. Billing Determinants'!$B$19:$R$41,4,0)/'4. Billing Determinants'!$E$41*$D26,IF($E26="kW",VLOOKUP(N$4,'4. Billing Determinants'!$B$19:$R$41,5,0)/'4. Billing Determinants'!$F$41*$D26,IF($E26="Non-RPP kWh",VLOOKUP(N$4,'4. Billing Determinants'!$B$19:$R$41,6,0)/'4. Billing Determinants'!$G$41*$D26,IF($E26="Distribution Rev.",VLOOKUP(N$4,'4. Billing Determinants'!$B$19:$R$41,8,0)/'4. Billing Determinants'!$I$41*$D26, VLOOKUP(N$4,'4. Billing Determinants'!$B$19:$R$41,3,0)/'4. Billing Determinants'!$D$41*$D26))))),0) -> 0 | O26: =IFERROR(IF(O$4="",0,IF($E26="kWh",VLOOKUP(O$4,'4. Billing Determinants'!$B$19:$R$41,4,0)/'4. Billing Determinants'!$E$41*$D26,IF($E26="kW",VLOOKUP(O$4,'4. Billing Determinants'!$B$19:$R$41,5,0)/'4. Billing Determinants'!$F$41*$D26,IF($E26="Non-RPP kWh",VLOOKUP(O$4,'4. Billing Determinants'!$B$19:$R$41,6,0)/'4. Billing Determinants'!$G$41*$D26,IF($E26="Distribution Rev.",VLOOKUP(O$4,'4. Billing Determinants'!$B$19:$R$41,8,0)/'4. Billing Determinants'!$I$41*$D26, VLOOKUP(O$4,'4. Billing Determinants'!$B$19:$R$41,3,0)/'4. Billing Determinants'!$D$41*$D26))))),0) -> 0 | P26: =IFERROR(IF(P$4="",0,IF($E26="kWh",VLOOKUP(P$4,'4. Billing Determinants'!$B$19:$R$41,4,0)/'4. Billing Determinants'!$E$41*$D26,IF($E26="kW",VLOOKUP(P$4,'4. Billing Determinants'!$B$19:$R$41,5,0)/'4. Billing Determinants'!$F$41*$D26,IF($E26="Non-RPP kWh",VLOOKUP(P$4,'4. Billing Determinants'!$B$19:$R$41,6,0)/'4. Billing Determinants'!$G$41*$D26,IF($E26="Distribution Rev.",VLOOKUP(P$4,'4. Billing Determinants'!$B$19:$R$41,8,0)/'4. Billing Determinants'!$I$41*$D26, VLOOKUP(P$4,'4. Billing Determinants'!$B$19:$R$41,3,0)/'4. Billing Determinants'!$D$41*$D26))))),0) -> 0 | Q26: =IFERROR(IF(Q$4="",0,IF($E26="kWh",VLOOKUP(Q$4,'4. Billing Determinants'!$B$19:$R$41,4,0)/'4. Billing Determinants'!$E$41*$D26,IF($E26="kW",VLOOKUP(Q$4,'4. Billing Determinants'!$B$19:$R$41,5,0)/'4. Billing Determinants'!$F$41*$D26,IF($E26="Non-RPP kWh",VLOOKUP(Q$4,'4. Billing Determinants'!$B$19:$R$41,6,0)/'4. Billing Determinants'!$G$41*$D26,IF($E26="Distribution Rev.",VLOOKUP(Q$4,'4. Billing Determinants'!$B$19:$R$41,8,0)/'4. Billing Determinants'!$I$41*$D26, VLOOKUP(Q$4,'4. Billing Determinants'!$B$19:$R$41,3,0)/'4. Billing Determinants'!$D$41*$D26))))),0) -> 0 | R26: =IFERROR(IF(R$4="",0,IF($E26="kWh",VLOOKUP(R$4,'4. Billing Determinants'!$B$19:$R$41,4,0)/'4. Billing Determinants'!$E$41*$D26,IF($E26="kW",VLOOKUP(R$4,'4. Billing Determinants'!$B$19:$R$41,5,0)/'4. Billing Determinants'!$F$41*$D26,IF($E26="Non-RPP kWh",VLOOKUP(R$4,'4. Billing Determinants'!$B$19:$R$41,6,0)/'4. Billing Determinants'!$G$41*$D26,IF($E26="Distribution Rev.",VLOOKUP(R$4,'4. Billing Determinants'!$B$19:$R$41,8,0)/'4. Billing Determinants'!$I$41*$D26, VLOOKUP(R$4,'4. Billing Determinants'!$B$19:$R$41,3,0)/'4. Billing Determinants'!$D$41*$D26))))),0) -> 0 | S26: =IFERROR(IF(S$4="",0,IF($E26="kWh",VLOOKUP(S$4,'4. Billing Determinants'!$B$19:$R$41,4,0)/'4. Billing Determinants'!$E$41*$D26,IF($E26="kW",VLOOKUP(S$4,'4. Billing Determinants'!$B$19:$R$41,5,0)/'4. Billing Determinants'!$F$41*$D26,IF($E26="Non-RPP kWh",VLOOKUP(S$4,'4. Billing Determinants'!$B$19:$R$41,6,0)/'4. Billing Determinants'!$G$41*$D26,IF($E26="Distribution Rev.",VLOOKUP(S$4,'4. Billing Determinants'!$B$19:$R$41,8,0)/'4. Billing Determinants'!$I$41*$D26, VLOOKUP(S$4,'4. Billing Determinants'!$B$19:$R$41,3,0)/'4. Billing Determinants'!$D$41*$D26))))),0) -> 0 | T26: =IFERROR(IF(T$4="",0,IF($E26="kWh",VLOOKUP(T$4,'4. Billing Determinants'!$B$19:$R$41,4,0)/'4. Billing Determinants'!$E$41*$D26,IF($E26="kW",VLOOKUP(T$4,'4. Billing Determinants'!$B$19:$R$41,5,0)/'4. Billing Determinants'!$F$41*$D26,IF($E26="Non-RPP kWh",VLOOKUP(T$4,'4. Billing Determinants'!$B$19:$R$41,6,0)/'4. Billing Determinants'!$G$41*$D26,IF($E26="Distribution Rev.",VLOOKUP(T$4,'4. Billing Determinants'!$B$19:$R$41,8,0)/'4. Billing Determinants'!$I$41*$D26, VLOOKUP(T$4,'4. Billing Determinants'!$B$19:$R$41,3,0)/'4. Billing Determinants'!$D$41*$D26))))),0) -> 0 | U26: =IFERROR(IF(U$4="",0,IF($E26="kWh",VLOOKUP(U$4,'4. Billing Determinants'!$B$19:$R$41,4,0)/'4. Billing Determinants'!$E$41*$D26,IF($E26="kW",VLOOKUP(U$4,'4. Billing Determinants'!$B$19:$R$41,5,0)/'4. Billing Determinants'!$F$41*$D26,IF($E26="Non-RPP kWh",VLOOKUP(U$4,'4. Billing Determinants'!$B$19:$R$41,6,0)/'4. Billing Determinants'!$G$41*$D26,IF($E26="Distribution Rev.",VLOOKUP(U$4,'4. Billing Determinants'!$B$19:$R$41,8,0)/'4. Billing Determinants'!$I$41*$D26, VLOOKUP(U$4,'4. Billing Determinants'!$B$19:$R$41,3,0)/'4. Billing Determinants'!$D$41*$D26))))),0) -> 0 | V26: =IFERROR(IF(V$4="",0,IF($E26="kWh",VLOOKUP(V$4,'4. Billing Determinants'!$B$19:$R$41,4,0)/'4. Billing Determinants'!$E$41*$D26,IF($E26="kW",VLOOKUP(V$4,'4. Billing Determinants'!$B$19:$R$41,5,0)/'4. Billing Determinants'!$F$41*$D26,IF($E26="Non-RPP kWh",VLOOKUP(V$4,'4. Billing Determinants'!$B$19:$R$41,6,0)/'4. Billing Determinants'!$G$41*$D26,IF($E26="Distribution Rev.",VLOOKUP(V$4,'4. Billing Determinants'!$B$19:$R$41,8,0)/'4. Billing Determinants'!$I$41*$D26, VLOOKUP(V$4,'4. Billing Determinants'!$B$19:$R$41,3,0)/'4. Billing Determinants'!$D$41*$D26))))),0) -> 0 | W26: =IFERROR(IF(W$4="",0,IF($E26="kWh",VLOOKUP(W$4,'4. Billing Determinants'!$B$19:$R$41,4,0)/'4. Billing Determinants'!$E$41*$D26,IF($E26="kW",VLOOKUP(W$4,'4. Billing Determinants'!$B$19:$R$41,5,0)/'4. Billing Determinants'!$F$41*$D26,IF($E26="Non-RPP kWh",VLOOKUP(W$4,'4. Billing Determinants'!$B$19:$R$41,6,0)/'4. Billing Determinants'!$G$41*$D26,IF($E26="Distribution Rev.",VLOOKUP(W$4,'4. Billing Determinants'!$B$19:$R$41,8,0)/'4. Billing Determinants'!$I$41*$D26, VLOOKUP(W$4,'4. Billing Determinants'!$B$19:$R$41,3,0)/'4. Billing Determinants'!$D$41*$D26))))),0) -> 0 | X26: =IFERROR(IF(X$4="",0,IF($E26="kWh",VLOOKUP(X$4,'4. Billing Determinants'!$B$19:$R$41,4,0)/'4. Billing Determinants'!$E$41*$D26,IF($E26="kW",VLOOKUP(X$4,'4. Billing Determinants'!$B$19:$R$41,5,0)/'4. Billing Determinants'!$F$41*$D26,IF($E26="Non-RPP kWh",VLOOKUP(X$4,'4. Billing Determinants'!$B$19:$R$41,6,0)/'4. Billing Determinants'!$G$41*$D26,IF($E26="Distribution Rev.",VLOOKUP(X$4,'4. Billing Determinants'!$B$19:$R$41,8,0)/'4. Billing Determinants'!$I$41*$D26, VLOOKUP(X$4,'4. Billing Determinants'!$B$19:$R$41,3,0)/'4. Billing Determinants'!$D$41*$D26))))),0) -> 0 | Y26: =IFERROR(IF(Y$4="",0,IF($E26="kWh",VLOOKUP(Y$4,'4. Billing Determinants'!$B$19:$R$41,4,0)/'4. Billing Determinants'!$E$41*$D26,IF($E26="kW",VLOOKUP(Y$4,'4. Billing Determinants'!$B$19:$R$41,5,0)/'4. Billing Determinants'!$F$41*$D26,IF($E26="Non-RPP kWh",VLOOKUP(Y$4,'4. Billing Determinants'!$B$19:$R$41,6,0)/'4. Billing Determinants'!$G$41*$D26,IF($E26="Distribution Rev.",VLOOKUP(Y$4,'4. Billing Determinants'!$B$19:$R$41,8,0)/'4. Billing Determinants'!$I$41*$D26, VLOOKUP(Y$4,'4. Billing Determinants'!$B$19:$R$41,3,0)/'4. Billing Determinants'!$D$41*$D26))))),0) -> 0 | AA26: 0
D27: ='2. 2015 Continuity Schedule'!BW48 -> 0 | F27: =IFERROR(IF(F$4="",0,IF($E27="kWh",VLOOKUP(F$4,'4. Billing Determinants'!$B$19:$R$41,4,0)/'4. Billing Determinants'!$E$41*$D27,IF($E27="kW",VLOOKUP(F$4,'4. Billing Determinants'!$B$19:$R$41,5,0)/'4. Billing Determinants'!$F$41*$D27,IF($E27="Non-RPP kWh",VLOOKUP(F$4,'4. Billing Determinants'!$B$19:$R$41,6,0)/'4. Billing Determinants'!$G$41*$D27,IF($E27="Distribution Rev.",VLOOKUP(F$4,'4. Billing Determinants'!$B$19:$R$41,8,0)/'4. Billing Determinants'!$I$41*$D27, VLOOKUP(F$4,'4. Billing Determinants'!$B$19:$R$41,3,0)/'4. Billing Determinants'!$D$41*$D27))))),0) -> 0 | G27: =IFERROR(IF(G$4="",0,IF($E27="kWh",VLOOKUP(G$4,'4. Billing Determinants'!$B$19:$R$41,4,0)/'4. Billing Determinants'!$E$41*$D27,IF($E27="kW",VLOOKUP(G$4,'4. Billing Determinants'!$B$19:$R$41,5,0)/'4. Billing Determinants'!$F$41*$D27,IF($E27="Non-RPP kWh",VLOOKUP(G$4,'4. Billing Determinants'!$B$19:$R$41,6,0)/'4. Billing Determinants'!$G$41*$D27,IF($E27="Distribution Rev.",VLOOKUP(G$4,'4. Billing Determinants'!$B$19:$R$41,8,0)/'4. Billing Determinants'!$I$41*$D27, VLOOKUP(G$4,'4. Billing Determinants'!$B$19:$R$41,3,0)/'4. Billing Determinants'!$D$41*$D27))))),0) -> 0 | H27: =IFERROR(IF(H$4="",0,IF($E27="kWh",VLOOKUP(H$4,'4. Billing Determinants'!$B$19:$R$41,4,0)/'4. Billing Determinants'!$E$41*$D27,IF($E27="kW",VLOOKUP(H$4,'4. Billing Determinants'!$B$19:$R$41,5,0)/'4. Billing Determinants'!$F$41*$D27,IF($E27="Non-RPP kWh",VLOOKUP(H$4,'4. Billing Determinants'!$B$19:$R$41,6,0)/'4. Billing Determinants'!$G$41*$D27,IF($E27="Distribution Rev.",VLOOKUP(H$4,'4. Billing Determinants'!$B$19:$R$41,8,0)/'4. Billing Determinants'!$I$41*$D27, VLOOKUP(H$4,'4. Billing Determinants'!$B$19:$R$41,3,0)/'4. Billing Determinants'!$D$41*$D27))))),0) -> 0 | I27: =IFERROR(IF(I$4="",0,IF($E27="kWh",VLOOKUP(I$4,'4. Billing Determinants'!$B$19:$R$41,4,0)/'4. Billing Determinants'!$E$41*$D27,IF($E27="kW",VLOOKUP(I$4,'4. Billing Determinants'!$B$19:$R$41,5,0)/'4. Billing Determinants'!$F$41*$D27,IF($E27="Non-RPP kWh",VLOOKUP(I$4,'4. Billing Determinants'!$B$19:$R$41,6,0)/'4. Billing Determinants'!$G$41*$D27,IF($E27="Distribution Rev.",VLOOKUP(I$4,'4. Billing Determinants'!$B$19:$R$41,8,0)/'4. Billing Determinants'!$I$41*$D27, VLOOKUP(I$4,'4. Billing Determinants'!$B$19:$R$41,3,0)/'4. Billing Determinants'!$D$41*$D27))))),0) -> 0 | J27: =IFERROR(IF(J$4="",0,IF($E27="kWh",VLOOKUP(J$4,'4. Billing Determinants'!$B$19:$R$41,4,0)/'4. Billing Determinants'!$E$41*$D27,IF($E27="kW",VLOOKUP(J$4,'4. Billing Determinants'!$B$19:$R$41,5,0)/'4. Billing Determinants'!$F$41*$D27,IF($E27="Non-RPP kWh",VLOOKUP(J$4,'4. Billing Determinants'!$B$19:$R$41,6,0)/'4. Billing Determinants'!$G$41*$D27,IF($E27="Distribution Rev.",VLOOKUP(J$4,'4. Billing Determinants'!$B$19:$R$41,8,0)/'4. Billing Determinants'!$I$41*$D27, VLOOKUP(J$4,'4. Billing Determinants'!$B$19:$R$41,3,0)/'4. Billing Determinants'!$D$41*$D27))))),0) -> 0 | K27: =IFERROR(IF(K$4="",0,IF($E27="kWh",VLOOKUP(K$4,'4. Billing Determinants'!$B$19:$R$41,4,0)/'4. Billing Determinants'!$E$41*$D27,IF($E27="kW",VLOOKUP(K$4,'4. Billing Determinants'!$B$19:$R$41,5,0)/'4. Billing Determinants'!$F$41*$D27,IF($E27="Non-RPP kWh",VLOOKUP(K$4,'4. Billing Determinants'!$B$19:$R$41,6,0)/'4. Billing Determinants'!$G$41*$D27,IF($E27="Distribution Rev.",VLOOKUP(K$4,'4. Billing Determinants'!$B$19:$R$41,8,0)/'4. Billing Determinants'!$I$41*$D27, VLOOKUP(K$4,'4. Billing Determinants'!$B$19:$R$41,3,0)/'4. Billing Determinants'!$D$41*$D27))))),0) -> 0 | L27: =IFERROR(IF(L$4="",0,IF($E27="kWh",VLOOKUP(L$4,'4. Billing Determinants'!$B$19:$R$41,4,0)/'4. Billing Determinants'!$E$41*$D27,IF($E27="kW",VLOOKUP(L$4,'4. Billing Determinants'!$B$19:$R$41,5,0)/'4. Billing Determinants'!$F$41*$D27,IF($E27="Non-RPP kWh",VLOOKUP(L$4,'4. Billing Determinants'!$B$19:$R$41,6,0)/'4. Billing Determinants'!$G$41*$D27,IF($E27="Distribution Rev.",VLOOKUP(L$4,'4. Billing Determinants'!$B$19:$R$41,8,0)/'4. Billing Determinants'!$I$41*$D27, VLOOKUP(L$4,'4. Billing Determinants'!$B$19:$R$41,3,0)/'4. Billing Determinants'!$D$41*$D27))))),0) -> 0 | M27: =IFERROR(IF(M$4="",0,IF($E27="kWh",VLOOKUP(M$4,'4. Billing Determinants'!$B$19:$R$41,4,0)/'4. Billing Determinants'!$E$41*$D27,IF($E27="kW",VLOOKUP(M$4,'4. Billing Determinants'!$B$19:$R$41,5,0)/'4. Billing Determinants'!$F$41*$D27,IF($E27="Non-RPP kWh",VLOOKUP(M$4,'4. Billing Determinants'!$B$19:$R$41,6,0)/'4. Billing Determinants'!$G$41*$D27,IF($E27="Distribution Rev.",VLOOKUP(M$4,'4. Billing Determinants'!$B$19:$R$41,8,0)/'4. Billing Determinants'!$I$41*$D27, VLOOKUP(M$4,'4. Billing Determinants'!$B$19:$R$41,3,0)/'4. Billing Determinants'!$D$41*$D27))))),0) -> 0 | N27: =IFERROR(IF(N$4="",0,IF($E27="kWh",VLOOKUP(N$4,'4. Billing Determinants'!$B$19:$R$41,4,0)/'4. Billing Determinants'!$E$41*$D27,IF($E27="kW",VLOOKUP(N$4,'4. Billing Determinants'!$B$19:$R$41,5,0)/'4. Billing Determinants'!$F$41*$D27,IF($E27="Non-RPP kWh",VLOOKUP(N$4,'4. Billing Determinants'!$B$19:$R$41,6,0)/'4. Billing Determinants'!$G$41*$D27,IF($E27="Distribution Rev.",VLOOKUP(N$4,'4. Billing Determinants'!$B$19:$R$41,8,0)/'4. Billing Determinants'!$I$41*$D27, VLOOKUP(N$4,'4. Billing Determinants'!$B$19:$R$41,3,0)/'4. Billing Determinants'!$D$41*$D27))))),0) -> 0 | O27: =IFERROR(IF(O$4="",0,IF($E27="kWh",VLOOKUP(O$4,'4. Billing Determinants'!$B$19:$R$41,4,0)/'4. Billing Determinants'!$E$41*$D27,IF($E27="kW",VLOOKUP(O$4,'4. Billing Determinants'!$B$19:$R$41,5,0)/'4. Billing Determinants'!$F$41*$D27,IF($E27="Non-RPP kWh",VLOOKUP(O$4,'4. Billing Determinants'!$B$19:$R$41,6,0)/'4. Billing Determinants'!$G$41*$D27,IF($E27="Distribution Rev.",VLOOKUP(O$4,'4. Billing Determinants'!$B$19:$R$41,8,0)/'4. Billing Determinants'!$I$41*$D27, VLOOKUP(O$4,'4. Billing Determinants'!$B$19:$R$41,3,0)/'4. Billing Determinants'!$D$41*$D27))))),0) -> 0 | P27: =IFERROR(IF(P$4="",0,IF($E27="kWh",VLOOKUP(P$4,'4. Billing Determinants'!$B$19:$R$41,4,0)/'4. Billing Determinants'!$E$41*$D27,IF($E27="kW",VLOOKUP(P$4,'4. Billing Determinants'!$B$19:$R$41,5,0)/'4. Billing Determinants'!$F$41*$D27,IF($E27="Non-RPP kWh",VLOOKUP(P$4,'4. Billing Determinants'!$B$19:$R$41,6,0)/'4. Billing Determinants'!$G$41*$D27,IF($E27="Distribution Rev.",VLOOKUP(P$4,'4. Billing Determinants'!$B$19:$R$41,8,0)/'4. Billing Determinants'!$I$41*$D27, VLOOKUP(P$4,'4. Billing Determinants'!$B$19:$R$41,3,0)/'4. Billing Determinants'!$D$41*$D27))))),0) -> 0 | Q27: =IFERROR(IF(Q$4="",0,IF($E27="kWh",VLOOKUP(Q$4,'4. Billing Determinants'!$B$19:$R$41,4,0)/'4. Billing Determinants'!$E$41*$D27,IF($E27="kW",VLOOKUP(Q$4,'4. Billing Determinants'!$B$19:$R$41,5,0)/'4. Billing Determinants'!$F$41*$D27,IF($E27="Non-RPP kWh",VLOOKUP(Q$4,'4. Billing Determinants'!$B$19:$R$41,6,0)/'4. Billing Determinants'!$G$41*$D27,IF($E27="Distribution Rev.",VLOOKUP(Q$4,'4. Billing Determinants'!$B$19:$R$41,8,0)/'4. Billing Determinants'!$I$41*$D27, VLOOKUP(Q$4,'4. Billing Determinants'!$B$19:$R$41,3,0)/'4. Billing Determinants'!$D$41*$D27))))),0) -> 0 | R27: =IFERROR(IF(R$4="",0,IF($E27="kWh",VLOOKUP(R$4,'4. Billing Determinants'!$B$19:$R$41,4,0)/'4. Billing Determinants'!$E$41*$D27,IF($E27="kW",VLOOKUP(R$4,'4. Billing Determinants'!$B$19:$R$41,5,0)/'4. Billing Determinants'!$F$41*$D27,IF($E27="Non-RPP kWh",VLOOKUP(R$4,'4. Billing Determinants'!$B$19:$R$41,6,0)/'4. Billing Determinants'!$G$41*$D27,IF($E27="Distribution Rev.",VLOOKUP(R$4,'4. Billing Determinants'!$B$19:$R$41,8,0)/'4. Billing Determinants'!$I$41*$D27, VLOOKUP(R$4,'4. Billing Determinants'!$B$19:$R$41,3,0)/'4. Billing Determinants'!$D$41*$D27))))),0) -> 0 | S27: =IFERROR(IF(S$4="",0,IF($E27="kWh",VLOOKUP(S$4,'4. Billing Determinants'!$B$19:$R$41,4,0)/'4. Billing Determinants'!$E$41*$D27,IF($E27="kW",VLOOKUP(S$4,'4. Billing Determinants'!$B$19:$R$41,5,0)/'4. Billing Determinants'!$F$41*$D27,IF($E27="Non-RPP kWh",VLOOKUP(S$4,'4. Billing Determinants'!$B$19:$R$41,6,0)/'4. Billing Determinants'!$G$41*$D27,IF($E27="Distribution Rev.",VLOOKUP(S$4,'4. Billing Determinants'!$B$19:$R$41,8,0)/'4. Billing Determinants'!$I$41*$D27, VLOOKUP(S$4,'4. Billing Determinants'!$B$19:$R$41,3,0)/'4. Billing Determinants'!$D$41*$D27))))),0) -> 0 | T27: =IFERROR(IF(T$4="",0,IF($E27="kWh",VLOOKUP(T$4,'4. Billing Determinants'!$B$19:$R$41,4,0)/'4. Billing Determinants'!$E$41*$D27,IF($E27="kW",VLOOKUP(T$4,'4. Billing Determinants'!$B$19:$R$41,5,0)/'4. Billing Determinants'!$F$41*$D27,IF($E27="Non-RPP kWh",VLOOKUP(T$4,'4. Billing Determinants'!$B$19:$R$41,6,0)/'4. Billing Determinants'!$G$41*$D27,IF($E27="Distribution Rev.",VLOOKUP(T$4,'4. Billing Determinants'!$B$19:$R$41,8,0)/'4. Billing Determinants'!$I$41*$D27, VLOOKUP(T$4,'4. Billing Determinants'!$B$19:$R$41,3,0)/'4. Billing Determinants'!$D$41*$D27))))),0) -> 0 | U27: =IFERROR(IF(U$4="",0,IF($E27="kWh",VLOOKUP(U$4,'4. Billing Determinants'!$B$19:$R$41,4,0)/'4. Billing Determinants'!$E$41*$D27,IF($E27="kW",VLOOKUP(U$4,'4. Billing Determinants'!$B$19:$R$41,5,0)/'4. Billing Determinants'!$F$41*$D27,IF($E27="Non-RPP kWh",VLOOKUP(U$4,'4. Billing Determinants'!$B$19:$R$41,6,0)/'4. Billing Determinants'!$G$41*$D27,IF($E27="Distribution Rev.",VLOOKUP(U$4,'4. Billing Determinants'!$B$19:$R$41,8,0)/'4. Billing Determinants'!$I$41*$D27, VLOOKUP(U$4,'4. Billing Determinants'!$B$19:$R$41,3,0)/'4. Billing Determinants'!$D$41*$D27))))),0) -> 0 | V27: =IFERROR(IF(V$4="",0,IF($E27="kWh",VLOOKUP(V$4,'4. Billing Determinants'!$B$19:$R$41,4,0)/'4. Billing Determinants'!$E$41*$D27,IF($E27="kW",VLOOKUP(V$4,'4. Billing Determinants'!$B$19:$R$41,5,0)/'4. Billing Determinants'!$F$41*$D27,IF($E27="Non-RPP kWh",VLOOKUP(V$4,'4. Billing Determinants'!$B$19:$R$41,6,0)/'4. Billing Determinants'!$G$41*$D27,IF($E27="Distribution Rev.",VLOOKUP(V$4,'4. Billing Determinants'!$B$19:$R$41,8,0)/'4. Billing Determinants'!$I$41*$D27, VLOOKUP(V$4,'4. Billing Determinants'!$B$19:$R$41,3,0)/'4. Billing Determinants'!$D$41*$D27))))),0) -> 0 | W27: =IFERROR(IF(W$4="",0,IF($E27="kWh",VLOOKUP(W$4,'4. Billing Determinants'!$B$19:$R$41,4,0)/'4. Billing Determinants'!$E$41*$D27,IF($E27="kW",VLOOKUP(W$4,'4. Billing Determinants'!$B$19:$R$41,5,0)/'4. Billing Determinants'!$F$41*$D27,IF($E27="Non-RPP kWh",VLOOKUP(W$4,'4. Billing Determinants'!$B$19:$R$41,6,0)/'4. Billing Determinants'!$G$41*$D27,IF($E27="Distribution Rev.",VLOOKUP(W$4,'4. Billing Determinants'!$B$19:$R$41,8,0)/'4. Billing Determinants'!$I$41*$D27, VLOOKUP(W$4,'4. Billing Determinants'!$B$19:$R$41,3,0)/'4. Billing Determinants'!$D$41*$D27))))),0) -> 0 | X27: =IFERROR(IF(X$4="",0,IF($E27="kWh",VLOOKUP(X$4,'4. Billing Determinants'!$B$19:$R$41,4,0)/'4. Billing Determinants'!$E$41*$D27,IF($E27="kW",VLOOKUP(X$4,'4. Billing Determinants'!$B$19:$R$41,5,0)/'4. Billing Determinants'!$F$41*$D27,IF($E27="Non-RPP kWh",VLOOKUP(X$4,'4. Billing Determinants'!$B$19:$R$41,6,0)/'4. Billing Determinants'!$G$41*$D27,IF($E27="Distribution Rev.",VLOOKUP(X$4,'4. Billing Determinants'!$B$19:$R$41,8,0)/'4. Billing Determinants'!$I$41*$D27, VLOOKUP(X$4,'4. Billing Determinants'!$B$19:$R$41,3,0)/'4. Billing Determinants'!$D$41*$D27))))),0) -> 0 | Y27: =IFERROR(IF(Y$4="",0,IF($E27="kWh",VLOOKUP(Y$4,'4. Billing Determinants'!$B$19:$R$41,4,0)/'4. Billing Determinants'!$E$41*$D27,IF($E27="kW",VLOOKUP(Y$4,'4. Billing Determinants'!$B$19:$R$41,5,0)/'4. Billing Determinants'!$F$41*$D27,IF($E27="Non-RPP kWh",VLOOKUP(Y$4,'4. Billing Determinants'!$B$19:$R$41,6,0)/'4. Billing Determinants'!$G$41*$D27,IF($E27="Distribution Rev.",VLOOKUP(Y$4,'4. Billing Determinants'!$B$19:$R$41,8,0)/'4. Billing Determinants'!$I$41*$D27, VLOOKUP(Y$4,'4. Billing Determinants'!$B$19:$R$41,3,0)/'4. Billing Determinants'!$D$41*$D27))))),0) -> 0 | AA27: 0
B28: Retail Cost Variance Account - Retail | C28: 1518 | D28: ='2. 2015 Continuity Schedule'!BW49 -> 216219.5941 | E28: # of Customers | F28: =IFERROR(IF(F$4="",0,IF($E28="kWh",VLOOKUP(F$4,'4. Billing Determinants'!$B$19:$R$41,4,0)/'4. Billing Determinants'!$E$41*$D28,IF($E28="kW",VLOOKUP(F$4,'4. Billing Determinants'!$B$19:$R$41,5,0)/'4. Billing Determinants'!$F$41*$D28,IF($E28="Non-RPP kWh",VLOOKUP(F$4,'4. Billing Determinants'!$B$19:$R$41,6,0)/'4. Billing Determinants'!$G$41*$D28,IF($E28="Distribution Rev.",VLOOKUP(F$4,'4. Billing Determinants'!$B$19:$R$41,8,0)/'4. Billing Determinants'!$I$41*$D28, VLOOKUP(F$4,'4. Billing Determinants'!$B$19:$R$41,3,0)/'4. Billing Determinants'!$D$41*$D28))))),0) -> 158582.0425 | G28: =IFERROR(IF(G$4="",0,IF($E28="kWh",VLOOKUP(G$4,'4. Billing Determinants'!$B$19:$R$41,4,0)/'4. Billing Determinants'!$E$41*$D28,IF($E28="kW",VLOOKUP(G$4,'4. Billing Determinants'!$B$19:$R$41,5,0)/'4. Billing Determinants'!$F$41*$D28,IF($E28="Non-RPP kWh",VLOOKUP(G$4,'4. Billing Determinants'!$B$19:$R$41,6,0)/'4. Billing Determinants'!$G$41*$D28,IF($E28="Distribution Rev.",VLOOKUP(G$4,'4. Billing Determinants'!$B$19:$R$41,8,0)/'4. Billing Determinants'!$I$41*$D28, VLOOKUP(G$4,'4. Billing Determinants'!$B$19:$R$41,3,0)/'4. Billing Determinants'!$D$41*$D28))))),0) -> 19365.69216 | H28: =IFERROR(IF(H$4="",0,IF($E28="kWh",VLOOKUP(H$4,'4. Billing Determinants'!$B$19:$R$41,4,0)/'4. Billing Determinants'!$E$41*$D28,IF($E28="kW",VLOOKUP(H$4,'4. Billing Determinants'!$B$19:$R$41,5,0)/'4. Billing Determinants'!$F$41*$D28,IF($E28="Non-RPP kWh",VLOOKUP(H$4,'4. Billing Determinants'!$B$19:$R$41,6,0)/'4. Billing Determinants'!$G$41*$D28,IF($E28="Distribution Rev.",VLOOKUP(H$4,'4. Billing Determinants'!$B$19:$R$41,8,0)/'4. Billing Determinants'!$I$41*$D28, VLOOKUP(H$4,'4. Billing Determinants'!$B$19:$R$41,3,0)/'4. Billing Determinants'!$D$41*$D28))))),0) -> 2212.284155 | I28: =IFERROR(IF(I$4="",0,IF($E28="kWh",VLOOKUP(I$4,'4. Billing Determinants'!$B$19:$R$41,4,0)/'4. Billing Determinants'!$E$41*$D28,IF($E28="kW",VLOOKUP(I$4,'4. Billing Determinants'!$B$19:$R$41,5,0)/'4. Billing Determinants'!$F$41*$D28,IF($E28="Non-RPP kWh",VLOOKUP(I$4,'4. Billing Determinants'!$B$19:$R$41,6,0)/'4. Billing Determinants'!$G$41*$D28,IF($E28="Distribution Rev.",VLOOKUP(I$4,'4. Billing Determinants'!$B$19:$R$41,8,0)/'4. Billing Determinants'!$I$41*$D28, VLOOKUP(I$4,'4. Billing Determinants'!$B$19:$R$41,3,0)/'4. Billing Determinants'!$D$41*$D28))))),0) -> 19.69392423 | J28: =IFERROR(IF(J$4="",0,IF($E28="kWh",VLOOKUP(J$4,'4. Billing Determinants'!$B$19:$R$41,4,0)/'4. Billing Determinants'!$E$41*$D28,IF($E28="kW",VLOOKUP(J$4,'4. Billing Determinants'!$B$19:$R$41,5,0)/'4. Billing Determinants'!$F$41*$D28,IF($E28="Non-RPP kWh",VLOOKUP(J$4,'4. Billing Determinants'!$B$19:$R$41,6,0)/'4. Billing Determinants'!$G$41*$D28,IF($E28="Distribution Rev.",VLOOKUP(J$4,'4. Billing Determinants'!$B$19:$R$41,8,0)/'4. Billing Determinants'!$I$41*$D28, VLOOKUP(J$4,'4. Billing Determinants'!$B$19:$R$41,3,0)/'4. Billing Determinants'!$D$41*$D28))))),0) -> 925.6144388 | K28: =IFERROR(IF(K$4="",0,IF($E28="kWh",VLOOKUP(K$4,'4. Billing Determinants'!$B$19:$R$41,4,0)/'4. Billing Determinants'!$E$41*$D28,IF($E28="kW",VLOOKUP(K$4,'4. Billing Determinants'!$B$19:$R$41,5,0)/'4. Billing Determinants'!$F$41*$D28,IF($E28="Non-RPP kWh",VLOOKUP(K$4,'4. Billing Determinants'!$B$19:$R$41,6,0)/'4. Billing Determinants'!$G$41*$D28,IF($E28="Distribution Rev.",VLOOKUP(K$4,'4. Billing Determinants'!$B$19:$R$41,8,0)/'4. Billing Determinants'!$I$41*$D28, VLOOKUP(K$4,'4. Billing Determinants'!$B$19:$R$41,3,0)/'4. Billing Determinants'!$D$41*$D28))))),0) -> 35114.2669 | L28: =IFERROR(IF(L$4="",0,IF($E28="kWh",VLOOKUP(L$4,'4. Billing Determinants'!$B$19:$R$41,4,0)/'4. Billing Determinants'!$E$41*$D28,IF($E28="kW",VLOOKUP(L$4,'4. Billing Determinants'!$B$19:$R$41,5,0)/'4. Billing Determinants'!$F$41*$D28,IF($E28="Non-RPP kWh",VLOOKUP(L$4,'4. Billing Determinants'!$B$19:$R$41,6,0)/'4. Billing Determinants'!$G$41*$D28,IF($E28="Distribution Rev.",VLOOKUP(L$4,'4. Billing Determinants'!$B$19:$R$41,8,0)/'4. Billing Determinants'!$I$41*$D28, VLOOKUP(L$4,'4. Billing Determinants'!$B$19:$R$41,3,0)/'4. Billing Determinants'!$D$41*$D28))))),0) -> 0 | M28: =IFERROR(IF(M$4="",0,IF($E28="kWh",VLOOKUP(M$4,'4. Billing Determinants'!$B$19:$R$41,4,0)/'4. Billing Determinants'!$E$41*$D28,IF($E28="kW",VLOOKUP(M$4,'4. Billing Determinants'!$B$19:$R$41,5,0)/'4. Billing Determinants'!$F$41*$D28,IF($E28="Non-RPP kWh",VLOOKUP(M$4,'4. Billing Determinants'!$B$19:$R$41,6,0)/'4. Billing Determinants'!$G$41*$D28,IF($E28="Distribution Rev.",VLOOKUP(M$4,'4. Billing Determinants'!$B$19:$R$41,8,0)/'4. Billing Determinants'!$I$41*$D28, VLOOKUP(M$4,'4. Billing Determinants'!$B$19:$R$41,3,0)/'4. Billing Determinants'!$D$41*$D28))))),0) -> 0 | N28: =IFERROR(IF(N$4="",0,IF($E28="kWh",VLOOKUP(N$4,'4. Billing Determinants'!$B$19:$R$41,4,0)/'4. Billing Determinants'!$E$41*$D28,IF($E28="kW",VLOOKUP(N$4,'4. Billing Determinants'!$B$19:$R$41,5,0)/'4. Billing Determinants'!$F$41*$D28,IF($E28="Non-RPP kWh",VLOOKUP(N$4,'4. Billing Determinants'!$B$19:$R$41,6,0)/'4. Billing Determinants'!$G$41*$D28,IF($E28="Distribution Rev.",VLOOKUP(N$4,'4. Billing Determinants'!$B$19:$R$41,8,0)/'4. Billing Determinants'!$I$41*$D28, VLOOKUP(N$4,'4. Billing Determinants'!$B$19:$R$41,3,0)/'4. Billing Determinants'!$D$41*$D28))))),0) -> 0 | O28: =IFERROR(IF(O$4="",0,IF($E28="kWh",VLOOKUP(O$4,'4. Billing Determinants'!$B$19:$R$41,4,0)/'4. Billing Determinants'!$E$41*$D28,IF($E28="kW",VLOOKUP(O$4,'4. Billing Determinants'!$B$19:$R$41,5,0)/'4. Billing Determinants'!$F$41*$D28,IF($E28="Non-RPP kWh",VLOOKUP(O$4,'4. Billing Determinants'!$B$19:$R$41,6,0)/'4. Billing Determinants'!$G$41*$D28,IF($E28="Distribution Rev.",VLOOKUP(O$4,'4. Billing Determinants'!$B$19:$R$41,8,0)/'4. Billing Determinants'!$I$41*$D28, VLOOKUP(O$4,'4. Billing Determinants'!$B$19:$R$41,3,0)/'4. Billing Determinants'!$D$41*$D28))))),0) -> 0 | P28: =IFERROR(IF(P$4="",0,IF($E28="kWh",VLOOKUP(P$4,'4. Billing Determinants'!$B$19:$R$41,4,0)/'4. Billing Determinants'!$E$41*$D28,IF($E28="kW",VLOOKUP(P$4,'4. Billing Determinants'!$B$19:$R$41,5,0)/'4. Billing Determinants'!$F$41*$D28,IF($E28="Non-RPP kWh",VLOOKUP(P$4,'4. Billing Determinants'!$B$19:$R$41,6,0)/'4. Billing Determinants'!$G$41*$D28,IF($E28="Distribution Rev.",VLOOKUP(P$4,'4. Billing Determinants'!$B$19:$R$41,8,0)/'4. Billing Determinants'!$I$41*$D28, VLOOKUP(P$4,'4. Billing Determinants'!$B$19:$R$41,3,0)/'4. Billing Determinants'!$D$41*$D28))))),0) -> 0 | Q28: =IFERROR(IF(Q$4="",0,IF($E28="kWh",VLOOKUP(Q$4,'4. Billing Determinants'!$B$19:$R$41,4,0)/'4. Billing Determinants'!$E$41*$D28,IF($E28="kW",VLOOKUP(Q$4,'4. Billing Determinants'!$B$19:$R$41,5,0)/'4. Billing Determinants'!$F$41*$D28,IF($E28="Non-RPP kWh",VLOOKUP(Q$4,'4. Billing Determinants'!$B$19:$R$41,6,0)/'4. Billing Determinants'!$G$41*$D28,IF($E28="Distribution Rev.",VLOOKUP(Q$4,'4. Billing Determinants'!$B$19:$R$41,8,0)/'4. Billing Determinants'!$I$41*$D28, VLOOKUP(Q$4,'4. Billing Determinants'!$B$19:$R$41,3,0)/'4. Billing Determinants'!$D$41*$D28))))),0) -> 0 | R28: =IFERROR(IF(R$4="",0,IF($E28="kWh",VLOOKUP(R$4,'4. Billing Determinants'!$B$19:$R$41,4,0)/'4. Billing Determinants'!$E$41*$D28,IF($E28="kW",VLOOKUP(R$4,'4. Billing Determinants'!$B$19:$R$41,5,0)/'4. Billing Determinants'!$F$41*$D28,IF($E28="Non-RPP kWh",VLOOKUP(R$4,'4. Billing Determinants'!$B$19:$R$41,6,0)/'4. Billing Determinants'!$G$41*$D28,IF($E28="Distribution Rev.",VLOOKUP(R$4,'4. Billing Determinants'!$B$19:$R$41,8,0)/'4. Billing Determinants'!$I$41*$D28, VLOOKUP(R$4,'4. Billing Determinants'!$B$19:$R$41,3,0)/'4. Billing Determinants'!$D$41*$D28))))),0) -> 0 | S28: =IFERROR(IF(S$4="",0,IF($E28="kWh",VLOOKUP(S$4,'4. Billing Determinants'!$B$19:$R$41,4,0)/'4. Billing Determinants'!$E$41*$D28,IF($E28="kW",VLOOKUP(S$4,'4. Billing Determinants'!$B$19:$R$41,5,0)/'4. Billing Determinants'!$F$41*$D28,IF($E28="Non-RPP kWh",VLOOKUP(S$4,'4. Billing Determinants'!$B$19:$R$41,6,0)/'4. Billing Determinants'!$G$41*$D28,IF($E28="Distribution Rev.",VLOOKUP(S$4,'4. Billing Determinants'!$B$19:$R$41,8,0)/'4. Billing Determinants'!$I$41*$D28, VLOOKUP(S$4,'4. Billing Determinants'!$B$19:$R$41,3,0)/'4. Billing Determinants'!$D$41*$D28))))),0) -> 0 | T28: =IFERROR(IF(T$4="",0,IF($E28="kWh",VLOOKUP(T$4,'4. Billing Determinants'!$B$19:$R$41,4,0)/'4. Billing Determinants'!$E$41*$D28,IF($E28="kW",VLOOKUP(T$4,'4. Billing Determinants'!$B$19:$R$41,5,0)/'4. Billing Determinants'!$F$41*$D28,IF($E28="Non-RPP kWh",VLOOKUP(T$4,'4. Billing Determinants'!$B$19:$R$41,6,0)/'4. Billing Determinants'!$G$41*$D28,IF($E28="Distribution Rev.",VLOOKUP(T$4,'4. Billing Determinants'!$B$19:$R$41,8,0)/'4. Billing Determinants'!$I$41*$D28, VLOOKUP(T$4,'4. Billing Determinants'!$B$19:$R$41,3,0)/'4. Billing Determinants'!$D$41*$D28))))),0) -> 0 | U28: =IFERROR(IF(U$4="",0,IF($E28="kWh",VLOOKUP(U$4,'4. Billing Determinants'!$B$19:$R$41,4,0)/'4. Billing Determinants'!$E$41*$D28,IF($E28="kW",VLOOKUP(U$4,'4. Billing Determinants'!$B$19:$R$41,5,0)/'4. Billing Determinants'!$F$41*$D28,IF($E28="Non-RPP kWh",VLOOKUP(U$4,'4. Billing Determinants'!$B$19:$R$41,6,0)/'4. Billing Determinants'!$G$41*$D28,IF($E28="Distribution Rev.",VLOOKUP(U$4,'4. Billing Determinants'!$B$19:$R$41,8,0)/'4. Billing Determinants'!$I$41*$D28, VLOOKUP(U$4,'4. Billing Determinants'!$B$19:$R$41,3,0)/'4. Billing Determinants'!$D$41*$D28))))),0) -> 0 | V28: =IFERROR(IF(V$4="",0,IF($E28="kWh",VLOOKUP(V$4,'4. Billing Determinants'!$B$19:$R$41,4,0)/'4. Billing Determinants'!$E$41*$D28,IF($E28="kW",VLOOKUP(V$4,'4. Billing Determinants'!$B$19:$R$41,5,0)/'4. Billing Determinants'!$F$41*$D28,IF($E28="Non-RPP kWh",VLOOKUP(V$4,'4. Billing Determinants'!$B$19:$R$41,6,0)/'4. Billing Determinants'!$G$41*$D28,IF($E28="Distribution Rev.",VLOOKUP(V$4,'4. Billing Determinants'!$B$19:$R$41,8,0)/'4. Billing Determinants'!$I$41*$D28, VLOOKUP(V$4,'4. Billing Determinants'!$B$19:$R$41,3,0)/'4. Billing Determinants'!$D$41*$D28))))),0) -> 0 | W28: =IFERROR(IF(W$4="",0,IF($E28="kWh",VLOOKUP(W$4,'4. Billing Determinants'!$B$19:$R$41,4,0)/'4. Billing Determinants'!$E$41*$D28,IF($E28="kW",VLOOKUP(W$4,'4. Billing Determinants'!$B$19:$R$41,5,0)/'4. Billing Determinants'!$F$41*$D28,IF($E28="Non-RPP kWh",VLOOKUP(W$4,'4. Billing Determinants'!$B$19:$R$41,6,0)/'4. Billing Determinants'!$G$41*$D28,IF($E28="Distribution Rev.",VLOOKUP(W$4,'4. Billing Determinants'!$B$19:$R$41,8,0)/'4. Billing Determinants'!$I$41*$D28, VLOOKUP(W$4,'4. Billing Determinants'!$B$19:$R$41,3,0)/'4. Billing Determinants'!$D$41*$D28))))),0) -> 0 | X28: =IFERROR(IF(X$4="",0,IF($E28="kWh",VLOOKUP(X$4,'4. Billing Determinants'!$B$19:$R$41,4,0)/'4. Billing Determinants'!$E$41*$D28,IF($E28="kW",VLOOKUP(X$4,'4. Billing Determinants'!$B$19:$R$41,5,0)/'4. Billing Determinants'!$F$41*$D28,IF($E28="Non-RPP kWh",VLOOKUP(X$4,'4. Billing Determinants'!$B$19:$R$41,6,0)/'4. Billing Determinants'!$G$41*$D28,IF($E28="Distribution Rev.",VLOOKUP(X$4,'4. Billing Determinants'!$B$19:$R$41,8,0)/'4. Billing Determinants'!$I$41*$D28, VLOOKUP(X$4,'4. Billing Determinants'!$B$19:$R$41,3,0)/'4. Billing Determinants'!$D$41*$D28))))),0) -> 0 | Y28: =IFERROR(IF(Y$4="",0,IF($E28="kWh",VLOOKUP(Y$4,'4. Billing Determinants'!$B$19:$R$41,4,0)/'4. Billing Determinants'!$E$41*$D28,IF($E28="kW",VLOOKUP(Y$4,'4. Billing Determinants'!$B$19:$R$41,5,0)/'4. Billing Determinants'!$F$41*$D28,IF($E28="Non-RPP kWh",VLOOKUP(Y$4,'4. Billing Determinants'!$B$19:$R$41,6,0)/'4. Billing Determinants'!$G$41*$D28,IF($E28="Distribution Rev.",VLOOKUP(Y$4,'4. Billing Determinants'!$B$19:$R$41,8,0)/'4. Billing Determinants'!$I$41*$D28, VLOOKUP(Y$4,'4. Billing Determinants'!$B$19:$R$41,3,0)/'4. Billing Determinants'!$D$41*$D28))))),0) -> 0 | AA28: -1.455191523e-11
B29: Misc. Deferred Debits | C29: 1525 | D29: ='2. 2015 Continuity Schedule'!BW50 -> 0 | F29: =IFERROR(IF(F$4="",0,IF($E29="kWh",VLOOKUP(F$4,'4. Billing Determinants'!$B$19:$R$41,4,0)/'4. Billing Determinants'!$E$41*$D29,IF($E29="kW",VLOOKUP(F$4,'4. Billing Determinants'!$B$19:$R$41,5,0)/'4. Billing Determinants'!$F$41*$D29,IF($E29="Non-RPP kWh",VLOOKUP(F$4,'4. Billing Determinants'!$B$19:$R$41,6,0)/'4. Billing Determinants'!$G$41*$D29,IF($E29="Distribution Rev.",VLOOKUP(F$4,'4. Billing Determinants'!$B$19:$R$41,8,0)/'4. Billing Determinants'!$I$41*$D29, VLOOKUP(F$4,'4. Billing Determinants'!$B$19:$R$41,3,0)/'4. Billing Determinants'!$D$41*$D29))))),0) -> 0 | G29: =IFERROR(IF(G$4="",0,IF($E29="kWh",VLOOKUP(G$4,'4. Billing Determinants'!$B$19:$R$41,4,0)/'4. Billing Determinants'!$E$41*$D29,IF($E29="kW",VLOOKUP(G$4,'4. Billing Determinants'!$B$19:$R$41,5,0)/'4. Billing Determinants'!$F$41*$D29,IF($E29="Non-RPP kWh",VLOOKUP(G$4,'4. Billing Determinants'!$B$19:$R$41,6,0)/'4. Billing Determinants'!$G$41*$D29,IF($E29="Distribution Rev.",VLOOKUP(G$4,'4. Billing Determinants'!$B$19:$R$41,8,0)/'4. Billing Determinants'!$I$41*$D29, VLOOKUP(G$4,'4. Billing Determinants'!$B$19:$R$41,3,0)/'4. Billing Determinants'!$D$41*$D29))))),0) -> 0 | H29: =IFERROR(IF(H$4="",0,IF($E29="kWh",VLOOKUP(H$4,'4. Billing Determinants'!$B$19:$R$41,4,0)/'4. Billing Determinants'!$E$41*$D29,IF($E29="kW",VLOOKUP(H$4,'4. Billing Determinants'!$B$19:$R$41,5,0)/'4. Billing Determinants'!$F$41*$D29,IF($E29="Non-RPP kWh",VLOOKUP(H$4,'4. Billing Determinants'!$B$19:$R$41,6,0)/'4. Billing Determinants'!$G$41*$D29,IF($E29="Distribution Rev.",VLOOKUP(H$4,'4. Billing Determinants'!$B$19:$R$41,8,0)/'4. Billing Determinants'!$I$41*$D29, VLOOKUP(H$4,'4. Billing Determinants'!$B$19:$R$41,3,0)/'4. Billing Determinants'!$D$41*$D29))))),0) -> 0 | I29: =IFERROR(IF(I$4="",0,IF($E29="kWh",VLOOKUP(I$4,'4. Billing Determinants'!$B$19:$R$41,4,0)/'4. Billing Determinants'!$E$41*$D29,IF($E29="kW",VLOOKUP(I$4,'4. Billing Determinants'!$B$19:$R$41,5,0)/'4. Billing Determinants'!$F$41*$D29,IF($E29="Non-RPP kWh",VLOOKUP(I$4,'4. Billing Determinants'!$B$19:$R$41,6,0)/'4. Billing Determinants'!$G$41*$D29,IF($E29="Distribution Rev.",VLOOKUP(I$4,'4. Billing Determinants'!$B$19:$R$41,8,0)/'4. Billing Determinants'!$I$41*$D29, VLOOKUP(I$4,'4. Billing Determinants'!$B$19:$R$41,3,0)/'4. Billing Determinants'!$D$41*$D29))))),0) -> 0 | J29: =IFERROR(IF(J$4="",0,IF($E29="kWh",VLOOKUP(J$4,'4. Billing Determinants'!$B$19:$R$41,4,0)/'4. Billing Determinants'!$E$41*$D29,IF($E29="kW",VLOOKUP(J$4,'4. Billing Determinants'!$B$19:$R$41,5,0)/'4. Billing Determinants'!$F$41*$D29,IF($E29="Non-RPP kWh",VLOOKUP(J$4,'4. Billing Determinants'!$B$19:$R$41,6,0)/'4. Billing Determinants'!$G$41*$D29,IF($E29="Distribution Rev.",VLOOKUP(J$4,'4. Billing Determinants'!$B$19:$R$41,8,0)/'4. Billing Determinants'!$I$41*$D29, VLOOKUP(J$4,'4. Billing Determinants'!$B$19:$R$41,3,0)/'4. Billing Determinants'!$D$41*$D29))))),0) -> 0 | K29: =IFERROR(IF(K$4="",0,IF($E29="kWh",VLOOKUP(K$4,'4. Billing Determinants'!$B$19:$R$41,4,0)/'4. Billing Determinants'!$E$41*$D29,IF($E29="kW",VLOOKUP(K$4,'4. Billing Determinants'!$B$19:$R$41,5,0)/'4. Billing Determinants'!$F$41*$D29,IF($E29="Non-RPP kWh",VLOOKUP(K$4,'4. Billing Determinants'!$B$19:$R$41,6,0)/'4. Billing Determinants'!$G$41*$D29,IF($E29="Distribution Rev.",VLOOKUP(K$4,'4. Billing Determinants'!$B$19:$R$41,8,0)/'4. Billing Determinants'!$I$41*$D29, VLOOKUP(K$4,'4. Billing Determinants'!$B$19:$R$41,3,0)/'4. Billing Determinants'!$D$41*$D29))))),0) -> 0 | L29: =IFERROR(IF(L$4="",0,IF($E29="kWh",VLOOKUP(L$4,'4. Billing Determinants'!$B$19:$R$41,4,0)/'4. Billing Determinants'!$E$41*$D29,IF($E29="kW",VLOOKUP(L$4,'4. Billing Determinants'!$B$19:$R$41,5,0)/'4. Billing Determinants'!$F$41*$D29,IF($E29="Non-RPP kWh",VLOOKUP(L$4,'4. Billing Determinants'!$B$19:$R$41,6,0)/'4. Billing Determinants'!$G$41*$D29,IF($E29="Distribution Rev.",VLOOKUP(L$4,'4. Billing Determinants'!$B$19:$R$41,8,0)/'4. Billing Determinants'!$I$41*$D29, VLOOKUP(L$4,'4. Billing Determinants'!$B$19:$R$41,3,0)/'4. Billing Determinants'!$D$41*$D29))))),0) -> 0 | M29: =IFERROR(IF(M$4="",0,IF($E29="kWh",VLOOKUP(M$4,'4. Billing Determinants'!$B$19:$R$41,4,0)/'4. Billing Determinants'!$E$41*$D29,IF($E29="kW",VLOOKUP(M$4,'4. Billing Determinants'!$B$19:$R$41,5,0)/'4. Billing Determinants'!$F$41*$D29,IF($E29="Non-RPP kWh",VLOOKUP(M$4,'4. Billing Determinants'!$B$19:$R$41,6,0)/'4. Billing Determinants'!$G$41*$D29,IF($E29="Distribution Rev.",VLOOKUP(M$4,'4. Billing Determinants'!$B$19:$R$41,8,0)/'4. Billing Determinants'!$I$41*$D29, VLOOKUP(M$4,'4. Billing Determinants'!$B$19:$R$41,3,0)/'4. Billing Determinants'!$D$41*$D29))))),0) -> 0 | N29: =IFERROR(IF(N$4="",0,IF($E29="kWh",VLOOKUP(N$4,'4. Billing Determinants'!$B$19:$R$41,4,0)/'4. Billing Determinants'!$E$41*$D29,IF($E29="kW",VLOOKUP(N$4,'4. Billing Determinants'!$B$19:$R$41,5,0)/'4. Billing Determinants'!$F$41*$D29,IF($E29="Non-RPP kWh",VLOOKUP(N$4,'4. Billing Determinants'!$B$19:$R$41,6,0)/'4. Billing Determinants'!$G$41*$D29,IF($E29="Distribution Rev.",VLOOKUP(N$4,'4. Billing Determinants'!$B$19:$R$41,8,0)/'4. Billing Determinants'!$I$41*$D29, VLOOKUP(N$4,'4. Billing Determinants'!$B$19:$R$41,3,0)/'4. Billing Determinants'!$D$41*$D29))))),0) -> 0 | O29: =IFERROR(IF(O$4="",0,IF($E29="kWh",VLOOKUP(O$4,'4. Billing Determinants'!$B$19:$R$41,4,0)/'4. Billing Determinants'!$E$41*$D29,IF($E29="kW",VLOOKUP(O$4,'4. Billing Determinants'!$B$19:$R$41,5,0)/'4. Billing Determinants'!$F$41*$D29,IF($E29="Non-RPP kWh",VLOOKUP(O$4,'4. Billing Determinants'!$B$19:$R$41,6,0)/'4. Billing Determinants'!$G$41*$D29,IF($E29="Distribution Rev.",VLOOKUP(O$4,'4. Billing Determinants'!$B$19:$R$41,8,0)/'4. Billing Determinants'!$I$41*$D29, VLOOKUP(O$4,'4. Billing Determinants'!$B$19:$R$41,3,0)/'4. Billing Determinants'!$D$41*$D29))))),0) -> 0 | P29: =IFERROR(IF(P$4="",0,IF($E29="kWh",VLOOKUP(P$4,'4. Billing Determinants'!$B$19:$R$41,4,0)/'4. Billing Determinants'!$E$41*$D29,IF($E29="kW",VLOOKUP(P$4,'4. Billing Determinants'!$B$19:$R$41,5,0)/'4. Billing Determinants'!$F$41*$D29,IF($E29="Non-RPP kWh",VLOOKUP(P$4,'4. Billing Determinants'!$B$19:$R$41,6,0)/'4. Billing Determinants'!$G$41*$D29,IF($E29="Distribution Rev.",VLOOKUP(P$4,'4. Billing Determinants'!$B$19:$R$41,8,0)/'4. Billing Determinants'!$I$41*$D29, VLOOKUP(P$4,'4. Billing Determinants'!$B$19:$R$41,3,0)/'4. Billing Determinants'!$D$41*$D29))))),0) -> 0 | Q29: =IFERROR(IF(Q$4="",0,IF($E29="kWh",VLOOKUP(Q$4,'4. Billing Determinants'!$B$19:$R$41,4,0)/'4. Billing Determinants'!$E$41*$D29,IF($E29="kW",VLOOKUP(Q$4,'4. Billing Determinants'!$B$19:$R$41,5,0)/'4. Billing Determinants'!$F$41*$D29,IF($E29="Non-RPP kWh",VLOOKUP(Q$4,'4. Billing Determinants'!$B$19:$R$41,6,0)/'4. Billing Determinants'!$G$41*$D29,IF($E29="Distribution Rev.",VLOOKUP(Q$4,'4. Billing Determinants'!$B$19:$R$41,8,0)/'4. Billing Determinants'!$I$41*$D29, VLOOKUP(Q$4,'4. Billing Determinants'!$B$19:$R$41,3,0)/'4. Billing Determinants'!$D$41*$D29))))),0) -> 0 | R29: =IFERROR(IF(R$4="",0,IF($E29="kWh",VLOOKUP(R$4,'4. Billing Determinants'!$B$19:$R$41,4,0)/'4. Billing Determinants'!$E$41*$D29,IF($E29="kW",VLOOKUP(R$4,'4. Billing Determinants'!$B$19:$R$41,5,0)/'4. Billing Determinants'!$F$41*$D29,IF($E29="Non-RPP kWh",VLOOKUP(R$4,'4. Billing Determinants'!$B$19:$R$41,6,0)/'4. Billing Determinants'!$G$41*$D29,IF($E29="Distribution Rev.",VLOOKUP(R$4,'4. Billing Determinants'!$B$19:$R$41,8,0)/'4. Billing Determinants'!$I$41*$D29, VLOOKUP(R$4,'4. Billing Determinants'!$B$19:$R$41,3,0)/'4. Billing Determinants'!$D$41*$D29))))),0) -> 0 | S29: =IFERROR(IF(S$4="",0,IF($E29="kWh",VLOOKUP(S$4,'4. Billing Determinants'!$B$19:$R$41,4,0)/'4. Billing Determinants'!$E$41*$D29,IF($E29="kW",VLOOKUP(S$4,'4. Billing Determinants'!$B$19:$R$41,5,0)/'4. Billing Determinants'!$F$41*$D29,IF($E29="Non-RPP kWh",VLOOKUP(S$4,'4. Billing Determinants'!$B$19:$R$41,6,0)/'4. Billing Determinants'!$G$41*$D29,IF($E29="Distribution Rev.",VLOOKUP(S$4,'4. Billing Determinants'!$B$19:$R$41,8,0)/'4. Billing Determinants'!$I$41*$D29, VLOOKUP(S$4,'4. Billing Determinants'!$B$19:$R$41,3,0)/'4. Billing Determinants'!$D$41*$D29))))),0) -> 0 | T29: =IFERROR(IF(T$4="",0,IF($E29="kWh",VLOOKUP(T$4,'4. Billing Determinants'!$B$19:$R$41,4,0)/'4. Billing Determinants'!$E$41*$D29,IF($E29="kW",VLOOKUP(T$4,'4. Billing Determinants'!$B$19:$R$41,5,0)/'4. Billing Determinants'!$F$41*$D29,IF($E29="Non-RPP kWh",VLOOKUP(T$4,'4. Billing Determinants'!$B$19:$R$41,6,0)/'4. Billing Determinants'!$G$41*$D29,IF($E29="Distribution Rev.",VLOOKUP(T$4,'4. Billing Determinants'!$B$19:$R$41,8,0)/'4. Billing Determinants'!$I$41*$D29, VLOOKUP(T$4,'4. Billing Determinants'!$B$19:$R$41,3,0)/'4. Billing Determinants'!$D$41*$D29))))),0) -> 0 | U29: =IFERROR(IF(U$4="",0,IF($E29="kWh",VLOOKUP(U$4,'4. Billing Determinants'!$B$19:$R$41,4,0)/'4. Billing Determinants'!$E$41*$D29,IF($E29="kW",VLOOKUP(U$4,'4. Billing Determinants'!$B$19:$R$41,5,0)/'4. Billing Determinants'!$F$41*$D29,IF($E29="Non-RPP kWh",VLOOKUP(U$4,'4. Billing Determinants'!$B$19:$R$41,6,0)/'4. Billing Determinants'!$G$41*$D29,IF($E29="Distribution Rev.",VLOOKUP(U$4,'4. Billing Determinants'!$B$19:$R$41,8,0)/'4. Billing Determinants'!$I$41*$D29, VLOOKUP(U$4,'4. Billing Determinants'!$B$19:$R$41,3,0)/'4. Billing Determinants'!$D$41*$D29))))),0) -> 0 | V29: =IFERROR(IF(V$4="",0,IF($E29="kWh",VLOOKUP(V$4,'4. Billing Determinants'!$B$19:$R$41,4,0)/'4. Billing Determinants'!$E$41*$D29,IF($E29="kW",VLOOKUP(V$4,'4. Billing Determinants'!$B$19:$R$41,5,0)/'4. Billing Determinants'!$F$41*$D29,IF($E29="Non-RPP kWh",VLOOKUP(V$4,'4. Billing Determinants'!$B$19:$R$41,6,0)/'4. Billing Determinants'!$G$41*$D29,IF($E29="Distribution Rev.",VLOOKUP(V$4,'4. Billing Determinants'!$B$19:$R$41,8,0)/'4. Billing Determinants'!$I$41*$D29, VLOOKUP(V$4,'4. Billing Determinants'!$B$19:$R$41,3,0)/'4. Billing Determinants'!$D$41*$D29))))),0) -> 0 | W29: =IFERROR(IF(W$4="",0,IF($E29="kWh",VLOOKUP(W$4,'4. Billing Determinants'!$B$19:$R$41,4,0)/'4. Billing Determinants'!$E$41*$D29,IF($E29="kW",VLOOKUP(W$4,'4. Billing Determinants'!$B$19:$R$41,5,0)/'4. Billing Determinants'!$F$41*$D29,IF($E29="Non-RPP kWh",VLOOKUP(W$4,'4. Billing Determinants'!$B$19:$R$41,6,0)/'4. Billing Determinants'!$G$41*$D29,IF($E29="Distribution Rev.",VLOOKUP(W$4,'4. Billing Determinants'!$B$19:$R$41,8,0)/'4. Billing Determinants'!$I$41*$D29, VLOOKUP(W$4,'4. Billing Determinants'!$B$19:$R$41,3,0)/'4. Billing Determinants'!$D$41*$D29))))),0) -> 0 | X29: =IFERROR(IF(X$4="",0,IF($E29="kWh",VLOOKUP(X$4,'4. Billing Determinants'!$B$19:$R$41,4,0)/'4. Billing Determinants'!$E$41*$D29,IF($E29="kW",VLOOKUP(X$4,'4. Billing Determinants'!$B$19:$R$41,5,0)/'4. Billing Determinants'!$F$41*$D29,IF($E29="Non-RPP kWh",VLOOKUP(X$4,'4. Billing Determinants'!$B$19:$R$41,6,0)/'4. Billing Determinants'!$G$41*$D29,IF($E29="Distribution Rev.",VLOOKUP(X$4,'4. Billing Determinants'!$B$19:$R$41,8,0)/'4. Billing Determinants'!$I$41*$D29, VLOOKUP(X$4,'4. Billing Determinants'!$B$19:$R$41,3,0)/'4. Billing Determinants'!$D$41*$D29))))),0) -> 0 | Y29: =IFERROR(IF(Y$4="",0,IF($E29="kWh",VLOOKUP(Y$4,'4. Billing Determinants'!$B$19:$R$41,4,0)/'4. Billing Determinants'!$E$41*$D29,IF($E29="kW",VLOOKUP(Y$4,'4. Billing Determinants'!$B$19:$R$41,5,0)/'4. Billing Determinants'!$F$41*$D29,IF($E29="Non-RPP kWh",VLOOKUP(Y$4,'4. Billing Determinants'!$B$19:$R$41,6,0)/'4. Billing Determinants'!$G$41*$D29,IF($E29="Distribution Rev.",VLOOKUP(Y$4,'4. Billing Determinants'!$B$19:$R$41,8,0)/'4. Billing Determinants'!$I$41*$D29, VLOOKUP(Y$4,'4. Billing Determinants'!$B$19:$R$41,3,0)/'4. Billing Determinants'!$D$41*$D29))))),0) -> 0 | AA29: 0
B30: Renewable Generation Connection Capital Deferral Account | C30: 1531 | D30: ='2. 2015 Continuity Schedule'!BW51 -> 9058.339485 | E30: Distribution Rev. | F30: =IFERROR(IF(F$4="",0,IF($E30="kWh",VLOOKUP(F$4,'4. Billing Determinants'!$B$19:$R$41,4,0)/'4. Billing Determinants'!$E$41*$D30,IF($E30="kW",VLOOKUP(F$4,'4. Billing Determinants'!$B$19:$R$41,5,0)/'4. Billing Determinants'!$F$41*$D30,IF($E30="Non-RPP kWh",VLOOKUP(F$4,'4. Billing Determinants'!$B$19:$R$41,6,0)/'4. Billing Determinants'!$G$41*$D30,IF($E30="Distribution Rev.",VLOOKUP(F$4,'4. Billing Determinants'!$B$19:$R$41,8,0)/'4. Billing Determinants'!$I$41*$D30, VLOOKUP(F$4,'4. Billing Determinants'!$B$19:$R$41,3,0)/'4. Billing Determinants'!$D$41*$D30))))),0) -> 5192.243568 | G30: =IFERROR(IF(G$4="",0,IF($E30="kWh",VLOOKUP(G$4,'4. Billing Determinants'!$B$19:$R$41,4,0)/'4. Billing Determinants'!$E$41*$D30,IF($E30="kW",VLOOKUP(G$4,'4. Billing Determinants'!$B$19:$R$41,5,0)/'4. Billing Determinants'!$F$41*$D30,IF($E30="Non-RPP kWh",VLOOKUP(G$4,'4. Billing Determinants'!$B$19:$R$41,6,0)/'4. Billing Determinants'!$G$41*$D30,IF($E30="Distribution Rev.",VLOOKUP(G$4,'4. Billing Determinants'!$B$19:$R$41,8,0)/'4. Billing Determinants'!$I$41*$D30, VLOOKUP(G$4,'4. Billing Determinants'!$B$19:$R$41,3,0)/'4. Billing Determinants'!$D$41*$D30))))),0) -> 1477.763146 | H30: =IFERROR(IF(H$4="",0,IF($E30="kWh",VLOOKUP(H$4,'4. Billing Determinants'!$B$19:$R$41,4,0)/'4. Billing Determinants'!$E$41*$D30,IF($E30="kW",VLOOKUP(H$4,'4. Billing Determinants'!$B$19:$R$41,5,0)/'4. Billing Determinants'!$F$41*$D30,IF($E30="Non-RPP kWh",VLOOKUP(H$4,'4. Billing Determinants'!$B$19:$R$41,6,0)/'4. Billing Determinants'!$G$41*$D30,IF($E30="Distribution Rev.",VLOOKUP(H$4,'4. Billing Determinants'!$B$19:$R$41,8,0)/'4. Billing Determinants'!$I$41*$D30, VLOOKUP(H$4,'4. Billing Determinants'!$B$19:$R$41,3,0)/'4. Billing Determinants'!$D$41*$D30))))),0) -> 1945.800608 | I30: =IFERROR(IF(I$4="",0,IF($E30="kWh",VLOOKUP(I$4,'4. Billing Determinants'!$B$19:$R$41,4,0)/'4. Billing Determinants'!$E$41*$D30,IF($E30="kW",VLOOKUP(I$4,'4. Billing Determinants'!$B$19:$R$41,5,0)/'4. Billing Determinants'!$F$41*$D30,IF($E30="Non-RPP kWh",VLOOKUP(I$4,'4. Billing Determinants'!$B$19:$R$41,6,0)/'4. Billing Determinants'!$G$41*$D30,IF($E30="Distribution Rev.",VLOOKUP(I$4,'4. Billing Determinants'!$B$19:$R$41,8,0)/'4. Billing Determinants'!$I$41*$D30, VLOOKUP(I$4,'4. Billing Determinants'!$B$19:$R$41,3,0)/'4. Billing Determinants'!$D$41*$D30))))),0) -> 346.6045137 | J30: =IFERROR(IF(J$4="",0,IF($E30="kWh",VLOOKUP(J$4,'4. Billing Determinants'!$B$19:$R$41,4,0)/'4. Billing Determinants'!$E$41*$D30,IF($E30="kW",VLOOKUP(J$4,'4. Billing Determinants'!$B$19:$R$41,5,0)/'4. Billing Determinants'!$F$41*$D30,IF($E30="Non-RPP kWh",VLOOKUP(J$4,'4. Billing Determinants'!$B$19:$R$41,6,0)/'4. Billing Determinants'!$G$41*$D30,IF($E30="Distribution Rev.",VLOOKUP(J$4,'4. Billing Determinants'!$B$19:$R$41,8,0)/'4. Billing Determinants'!$I$41*$D30, VLOOKUP(J$4,'4. Billing Determinants'!$B$19:$R$41,3,0)/'4. Billing Determinants'!$D$41*$D30))))),0) -> 18.41797892 | K30: =IFERROR(IF(K$4="",0,IF($E30="kWh",VLOOKUP(K$4,'4. Billing Determinants'!$B$19:$R$41,4,0)/'4. Billing Determinants'!$E$41*$D30,IF($E30="kW",VLOOKUP(K$4,'4. Billing Determinants'!$B$19:$R$41,5,0)/'4. Billing Determinants'!$F$41*$D30,IF($E30="Non-RPP kWh",VLOOKUP(K$4,'4. Billing Determinants'!$B$19:$R$41,6,0)/'4. Billing Determinants'!$G$41*$D30,IF($E30="Distribution Rev.",VLOOKUP(K$4,'4. Billing Determinants'!$B$19:$R$41,8,0)/'4. Billing Determinants'!$I$41*$D30, VLOOKUP(K$4,'4. Billing Determinants'!$B$19:$R$41,3,0)/'4. Billing Determinants'!$D$41*$D30))))),0) -> 77.50966954 | L30: =IFERROR(IF(L$4="",0,IF($E30="kWh",VLOOKUP(L$4,'4. Billing Determinants'!$B$19:$R$41,4,0)/'4. Billing Determinants'!$E$41*$D30,IF($E30="kW",VLOOKUP(L$4,'4. Billing Determinants'!$B$19:$R$41,5,0)/'4. Billing Determinants'!$F$41*$D30,IF($E30="Non-RPP kWh",VLOOKUP(L$4,'4. Billing Determinants'!$B$19:$R$41,6,0)/'4. Billing Determinants'!$G$41*$D30,IF($E30="Distribution Rev.",VLOOKUP(L$4,'4. Billing Determinants'!$B$19:$R$41,8,0)/'4. Billing Determinants'!$I$41*$D30, VLOOKUP(L$4,'4. Billing Determinants'!$B$19:$R$41,3,0)/'4. Billing Determinants'!$D$41*$D30))))),0) -> 0 | M30: =IFERROR(IF(M$4="",0,IF($E30="kWh",VLOOKUP(M$4,'4. Billing Determinants'!$B$19:$R$41,4,0)/'4. Billing Determinants'!$E$41*$D30,IF($E30="kW",VLOOKUP(M$4,'4. Billing Determinants'!$B$19:$R$41,5,0)/'4. Billing Determinants'!$F$41*$D30,IF($E30="Non-RPP kWh",VLOOKUP(M$4,'4. Billing Determinants'!$B$19:$R$41,6,0)/'4. Billing Determinants'!$G$41*$D30,IF($E30="Distribution Rev.",VLOOKUP(M$4,'4. Billing Determinants'!$B$19:$R$41,8,0)/'4. Billing Determinants'!$I$41*$D30, VLOOKUP(M$4,'4. Billing Determinants'!$B$19:$R$41,3,0)/'4. Billing Determinants'!$D$41*$D30))))),0) -> 0 | N30: =IFERROR(IF(N$4="",0,IF($E30="kWh",VLOOKUP(N$4,'4. Billing Determinants'!$B$19:$R$41,4,0)/'4. Billing Determinants'!$E$41*$D30,IF($E30="kW",VLOOKUP(N$4,'4. Billing Determinants'!$B$19:$R$41,5,0)/'4. Billing Determinants'!$F$41*$D30,IF($E30="Non-RPP kWh",VLOOKUP(N$4,'4. Billing Determinants'!$B$19:$R$41,6,0)/'4. Billing Determinants'!$G$41*$D30,IF($E30="Distribution Rev.",VLOOKUP(N$4,'4. Billing Determinants'!$B$19:$R$41,8,0)/'4. Billing Determinants'!$I$41*$D30, VLOOKUP(N$4,'4. Billing Determinants'!$B$19:$R$41,3,0)/'4. Billing Determinants'!$D$41*$D30))))),0) -> 0 | O30: =IFERROR(IF(O$4="",0,IF($E30="kWh",VLOOKUP(O$4,'4. Billing Determinants'!$B$19:$R$41,4,0)/'4. Billing Determinants'!$E$41*$D30,IF($E30="kW",VLOOKUP(O$4,'4. Billing Determinants'!$B$19:$R$41,5,0)/'4. Billing Determinants'!$F$41*$D30,IF($E30="Non-RPP kWh",VLOOKUP(O$4,'4. Billing Determinants'!$B$19:$R$41,6,0)/'4. Billing Determinants'!$G$41*$D30,IF($E30="Distribution Rev.",VLOOKUP(O$4,'4. Billing Determinants'!$B$19:$R$41,8,0)/'4. Billing Determinants'!$I$41*$D30, VLOOKUP(O$4,'4. Billing Determinants'!$B$19:$R$41,3,0)/'4. Billing Determinants'!$D$41*$D30))))),0) -> 0 | P30: =IFERROR(IF(P$4="",0,IF($E30="kWh",VLOOKUP(P$4,'4. Billing Determinants'!$B$19:$R$41,4,0)/'4. Billing Determinants'!$E$41*$D30,IF($E30="kW",VLOOKUP(P$4,'4. Billing Determinants'!$B$19:$R$41,5,0)/'4. Billing Determinants'!$F$41*$D30,IF($E30="Non-RPP kWh",VLOOKUP(P$4,'4. Billing Determinants'!$B$19:$R$41,6,0)/'4. Billing Determinants'!$G$41*$D30,IF($E30="Distribution Rev.",VLOOKUP(P$4,'4. Billing Determinants'!$B$19:$R$41,8,0)/'4. Billing Determinants'!$I$41*$D30, VLOOKUP(P$4,'4. Billing Determinants'!$B$19:$R$41,3,0)/'4. Billing Determinants'!$D$41*$D30))))),0) -> 0 | Q30: =IFERROR(IF(Q$4="",0,IF($E30="kWh",VLOOKUP(Q$4,'4. Billing Determinants'!$B$19:$R$41,4,0)/'4. Billing Determinants'!$E$41*$D30,IF($E30="kW",VLOOKUP(Q$4,'4. Billing Determinants'!$B$19:$R$41,5,0)/'4. Billing Determinants'!$F$41*$D30,IF($E30="Non-RPP kWh",VLOOKUP(Q$4,'4. Billing Determinants'!$B$19:$R$41,6,0)/'4. Billing Determinants'!$G$41*$D30,IF($E30="Distribution Rev.",VLOOKUP(Q$4,'4. Billing Determinants'!$B$19:$R$41,8,0)/'4. Billing Determinants'!$I$41*$D30, VLOOKUP(Q$4,'4. Billing Determinants'!$B$19:$R$41,3,0)/'4. Billing Determinants'!$D$41*$D30))))),0) -> 0 | R30: =IFERROR(IF(R$4="",0,IF($E30="kWh",VLOOKUP(R$4,'4. Billing Determinants'!$B$19:$R$41,4,0)/'4. Billing Determinants'!$E$41*$D30,IF($E30="kW",VLOOKUP(R$4,'4. Billing Determinants'!$B$19:$R$41,5,0)/'4. Billing Determinants'!$F$41*$D30,IF($E30="Non-RPP kWh",VLOOKUP(R$4,'4. Billing Determinants'!$B$19:$R$41,6,0)/'4. Billing Determinants'!$G$41*$D30,IF($E30="Distribution Rev.",VLOOKUP(R$4,'4. Billing Determinants'!$B$19:$R$41,8,0)/'4. Billing Determinants'!$I$41*$D30, VLOOKUP(R$4,'4. Billing Determinants'!$B$19:$R$41,3,0)/'4. Billing Determinants'!$D$41*$D30))))),0) -> 0 | S30: =IFERROR(IF(S$4="",0,IF($E30="kWh",VLOOKUP(S$4,'4. Billing Determinants'!$B$19:$R$41,4,0)/'4. Billing Determinants'!$E$41*$D30,IF($E30="kW",VLOOKUP(S$4,'4. Billing Determinants'!$B$19:$R$41,5,0)/'4. Billing Determinants'!$F$41*$D30,IF($E30="Non-RPP kWh",VLOOKUP(S$4,'4. Billing Determinants'!$B$19:$R$41,6,0)/'4. Billing Determinants'!$G$41*$D30,IF($E30="Distribution Rev.",VLOOKUP(S$4,'4. Billing Determinants'!$B$19:$R$41,8,0)/'4. Billing Determinants'!$I$41*$D30, VLOOKUP(S$4,'4. Billing Determinants'!$B$19:$R$41,3,0)/'4. Billing Determinants'!$D$41*$D30))))),0) -> 0 | T30: =IFERROR(IF(T$4="",0,IF($E30="kWh",VLOOKUP(T$4,'4. Billing Determinants'!$B$19:$R$41,4,0)/'4. Billing Determinants'!$E$41*$D30,IF($E30="kW",VLOOKUP(T$4,'4. Billing Determinants'!$B$19:$R$41,5,0)/'4. Billing Determinants'!$F$41*$D30,IF($E30="Non-RPP kWh",VLOOKUP(T$4,'4. Billing Determinants'!$B$19:$R$41,6,0)/'4. Billing Determinants'!$G$41*$D30,IF($E30="Distribution Rev.",VLOOKUP(T$4,'4. Billing Determinants'!$B$19:$R$41,8,0)/'4. Billing Determinants'!$I$41*$D30, VLOOKUP(T$4,'4. Billing Determinants'!$B$19:$R$41,3,0)/'4. Billing Determinants'!$D$41*$D30))))),0) -> 0 | U30: =IFERROR(IF(U$4="",0,IF($E30="kWh",VLOOKUP(U$4,'4. Billing Determinants'!$B$19:$R$41,4,0)/'4. Billing Determinants'!$E$41*$D30,IF($E30="kW",VLOOKUP(U$4,'4. Billing Determinants'!$B$19:$R$41,5,0)/'4. Billing Determinants'!$F$41*$D30,IF($E30="Non-RPP kWh",VLOOKUP(U$4,'4. Billing Determinants'!$B$19:$R$41,6,0)/'4. Billing Determinants'!$G$41*$D30,IF($E30="Distribution Rev.",VLOOKUP(U$4,'4. Billing Determinants'!$B$19:$R$41,8,0)/'4. Billing Determinants'!$I$41*$D30, VLOOKUP(U$4,'4. Billing Determinants'!$B$19:$R$41,3,0)/'4. Billing Determinants'!$D$41*$D30))))),0) -> 0 | V30: =IFERROR(IF(V$4="",0,IF($E30="kWh",VLOOKUP(V$4,'4. Billing Determinants'!$B$19:$R$41,4,0)/'4. Billing Determinants'!$E$41*$D30,IF($E30="kW",VLOOKUP(V$4,'4. Billing Determinants'!$B$19:$R$41,5,0)/'4. Billing Determinants'!$F$41*$D30,IF($E30="Non-RPP kWh",VLOOKUP(V$4,'4. Billing Determinants'!$B$19:$R$41,6,0)/'4. Billing Determinants'!$G$41*$D30,IF($E30="Distribution Rev.",VLOOKUP(V$4,'4. Billing Determinants'!$B$19:$R$41,8,0)/'4. Billing Determinants'!$I$41*$D30, VLOOKUP(V$4,'4. Billing Determinants'!$B$19:$R$41,3,0)/'4. Billing Determinants'!$D$41*$D30))))),0) -> 0 | W30: =IFERROR(IF(W$4="",0,IF($E30="kWh",VLOOKUP(W$4,'4. Billing Determinants'!$B$19:$R$41,4,0)/'4. Billing Determinants'!$E$41*$D30,IF($E30="kW",VLOOKUP(W$4,'4. Billing Determinants'!$B$19:$R$41,5,0)/'4. Billing Determinants'!$F$41*$D30,IF($E30="Non-RPP kWh",VLOOKUP(W$4,'4. Billing Determinants'!$B$19:$R$41,6,0)/'4. Billing Determinants'!$G$41*$D30,IF($E30="Distribution Rev.",VLOOKUP(W$4,'4. Billing Determinants'!$B$19:$R$41,8,0)/'4. Billing Determinants'!$I$41*$D30, VLOOKUP(W$4,'4. Billing Determinants'!$B$19:$R$41,3,0)/'4. Billing Determinants'!$D$41*$D30))))),0) -> 0 | X30: =IFERROR(IF(X$4="",0,IF($E30="kWh",VLOOKUP(X$4,'4. Billing Determinants'!$B$19:$R$41,4,0)/'4. Billing Determinants'!$E$41*$D30,IF($E30="kW",VLOOKUP(X$4,'4. Billing Determinants'!$B$19:$R$41,5,0)/'4. Billing Determinants'!$F$41*$D30,IF($E30="Non-RPP kWh",VLOOKUP(X$4,'4. Billing Determinants'!$B$19:$R$41,6,0)/'4. Billing Determinants'!$G$41*$D30,IF($E30="Distribution Rev.",VLOOKUP(X$4,'4. Billing Determinants'!$B$19:$R$41,8,0)/'4. Billing Determinants'!$I$41*$D30, VLOOKUP(X$4,'4. Billing Determinants'!$B$19:$R$41,3,0)/'4. Billing Determinants'!$D$41*$D30))))),0) -> 0 | Y30: =IFERROR(IF(Y$4="",0,IF($E30="kWh",VLOOKUP(Y$4,'4. Billing Determinants'!$B$19:$R$41,4,0)/'4. Billing Determinants'!$E$41*$D30,IF($E30="kW",VLOOKUP(Y$4,'4. Billing Determinants'!$B$19:$R$41,5,0)/'4. Billing Determinants'!$F$41*$D30,IF($E30="Non-RPP kWh",VLOOKUP(Y$4,'4. Billing Determinants'!$B$19:$R$41,6,0)/'4. Billing Determinants'!$G$41*$D30,IF($E30="Distribution Rev.",VLOOKUP(Y$4,'4. Billing Determinants'!$B$19:$R$41,8,0)/'4. Billing Determinants'!$I$41*$D30, VLOOKUP(Y$4,'4. Billing Determinants'!$B$19:$R$41,3,0)/'4. Billing Determinants'!$D$41*$D30))))),0) -> 0 | AA30: 3.694822226e-13
B31: Renewable Generation Connection OM&A Deferral Account | C31: 1532 | D31: ='2. 2015 Continuity Schedule'!BW52 -> 2350.68314 | E31: Distribution Rev. | F31: =IFERROR(IF(F$4="",0,IF($E31="kWh",VLOOKUP(F$4,'4. Billing Determinants'!$B$19:$R$41,4,0)/'4. Billing Determinants'!$E$41*$D31,IF($E31="kW",VLOOKUP(F$4,'4. Billing Determinants'!$B$19:$R$41,5,0)/'4. Billing Determinants'!$F$41*$D31,IF($E31="Non-RPP kWh",VLOOKUP(F$4,'4. Billing Determinants'!$B$19:$R$41,6,0)/'4. Billing Determinants'!$G$41*$D31,IF($E31="Distribution Rev.",VLOOKUP(F$4,'4. Billing Determinants'!$B$19:$R$41,8,0)/'4. Billing Determinants'!$I$41*$D31, VLOOKUP(F$4,'4. Billing Determinants'!$B$19:$R$41,3,0)/'4. Billing Determinants'!$D$41*$D31))))),0) -> 1347.412452 | G31: =IFERROR(IF(G$4="",0,IF($E31="kWh",VLOOKUP(G$4,'4. Billing Determinants'!$B$19:$R$41,4,0)/'4. Billing Determinants'!$E$41*$D31,IF($E31="kW",VLOOKUP(G$4,'4. Billing Determinants'!$B$19:$R$41,5,0)/'4. Billing Determinants'!$F$41*$D31,IF($E31="Non-RPP kWh",VLOOKUP(G$4,'4. Billing Determinants'!$B$19:$R$41,6,0)/'4. Billing Determinants'!$G$41*$D31,IF($E31="Distribution Rev.",VLOOKUP(G$4,'4. Billing Determinants'!$B$19:$R$41,8,0)/'4. Billing Determinants'!$I$41*$D31, VLOOKUP(G$4,'4. Billing Determinants'!$B$19:$R$41,3,0)/'4. Billing Determinants'!$D$41*$D31))))),0) -> 383.4867217 | H31: =IFERROR(IF(H$4="",0,IF($E31="kWh",VLOOKUP(H$4,'4. Billing Determinants'!$B$19:$R$41,4,0)/'4. Billing Determinants'!$E$41*$D31,IF($E31="kW",VLOOKUP(H$4,'4. Billing Determinants'!$B$19:$R$41,5,0)/'4. Billing Determinants'!$F$41*$D31,IF($E31="Non-RPP kWh",VLOOKUP(H$4,'4. Billing Determinants'!$B$19:$R$41,6,0)/'4. Billing Determinants'!$G$41*$D31,IF($E31="Distribution Rev.",VLOOKUP(H$4,'4. Billing Determinants'!$B$19:$R$41,8,0)/'4. Billing Determinants'!$I$41*$D31, VLOOKUP(H$4,'4. Billing Determinants'!$B$19:$R$41,3,0)/'4. Billing Determinants'!$D$41*$D31))))),0) -> 504.9447187 | I31: =IFERROR(IF(I$4="",0,IF($E31="kWh",VLOOKUP(I$4,'4. Billing Determinants'!$B$19:$R$41,4,0)/'4. Billing Determinants'!$E$41*$D31,IF($E31="kW",VLOOKUP(I$4,'4. Billing Determinants'!$B$19:$R$41,5,0)/'4. Billing Determinants'!$F$41*$D31,IF($E31="Non-RPP kWh",VLOOKUP(I$4,'4. Billing Determinants'!$B$19:$R$41,6,0)/'4. Billing Determinants'!$G$41*$D31,IF($E31="Distribution Rev.",VLOOKUP(I$4,'4. Billing Determinants'!$B$19:$R$41,8,0)/'4. Billing Determinants'!$I$41*$D31, VLOOKUP(I$4,'4. Billing Determinants'!$B$19:$R$41,3,0)/'4. Billing Determinants'!$D$41*$D31))))),0) -> 89.94555656 | J31: =IFERROR(IF(J$4="",0,IF($E31="kWh",VLOOKUP(J$4,'4. Billing Determinants'!$B$19:$R$41,4,0)/'4. Billing Determinants'!$E$41*$D31,IF($E31="kW",VLOOKUP(J$4,'4. Billing Determinants'!$B$19:$R$41,5,0)/'4. Billing Determinants'!$F$41*$D31,IF($E31="Non-RPP kWh",VLOOKUP(J$4,'4. Billing Determinants'!$B$19:$R$41,6,0)/'4. Billing Determinants'!$G$41*$D31,IF($E31="Distribution Rev.",VLOOKUP(J$4,'4. Billing Determinants'!$B$19:$R$41,8,0)/'4. Billing Determinants'!$I$41*$D31, VLOOKUP(J$4,'4. Billing Determinants'!$B$19:$R$41,3,0)/'4. Billing Determinants'!$D$41*$D31))))),0) -> 4.779555082 | K31: =IFERROR(IF(K$4="",0,IF($E31="kWh",VLOOKUP(K$4,'4. Billing Determinants'!$B$19:$R$41,4,0)/'4. Billing Determinants'!$E$41*$D31,IF($E31="kW",VLOOKUP(K$4,'4. Billing Determinants'!$B$19:$R$41,5,0)/'4. Billing Determinants'!$F$41*$D31,IF($E31="Non-RPP kWh",VLOOKUP(K$4,'4. Billing Determinants'!$B$19:$R$41,6,0)/'4. Billing Determinants'!$G$41*$D31,IF($E31="Distribution Rev.",VLOOKUP(K$4,'4. Billing Determinants'!$B$19:$R$41,8,0)/'4. Billing Determinants'!$I$41*$D31, VLOOKUP(K$4,'4. Billing Determinants'!$B$19:$R$41,3,0)/'4. Billing Determinants'!$D$41*$D31))))),0) -> 20.11413611 | L31: =IFERROR(IF(L$4="",0,IF($E31="kWh",VLOOKUP(L$4,'4. Billing Determinants'!$B$19:$R$41,4,0)/'4. Billing Determinants'!$E$41*$D31,IF($E31="kW",VLOOKUP(L$4,'4. Billing Determinants'!$B$19:$R$41,5,0)/'4. Billing Determinants'!$F$41*$D31,IF($E31="Non-RPP kWh",VLOOKUP(L$4,'4. Billing Determinants'!$B$19:$R$41,6,0)/'4. Billing Determinants'!$G$41*$D31,IF($E31="Distribution Rev.",VLOOKUP(L$4,'4. Billing Determinants'!$B$19:$R$41,8,0)/'4. Billing Determinants'!$I$41*$D31, VLOOKUP(L$4,'4. Billing Determinants'!$B$19:$R$41,3,0)/'4. Billing Determinants'!$D$41*$D31))))),0) -> 0 | M31: =IFERROR(IF(M$4="",0,IF($E31="kWh",VLOOKUP(M$4,'4. Billing Determinants'!$B$19:$R$41,4,0)/'4. Billing Determinants'!$E$41*$D31,IF($E31="kW",VLOOKUP(M$4,'4. Billing Determinants'!$B$19:$R$41,5,0)/'4. Billing Determinants'!$F$41*$D31,IF($E31="Non-RPP kWh",VLOOKUP(M$4,'4. Billing Determinants'!$B$19:$R$41,6,0)/'4. Billing Determinants'!$G$41*$D31,IF($E31="Distribution Rev.",VLOOKUP(M$4,'4. Billing Determinants'!$B$19:$R$41,8,0)/'4. Billing Determinants'!$I$41*$D31, VLOOKUP(M$4,'4. Billing Determinants'!$B$19:$R$41,3,0)/'4. Billing Determinants'!$D$41*$D31))))),0) -> 0 | N31: =IFERROR(IF(N$4="",0,IF($E31="kWh",VLOOKUP(N$4,'4. Billing Determinants'!$B$19:$R$41,4,0)/'4. Billing Determinants'!$E$41*$D31,IF($E31="kW",VLOOKUP(N$4,'4. Billing Determinants'!$B$19:$R$41,5,0)/'4. Billing Determinants'!$F$41*$D31,IF($E31="Non-RPP kWh",VLOOKUP(N$4,'4. Billing Determinants'!$B$19:$R$41,6,0)/'4. Billing Determinants'!$G$41*$D31,IF($E31="Distribution Rev.",VLOOKUP(N$4,'4. Billing Determinants'!$B$19:$R$41,8,0)/'4. Billing Determinants'!$I$41*$D31, VLOOKUP(N$4,'4. Billing Determinants'!$B$19:$R$41,3,0)/'4. Billing Determinants'!$D$41*$D31))))),0) -> 0 | O31: =IFERROR(IF(O$4="",0,IF($E31="kWh",VLOOKUP(O$4,'4. Billing Determinants'!$B$19:$R$41,4,0)/'4. Billing Determinants'!$E$41*$D31,IF($E31="kW",VLOOKUP(O$4,'4. Billing Determinants'!$B$19:$R$41,5,0)/'4. Billing Determinants'!$F$41*$D31,IF($E31="Non-RPP kWh",VLOOKUP(O$4,'4. Billing Determinants'!$B$19:$R$41,6,0)/'4. Billing Determinants'!$G$41*$D31,IF($E31="Distribution Rev.",VLOOKUP(O$4,'4. Billing Determinants'!$B$19:$R$41,8,0)/'4. Billing Determinants'!$I$41*$D31, VLOOKUP(O$4,'4. Billing Determinants'!$B$19:$R$41,3,0)/'4. Billing Determinants'!$D$41*$D31))))),0) -> 0 | P31: =IFERROR(IF(P$4="",0,IF($E31="kWh",VLOOKUP(P$4,'4. Billing Determinants'!$B$19:$R$41,4,0)/'4. Billing Determinants'!$E$41*$D31,IF($E31="kW",VLOOKUP(P$4,'4. Billing Determinants'!$B$19:$R$41,5,0)/'4. Billing Determinants'!$F$41*$D31,IF($E31="Non-RPP kWh",VLOOKUP(P$4,'4. Billing Determinants'!$B$19:$R$41,6,0)/'4. Billing Determinants'!$G$41*$D31,IF($E31="Distribution Rev.",VLOOKUP(P$4,'4. Billing Determinants'!$B$19:$R$41,8,0)/'4. Billing Determinants'!$I$41*$D31, VLOOKUP(P$4,'4. Billing Determinants'!$B$19:$R$41,3,0)/'4. Billing Determinants'!$D$41*$D31))))),0) -> 0 | Q31: =IFERROR(IF(Q$4="",0,IF($E31="kWh",VLOOKUP(Q$4,'4. Billing Determinants'!$B$19:$R$41,4,0)/'4. Billing Determinants'!$E$41*$D31,IF($E31="kW",VLOOKUP(Q$4,'4. Billing Determinants'!$B$19:$R$41,5,0)/'4. Billing Determinants'!$F$41*$D31,IF($E31="Non-RPP kWh",VLOOKUP(Q$4,'4. Billing Determinants'!$B$19:$R$41,6,0)/'4. Billing Determinants'!$G$41*$D31,IF($E31="Distribution Rev.",VLOOKUP(Q$4,'4. Billing Determinants'!$B$19:$R$41,8,0)/'4. Billing Determinants'!$I$41*$D31, VLOOKUP(Q$4,'4. Billing Determinants'!$B$19:$R$41,3,0)/'4. Billing Determinants'!$D$41*$D31))))),0) -> 0 | R31: =IFERROR(IF(R$4="",0,IF($E31="kWh",VLOOKUP(R$4,'4. Billing Determinants'!$B$19:$R$41,4,0)/'4. Billing Determinants'!$E$41*$D31,IF($E31="kW",VLOOKUP(R$4,'4. Billing Determinants'!$B$19:$R$41,5,0)/'4. Billing Determinants'!$F$41*$D31,IF($E31="Non-RPP kWh",VLOOKUP(R$4,'4. Billing Determinants'!$B$19:$R$41,6,0)/'4. Billing Determinants'!$G$41*$D31,IF($E31="Distribution Rev.",VLOOKUP(R$4,'4. Billing Determinants'!$B$19:$R$41,8,0)/'4. Billing Determinants'!$I$41*$D31, VLOOKUP(R$4,'4. Billing Determinants'!$B$19:$R$41,3,0)/'4. Billing Determinants'!$D$41*$D31))))),0) -> 0 | S31: =IFERROR(IF(S$4="",0,IF($E31="kWh",VLOOKUP(S$4,'4. Billing Determinants'!$B$19:$R$41,4,0)/'4. Billing Determinants'!$E$41*$D31,IF($E31="kW",VLOOKUP(S$4,'4. Billing Determinants'!$B$19:$R$41,5,0)/'4. Billing Determinants'!$F$41*$D31,IF($E31="Non-RPP kWh",VLOOKUP(S$4,'4. Billing Determinants'!$B$19:$R$41,6,0)/'4. Billing Determinants'!$G$41*$D31,IF($E31="Distribution Rev.",VLOOKUP(S$4,'4. Billing Determinants'!$B$19:$R$41,8,0)/'4. Billing Determinants'!$I$41*$D31, VLOOKUP(S$4,'4. Billing Determinants'!$B$19:$R$41,3,0)/'4. Billing Determinants'!$D$41*$D31))))),0) -> 0 | T31: =IFERROR(IF(T$4="",0,IF($E31="kWh",VLOOKUP(T$4,'4. Billing Determinants'!$B$19:$R$41,4,0)/'4. Billing Determinants'!$E$41*$D31,IF($E31="kW",VLOOKUP(T$4,'4. Billing Determinants'!$B$19:$R$41,5,0)/'4. Billing Determinants'!$F$41*$D31,IF($E31="Non-RPP kWh",VLOOKUP(T$4,'4. Billing Determinants'!$B$19:$R$41,6,0)/'4. Billing Determinants'!$G$41*$D31,IF($E31="Distribution Rev.",VLOOKUP(T$4,'4. Billing Determinants'!$B$19:$R$41,8,0)/'4. Billing Determinants'!$I$41*$D31, VLOOKUP(T$4,'4. Billing Determinants'!$B$19:$R$41,3,0)/'4. Billing Determinants'!$D$41*$D31))))),0) -> 0 | U31: =IFERROR(IF(U$4="",0,IF($E31="kWh",VLOOKUP(U$4,'4. Billing Determinants'!$B$19:$R$41,4,0)/'4. Billing Determinants'!$E$41*$D31,IF($E31="kW",VLOOKUP(U$4,'4. Billing Determinants'!$B$19:$R$41,5,0)/'4. Billing Determinants'!$F$41*$D31,IF($E31="Non-RPP kWh",VLOOKUP(U$4,'4. Billing Determinants'!$B$19:$R$41,6,0)/'4. Billing Determinants'!$G$41*$D31,IF($E31="Distribution Rev.",VLOOKUP(U$4,'4. Billing Determinants'!$B$19:$R$41,8,0)/'4. Billing Determinants'!$I$41*$D31, VLOOKUP(U$4,'4. Billing Determinants'!$B$19:$R$41,3,0)/'4. Billing Determinants'!$D$41*$D31))))),0) -> 0 | V31: =IFERROR(IF(V$4="",0,IF($E31="kWh",VLOOKUP(V$4,'4. Billing Determinants'!$B$19:$R$41,4,0)/'4. Billing Determinants'!$E$41*$D31,IF($E31="kW",VLOOKUP(V$4,'4. Billing Determinants'!$B$19:$R$41,5,0)/'4. Billing Determinants'!$F$41*$D31,IF($E31="Non-RPP kWh",VLOOKUP(V$4,'4. Billing Determinants'!$B$19:$R$41,6,0)/'4. Billing Determinants'!$G$41*$D31,IF($E31="Distribution Rev.",VLOOKUP(V$4,'4. Billing Determinants'!$B$19:$R$41,8,0)/'4. Billing Determinants'!$I$41*$D31, VLOOKUP(V$4,'4. Billing Determinants'!$B$19:$R$41,3,0)/'4. Billing Determinants'!$D$41*$D31))))),0) -> 0 | W31: =IFERROR(IF(W$4="",0,IF($E31="kWh",VLOOKUP(W$4,'4. Billing Determinants'!$B$19:$R$41,4,0)/'4. Billing Determinants'!$E$41*$D31,IF($E31="kW",VLOOKUP(W$4,'4. Billing Determinants'!$B$19:$R$41,5,0)/'4. Billing Determinants'!$F$41*$D31,IF($E31="Non-RPP kWh",VLOOKUP(W$4,'4. Billing Determinants'!$B$19:$R$41,6,0)/'4. Billing Determinants'!$G$41*$D31,IF($E31="Distribution Rev.",VLOOKUP(W$4,'4. Billing Determinants'!$B$19:$R$41,8,0)/'4. Billing Determinants'!$I$41*$D31, VLOOKUP(W$4,'4. Billing Determinants'!$B$19:$R$41,3,0)/'4. Billing Determinants'!$D$41*$D31))))),0) -> 0 | X31: =IFERROR(IF(X$4="",0,IF($E31="kWh",VLOOKUP(X$4,'4. Billing Determinants'!$B$19:$R$41,4,0)/'4. Billing Determinants'!$E$41*$D31,IF($E31="kW",VLOOKUP(X$4,'4. Billing Determinants'!$B$19:$R$41,5,0)/'4. Billing Determinants'!$F$41*$D31,IF($E31="Non-RPP kWh",VLOOKUP(X$4,'4. Billing Determinants'!$B$19:$R$41,6,0)/'4. Billing Determinants'!$G$41*$D31,IF($E31="Distribution Rev.",VLOOKUP(X$4,'4. Billing Determinants'!$B$19:$R$41,8,0)/'4. Billing Determinants'!$I$41*$D31, VLOOKUP(X$4,'4. Billing Determinants'!$B$19:$R$41,3,0)/'4. Billing Determinants'!$D$41*$D31))))),0) -> 0 | Y31: =IFERROR(IF(Y$4="",0,IF($E31="kWh",VLOOKUP(Y$4,'4. Billing Determinants'!$B$19:$R$41,4,0)/'4. Billing Determinants'!$E$41*$D31,IF($E31="kW",VLOOKUP(Y$4,'4. Billing Determinants'!$B$19:$R$41,5,0)/'4. Billing Determinants'!$F$41*$D31,IF($E31="Non-RPP kWh",VLOOKUP(Y$4,'4. Billing Determinants'!$B$19:$R$41,6,0)/'4. Billing Determinants'!$G$41*$D31,IF($E31="Distribution Rev.",VLOOKUP(Y$4,'4. Billing Determinants'!$B$19:$R$41,8,0)/'4. Billing Determinants'!$I$41*$D31, VLOOKUP(Y$4,'4. Billing Determinants'!$B$19:$R$41,3,0)/'4. Billing Determinants'!$D$41*$D31))))),0) -> 0 | AA31: 1.598721155e-13
